Workbook

Sheet Data
B1: Returns | M1: Deviations from Mean | X1: Squared Deviations from Mean | AI1: ABC Cross Deviations from Mean | AS1: CDE Cross Deviations from Mean with: | BB1: FGH Cross Deviations from Mean with: | BJ1: IJK Cross Deviations from Means with: | BQ1: LMN Cross deviations from means with: | BW1: NOP Cross deviations from means with: | CB1: QRS Cross deviations from means with: | CF1: TUV CDs with: | CI1: WXY / ZZZ
A2: Month | B2: ABC | C2: CDE | D2: FGH | E2: IJK | F2: LMN | G2: NOP | H2: QRS | I2: TUV | J2: WXY | K2: ZZZ | M2: ABC | N2: CDE | O2: FGH | P2: IJK | Q2: LMN | R2: NOP | S2: QRS | T2: TUV | U2: WXY | V2: ZZZ | X2: ABC | Y2: CDE | Z2: FGH | AA2: IJK | AB2: LMN | AC2: NOP | AD2: QRS | AE2: TUV | AF2: WXY | AG2: ZZZ | AI2: CDE | AJ2: FGH | AK2: IJK | AL2: LMN | AM2: NOP | AN2: QRS | AO2: TUV | AP2: WXY | AQ2: ZZZ | AS2: FGH | AT2: IJK | AU2: LMN | AV2: NOP | AW2: QRS | AX2: TUV | AY2: WXY | AZ2: ZZZ | BB2: IJK | BC2: LMN | BD2: NOP | BE2: QRS | BF2: TUV | BG2: WXY | BH2: ZZZ | BJ2: LMN | BK2: NOP | BL2: QRS | BM2: TUV | BN2: WXY | BO2: ZZZ | BQ2: NOP | BR2: QRS | BS2: TUV | BT2: WXY | BU2: ZZZ | BW2: QRS | BX2: TUV | BY2: WXY | BZ2: ZZZ | CB2: TUV | CC2: WXY | CD2: ZZZ | CF2: WXY | CG2: ZZZ
A3: 1 | B3: 0.02975533 | C3: -0.08831013 | D3: -0.19513657 | E3: 0.07277643 | F3: 0.05200771 | G3: 0.23094694 | H3: 0.13554529 | I3: -0.03779608 | J3: 0.19272759 | K3: -0.10190724 | M3: =B3-B$244 -> 0.02151945167 | N3: =C3-C$244 -> -0.09734279633 | O3: -0.2060136816 | P3: 0.05318048883 | Q3: 0.05488795754 | R3: 0.2119638547 | S3: 0.1429780338 | T3: -0.04739362521 | U3: 0.1742172684 | V3: -0.1013411253 | X3: =M3^2 -> 0.0004630868 | Y3: =N3^2 -> 0.009475619998 | Z3: 0.042441637 | AA3: 0.002828164393 | AB3: 0.003012687883 | AC3: 0.0449286757 | AD3: 0.02044271815 | AE3: 0.00224615571 | AF3: 0.0303516566 | AG3: 0.01027002368 | AI3: =$M3*N3 -> -0.002094763601 | AJ3: =$M3*O3 -> -0.004433301464 | AK3: 0.001144414959 | AL3: 0.001181158749 | AM3: 0.004561345926 | AN3: 0.003076808888 | AO3: -0.001019884827 | AP3: 0.003749060086 | AQ3: -0.002180805448 | AS3: =$N3*O3 -> 0.02005394785 | AT3: =$N3*P3 -> -0.005176737493 | AU3: -0.005342947272 | AV3: -0.02063315434 | AW3: -0.01391788162 | AX3: 0.004613428006 | AY3: -0.01695879607 | AZ3: 0.009864828524 | BB3: =$O3*P3 -> -0.01095590829 | BC3: =$O3*Q3 -> -0.01130767021 | BD3: -0.04366745407 | BE3: -0.02945543113 | BF3: 0.009763735213 | BG3: -0.03589114085 | BH3: 0.02087765833 | BJ3: =$P3*Q3 -> 0.002918968413 | BK3: =$P3*R3 -> 0.01127234141 | BL3: 0.007603641729 | BM3: -0.002520416156 | BN3: 0.009264959495 | BO3: -0.005389370584 | BQ3: =$Q3*R3 -> 0.01163426306 | BR3: =$Q3*S3 -> 0.007847772248 | BS3: -0.002601339288 | BT3: 0.00956243003 | BU3: -0.005562407385 | BW3: =$R3*S3 -> 0.03030617518 | BX3: =$R3*T3 -> -0.01004573549 | BY3: 0.03692776376 | BZ3: -0.02148065557 | CB3: =$S3*T3 -> -0.006776247347 | CC3: =$S3*U3 -> 0.02490924248 | CD3: -0.01448955484 | CF3: =$T3*U3 -> -0.008256787922 | CG3: =$T3*V3 -> 0.004802923312 | CI3: =U3*V3 -> -0.01765537403
A4: 2 | B4: 0.05223597 | C4: 0.07712268 | D4: 0.04242233 | E4: 0.03220869 | F4: 0.05619028 | G4: -0.33659507 | H4: -0.07724699 | I4: 0.07459152 | J4: -0.02629021 | K4: -0.0288703 | M4: =B4-B$244 -> 0.04400009167 | N4: =C4-C$244 -> 0.06809001367 | O4: =D4-D$244 -> 0.03154521842 | P4: =E4-E$244 -> 0.01261274883 | Q4: =F4-F$244 -> 0.05907052754 | R4: =G4-G$244 -> -0.3555781553 | S4: =H4-H$244 -> -0.06981424621 | T4: =I4-I$244 -> 0.06499397479 | U4: =J4-J$244 -> -0.04480053163 | V4: =K4-K$244 -> -0.02830418533 | X4: =M4^2 -> 0.001936008067 | Y4: =N4^2 -> 0.004636249961 | Z4: =O4^2 -> 0.000995100805 | AA4: =P4^2 -> 0.0001590814331 | AB4: =Q4^2 -> 0.003489327224 | AC4: =R4^2 -> 0.1264358245 | AD4: =S4^2 -> 0.004874028974 | AE4: =T4^2 -> 0.004224216759 | AF4: =U4^2 -> 0.002007087634 | AG4: =V4^2 -> 0.0008011269074 | AI4: =$M4*N4 -> 0.002995966843 | AJ4: =$M4*O4 -> 0.001387992502 | AK4: =$M4*P4 -> 0.0005549621048 | AL4: =$M4*Q4 -> 0.002599108627 | AM4: =$M4*R4 -> -0.01564547143 | AN4: =$M4*S4 -> -0.003071833233 | AO4: =$M4*T4 -> 0.002859740849 | AP4: =$M4*U4 -> -0.001971227498 | AQ4: =$M4*V4 -> -0.001245386749 | AS4: =$N4*O4 -> 0.002147914353 | AT4: =$N4*P4 -> 0.0008588022404 | AU4: =$N4*Q4 -> 0.004022113028 | AV4: =$N4*R4 -> -0.02421132145 | AW4: =$N4*S4 -> -0.004753652978 | AX4: =$N4*T4 -> 0.004425440632 | AY4: =$N4*U4 -> -0.003050468811 | AZ4: =$N4*V4 -> -0.001927232366 | BB4: =$O4*P4 -> 0.0003978719168 | BC4: =$O4*Q4 -> 0.001863392693 | BD4: =$O4*R4 -> -0.01121679057 | BE4: =$O4*S4 -> -0.002202305645 | BF4: =$O4*T4 -> 0.002050249131 | BG4: =$O4*U4 -> -0.001413242555 | BH4: =$O4*V4 -> -0.0008928617084 | BJ4: =$P4*Q4 -> 0.0007450417273 | BK4: =$P4*R4 -> -0.004484817963 | BL4: =$P4*S4 -> -0.0008805495524 | BM4: =$P4*T4 -> 0.0008197526797 | BN4: =$P4*U4 -> -0.000565057853 | BO4: =$P4*V4 -> -0.0003569935805 | BQ4: =$Q4*R4 -> -0.02100418922 | BR4: =$Q4*S4 -> -0.004123964353 | BS4: =$Q4*T4 -> 0.003839228378 | BT4: =$Q4*U4 -> -0.002646391037 | BU4: =$Q4*V4 -> -0.001671943159 | BW4: =$R4*S4 -> 0.02482442088 | BX4: =$R4*T4 -> -0.02311043766 | BY4: =$R4*U4 -> 0.01593009039 | BZ4: =$R4*V4 -> 0.01006435001 | CB4: =$S4*T4 -> -0.004537505358 | CC4: =$S4*U4 -> 0.003127715345 | CD4: =$S4*V4 -> 0.001976035364 | CF4: =$T4*U4 -> -0.002911764623 | CG4: =$T4*V4 -> -0.001839601508 | CI4: =U4*V4 -> 0.00126804255
A5: 3 | B5: 0.06223574 | C5: -0.02205113 | D5: 0.0184664 | E5: -0.03291761 | F5: -0.0394433 | G5: 0.07796227 | H5: -0.00593661 | I5: 0.12126261 | J5: 0.24078196 | K5: -0.39647257 | M5: 0.05399986167 | N5: -0.03108379633 | O5: 0.007589288417 | P5: -0.05251355117 | Q5: -0.03656305246 | R5: 0.05897918471 | S5: 0.001496133792 | T5: 0.1116650648 | U5: 0.2222716384 | V5: -0.3959064553 | X5: 0.00291598506 | Y5: 0.0009662023945 | Z5: 5.759729867e-05 | AA5: 0.002757673056 | AB5: 0.001336856805 | AC5: 0.003478544229 | AD5: 2.238416323e-06 | AE5: 0.01246908669 | AF5: 0.04940468123 | AG5: 0.1567419214 | AI5: -0.001678520702 | AJ5: 0.0004098205246 | AK5: -0.002835724499 | AL5: -0.001974399775 | AM5: 0.003184867815 | AN5: 8.079101778e-05 | AO5: 0.006029898052 | AP5: 0.01200263772 | AQ5: -0.02137889382 | AS5: -0.0002359038955 | AT5: 0.001632320529 | AU5: 0.001136518476 | AV5: -0.001833296965 | AW5: -4.650551807e-05 | AX5: -0.003470974132 | AY5: -0.006909046338 | AZ5: 0.01230627562 | BB5: -0.0003985404856 | BC5: -0.0002774875505 | BD5: 0.0004476100433 | BE5: 1.135459085e-05 | BF5: 0.0008474583828 | BG5: 0.00168688357 | BH5: -0.003004648276 | BJ5: 0.001920055726 | BK5: -0.003097206434 | BL5: -7.856729842e-05 | BM5: -0.005863929093 | BN5: -0.01167227305 | BO5: 0.0207904539 | BQ5: -0.002156459024 | BR5: -5.470321831e-05 | BS5: -0.004082815622 | BT5: -0.008126929574 | BU5: 0.01447554849 | BW5: 8.824075125e-05 | BX5: 0.006585914482 | BY5: 0.01310940002 | BZ5: -0.02335023996 | CB5: 0.0001670658768 | CC5: 0.0003325481091 | CD5: -0.0005923290262 | CF5: 0.0248199769 | CG5: -0.04420891999 | CI5: -0.08799877647
A6: 4 | B6: 0.11507708 | C6: 0.05338294 | D6: -0.00980737 | E6: -0.1381498 | F6: 0.07376992 | G6: -0.02019895 | H6: -0.10174076 | I6: -0.06392098 | J6: -0.06991198 | K6: 0.00801499 | M6: 0.1068412017 | N6: 0.04435027367 | O6: -0.02068448158 | P6: -0.1577457412 | Q6: 0.07665016754 | R6: -0.03918203529 | S6: -0.09430801621 | T6: -0.07351852521 | U6: -0.08842230163 | V6: 0.008581104667 | X6: 0.01141504237 | Y6: 0.001966946774 | Z6: 0.0004278477784 | AA6: 0.02488371886 | AB6: 0.005875248184 | AC6: 0.00153523189 | AD6: 0.008894001921 | AE6: 0.005404973549 | AF6: 0.007818503425 | AG6: 7.36353573e-05 | AI6: 0.004738436533 | AJ6: -0.002209954868 | AK6: -0.01685374454 | AL6: 0.008189396008 | AM6: -0.004186255734 | AN6: -0.01007598178 | AO6: -0.007854807578 | AP6: -0.00944714496 | AQ6: 0.0009168155342 | AS6: -0.0009173624189 | AT6: -0.00699606679 | AU6: 0.003399455907 | AV6: -0.001737733988 | AW6: -0.004182586328 | AX6: -0.003260566713 | AY6: -0.003921553275 | AZ6: 0.0003805743403 | BB6: 0.003262888878 | BC6: -0.001585468979 | BD6: 0.0008104600874 | BE6: 0.001950712424 | BF6: 0.001520692581 | BG6: 0.00182896947 | BH6: -0.0001774957014 | BJ6: -0.01209123749 | BK6: 0.006180799198 | BL6: 0.01487668791 | BM6: 0.01159723425 | BN6: 0.01394824151 | BO6: -0.001353632716 | BQ6: -0.00300330957 | BR6: -0.007228725243 | BS6: -0.005635207275 | BT6: -0.006777584234 | BU6: 0.0006577431104 | BW6: 0.003695180019 | BX6: 0.002880605449 | BY6: 0.003464565743 | BZ6: -0.0003362251459 | CB6: 0.006933386267 | CC6: 0.008338931855 | CD6: -0.000809266958 | CF6: 0.006500677211 | CG6: -0.0006308701598 | CI6: -0.0007587610251
A7: 5 | B7: -0.01722849 | C7: 0.0231082 | D7: 0.00474075 | E7: -0.13579648 | F7: -0.22515508 | G7: 0.11088437 | H7: 0.17808114 | I7: 0.2577759 | J7: 0.1227664 | K7: 0.03226266 | M7: -0.02546436833 | N7: 0.01407553367 | O7: -0.006136361583 | P7: -0.1553924212 | Q7: -0.2222748325 | R7: 0.09190128471 | S7: 0.1855138838 | T7: 0.2481783548 | U7: 0.1042560784 | V7: 0.03282877467 | X7: 0.0006484340546 | Y7: 0.000198120648 | Z7: 3.765493348e-05 | AA7: 0.02414680456 | AB7: 0.04940610114 | AC7: 0.008445846131 | AD7: 0.03441540108 | AE7: 0.06159249579 | AF7: 0.01086932988 | AG7: 0.001077728446 | AI7: -0.0003584245738 | AJ7: 0.0001562585716 | AK7: 0.003956969849 | AL7: 0.005660088205 | AM7: -0.002340208164 | AN7: -0.004723993868 | AO7: -0.006319705039 | AP7: -0.002654815181 | AQ7: -0.00083596401 | AS7: -8.637256406e-05 | AT7: -0.002187231256 | AU7: -0.003128636888 | AV7: 0.001293559627 | AW7: 0.002611206917 | AX7: 0.003493242788 | AY7: 0.001467459941 | AZ7: 0.0004620825231 | BB7: 0.0009535440836 | BC7: 0.001363958743 | BD7: -0.0005639395129 | BE7: -0.00113838027 | BF7: -0.001522912122 | BG7: -0.0006397529942 | BH7: -0.0002014492317 | BJ7: 0.03453982438 | BK7: -0.01428076314 | BL7: -0.02882745156 | BM7: -0.03856503543 | BN7: -0.01620060444 | BO7: -0.005101342779 | BQ7: -0.02042734266 | BR7: -0.04123506744 | BS7: -0.05516380223 | BT7: -0.02317350235 | BU7: -0.007297010389 | BW7: 0.01704896425 | BX7: 0.02280790964 | BY7: 0.009581267541 | BZ7: 0.003017006567 | CB7: 0.04604053047 | CC7: 0.01934095001 | CD7: 0.006090193489 | CF7: 0.02587410201 | CG7: 0.008147391287 | CI7: 0.003422599305
A8: 6 | B8: 0.04921294 | C8: 0.0662002 | D8: -0.02926641 | E8: 0.06333536 | F8: -0.08401641 | G8: -0.05865537 | H8: 0.10400703 | I8: -0.23481043 | J8: -0.08543058 | K8: 0.11147815 | M8: 0.04097706167 | N8: 0.05716753367 | O8: -0.04014352158 | P8: 0.04373941883 | Q8: -0.08113616246 | R8: -0.07763845529 | S8: 0.1114397738 | T8: -0.2444079752 | U8: -0.1039409016 | V8: 0.1120442647 | X8: 0.001679119583 | Y8: 0.003268126906 | Z8: 0.001611502325 | AA8: 0.00191313676 | AB8: 0.006583076858 | AC8: 0.00602772974 | AD8: 0.01241882318 | AE8: 0.05973525835 | AF8: 0.01080371103 | AG8: 0.01255391724 | AI8: 0.002342557552 | AJ8: -0.001644963559 | AK8: 0.001792312863 | AL8: -0.003324721532 | AM8: -0.00318139577 | AN8: 0.004566474483 | AO8: -0.01001512067 | AP8: -0.004259192736 | AQ8: 0.004591244743 | AS8: -0.002294906122 | AT8: 0.002500474699 | AU8: -0.004638354299 | AV8: -0.004438399007 | AW8: 0.00637073702 | AX8: -0.01397220115 | AY8: -0.005942044993 | AZ8: 0.006405294272 | BB8: -0.001755854304 | BC8: 0.003257091289 | BD8: 0.003116681006 | BE8: -0.004473584964 | BF8: 0.009811396828 | BG8: 0.004172553828 | BH8: -0.004497851357 | BJ8: -0.003548848592 | BK8: -0.003395860914 | BL8: 0.004874310941 | BM8: -0.01069026279 | BN8: -0.00454631463 | BO8: 0.00490075102 | BQ8: 0.006299286322 | BR8: -0.009041795591 | BS8: 0.01983032518 | BT8: 0.00843336588 | BU8: -0.009090841661 | BW8: -0.008652011895 | BX8: 0.01897545766 | BY8: 0.008069811044 | BZ8: -0.008698943633 | CB8: -0.02723676947 | CC8: -0.01158315056 | CD8: 0.01248618751 | CF8: 0.02540398531 | CG8: -0.02738451186 | CI8: -0.01164598189
A9: 7 | B9: 0.00845478 | C9: -0.10733297 | D9: 0.06974408 | E9: 0.01764255 | F9: -0.19846608 | G9: 0.12066996 | H9: 0.08464517 | I9: 0.03981011 | J9: 0.35704285 | K9: -0.09458845 | M9: 0.0002189016667 | N9: -0.1163656363 | O9: 0.05886696842 | P9: -0.001953391167 | Q9: -0.1955858325 | R9: 0.1016868747 | S9: 0.09207791379 | T9: 0.03021256479 | U9: 0.3385325284 | V9: -0.09402233533 | X9: 4.791793967e-08 | Y9: 0.01354096132 | Z9: 0.003465319971 | AA9: 3.81573705e-06 | AB9: 0.03825381786 | AC9: 0.01034022049 | AD9: 0.008478342208 | AE9: 0.0009127990713 | AF9: 0.1146042728 | AG9: 0.008840199542 | AI9: -2.547263174e-05 | AJ9: 1.28860775e-05 | AK9: -4.27600582e-07 | AL9: -4.28140647e-05 | AM9: 2.225942635e-05 | AN9: 2.015600879e-05 | AO9: 6.613580787e-06 | AP9: 7.410533468e-05 | AQ9: -2.058164591e-05 | AS9: -0.006850092239 | AT9: 0.0002273076061 | AU9: 0.02275946985 | AV9: -0.01183285788 | AW9: -0.01071470503 | AX9: -0.003515704327 | AY9: -0.03939355308 | AZ9: 0.01094096888 | BB9: -0.0001149902161 | BC9: -0.01151354502 | BD9: 0.005985998042 | BE9: 0.005420347643 | BF9: 0.001778522097 | BG9: 0.01992838366 | BH9: -0.005534809845 | BJ9: 0.0003820556374 | BK9: -0.0001986342428 | BL9: -0.0001798641834 | BM9: -5.901695719e-05 | BN9: -0.0006612864506 | BO9: 0.0001836623993 | BQ9: -0.01988851204 | BR9: -0.01800913542 | BS9: -0.005909149635 | BT9: -0.06621216638 | BU9: 0.01838943673 | BW9: 0.009363115283 | BX9: 0.003072221291 | BY9: 0.0344243148 | BZ9: -0.009560837433 | CB9: 0.002781909936 | CC9: 0.03117136896 | CD9: -0.008657380487 | CF9: 0.01022793595 | CG9: -0.002840655898 | CI9: -0.0318296189
A10: 8 | B10: 0.04329953 | C10: -0.04723054 | D10: 0.02374036 | E10: -0.00209188 | F10: -0.14717397 | G10: -0.04749633 | H10: -0.05912749 | I10: 0.25265003 | J10: 0.00218339 | K10: 0.21083749 | M10: 0.03506365167 | N10: -0.05626320633 | O10: 0.01286324842 | P10: -0.02168782117 | Q10: -0.1442937225 | R10: -0.06647941529 | S10: -0.05169474621 | T10: 0.2430524848 | U10: -0.01632693163 | V10: 0.2114036047 | X10: 0.001229459668 | Y10: 0.003165548387 | Z10: 0.0001654631598 | AA10: 0.000470361587 | AB10: 0.02082067834 | AC10: 0.004419512658 | AD10: 0.002672346786 | AE10: 0.05907451036 | AF10: 0.0002665686963 | AG10: 0.04469148407 | AI10: -0.001972793469 | AJ10: 0.0004510324618 | AK10: -0.0007604542068 | AL10: -0.005059464822 | AM10: -0.002331011061 | AN10: -0.001812606574 | AO10: 0.008522307663 | AP10: -0.0005724818433 | AQ10: 0.007412582355 | AS10: -0.0007237275998 | AT10: 0.001220226357 | AU10: 0.008118427479 | AV10: 0.003740345059 | AW10: 0.002908512172 | AX10: -0.0136749121 | AY10: 0.0009186055228 | AZ10: -0.01189424463 | BB10: -0.0002789758313 | BC10: -0.001856085997 | BD10: -0.0008551412335 | BE10: -0.0006649623623 | BF10: 0.00312644449 | BG10: -0.0002100173774 | BH10: 0.002719337083 | BJ10: 0.003129416448 | BK10: 0.00144179367 | BL10: 0.001121146411 | BM10: -0.005271278824 | BN10: 0.0003540955733 | BO10: -0.004584883572 | BQ10: 0.009592562299 | BR10: 0.007459227362 | BS10: -0.03507094778 | BT10: 0.00235587374 | BU10: -0.03050421306 | BW10: 0.003436636502 | BX10: -0.01615798707 | BY10: 0.001085404868 | BZ10: -0.01405398803 | CB10: -0.01256453652 | CC10: 0.0008440165867 | CD10: -0.01092845569 | CF10: -0.0039683013 | CG10: 0.05138217141 | CI10: -0.003451572199
A11: 9 | B11: -0.00110783 | C11: 0.16046396 | D11: -0.14394495 | E11: 0.02001786 | F11: -0.18016488 | G11: -0.12998729 | H11: -0.0440249 | I11: 0.35034446 | J11: -0.09602153 | K11: 0.19245913 | M11: -0.009343708333 | N11: 0.1514312937 | O11: -0.1548220616 | P11: 0.0004219188333 | Q11: -0.1772846325 | R11: -0.1489703753 | S11: -0.03659215621 | T11: 0.3407469148 | U11: -0.1145318516 | V11: 0.1930252447 | X11: 8.730488542e-05 | Y11: 0.0229314367 | Z11: 0.02396987075 | AA11: 1.780155019e-07 | AB11: 0.03142984091 | AC11: 0.02219217271 | AD11: 0.001338985896 | AE11: 0.1161084599 | AF11: 0.01311754504 | AG11: 0.03725874508 | AI11: -0.001414929841 | AJ11: 0.001446612187 | AK11: -3.942286519e-06 | AL11: 0.001656495898 | AM11: 0.001391935737 | AN11: 0.0003419064349 | AO11: -0.003183839787 | AP11: 0.001070152216 | AQ11: -0.001803571587 | AS11: -0.02344490507 | AT11: 6.389171475e-05 | AU11: -0.02684644124 | AV11: -0.02255877665 | AW11: -0.005541197553 | AX11: 0.05159974612 | AY11: -0.01734370646 | AZ11: 0.02923006251 | BB11: -6.53223436e-05 | BC11: 0.02744757228 | BD11: 0.02306390062 | BE11: 0.005665273062 | BF11: -0.05275513983 | BG11: 0.01773205739 | BH11: -0.02988456632 | BJ11: -7.479972529e-05 | BK11: -6.285340694e-05 | BL11: -1.543891986e-05 | BM11: 0.0001437675408 | BN11: -4.832314522e-05 | BO11: 8.144098603e-05 | BQ11: 0.02641015823 | BR11: 0.006487226964 | BS11: -0.06040919155 | BT11: 0.02030473722 | BU11: -0.03422040956 | BW11: 0.005451147243 | BX11: -0.05076119578 | BY11: 0.01706185292 | BZ11: -0.02875504314 | CB11: -0.01246866433 | CC11: 0.004190967405 | CD11: -0.007063209905 | CF11: -0.03902637509 | CG11: 0.0657727566 | CI11: -0.02210753868
A12: 10 | B12: -0.03527441 | C12: 0.09386562 | D12: 0.0412755 | E12: 0.05419379 | F12: 0.02271445 | G12: -0.04924639 | H12: -0.07158534 | I12: -0.17315454 | J12: 0.10574229 | K12: 0.20721812 | M12: -0.04351028833 | N12: 0.08483295367 | O12: 0.03039838842 | P12: 0.03459784883 | Q12: 0.02559469754 | R12: -0.06822947529 | S12: -0.06415259621 | T12: -0.1827520852 | U12: 0.08723196837 | V12: 0.2077842347 | X12: 0.001893145191 | Y12: 0.007196630028 | Z12: 0.0009240620183 | AA12: 0.001197011144 | AB12: 0.0006550885422 | AC12: 0.004655261299 | AD12: 0.0041155556 | AE12: 0.03339832465 | AF12: 0.007609416307 | AG12: 0.04317428818 | AI12: -0.003691106274 | AJ12: -0.001322642645 | AK12: -0.001505362378 | AL12: -0.00111363267 | AM12: 0.002968684143 | AN12: 0.002791297958 | AO12: 0.007951595921 | AP12: -0.003795488096 | AQ12: -0.009040751961 | AS12: 0.002578785076 | AT12: 0.002935037707 | AU12: 0.002171273791 | AV12: -0.005788107916 | AW12: -0.005442254222 | AX12: -0.01550339918 | AY12: 0.007400145531 | AZ12: 0.01762695035 | BB12: 0.001051718847 | BC12: 0.0007780375573 | BD12: -0.002074066091 | BE12: -0.001950135537 | BF12: -0.00555536887 | BG12: 0.002651711257 | BH12: 0.006316305872 | BJ12: 0.0008855214765 | BK12: -0.002360593072 | BL12: -0.002219541826 | BM12: -0.006322829018 | BN12: 0.003018038455 | BO12: 0.007188887541 | BQ12: -0.001746312784 | BR12: -0.001641966296 | BS12: -0.004677484346 | BT12: 0.002232675847 | BU12: 0.00531817464 | BW12: 0.004377097978 | BX12: 0.01246907888 | BY12: -0.005951791431 | BZ12: -0.01417700931 | CB12: 0.01172402073 | CC12: -0.005596157244 | CD12: -0.01332989811 | CF12: -0.01594182412 | CG12: -0.03797300216 | CI12: 0.01812542779
A13: 11 | B13: -0.04858424 | C13: 0.0012616 | D13: -0.01635602 | E13: 0.165425 | F13: 0.0102934 | G13: -0.06266989 | H13: -0.08155948 | I13: -0.09477769 | J13: 0.1957495 | K13: 0.24043277 | M13: -0.05682011833 | N13: -0.007771066333 | O13: -0.02723313158 | P13: 0.1458290588 | Q13: 0.01317364754 | R13: -0.08165297529 | S13: -0.07412673621 | T13: -0.1043752352 | U13: 0.1772391784 | V13: 0.2409988847 | X13: 0.003228525847 | Y13: 6.038947196e-05 | Z13: 0.0007416434558 | AA13: 0.0212661144 | AB13: 0.0001735449896 | AC13: 0.006667208374 | AD13: 0.005494773021 | AE13: 0.01089418972 | AF13: 0.03141372635 | AG13: 0.05808046241 | AI13: 0.0004415529086 | AJ13: 0.001547389759 | AK13: -0.008286024379 | AL13: -0.0007485282122 | AM13: 0.004639531718 | AN13: 0.004211889923 | AO13: 0.005930613216 | AP13: -0.01007075109 | AQ13: -0.01369358514 | AS13: 0.000211630472 | AT13: -0.00113324729 | AU13: -0.0001023732889 | AV13: 0.0006345306873 | AW13: 0.0005760437841 | AX13: 0.0008111068764 | AY13: -0.001377337412 | AZ13: -0.001872818319 | BB13: -0.003971381948 | BC13: -0.0003587596769 | BD13: 0.00222366622 | BE13: 0.002018703161 | BF13: 0.002842464514 | BG13: -0.004826777866 | BH13: -0.006563154338 | BJ13: 0.001921100622 | BK13: -0.01190737654 | BL13: -0.01080983218 | BM13: -0.01522094232 | BN13: 0.02584662257 | BO13: 0.03514464053 | BQ13: -0.001075667517 | BR13: -0.0009765194962 | BS13: -0.001375002561 | BT13: 0.002334886466 | BU13: 0.003174834365 | BW13: 0.00605266856 | BX13: 0.008522548502 | BY13: -0.01447210625 | BZ13: -0.01967827598 | CB13: 0.007736995527 | CC13: -0.01313816182 | CD13: -0.01786446075 | CF13: -0.01849938093 | CG13: -0.02515431527 | CI13: 0.04271444431
A14: 12 | B14: 0.02129782 | C14: 0.03327767 | D14: 0.05347936 | E14: 0.01590575 | F14: -0.00755972 | G14: 0.11899189 | H14: -0.2017174 | I14: 0.12871281 | J14: -0.06931508 | K14: -0.16567291 | M14: 0.01306194167 | N14: 0.02424500367 | O14: 0.04260224842 | P14: -0.003690191167 | Q14: -0.004679472458 | R14: 0.1000088047 | S14: -0.1942846562 | T14: 0.1191152648 | U14: -0.08782540163 | V14: -0.1651067953 | X14: 0.0001706143201 | Y14: 0.0005878202028 | Z14: 0.00181495157 | AA14: 1.361751085e-05 | AB14: 2.189746249e-05 | AC14: 0.01000176102 | AD14: 0.03774652764 | AE14: 0.01418844631 | AF14: 0.007713301171 | AG14: 0.02726025387 | AI14: 0.0003166868236 | AJ14: 0.0005564680837 | AK14: -4.820106176e-05 | AL14: -6.112299628e-05 | AM14: 0.001306309173 | AN14: -0.002537734846 | AO14: 0.00155587664 | AP14: -0.001147170273 | AQ14: -0.002156615329 | AS14: 0.001032891669 | AT14: -8.946869837e-05 | AU14: -0.0001134538269 | AV14: 0.002424713837 | AW14: -0.004710432202 | AX14: 0.002887950032 | AY14: -0.002129327184 | AZ14: -0.004003014858 | BB14: -0.0001572104408 | BC14: -0.0001993560481 | BD14: 0.004260599942 | BE14: -0.008276963187 | BF14: 0.005074578101 | BG14: -0.003741559577 | BH14: -0.00703392071 | BJ14: 1.726814793e-05 | BK14: -0.0003690516077 | BL14: 0.0007169475222 | BM14: -0.0004395580979 | BN14: 0.0003240925213 | BO14: 0.0006092756377 | BQ14: -0.0004679884472 | BR14: 0.0009091496978 | BS14: -0.000557396601 | BT14: 0.000410976548 | BU14: 0.0007726127014 | BW14: -0.01943017624 | BX14: 0.01191257525 | BY14: -0.00878331344 | BZ14: -0.01651213325 | CB14: -0.02314226827 | CC14: 0.01706312796 | CD14: 0.03207771697 | CF14: -0.01046134597 | CG14: -0.01966673965 | CI14: 0.01450057061
A15: 13 | B15: 0.05463375 | C15: -0.00626568 | D15: 0.11180095 | E15: 0.21299512 | F15: -0.0707275 | G15: -0.03230771 | H15: -0.40984782 | I15: 0.04128083 | J15: -0.21123798 | K15: 0.14996849 | M15: 0.04639787167 | N15: -0.01529834633 | O15: 0.1009238384 | P15: 0.1933991788 | Q15: -0.06784725246 | R15: -0.05129079529 | S15: -0.4024150762 | T15: 0.03168328479 | U15: -0.2297483016 | V15: 0.1505346047 | X15: 0.002152762495 | Y15: 0.0002340394005 | Z15: 0.01018562116 | AA15: 0.03740324237 | AB15: 0.004603249666 | AC15: 0.002630745682 | AD15: 0.1619378936 | AE15: 0.001003830535 | AF15: 0.0527842821 | AG15: 0.0226606672 | AI15: -0.0007098107099 | AJ15: 0.004682651303 | AK15: 0.00897331028 | AL15: -0.003147968112 | AM15: -0.002379783738 | AN15: -0.01867120306 | AO15: 0.001470036982 | AP15: -0.01065983221 | AQ15: 0.006984485269 | AS15: -0.001543967833 | AT15: -0.002958687618 | AU15: 0.001037950766 | AV15: 0.0007846643501 | AW15: 0.006156285206 | AX15: -0.0004847018637 | AY15: 0.003514769088 | AZ15: -0.002302930517 | BB15: 0.01951858747 | BC15: -0.006847405144 | BD15: -0.005176463936 | BE15: -0.04061327413 | BF15: 0.003197598715 | BG15: -0.02318708047 | BH15: 0.01519253012 | BJ15: -0.01312160291 | BK15: -0.009919597691 | BL15: -0.07782674529 | BM15: 0.006127521261 | BN15: -0.04443313287 | BO15: 0.02911326893 | BQ15: 0.003479939537 | BR15: 0.02730275727 | BS15: -0.002149623822 | BT15: 0.01558779102 | BU15: -0.01021335933 | BW15: 0.0206401893 | BX15: -0.001625060874 | BY15: 0.01178397311 | BZ15: -0.007721039592 | CB15: -0.01274983146 | CC15: 0.09245418031 | CD15: -0.06057739441 | CF15: -0.007279180871 | CG15: 0.004769430751 | CI15: -0.03458506976
A16: 14 | B16: -0.00414408 | C16: 0.04110893 | D16: 0.01784256 | E16: -0.12602354 | F16: 0.14613942 | G16: 0.05167211 | H16: -0.14660371 | I16: -0.00030512 | J16: -0.00964891 | K16: 0.22501087 | M16: -0.01237995833 | N16: 0.03207626367 | O16: 0.006965448417 | P16: -0.1456194812 | Q16: 0.1490196675 | R16: 0.03268902471 | S16: -0.1391709662 | T16: -0.009902665208 | U16: -0.02815923163 | V16: 0.2255769847 | X16: 0.0001532633683 | Y16: 0.001028886691 | Z16: 4.851747165e-05 | AA16: 0.0212050333 | AB16: 0.02220686131 | AC16: 0.001068572336 | AD16: 0.01936855784 | AE16: 9.806277823e-05 | AF16: 0.0007929423257 | AG16: 0.05088497601 | AI16: -0.0003971028077 | AJ16: -8.623196117e-05 | AK16: 0.001802763109 | AL16: -0.001844857275 | AM16: -0.0004046887638 | AN16: 0.001722930763 | AO16: 0.0001225945827 | AP16: 0.0003486101142 | AQ16: -0.002792633671 | AS16: 0.00022342556 | AT16: -0.004670928873 | AU16: 0.004779994148 | AV16: 0.001048541776 | AW16: -0.004464084607 | AX16: -0.0003176405002 | AY16: -0.0009032429383 | AZ16: 0.007235666837 | BB16: -0.001014304985 | BC16: 0.001037988807 | BD16: 0.0002276937154 | BE16: -0.0009693881862 | BF16: -6.89765037e-05 | BG16: -0.0001961416753 | BH16: 0.001571244851 | BJ16: -0.02170016667 | BK16: -0.004760158818 | BL16: 0.02026600389 | BM16: 0.00144202097 | BN16: 0.004100532699 | BO16: -0.03284840347 | BQ16: 0.004871307594 | BR16: -0.02073921112 | BS16: -0.001475691877 | BT16: -0.004196279335 | BU16: 0.03361540726 | BW16: -0.004549363153 | BX16: -0.0003237084677 | BY16: -0.0009204978184 | BZ16: 0.007373891625 | CB16: 0.001378163485 | CC16: 0.003918947473 | CD16: -0.03139376691 | CF16: 0.0002788514433 | CG16: -0.002233813358 | CI16: -0.00635207456
A17: 15 | B17: -0.07604343 | C17: 0.04177734 | D17: -0.12394011 | E17: 0.11335227 | F17: 0.0039822 | G17: 0.00272142 | H17: 0.06129345 | I17: -0.00849095 | J17: 0.18464475 | K17: 0.03132862 | M17: -0.08427930833 | N17: 0.03274467367 | O17: -0.1348172216 | P17: 0.09375632883 | Q17: 0.006862447542 | R17: -0.01626166529 | S17: 0.06872619379 | T17: -0.01808849521 | U17: 0.1661344284 | V17: 0.03189473467 | X17: 0.007103001813 | Y17: 0.001072213654 | Z17: 0.01817568324 | AA17: 0.008790249196 | AB17: 4.709318626e-05 | AC17: 0.0002644417581 | AD17: 0.004723289713 | AE17: 0.0003271936589 | AF17: 0.02760064829 | AG17: 0.001017274099 | AI17: -0.002759698448 | AJ17: 0.01136230219 | AK17: -0.007901718546 | AL17: -0.0005783623323 | AM17: 0.001370521903 | AN17: -0.005792196077 | AO17: 0.001524485865 | AP17: -0.01400169471 | AQ17: -0.002688066177 | AS17: -0.004414545925 | AT17: 0.003070020392 | AU17: 0.0002247086053 | AV17: -0.0005324829233 | AW17: 0.002250416788 | AX17: -0.0005923018727 | AY17: 0.005440017642 | AZ17: 0.001044382678 | BB17: -0.01263996776 | BC17: -0.0009251761108 | BD17: 0.002192352533 | BE17: -0.009265474497 | BF17: 0.002438640667 | BG17: -0.02239778204 | BH17: -0.004299959511 | BJ17: 0.0006433978883 | BK17: -0.001524634038 | BL17: 0.006443515625 | BM17: -0.001695910905 | BN17: 0.0155761541 | BO17: 0.002990333231 | BQ17: -0.000111594825 | BR17: 0.0004716298996 | BS17: -0.0001241313495 | BT17: 0.0011400888 | BU17: 0.0002188759435 | BW17: -0.00111760236 | BX17: 0.0002941490547 | BY17: -0.002701622468 | BZ17: -0.0005186614997 | CB17: -0.001243153427 | CC17: 0.01141778692 | CD17: 0.002192003716 | CF17: -0.003005121812 | CG17: -0.0005769277552 | CI17: 0.005298813512
A18: 16 | B18: -0.05248133 | C18: 0.06015995 | D18: -0.01695439 | E18: 0.03284613 | F18: 0.16176222 | G18: 0.04464419 | H18: -0.05789336 | I18: 0.15442617 | J18: -0.20244966 | K18: -0.23102472 | M18: -0.06071720833 | N18: 0.05112728367 | O18: -0.02783150158 | P18: 0.01325018883 | Q18: 0.1646424675 | R18: 0.02566110471 | S18: -0.05046061621 | T18: 0.1448286248 | U18: -0.2209599816 | V18: -0.2304586053 | X18: 0.003686579388 | Y18: 0.002613999135 | Z18: 0.0007745924804 | AA18: 0.0001755675041 | AB18: 0.02710714212 | AC18: 0.0006584922949 | AD18: 0.002546273788 | AE18: 0.02097533056 | AF18: 0.04882331348 | AG18: 0.05311116877 | AI18: -0.003104305934 | AJ18: 0.00168985108 | AK18: -0.0008045144758 | AL18: -0.009996631002 | AM18: -0.001558070641 | AN18: 0.003063827747 | AO18: -0.008793589784 | AP18: 0.01341607324 | AQ18: 0.01399280315 | AS18: -0.001422949076 | AT18: 0.0006774461631 | AU18: 0.008417722142 | AV18: 0.00131198258 | AW18: -0.002579914239 | AX18: 0.007404694183 | AY18: -0.01129708366 | AZ18: -0.01178272249 | BB18: -0.0003687726515 | BC18: -0.004582247096 | BD18: -0.0007141870763 | BE18: 0.00140439472 | BF18: -0.0040307981 | BG18: 0.006149648078 | BH18: 0.006414009039 | BJ18: 0.002181543785 | BK18: 0.0003400144831 | BL18: -0.0006686126934 | BM18: 0.001919006627 | BN18: -0.002927761481 | BO18: -0.003053620039 | BQ18: 0.004224907599 | BR18: -0.008307960366 | BS18: 0.02384494216 | BT18: -0.0363793966 | BU18: -0.03794327345 | BW18: -0.001294875156 | BX18: 0.003716462506 | BY18: -0.005670077225 | BZ18: -0.005913822402 | CB18: -0.007308141652 | CC18: 0.01114977683 | CD18: 0.01162908324 | CF18: -0.03200133027 | CG18: -0.03337700288 | CI18: 0.0509221292
A19: 17 | B19: 0.00363872 | C19: 0.10568805 | D19: -0.07082383 | E19: 0.01042222 | F19: 0.04670401 | G19: 0.15355965 | H19: -0.081855 | I19: -0.26191519 | J19: 0.14508614 | K19: -0.23672918 | M19: -0.004597158333 | N19: 0.09665538367 | O19: -0.08170094158 | P19: -0.009173721167 | Q19: 0.04958425754 | R19: 0.1345765647 | S19: -0.07442225621 | T19: -0.2715127352 | U19: 0.1265758184 | V19: -0.2361630653 | X19: 2.113386474e-05 | Y19: 0.009342263192 | Z19: 0.006675043856 | AA19: 8.415716004e-05 | AB19: 0.002458598596 | AC19: 0.01811085177 | AD19: 0.005538672219 | AE19: 0.07371916538 | AF19: 0.0160214378 | AG19: 0.05577299343 | AI19: -0.0004443401025 | AJ19: 0.0003755921644 | AK19: 4.217304871e-05 | AL19: -0.0002279466828 | AM19: -0.0006186697759 | AN19: 0.0003421308953 | AO19: 0.001248187033 | AP19: -0.0005818890782 | AQ19: 0.001085679004 | AS19: -0.007896835855 | AT19: -0.000886689539 | AU19: 0.004792585437 | AV19: 0.01300754949 | AW19: -0.007193311727 | AX19: -0.02624316759 | AY19: 0.01223423429 | AZ19: -0.02282643169 | BB19: 0.0007495016571 | BC19: -0.004051080529 | BD19: -0.01099503205 | BE19: 0.006080368407 | BF19: 0.02218284612 | BG19: -0.01034136354 | BH19: 0.0192947448 | BJ19: -0.0004548721529 | BK19: -0.00123456788 | BL19: 0.000682729027 | BM19: 0.002490782126 | BN19: -0.001161171264 | BO19: 0.002166494111 | BQ19: 0.006672879044 | BR19: -0.003690172319 | BS19: -0.01346275739 | BT19: 0.006276167977 | BU19: -0.01170997025 | BW19: -0.01001549158 | BX19: -0.03653925118 | BY19: 0.01703413881 | BZ19: -0.03178201404 | CB19: 0.02020659034 | CC19: -0.009420057985 | CD19: 0.01757578816 | CF19: -0.03436694666 | CG19: 0.06412127982 | CI19: -0.02989253326
A20: 18 | B20: -0.06706625 | C20: -0.05451608 | D20: 0.06008478 | E20: -0.04662094 | F20: -0.07647862 | G20: -0.05397156 | H20: 0.18103806 | I20: 0.14127931 | J20: 0.31218921 | K20: 0.07493851 | M20: -0.07530212833 | N20: -0.06354874633 | O20: 0.04920766842 | P20: -0.06621688117 | Q20: -0.07359837246 | R20: -0.07295464529 | S20: 0.1884708038 | T20: 0.1316817648 | U20: 0.2936788884 | V20: 0.07550462467 | X20: 0.005670410532 | Y20: 0.004038443161 | Z20: 0.002421394631 | AA20: 0.004384675351 | AB20: 0.005416720429 | AC20: 0.00532238027 | AD20: 0.03552124388 | AE20: 0.01734008718 | AF20: 0.08624728948 | AG20: 0.005700948346 | AI20: 0.004785355852 | AJ20: -0.003705442162 | AK20: 0.004986272083 | AL20: 0.005542114088 | AM20: 0.005493640062 | AN20: -0.01419225265 | AO20: -0.009915917152 | AP20: -0.02211464534 | AQ20: -0.005685658936 | AS20: -0.003127085638 | AT20: 0.004207999784 | AU20: 0.004677084302 | AV20: 0.004636176247 | AW20: -0.0119770833 | AX20: -0.008368211067 | AY20: -0.01866292518 | AZ20: -0.00479822424 | BB20: -0.003258378332 | BC20: -0.003621604308 | BD20: -0.003589927995 | BE20: 0.009274208819 | BF20: 0.006479752618 | BG20: 0.01445125336 | BH20: 0.003715406535 | BJ20: 0.004873454683 | BK20: 0.004830829078 | BL20: -0.01247994882 | BM20: -0.008719555771 | BN20: -0.01944650005 | BO20: -0.004999680759 | BQ20: 0.005369343157 | BR20: -0.01387114441 | BS20: -0.009691563571 | BT20: -0.02161428821 | BU20: -0.005557017489 | BW20: -0.01374982064 | BX20: -0.009606796442 | BY20: -0.02142523913 | BZ20: -0.00550841311 | CB20: 0.02481816805 | CC20: 0.05534989615 | CD20: 0.0142304173 | CF20: 0.0386721543 | CG20: 0.009942582226 | CI20: 0.02217411424
A21: 19 | B21: -0.05924967 | C21: 0.07302951 | D21: 0.00201297 | E21: 0.0913379 | F21: -0.14749569 | G21: 0.11573741 | H21: 0.12163864 | I21: -0.10186489 | J21: -0.03204517 | K21: -0.06457835 | M21: -0.06748554833 | N21: 0.06399684367 | O21: -0.008864141583 | P21: 0.07174195883 | Q21: -0.1446154425 | R21: 0.09675432471 | S21: 0.1290713838 | T21: -0.1114624352 | U21: -0.05055549163 | V21: -0.06401223533 | X21: 0.004554299234 | Y21: 0.004095595999 | Z21: 7.857300601e-05 | AA21: 0.005146908657 | AB21: 0.0209136262 | AC21: 0.00936139935 | AD21: 0.01665942211 | AE21: 0.01242387446 | AF21: 0.002555857733 | AG21: 0.004097566272 | AI21: -0.004318862086 | AJ21: 0.0005982014553 | AK21: -0.00484154543 | AL21: 0.009759452432 | AM21: -0.006529518657 | AN21: -0.008710453109 | AO21: 0.007522103559 | AP21: 0.003411765074 | AQ21: 0.004319900802 | AS21: -0.0005672770831 | AT21: 0.004591258924 | AU21: -0.009254931863 | AV21: 0.006191971392 | AW21: 0.00826016117 | AX21: -0.007133244041 | AY21: -0.003235391894 | AZ21: -0.004096581017 | BB21: -0.0006359308806 | BC21: 0.001281891757 | BD21: -0.000857644033 | BE21: -0.00114410702 | BF21: 0.0009880188069 | BG21: 0.0004481310356 | BH21: 0.0005674135171 | BJ21: -0.01037499512 | BK21: 0.00694134478 | BL21: 0.009259833903 | BM21: -0.007996533438 | BN21: -0.003626949999 | BO21: -0.004592363152 | BQ21: -0.01399216948 | BR21: -0.01866571528 | BS21: 0.01611918939 | BT21: 0.00731110479 | BU21: 0.009257157735 | BW21: 0.01248821458 | BX21: -0.01078447265 | BY21: -0.004891462452 | BZ21: -0.006193460603 | CB21: -0.01438661075 | CC21: -0.006525267262 | CD21: -0.008262147794 | CF21: 0.00563503821 | CG21: 0.007134959633 | CI21: 0.003236170027
A22: 20 | B22: -0.08967853 | C22: -0.05833701 | D22: -0.05844481 | E22: 0.08604674 | F22: -0.02082157 | G22: 0.24222764 | H22: -0.0603043 | I22: 0.19116955 | J22: -0.00432375 | K22: 0.35946526 | M22: -0.09791440833 | N22: -0.06736967633 | O22: -0.06932192158 | P22: 0.06645079883 | Q22: -0.01794132246 | R22: 0.2232445547 | S22: -0.05287155621 | T22: 0.1815720048 | U22: -0.02283407163 | V22: 0.3600313747 | X22: 0.009587231359 | Y22: 0.004538673289 | Z22: 0.004805528812 | AA22: 0.004415708666 | AB22: 0.0003218910516 | AC22: 0.04983813121 | AD22: 0.002795401456 | AE22: 0.03296839292 | AF22: 0.000521394827 | AG22: 0.1296225907 | AI22: 0.006596461998 | AJ22: 0.006787614936 | AK22: -0.006506490651 | AL22: 0.001756713973 | AM22: -0.02185885849 | AN22: 0.005176887144 | AO22: -0.01777851542 | AP22: 0.002235784613 | AQ22: -0.03525225903 | AS22: 0.00467019542 | AT22: -0.004476768809 | AU22: 0.001208701087 | AV22: -0.01503991339 | AW22: 0.003561939629 | AX22: -0.01223244719 | AY22: 0.001538324015 | AZ22: -0.02425519718 | BB22: -0.004606497066 | BC22: 0.001243726949 | BD22: -0.01547574152 | BE22: 0.003665157873 | BF22: -0.01258692028 | BG22: 0.001582901723 | BH22: -0.02495806672 | BJ22: -0.001192215209 | BK22: 0.014834779 | BL22: -0.003513357146 | BM22: 0.01206560476 | BN22: -0.0015173423 | BO22: 0.02392437245 | BQ22: -0.004005302543 | BR22: 0.0009485856388 | BS22: -0.003257641887 | BT22: 0.0004096734421 | BU22: -0.006459438988 | BW22: -0.01180328702 | BX22: 0.04053496136 | BY22: -0.005097582152 | BZ22: 0.08037504392 | CB22: -0.009599994457 | CC22: 0.001207272901 | CD22: -0.01903541906 | CF22: -0.004146028163 | CG22: 0.06537161849 | CI22: -0.008220982196
A23: 21 | B23: 0.03139712 | C23: -0.00456292 | D23: -0.03491414 | E23: 0.17690383 | F23: -0.06355395 | G23: -0.1815743 | H23: 0.24343981 | I23: -0.09162593 | J23: 0.1796079 | K23: -0.32849742 | M23: 0.02316124167 | N23: -0.01359558633 | O23: -0.04579125158 | P23: 0.1573078888 | Q23: -0.06067370246 | R23: -0.2005573853 | S23: 0.2508725538 | T23: -0.1012234752 | U23: 0.1610975784 | V23: -0.3279313053 | X23: 0.0005364431155 | Y23: 0.0001848399677 | Z23: 0.002096838722 | AA23: 0.02474577189 | AB23: 0.00368129817 | AC23: 0.0402232648 | AD23: 0.06293703825 | AE23: 0.01024619193 | AF23: 0.02595242976 | AG23: 0.107538941 | AI23: -0.0003148906607 | AJ23: -0.001060582244 | AK23: 0.003643446029 | AL23: -0.001405278285 | AM23: -0.004645158069 | AN23: 0.005810519846 | AO23: -0.002344461372 | AP23: 0.003731219945 | AQ23: -0.007595296213 | AS23: 0.0006225589142 | AT23: -0.002138692984 | AU23: 0.0008248945599 | AV23: 0.002726695247 | AW23: -0.003410759464 | AX23: 0.001376192496 | AY23: -0.002190216035 | AZ23: 0.004458418373 | BB23: -0.007203325114 | BC23: 0.002778324774 | BD23: 0.009183773687 | BE23: -0.01148776823 | BF23: 0.004635149619 | BG23: -0.007376859741 | BH23: 0.0150163849 | BJ23: -0.009544452041 | BK23: -0.03154925887 | BL23: 0.0394642318 | BM23: -0.01592325119 | BN23: 0.02534191995 | BO23: -0.05158618132 | BQ23: 0.01216855912 | BR23: -0.01522136668 | BS23: 0.006141603017 | BT23: -0.009774386537 | BU23: 0.01989680645 | BW23: -0.05031434343 | BX23: 0.02030111552 | BY23: -0.0323093091 | BZ23: 0.06576904515 | CB23: -0.02539419173 | CC23: 0.0404149609 | CD23: -0.08226896404 | CF23: -0.01630685673 | CG23: 0.03319434636 | CI23: -0.05282893916
A24: 22 | B24: 0.00986713 | C24: -0.02153701 | D24: 0.01059298 | E24: -0.00873096 | F24: 0.01275691 | G24: 0.01195855 | H24: 0.004935 | I24: -0.08973033 | J24: -0.03249584 | K24: 0.06723806 | M24: 0.001631251667 | N24: -0.03056967633 | O24: -0.0002841315833 | P24: -0.02832690117 | Q24: 0.01563715754 | R24: -0.007024535292 | S24: 0.01236774379 | T24: -0.09932787521 | U24: -0.05100616163 | V24: 0.06780417467 | X24: 2.660982e-06 | Y24: 0.0009345051111 | Z24: 8.073075665e-08 | AA24: 0.0008024133297 | AB24: 0.000244520696 | AC24: 4.934409606e-05 | AD24: 0.0001529610865 | AE24: 0.009866026793 | AF24: 0.002601628524 | AG24: 0.004597406102 | AI24: -4.986683547e-05 | AJ24: -4.634901189e-07 | AK24: -4.620830474e-05 | AL24: 2.55081393e-05 | AM24: -1.14587849e-05 | AN24: 2.017490267e-05 | AO24: -0.000162028762 | AP24: -8.320388616e-05 | AQ24: 0.0001106056729 | AS24: 8.685810539e-06 | AT24: 0.0008659442002 | AU24: -0.0004780228448 | AV24: 0.0002147377703 | AW24: -0.0003780779247 | AX24: 0.003036420996 | AY24: 0.001559241852 | AZ24: -0.002072751674 | BB24: 8.048567279e-06 | BC24: -4.443010331e-06 | BD24: 1.995892335e-06 | BE24: -3.514066626e-06 | BF24: 2.822218645e-05 | BG24: 1.449246146e-05 | BH24: -1.92653075e-05 | BJ24: -0.0004429522162 | BK24: 0.0001989833169 | BL24: -0.000350339856 | BM24: 0.002813650904 | BN24: 0.001444846499 | BO24: -0.001920682154 | BQ24: -0.000109843765 | BR24: 0.0001933963581 | BS24: -0.001553205633 | BT24: -0.0007975913849 | BU24: 0.001060264561 | BW24: -8.687765274e-05 | BX24: 0.0006977321648 | BY24: 0.0003582945824 | BZ24: -0.0004762928179 | CB24: -0.001228461712 | CC24: -0.0006308311388 | CD24: 0.0008385846603 | CF24: 0.005066333657 | CG24: -0.0067348446 | CI24: -0.003458430692
A25: 23 | B25: -0.12874746 | C25: -0.02470756 | D25: 0.01110239 | E25: 0.09551115 | F25: 0.11772269 | G25: 0.04770002 | H25: -0.04400434 | I25: 0.10725508 | J25: 0.25662678 | K25: -0.17968531 | M25: -0.1369833383 | N25: -0.03374022633 | O25: 0.0002252784167 | P25: 0.07591520883 | Q25: 0.1206029375 | R25: 0.02871693471 | S25: -0.03657159621 | T25: 0.09765753479 | U25: 0.2381164584 | V25: -0.1791191953 | X25: 0.01876443498 | Y25: 0.001138402873 | Z25: 5.075036502e-08 | AA25: 0.005763118932 | AB25: 0.01454506854 | AC25: 0.000824662339 | AD25: 0.001337481649 | AE25: 0.009536994102 | AF25: 0.05669944775 | AG25: 0.03208368614 | AI25: 0.004621848839 | AJ25: -3.085938957e-05 | AK25: -0.01039911874 | AL25: -0.016520593 | AM25: -0.003933741583 | AN25: 0.005009699337 | AO25: -0.01337745513 | AP25: -0.03261798738 | AQ25: 0.02453634534 | AS25: -7.600944766e-06 | AT25: -0.002561396328 | AU25: -0.004069170409 | AV25: -0.0009689158767 | AW25: 0.001233933933 | AX25: -0.003294987327 | AY25: -0.008034103199 | AZ25: 0.006043522191 | BB25: 1.710205805e-05 | BC25: 2.716923881e-05 | BD25: 6.469305583e-06 | BE25: -8.238791289e-06 | BF25: 2.200013481e-05 | BG25: 5.364249872e-05 | BH25: -4.035168872e-05 | BJ25: 0.009155597189 | BK25: 0.002180052095 | BL25: -0.002776340364 | BM25: 0.007413692148 | BN25: 0.01807666066 | BO25: -0.01359787112 | BQ25: 0.003463346683 | BR25: -0.004410641933 | BS25: 0.01177778557 | BT25: 0.02871754436 | BU25: -0.02160230113 | BW25: -0.00105022414 | BX25: 0.00280442505 | BY25: 0.006837974788 | BZ25: -0.005143754237 | CB25: -0.003571491929 | CC25: -0.008708298966 | CD25: 0.006550674885 | CF25: 0.02325386632 | CG25: -0.01749233905 | CI25: -0.04265122842
A26: 24 | B26: 0.04360385 | C26: 0.03509695 | D26: 0.1302616 | E26: 0.07879394 | F26: -0.06399143 | G26: 0.01018935 | H26: 0.0710923 | I26: -0.08299584 | J26: 0.0270905 | K26: -0.13305282 | M26: 0.03536797167 | N26: 0.02606428367 | O26: 0.1193844884 | P26: 0.05919799883 | Q26: -0.06111118246 | R26: -0.008793735292 | S26: 0.07852504379 | T26: -0.09259338521 | U26: 0.008580178375 | V26: -0.1324867053 | X26: 0.00125089342 | Y26: 0.0006793468831 | Z26: 0.01425265607 | AA26: 0.003504403066 | AB26: 0.003734576621 | AC26: 7.732978038e-05 | AD26: 0.006166182502 | AE26: 0.008573534984 | AF26: 7.361946095e-05 | AG26: 0.01755272709 | AI26: 0.0009218408462 | AJ26: 0.004222387204 | AK26: 0.002093713145 | AL26: -0.00216137857 | AM26: -0.0003110165806 | AN26: 0.002777271524 | AO26: -0.003274840225 | AP26: 0.0003034635057 | AQ26: -0.00468578604 | AS26: 0.003111671171 | AT26: 0.001542953434 | AU26: -0.001592819195 | AV26: -0.0002292024111 | AW26: 0.002046699016 | AX26: -0.002413380258 | AY26: 0.0002236362031 | AZ26: -0.00345317107 | BB26: 0.007067322806 | BC26: -0.007295727254 | BD26: -0.001049835589 | BE26: 0.009374672181 | BF26: -0.01105421392 | BG26: 0.001024340206 | BH26: -0.01581685754 | BJ26: -0.003617659708 | BK26: -0.0005205715315 | BL26: 0.004648525451 | BM26: -0.00548134311 | BN26: 0.0005079293894 | BO26: -0.007842947828 | BQ26: 0.0005373955619 | BR26: -0.004798758279 | BS26: 0.005658491258 | BT26: -0.0005243448462 | BU26: 0.008096419223 | BW26: -0.0006905284489 | BX26: 0.0008142417193 | BY26: -7.545181739e-05 | BZ26: 0.001165053016 | CB26: -0.007270899628 | CC26: 0.0006737588826 | CD26: -0.01040352434 | CF26: -0.0007944677614 | CG26: 0.01226739254 | CI26: -0.001136759564
A27: 25 | B27: 0.03304164 | C27: 0.02340203 | D27: 0.14347167 | E27: -0.02999398 | F27: 0.08631631 | G27: -0.09024886 | H27: -0.19000802 | I27: -0.21323867 | J27: 0.17065073 | K27: -0.22467597 | M27: 0.02480576167 | N27: 0.01436936367 | O27: 0.1325945584 | P27: -0.04958992117 | Q27: 0.08919655754 | R27: -0.1092319453 | S27: -0.1825752762 | T27: -0.2228362152 | U27: 0.1521404084 | V27: -0.2241098553 | X27: 0.0006153258119 | Y27: 0.0002064786122 | Z27: 0.01758131692 | AA27: 0.002459160281 | AB27: 0.007956025877 | AC27: 0.01193161787 | AD27: 0.03333373148 | AE27: 0.04965597881 | AF27: 0.02314670386 | AG27: 0.05022522726 | AI27: 0.0003564430104 | AJ27: 0.003289109014 | AK27: -0.001230115766 | AL27: 0.002212588548 | AM27: -0.002709581601 | AN27: -0.004528918788 | AO27: -0.005527622045 | AP27: 0.00377395871 | AQ27: -0.005559215659 | AS27: 0.00190529943 | AT27: -0.0007125756114 | AU27: 0.001281697773 | AV27: -0.001569593546 | AW27: -0.00262349054 | AX27: -0.003202014614 | AY27: 0.002186160856 | AZ27: -0.003220316013 | BB27: -0.006575353699 | BC27: 0.01182697816 | BD27: -0.01448356155 | BE27: -0.02420848813 | BF27: -0.02954686955 | BG27: 0.02017299027 | BH27: -0.0297157473 | BJ27: -0.004423250257 | BK27: 0.005416803556 | BL27: 0.009053893554 | BM27: 0.01105043035 | BN27: -0.007544630858 | BO27: 0.01111359006 | BQ27: -0.009743113494 | BR27: -0.01628508613 | BS27: -0.01987622329 | BT27: 0.01357040069 | BU27: -0.01998982761 | BW27: 0.01994305258 | BX27: 0.02434083327 | BY27: -0.01661859276 | BZ27: 0.02447995546 | CB27: 0.04068438354 | CC27: -0.02777707708 | CD27: 0.04091691874 | CF27: -0.03390239278 | CG27: 0.04993979195 | CI27: -0.03409616491
A28: 26 | B28: 0.01585746 | C28: -0.01596097 | D28: -0.0479071 | E28: -0.0622323 | F28: 0.00825507 | G28: 0.11230385 | H28: -0.05313786 | I28: 0.01008799 | J28: 0.03416864 | K28: 0.00819999 | M28: 0.007621581667 | N28: -0.02499363633 | O28: -0.05878421158 | P28: -0.08182824117 | Q28: 0.01113531754 | R28: 0.09332076471 | S28: -0.04570511621 | T28: 0.0004904447917 | U28: 0.01565831837 | V28: 0.008766104667 | X28: 5.80885071e-05 | Y28: 0.0006246818572 | Z28: 0.003455583531 | AA28: 0.006695861052 | AB28: 0.0001239952968 | AC28: 0.008708765126 | AD28: 0.002088957648 | AE28: 2.405360937e-07 | AF28: 0.0002451829343 | AG28: 7.684459103e-05 | AI28: -0.0001904910405 | AJ28: -0.0004480286693 | AK28: -0.0006236606227 | AL28: 8.486873203e-05 | AM28: 0.0007112518294 | AN28: -0.0003483452758 | AO28: 3.737965033e-06 | AP28: 0.0001193411523 | AQ28: 6.681158262e-05 | AS28: 0.001469231206 | AT28: 0.002045185302 | AU28: -0.0002783120771 | AV28: -0.002332425255 | AW28: 0.001142337053 | AX28: -1.225799876e-05 | AY28: -0.0003913583151 | AZ28: -0.0002190968321 | BB28: 0.004810208642 | BC28: -0.0006545808624 | BD28: -0.005485787578 | BE28: 0.002686739222 | BF28: -2.88304104e-05 | BG28: -0.0009204619004 | BH28: -0.0005153085515 | BJ28: -0.0009111834493 | BK28: -0.00763627404 | BL28: 0.003739969272 | BM28: -4.013223469e-05 | BN28: -0.001281292652 | BO28: -0.0007173149268 | BQ28: 0.001039156348 | BR28: -0.0005089409823 | BS28: 5.461258492e-06 | BT28: 0.0001743603473 | BU28: 9.761335907e-05 | BW28: -0.004265236396 | BX28: 4.576868301e-05 | BY28: 0.001461246245 | BZ28: 0.000818059591 | CB28: -2.24158362e-05 | CC28: -0.000715665261 | CD28: -0.0004006558325 | CF28: 7.679540693e-06 | CG28: 4.299290377e-06 | CI28: 0.0001372624578
A29: 27 | B29: 0.12540093 | C29: 0.11556472 | D29: -0.02800909 | E29: 0.07938956 | F29: -0.04130873 | G29: -0.21697243 | H29: -0.0735229 | I29: -0.17191197 | J29: -0.01101132 | K29: 0.05491586 | M29: 0.1171650517 | N29: 0.1065320537 | O29: -0.03888620158 | P29: 0.05979361883 | Q29: -0.03842848246 | R29: -0.2359555153 | S29: -0.06609015621 | T29: -0.1815095152 | U29: -0.02952164163 | V29: 0.05548197467 | X29: 0.01372764933 | Y29: 0.01134907846 | Z29: 0.001512136674 | AA29: 0.003575276853 | AB29: 0.001476748264 | AC29: 0.0556750052 | AD29: 0.004367908748 | AE29: 0.03294570411 | AF29: 0.0008715273242 | AG29: 0.003078249513 | AI29: 0.01248183357 | AJ29: -0.004556103818 | AK29: 0.00700572244 | AL29: -0.004502475133 | AM29: -0.02764574014 | AN29: -0.007743456567 | AO29: -0.02126657173 | AP29: -0.003458904666 | AQ29: 0.006500548428 | AS29: -0.004142626914 | AT29: 0.00636993701 | AU29: -0.004093865156 | AV29: -0.02513682562 | AW29: -0.007040720068 | AX29: -0.01933658142 | AY29: -0.00314500111 | AZ29: 0.005910608703 | BB29: -0.002325146715 | BC29: 0.001494337715 | BD29: 0.009175413732 | BE29: 0.002569995137 | BF29: 0.007058215598 | BG29: 0.001147984507 | BH29: -0.002157483251 | BJ29: -0.002297778032 | BK29: -0.01410863414 | BL29: -0.003951769609 | BM29: -0.01085311077 | BN29: -0.001765205787 | BO29: 0.003317468045 | BQ29: 0.00906741238 | BR29: 0.002539744409 | BS29: 0.006975135221 | BT29: 0.001134471887 | BU29: -0.00213208809 | BW29: 0.01559433686 | BX29: 0.04282817119 | BY29: 0.006965794162 | BZ29: -0.01309127792 | CB29: 0.01199599221 | CC29: 0.001951089907 | CD29: -0.003666812372 | CF29: 0.00535845886 | CG29: -0.01007050632 | CI29: -0.001637918973
A30: 28 | B30: 0.03281885 | C30: 0.1398819 | D30: -0.03598318 | E30: 0.14288503 | F30: -0.1487753 | G30: -0.03097645 | H30: -0.12489025 | I30: -0.02675611 | J30: -0.16841017 | K30: 0.15552957 | M30: 0.02458297167 | N30: 0.1308492337 | O30: -0.04686029158 | P30: 0.1232890888 | Q30: -0.1458950525 | R30: -0.04995953529 | S30: -0.1174575062 | T30: -0.03635365521 | U30: -0.1869204916 | V30: 0.1560956847 | X30: 0.000604322496 | Y30: 0.01712152195 | Z30: 0.002195886927 | AA30: 0.01520019943 | AB30: 0.02128536633 | AC30: 0.002495955167 | AD30: 0.01379626576 | AE30: 0.001321588247 | AF30: 0.03493927019 | AG30: 0.02436586277 | AI30: 0.003216663004 | AJ30: -0.00115196522 | AK30: 0.003030812178 | AL30: -0.003586533941 | AM30: -0.001228153841 | AN30: -0.002887454547 | AO30: -0.000893680876 | AP30: -0.00459506115 | AQ30: 0.003837295793 | AS30: -0.006131633243 | AT30: 0.01613228279 | AU30: -0.01909025581 | AV30: -0.006537166907 | AW30: -0.01536922468 | AX30: -0.004756847925 | AY30: -0.02445840309 | AZ30: 0.02042500072 | BB30: -0.005777362652 | BC30: 0.006836684699 | BD30: 0.002341118391 | BE30: 0.00550409299 | BF30: 0.001703542883 | BG30: 0.00875914874 | BH30: -0.007314689298 | BJ30: -0.01798726808 | BK30: -0.006159465585 | BL30: -0.01448122892 | BM30: -0.004482009026 | BN30: -0.0230452571 | BO30: 0.01924489473 | BQ30: 0.007288849022 | BR30: 0.01713646903 | BS30: 0.005303818434 | BT30: 0.02727077493 | BU30: -0.0227735881 | BW30: 0.005868122427 | BX30: 0.00181621172 | BY30: 0.009338460898 | BZ30: -0.007798467867 | CB30: 0.004270009682 | CC30: 0.02195521481 | CD30: -0.01833460985 | CF30: 0.006795243104 | CG30: -0.0056746487 | CI30: -0.02917748212
A31: 29 | B31: 0.06269993 | C31: 0.01136887 | D31: -0.09460642 | E31: 0.14702926 | F31: 0.04905359 | G31: -0.02016539 | H31: -0.13301738 | I31: 0.0315821 | J31: -0.18129167 | K31: 0.17523245 | M31: 0.05446405167 | N31: 0.002336203667 | O31: -0.1054835316 | P31: 0.1274333188 | Q31: 0.05193383754 | R31: -0.03914847529 | S31: -0.1255846362 | T31: 0.02198455479 | U31: -0.1998019916 | V31: 0.1757985647 | X31: 0.002966332924 | Y31: 5.457847572e-06 | Z31: 0.01112677544 | AA31: 0.01623925075 | AB31: 0.002697123482 | AC31: 0.001532603118 | AD31: 0.01577150085 | AE31: 0.0004833206494 | AF31: 0.03992083586 | AG31: 0.03090513534 | AI31: 0.0001272391172 | AJ31: -0.005745060514 | AK31: 0.006940534861 | AL31: 0.002828527211 | AM31: -0.002132184581 | AN31: -0.006839848115 | AO31: 0.001197367928 | AP31: -0.01088202599 | AQ31: 0.009574702109 | AS31: -0.0002464310133 | AT31: 0.0002977101867 | AU31: 0.0001213280217 | AV31: -9.145881152e-05 | AW31: -0.0002933912876 | AX31: 5.136039751e-05 | AY31: -0.0004667781454 | AZ31: 0.0004107012514 | BB31: -0.01344211651 | BC31: -0.005478164593 | BD31: 0.00412951943 | BE31: 0.01324711094 | BF31: -0.00231900848 | BG31: 0.02107581969 | BH31: -0.01854385345 | BJ31: 0.006618101278 | BK31: -0.004988820134 | BL31: -0.01600366699 | BM31: 0.00280156478 | BN31: -0.0254614309 | BO31: 0.02240259454 | BQ31: -0.002033130556 | BR31: -0.006522092095 | BS31: 0.001141742297 | BT31: -0.01037648417 | BU31: 0.009129894097 | BW31: 0.004916447028 | BX31: -0.0008606618001 | BY31: 0.007821943332 | BZ31: -0.006882245765 | CB31: -0.002760922316 | CC31: 0.02509206043 | CD31: -0.02207759879 | CF31: -0.004392557832 | CG31: 0.003864853177 | CI31: -0.03512490335
A32: 30 | B32: 0.04706928 | C32: 0.10534234 | D32: 0.0592397 | E32: 0.11573245 | F32: 0.01000332 | G32: 0.04289532 | H32: -0.23368567 | I32: -0.14837768 | J32: -0.07925961 | K32: 0.12556846 | M32: 0.03883340167 | N32: 0.09630967367 | O32: 0.04836258842 | P32: 0.09613650883 | Q32: 0.01288356754 | R32: 0.02391223471 | S32: -0.2262529262 | T32: -0.1579752252 | U32: -0.09776993163 | V32: 0.1261345747 | X32: 0.001508033085 | Y32: 0.009275553242 | Z32: 0.002338939958 | AA32: 0.009242228331 | AB32: 0.0001659863126 | AC32: 0.0005717949687 | AD32: 0.05119038662 | AE32: 0.02495617178 | AF32: 0.00955895953 | AG32: 0.01590993093 | AI32: 0.003740032242 | AJ32: 0.001878083822 | AK32: 0.003733307662 | AL32: 0.0005003127532 | AM32: 0.0009285934152 | AN32: -0.008786170762 | AO32: -0.006134715374 | AP32: -0.003796739026 | AQ32: 0.004898234602 | AS32: 0.004657785108 | AT32: 0.009258875793 | AU32: 0.001240812186 | AV32: 0.002302979521 | AW32: -0.02179034549 | AX32: -0.01521454239 | AY32: -0.009416190209 | AZ32: 0.01214797972 | BB32: 0.004649410409 | BC32: 0.0006230826744 | BD32: 0.001156457565 | BE32: -0.01094217715 | BF32: -0.007640090797 | BG32: -0.004728406963 | BH32: 0.00610019452 | BJ32: 0.001238581205 | BK32: 0.002298838763 | BL32: -0.02175116644 | BM32: -0.01518718663 | BN32: -0.009399259895 | BO32: 0.01212613765 | BQ32: 0.0003080748909 | BR32: -0.002914944856 | BS32: -0.002035284484 | BT32: -0.001259625518 | BU32: 0.001625063312 | BW32: -0.005410213075 | BX32: -0.003777540663 | BY32: -0.002337897552 | BZ32: 0.003016159554 | CB32: 0.03574235697 | CC32: 0.02212073313 | CD32: -0.02853831661 | CF32: 0.01544522697 | CG32: -0.01992613784 | CI32: -0.01233216874
A33: 31 | B33: -0.00510716 | C33: 0.02792977 | D33: -0.02299104 | E33: -0.05683012 | F33: 0.10707381 | G33: -0.04272502 | H33: -0.05258101 | I33: 0.19619873 | J33: -0.07663978 | K33: -0.12518681 | M33: -0.01334303833 | N33: 0.01889710367 | O33: -0.03386815158 | P33: -0.07642606117 | Q33: 0.1099540575 | R33: -0.06170810529 | S33: -0.04514826621 | T33: 0.1866011848 | U33: -0.09515010163 | V33: -0.1246206953 | X33: 0.000178036672 | Y33: 0.000357100527 | Z33: 0.001147051692 | AA33: 0.005840942825 | AB33: 0.01208989477 | AC33: 0.003807890259 | AD33: 0.002038365942 | AE33: 0.03482000217 | AF33: 0.009053541839 | AG33: 0.01553031771 | AI33: -0.0002521447786 | AJ33: 0.0004519040449 | AK33: 0.001019755864 | AL33: -0.001467121205 | AM33: 0.0008233736144 | AN33: 0.0006024150467 | AO33: -0.002489826762 | AP33: 0.001269591453 | AQ33: 0.001662818715 | AS33: -0.0006400099715 | AT33: -0.001444231201 | AU33: 0.002077813224 | AV33: -0.001166104463 | AW33: -0.0008531714669 | AX33: 0.003526221933 | AY33: -0.001798061334 | AZ33: -0.002354970199 | BB33: 0.002588409425 | BC33: -0.003723940688 | BD33: 0.002089939464 | BE33: 0.001529088324 | BF33: -0.006319837212 | BG33: 0.003222558065 | BH33: 0.0042206726 | BJ33: -0.008403355527 | BK33: 0.00471610743 | BL33: 0.003450504155 | BM33: -0.01426119356 | BN33: 0.007271947487 | BO33: 0.009524268884 | BQ33: -0.00678505656 | BR33: -0.004964235061 | BS33: 0.02051755741 | BT33: -0.01046213975 | BU33: -0.01370255111 | BW33: 0.002786013965 | BX33: -0.01151480556 | BY33: 0.00587153249 | BZ33: 0.007690106989 | CB33: -0.008424719966 | CC33: 0.004295862118 | CD33: 0.005626408328 | CF33: -0.0177551217 | CG33: -0.0232543694 | CI33: 0.01185767183
A34: 32 | B34: 0.09375021 | C34: -0.00816347 | D34: -0.07124336 | E34: -0.00417529 | F34: 0.24319705 | G34: -0.26647602 | H34: 0.03185524 | I34: 0.15114915 | J34: -0.04332668 | K34: -0.1462943 | M34: 0.08551433167 | N34: -0.01719613633 | O34: -0.08212047158 | P34: -0.02377123117 | Q34: 0.2460772975 | R34: -0.2854591053 | S34: 0.03928798379 | T34: 0.1415516048 | U34: -0.06183700163 | V34: -0.1457281853 | X34: 0.00731270092 | Y34: 0.0002957071048 | Z34: 0.006743771853 | AA34: 0.0005650714312 | AB34: 0.06055403637 | AC34: 0.08148690079 | AD34: 0.00154354567 | AE34: 0.02003685682 | AF34: 0.00382381477 | AG34: 0.021236704 | AI34: -0.001470516106 | AJ34: -0.007022477244 | AK34: -0.002032780946 | AL34: 0.02104313564 | AM34: -0.02441084461 | AN34: 0.003359685676 | AO34: 0.01210469088 | AP34: -0.005287949866 | AQ34: -0.01246184837 | AS34: 0.001412154825 | AT34: 0.000408773332 | AU34: -0.004231578757 | AV34: 0.004908793692 | AW34: -0.0006756015255 | AX34: -0.002434140694 | AY34: 0.00106335751 | AZ34: 0.002505961743 | BB34: 0.001952104714 | BC34: -0.02020798372 | BD34: 0.02344203634 | BE34: -0.003226347757 | BF34: -0.01162428454 | BG34: 0.005078083735 | BH34: 0.0119672673 | BJ34: -0.005849560325 | BK34: 0.006785714381 | BL34: -0.0009339237448 | BM34: -0.00336485592 | BN34: 0.00146994166 | BO34: 0.003464138381 | BQ34: -0.07024500519 | BR34: 0.009667880877 | BS34: 0.03483263637 | BT34: -0.01521668225 | BU34: -0.03586039802 | BW34: -0.0112151127 | BX34: -0.04040719446 | BY34: 0.01765193516 | BZ34: 0.0415994374 | CB34: 0.005561277155 | CC34: -0.002429451118 | CD34: -0.005725366583 | CF34: -0.008753126816 | CG34: -0.0206280585 | CI34: 0.009011394033
A35: 33 | B35: -0.00684575 | C35: -0.07221288 | D35: -0.0176934 | E35: 0.02350385 | F35: 0.00452504 | G35: -0.1171697 | H35: 0.11257325 | I35: -0.23204992 | J35: 0.13286866 | K35: 0.45174421 | M35: -0.01508162833 | N35: -0.08124554633 | O35: -0.02857051158 | P35: 0.003907908833 | Q35: 0.007405287542 | R35: -0.1361527853 | S35: 0.1200059938 | T35: -0.2416474652 | U35: 0.1143583384 | V35: 0.4523103247 | X35: 0.0002274555132 | Y35: 0.006600838799 | Z35: 0.0008162741321 | AA35: 1.527175145e-05 | AB35: 5.483828357e-05 | AC35: 0.01853758094 | AD35: 0.01440143855 | AE35: 0.05839349744 | AF35: 0.01307782956 | AG35: 0.2045846298 | AI35: 0.001225315134 | AJ35: 0.000430889837 | AK35: -5.893762858e-05 | AL35: -0.0001116837944 | AM35: 0.002053405704 | AN35: -0.001809885796 | AO35: 0.003644437258 | AP35: -0.001724709956 | AQ35: -0.006821576208 | AS35: 0.002321226823 | AT35: -0.0003175001882 | AU35: -0.0006016466321 | AV35: 0.01106180743 | AW35: -0.009749952529 | AX35: 0.01963278033 | AY35: -0.009291105679 | AZ35: -0.03674819944 | BB35: -0.0001116509546 | BC35: -0.0002115728535 | BD35: 0.003889954729 | BE35: -0.003428632636 | BF35: 0.006903991704 | BG35: -0.003267276231 | BH35: -0.01292273737 | BJ35: 2.89391886e-05 | BK35: -0.0005320726723 | BL35: 0.0004689724832 | BM35: -0.0009443362638 | BN35: 0.0004469019607 | BO35: 0.001767587513 | BQ35: -0.001008250525 | BR35: 0.0008886788908 | BS35: -0.001789468964 | BT35: 0.0008468563785 | BU35: 0.003349488012 | BW35: -0.01633915031 | BX35: 0.03290097545 | BY35: -0.01557020629 | BZ35: -0.06158331052 | CB35: -0.02899914421 | CC35: 0.01372368605 | CD35: 0.05427995001 | CF35: -0.02763440259 | CG35: -0.1092996434 | CI35: 0.05172545716
A36: 34 | B36: 0.04106082 | C36: 0.01620147 | D36: 0.12079989 | E36: -0.17991754 | F36: -0.14064712 | G36: 0.08747409 | H36: 0.04668368 | I36: -0.09265996 | J36: -0.00968562 | K36: 0.16704885 | M36: 0.03282494167 | N36: 0.007168803667 | O36: 0.1099227784 | P36: -0.1995134812 | Q36: -0.1377668725 | R36: 0.06849100471 | S36: 0.05411642379 | T36: -0.1022575052 | U36: -0.02819594163 | V36: 0.1676149647 | X36: 0.001077476795 | Y36: 5.139174601e-05 | Z36: 0.01208301721 | AA36: 0.03980562917 | AB36: 0.01897971115 | AC36: 0.004691017726 | AD36: 0.002928587324 | AE36: 0.01045659737 | AF36: 0.0007950111241 | AG36: 0.02809477638 | AI36: 0.0002353155622 | AJ36: 0.003608208789 | AK36: -0.006549018381 | AL36: -0.004522189552 | AM36: 0.002248213234 | AN36: 0.001776368454 | AO36: -0.003356596643 | AP36: -0.0009255301391 | AQ36: 0.005501951438 | AS36: 0.000788014817 | AT36: -0.001430272975 | AU36: -0.0009876236604 | AV36: 0.0004909985657 | AW36: 0.0003879500173 | AX36: -0.0007330639783 | AY36: -0.0002021311697 | AZ36: 0.001201598773 | BB36: -0.02193107618 | BC36: -0.01514371739 | BD36: 0.007528721534 | BE36: 0.005948627661 | BF36: -0.01124042909 | BG36: -0.003099376243 | BH36: 0.01842470262 | BJ36: 0.02748634831 | BK36: -0.01366487878 | BL36: -0.0107969561 | BM36: 0.02040175084 | BN36: 0.005625470468 | BO36: -0.0334414451 | BQ36: -0.00943579151 | BR36: -0.007455450454 | BS36: 0.01408769668 | BT36: 0.003884466694 | BU36: -0.02309178946 | BW36: 0.003706488237 | BX36: -0.007003719271 | BY36: -0.001931168371 | BZ36: 0.01148011733 | CB36: -0.005533810488 | CC36: -0.001525863526 | CD36: 0.009070722462 | CF36: 0.002883246648 | CG36: -0.01713988812 | CI36: -0.004726061759
A37: 35 | B37: 0.04338442 | C37: 0.03084249 | D37: 0.00706571 | E37: 0.12218761 | F37: -0.06396775 | G37: 0.0952232 | H37: -0.06954049 | I37: 0.05990878 | J37: -0.210235 | K37: -0.20176703 | M37: 0.03514854167 | N37: 0.02180982367 | O37: -0.003811401583 | P37: 0.1025916688 | Q37: -0.06108750246 | R37: 0.07624011471 | S37: -0.06210774621 | T37: 0.05031123479 | U37: -0.2287453216 | V37: -0.2012009153 | X37: 0.001235419981 | Y37: 0.0004756684084 | Z37: 1.452678203e-05 | AA37: 0.01052505051 | AB37: 0.003731682957 | AC37: 0.005812555091 | AD37: 0.003857372139 | AE37: 0.002531220346 | AF37: 0.05232442217 | AG37: 0.04048180833 | AI37: 0.0007665834959 | AJ37: -0.0001339652074 | AK37: 0.003605947547 | AL37: -0.002147136625 | AM37: 0.002679728848 | AN37: -0.002182996705 | AO37: 0.001768366532 | AP37: -0.008040064468 | AQ37: -0.007071918756 | AS37: -8.312599646e-05 | AT37: 0.002237506207 | AU37: -0.001332307657 | AV37: 0.001662783458 | AW37: -0.001354558993 | AX37: 0.001097279159 | AY37: -0.004988895129 | AZ37: -0.004388156485 | BB37: -0.000391018049 | BC37: 0.0002328290036 | BD37: -0.0002905816939 | BE37: 0.0002367175622 | BF37: -0.0001917563199 | BG37: 0.000871840281 | BH37: 0.0007668574873 | BJ37: -0.006267068822 | BK37: 0.0078216006 | BL37: -0.006371737331 | BM37: 0.005161513538 | BN37: -0.02346736428 | BO37: -0.02064153767 | BQ37: -0.004657318195 | BR37: 0.003794007099 | BS37: -0.003073387679 | BT37: 0.0139734804 | BU37: 0.01229086141 | BW37: -0.004735101695 | BX37: 0.003835734312 | BY37: -0.01743956956 | BZ37: -0.01533958086 | CB37: -0.003124717402 | CC37: 0.01420685638 | CD37: 0.01249613539 | CF37: -0.01150845958 | CG37: -0.01012266649 | CI37: 0.04602376809
A38: 36 | B38: 0.00085749 | C38: -0.02712721 | D38: -0.01352873 | E38: -0.08422714 | F38: 0.20590536 | G38: 0.16142336 | H38: 0.16997397 | I38: -0.01914471 | J38: -0.0160692 | K38: -0.13553749 | M38: -0.007378388333 | N38: -0.03615987633 | O38: -0.02440584158 | P38: -0.1038230812 | Q38: 0.2087856075 | R38: 0.1424402747 | S38: 0.1774067138 | T38: -0.02874225521 | U38: -0.03457952163 | V38: -0.1349713753 | X38: 5.44406144e-05 | Y38: 0.001307536656 | Z38: 0.0005956451034 | AA38: 0.01077923218 | AB38: 0.04359142992 | AC38: 0.02028923186 | AD38: 0.0314731421 | AE38: 0.0008261172345 | AF38: 0.001195743316 | AG38: 0.01821727216 | AI38: 0.0002668016097 | AJ38: 0.0001800757768 | AK38: 0.0007660470108 | AL38: -0.001540501291 | AM38: -0.001050979661 | AN38: -0.001308975627 | AO38: 0.0002120715205 | AP38: 0.0002551411389 | AQ38: 0.0009958712211 | AS38: 0.0008825122135 | AT38: 0.003754229776 | AU38: -0.007549661749 | AV38: -0.005150622718 | AW38: -0.006415004831 | AX38: 0.001039316394 | AY38: 0.001250391226 | AZ38: 0.004880548241 | BB38: 0.002533889672 | BC38: -0.005095588463 | BD38: -0.00347637478 | BE38: -0.004329760153 | BF38: 0.0007014789274 | BG38: 0.0008439423268 | BH38: 0.003294090005 | BJ38: -0.02167676508 | BK38: -0.0147885882 | BL38: -0.01841891165 | BM38: 0.002984109495 | BN38: 0.00359015248 | BO38: 0.01401314406 | BQ38: 0.02973947929 | BR38: 0.03703996852 | BS38: -0.006000969216 | BT38: -0.007219706431 | BU38: -0.0281800806 | BW38: 0.02526986105 | BX38: -0.004094054728 | BY38: -0.00492551656 | BZ38: -0.01922535978 | CB38: -0.005099069043 | CC38: -0.006134639296 | CD38: -0.02394482815 | CF38: 0.0009938934355 | CG38: 0.003879381716 | CI38: 0.004667245592
A39: 37 | B39: -0.00492233 | C39: 0.0232157 | D39: 0.01658368 | E39: -0.04227354 | F39: -0.19939131 | G39: 0.1111383 | H39: -0.05371047 | I39: 0.30233073 | J39: 0.05478504 | K39: 0.41096861 | M39: -0.01315820833 | N39: 0.01418303367 | O39: 0.005706568417 | P39: -0.06186948117 | Q39: -0.1965110625 | R39: 0.09215521471 | S39: -0.04627772621 | T39: 0.2927331848 | U39: 0.03627471837 | V39: 0.4115347247 | X39: 0.0001731384465 | Y39: 0.000201158444 | Z39: 3.256492309e-05 | AA39: 0.0038278327 | AB39: 0.03861659767 | AC39: 0.008492583598 | AD39: 0.002141627943 | AE39: 0.08569271748 | AF39: 0.001315855193 | AG39: 0.1693608296 | AI39: -0.0001866233118 | AJ39: -7.508821609e-05 | AK39: 0.0008140915227 | AL39: 0.0025857335 | AM39: -0.001212597514 | AN39: 0.0006089319626 | AO39: -0.003851844232 | AP39: -0.0004773103016 | AQ39: -0.005415059644 | AS39: 8.093645197e-05 | AT39: -0.0008774969343 | AU39: -0.002787123015 | AV39: 0.001307040513 | AW39: -0.0006563585488 | AX39: 0.004151844615 | AY39: 0.000514485552 | AZ39: 0.005836810855 | BB39: -0.0003530624272 | BC39: -0.001121403823 | BD39: 0.0005258900377 | BE39: -0.0002640870108 | BF39: 0.001670501947 | BG39: 0.0002070041622 | BH39: 0.002348451062 | BJ39: 0.01215803748 | BK39: -0.005701595321 | BL39: 0.00286317891 | BM39: -0.01811125026 | BN39: -0.002244298005 | BO39: -0.0254614399 | BQ39: -0.01810951915 | BR39: 0.009094085145 | BS39: -0.05752530916 | BT39: -0.007128383448 | BU39: -0.08087112598 | BW39: -0.004264733795 | BX39: 0.0269768895 | BY39: 0.00334290446 | BZ39: 0.03792507091 | CB39: -0.01354702618 | CC39: -0.001678711485 | CD39: -0.01904489131 | CF39: 0.01061881384 | CG39: 0.1204698706 | CI39: 0.01492830624
A40: 38 | B40: -0.02026927 | C40: -0.06811728 | D40: 0.06240906 | E40: 0.05154446 | F40: 0.16616691 | G40: -0.18125026 | H40: 0.28373689 | I40: -0.0490201 | J40: -0.22686046 | K40: 0.18017855 | M40: -0.02850514833 | N40: -0.07714994633 | O40: 0.05153194842 | P40: 0.03194851883 | Q40: 0.1690471575 | R40: -0.2002333453 | S40: 0.2911696338 | T40: -0.05861764521 | U40: -0.2453707816 | V40: 0.1807446647 | X40: 0.0008125434815 | Y40: 0.005952114219 | Z40: 0.002655541708 | AA40: 0.001020707856 | AB40: 0.02857694147 | AC40: 0.04009339257 | AD40: 0.08477975564 | AE40: 0.00343602833 | AF40: 0.06020682048 | AG40: 0.03266863381 | AI40: 0.002199170664 | AJ40: -0.001468925834 | AK40: -0.0009106972684 | AL40: -0.004818714301 | AM40: 0.005707681209 | AN40: -0.008299833601 | AO40: 0.001670904672 | AP40: 0.006994330527 | AQ40: -0.005152153477 | AS40: -0.003975687055 | AT40: -0.002464826513 | AU40: -0.01304197913 | AV40: 0.01544799184 | AW40: -0.02246372162 | AX40: 0.004522348182 | AY40: 0.01893034263 | AZ40: -0.01394444118 | BB40: 0.001646369425 | BC40: 0.008711329402 | BD40: -0.01031841442 | BE40: 0.01500453855 | BF40: -0.003020681469 | BG40: -0.01264443446 | BH40: 0.009314124736 | BJ40: 0.005400806296 | BK40: -0.006397158803 | BL40: 0.009302438529 | BM40: -0.001872746942 | BN40: -0.007839233038 | BO40: 0.005774524323 | BQ40: -0.03384887787 | BR40: 0.04922139895 | BS40: -0.009909146304 | BT40: -0.04147923318 | BU40: 0.0305543718 | BW40: -0.05830186982 | BX40: 0.01173720719 | BY40: 0.04913141244 | BZ40: -0.03619110885 | CB40: -0.01706767829 | CC40: -0.07144452063 | CD40: 0.05262735782 | CF40: 0.01438305742 | CG40: -0.01059482663 | CI40: -0.04434945964
A41: 39 | B41: 0.06838088 | C41: 0.16265788 | D41: 0.01113335 | E41: 0.12332783 | F41: -0.16048715 | G41: 0.00904447 | H41: -0.23722097 | I41: 0.03137458 | J41: -0.17498848 | K41: 0.03177829 | M41: 0.06014500167 | N41: 0.1536252137 | O41: 0.0002562384167 | P41: 0.1037318888 | Q41: -0.1576069025 | R41: -0.009938615292 | S41: -0.2297882262 | T41: 0.02177703479 | U41: -0.1934988016 | V41: 0.03234440467 | X41: 0.003617421225 | Y41: 0.02360070627 | Z41: 6.565812618e-08 | AA41: 0.01076030476 | AB41: 0.0248399357 | AC41: 9.877607392e-05 | AD41: 0.0528026289 | AE41: 0.0004742392443 | AF41: 0.03744178623 | AG41: 0.001046160513 | AI41: 0.009239788732 | AJ41: 1.541146e-05 | AK41: 0.006238954627 | AL41: -0.009479267411 | AM41: -0.0005977580333 | AN41: -0.01382061325 | AO41: 0.001309779794 | AP41: -0.01163798575 | AQ41: 0.001945354273 | AS41: 3.936468151e-05 | AT41: 0.01593583359 | AU41: -0.02421239407 | AV41: -0.001526821898 | AW41: -0.03530126535 | AX41: 0.003345501623 | AY41: -0.02972629474 | AZ41: 0.004968916078 | BB41: 2.658009495e-05 | BC41: -4.038494314e-05 | BD41: -2.546655046e-06 | BE41: -5.888057125e-05 | BF41: 5.580112915e-06 | BG41: -4.958182656e-05 | BH41: 8.28787904e-06 | BJ41: -0.01634886169 | BK41: -0.001030951337 | BL41: -0.02383636674 | BM41: 0.002258972952 | BN41: -0.02007199618 | BO41: 0.003355146189 | BQ41: 0.001566394371 | BR41: 0.03621621055 | BS41: -0.003432210998 | BT41: 0.03049674675 | BU41: -0.005097701431 | BW41: 0.002283776779 | BX41: -0.000216433571 | BY41: 0.001923110149 | BZ41: -0.0003214585948 | CB41: -0.005004106197 | CC41: 0.0444637464 | CD41: -0.007432363376 | CF41: -0.004213830135 | CG41: 0.0007043652257 | CI41: -0.006258603542
A42: 40 | B42: 0.00394886 | C42: 0.15097179 | D42: 0.07143472 | E42: -0.02417229 | F42: -0.10356765 | G42: 0.13291211 | H42: -0.34540064 | I42: 0.06666841 | J42: -0.00034281 | K42: -0.08939093 | M42: -0.004287018333 | N42: 0.1419391237 | O42: 0.06055760842 | P42: -0.04376823117 | Q42: -0.1006874025 | R42: 0.1139290247 | S42: -0.3379678962 | T42: 0.05707086479 | U42: -0.01885313163 | V42: -0.08882481533 | X42: 1.837852619e-05 | Y42: 0.02014671483 | Z42: 0.003667223937 | AA42: 0.001915658059 | AB42: 0.01013795301 | AC42: 0.01297982267 | AD42: 0.1142222989 | AE42: 0.003257083608 | AF42: 0.0003554405721 | AG42: 0.007889847819 | AI42: -0.0006084956254 | AJ42: -0.0002596115775 | AK42: 0.0001876352094 | AL42: 0.0004316487403 | AM42: -0.0004884158176 | AN42: 0.001448874567 | AO42: -0.0002446638437 | AP42: 8.082372092e-05 | AQ42: 0.0003807936118 | AS42: 0.00859549387 | AT42: -0.006212424376 | AU42: -0.01429148167 | AV42: 0.01617098593 | AW42: -0.04797086702 | AX42: 0.008100588535 | AY42: -0.002675996981 | AZ42: -0.01260771645 | BB42: -0.002650499404 | BC42: -0.006097388291 | BD42: 0.006899269266 | BE42: -0.02046652752 | BF42: 0.003456075082 | BG42: -0.001141700562 | BH42: -0.005379018385 | BJ42: 0.004406909506 | BK42: -0.00498647189 | BL42: 0.01479225701 | BM42: -0.002497890803 | BN42: 0.0008251682232 | BO42: 0.003887705051 | BQ42: -0.01147121756 | BR42: 0.03402910958 | BS42: -0.005746317132 | BT42: 0.001898272852 | BU42: 0.00894353993 | BW42: -0.0385043528 | BX42: 0.006502027965 | BY42: -0.002147918899 | BZ42: -0.01011972458 | CB42: -0.01928812011 | CC42: 0.006371753232 | CD42: 0.03001993597 | CF42: -0.001075964526 | CG42: -0.005069309026 | CI42: 0.001674625935
A43: 41 | B43: -0.01603034 | C43: -0.02965399 | D43: 0.06738693 | E43: 0.11448322 | F43: 0.01357594 | G43: 0.04407212 | H43: -0.19344724 | I43: -0.00348546 | J43: -0.03570436 | K43: 0.17864222 | M43: -0.02426621833 | N43: -0.03868665633 | O43: 0.05650981842 | P43: 0.09488727883 | Q43: 0.01645618754 | R43: 0.02508903471 | S43: -0.1860144962 | T43: -0.01308300521 | U43: -0.05421468163 | V43: 0.1792083347 | X43: 0.0005888493522 | Y43: 0.001496657378 | Z43: 0.003193359577 | AA43: 0.009003595684 | AB43: 0.0002708061084 | AC43: 0.0006294596626 | AD43: 0.0346013928 | AE43: 0.0001711650253 | AF43: 0.002939231704 | AG43: 0.03211562721 | AI43: 0.0009387788492 | AJ43: -0.001371279592 | AK43: -0.002302555425 | AL43: -0.0003993294398 | AM43: -0.000608815994 | AN43: 0.004513868378 | AO43: 0.0003174750608 | AP43: 0.001315585301 | AQ43: -0.004348708576 | AS43: -0.002186175925 | AT43: -0.003670871547 | AU43: -0.000636634872 | AV43: -0.0009706108635 | AW43: 0.007196278888 | AX43: 0.0005061377263 | AY43: 0.002097384756 | AZ43: -0.006932971255 | BB43: 0.005362062897 | BC43: 0.0009299361698 | BD43: 0.001417776796 | BE43: -0.0105116454 | BF43: -0.0007393182487 | BG43: -0.003063661814 | BH43: 0.01012703045 | BJ43: 0.001561482856 | BK43: 0.002380630232 | BL43: -0.01765040937 | BM43: -0.001241410763 | BN43: -0.005144283612 | BO43: 0.01700459122 | BQ43: 0.0004128698604 | BR43: -0.003061089435 | BS43: -0.0002152963873 | BT43: -0.0008921669683 | BU43: 0.002949085964 | BW43: -0.004666924152 | BX43: -0.0003282399718 | BY43: -0.001360194029 | BZ43: 0.004496164128 | CB43: 0.002433628623 | CC43: 0.01008471669 | CD43: -0.03333534809 | CF43: 0.0007092909621 | CG43: -0.002344583576 | CI43: -0.009715722808
A44: 42 | B44: -0.01650461 | C44: -0.2352012 | D44: 0.07488319 | E44: 0.05643409 | F44: -0.04005523 | G44: 0.19186026 | H44: 0.12492641 | I44: -0.04866666 | J44: 0.36871542 | K44: -0.0628482 | M44: -0.02474048833 | N44: -0.2442338663 | O44: 0.06400607842 | P44: 0.03683814883 | Q44: -0.03717498246 | R44: 0.1728771747 | S44: 0.1323591538 | T44: -0.05826420521 | U44: 0.3502050984 | V44: -0.06228208533 | X44: 0.000612091763 | Y44: 0.05965018146 | Z44: 0.004096778074 | AA44: 0.001357049209 | AB44: 0.001381979321 | AC44: 0.02988651754 | AD44: 0.01751894559 | AE44: 0.003394717609 | AF44: 0.1226436109 | AG44: 0.003879058153 | AI44: 0.006042465121 | AJ44: -0.001583541636 | AK44: -0.0009113937914 | AL44: 0.0009197272198 | AM44: -0.004277065724 | AN44: -0.0032746301 | AO44: 0.001441484889 | AP44: -0.008664245151 | AQ44: 0.001540889206 | AS44: -0.015632452 | AT44: -0.008997123518 | AU44: 0.009079389697 | AV44: -0.04222246078 | AW44: -0.03232658788 | AX44: 0.01423009211 | AY44: -0.08553194519 | AZ44: 0.0152113945 | BB44: 0.002357865443 | BC44: -0.002379424842 | BD44: 0.01106519 | BE44: 0.008471790377 | BF44: -0.003729263287 | BG44: 0.02241525499 | BH44: -0.003986432038 | BJ44: -0.001369457537 | BK44: 0.006368475092 | BL44: 0.004875866207 | BM44: -0.002146345463 | BN44: 0.01290090754 | BO44: -0.002294356729 | BQ44: -0.006426705937 | BR44: -0.00492044922 | BS44: 0.002165970807 | BT44: -0.01301886839 | BU44: 0.00231533543 | BW44: 0.02288187655 | BX44: -0.01007255118 | BY44: 0.06054246798 | BZ44: -0.01076715095 | CB44: -0.007711800898 | CC44: 0.04635285047 | CD44: -0.008243604111 | CF44: -0.02040442172 | CG44: 0.003628816201 | CI44: -0.02181150382
A45: 43 | B45: -0.00085705 | C45: -0.20723933 | D45: 0.14143792 | E45: 0.01008759 | F45: 0.00594817 | G45: 0.03754191 | H45: -0.08423242 | I45: 0.14415741 | J45: 0.31180738 | K45: 0.08333352 | M45: -0.009092928333 | N45: -0.2162719963 | O45: 0.1305608084 | P45: -0.009508351167 | Q45: 0.008828417542 | R45: 0.01855882471 | S45: -0.07679967621 | T45: 0.1345598648 | U45: 0.2932970584 | V45: 0.08389963467 | X45: 8.268134568e-05 | Y45: 0.0467735764 | Z45: 0.01704612469 | AA45: 9.040874191e-05 | AB45: 7.794095629e-05 | AC45: 0.0003444299746 | AD45: 0.005898190266 | AE45: 0.01810635721 | AF45: 0.08602316445 | AG45: 0.007039148697 | AI45: 0.001966545763 | AJ45: -0.001187180074 | AK45: 8.645875573e-05 | AL45: -8.0276168e-05 | AM45: -0.000168754063 | AN45: 0.0006983339518 | AO45: -0.001223543207 | AP45: -0.002666929132 | AQ45: -0.0007628933652 | AS45: -0.02823664668 | AT45: 0.002056390089 | AU45: -0.001909339486 | AV45: -0.004013754069 | AW45: 0.01660961929 | AX45: -0.02910153058 | AY45: -0.06343194033 | AZ45: -0.01814514148 | BB45: -0.001241418015 | BC45: 0.001152645331 | BD45: 0.002423055157 | BE45: -0.01002702781 | BF45: 0.01756824473 | BG45: 0.03829310105 | BH45: 0.01095400413 | BJ45: -8.394369423e-05 | BK45: -0.0001764638226 | BL45: 0.0007302382909 | BM45: -0.001279442447 | BN45: -0.002788771427 | BO45: -0.0007977471892 | BQ45: 0.0001638450536 | BR45: -0.0006780196086 | BS45: 0.001187950671 | BT45: 0.002589348895 | BU45: 0.0007407010064 | BW45: -0.001425311728 | BX45: 0.002497272943 | BY45: 0.005443248694 | BZ45: 0.001557078613 | CB45: -0.01033415405 | CC45: -0.02252511912 | CD45: -0.006443464776 | CF45: 0.03946601252 | CG45: 0.0112895235 | CI45: 0.02460751605
A46: 44 | B46: -0.07746129 | C46: -0.02310187 | D46: 0.00764503 | E46: -0.05682153 | F46: 0.19603654 | G46: -0.06612718 | H46: -0.07336242 | I46: 0.13937854 | J46: 0.13699976 | K46: 0.07642943 | M46: -0.08569716833 | N46: -0.03213453633 | O46: -0.003232081583 | P46: -0.07641747117 | Q46: 0.1989167875 | R46: -0.08511026529 | S46: -0.06592967621 | T46: 0.1297809948 | U46: 0.1184894384 | V46: 0.07699554467 | X46: 0.00734400466 | Y46: 0.001032628425 | Z46: 1.044635136e-05 | AA46: 0.0058396299 | AB46: 0.03956788837 | AC46: 0.007243757258 | AD46: 0.004346722205 | AE46: 0.01684310661 | AF46: 0.01403974701 | AG46: 0.005928313899 | AI46: 0.002753838769 | AJ46: 0.0002769802395 | AK46: 0.00654876089 | AL46: -0.01704660543 | AM46: 0.007293708732 | AN46: 0.00564998656 | AO46: -0.01112186376 | AP46: -0.01015420935 | AQ46: -0.006598300152 | AS46: 0.0001038614431 | AT46: 0.002455640004 | AU46: -0.006392098737 | AV46: 0.002734978912 | AW46: 0.002118619576 | AX46: -0.004170452093 | AY46: -0.003807603163 | AZ46: -0.002474216128 | BB46: 0.0002469875012 | BC46: -0.0006429152856 | BD46: 0.000275083321 | BE46: 0.0002130900923 | BF46: -0.0004194627631 | BG46: -0.0003829675316 | BH46: -0.0002488558819 | BJ46: -0.01520071788 | BK46: 0.006503911244 | BL46: 0.005038179131 | BM46: -0.009917535427 | BN46: -0.009054663241 | BO46: -0.005883804815 | BQ46: -0.01692986056 | BR46: -0.0131145194 | BS46: 0.02581561857 | BT46: 0.02356953844 | BU46: 0.0153157064 | BW46: 0.005611292233 | BX46: -0.0110456949 | BY46: -0.01008466753 | BZ46: -0.006553111233 | CB46: -0.008556418965 | CC46: -0.007811970306 | CD46: -0.005076291329 | CF46: 0.01537767718 | CG46: 0.009992558381 | CI46: 0.009123158845
A47: 45 | B47: -0.02159493 | C47: 0.18574402 | D47: -0.1271178 | E47: 0.02870213 | F47: 0.05882857 | G47: -0.05051757 | H47: -0.11388748 | I47: 0.1849914 | J47: -0.11988761 | K47: 0.33750556 | M47: -0.02983080833 | N47: 0.1767113537 | O47: -0.1379949116 | P47: 0.009106188833 | Q47: 0.06170881754 | R47: -0.06950065529 | S47: -0.1064547362 | T47: 0.1753938548 | U47: -0.1383979316 | V47: 0.3380716747 | X47: 0.0008898771258 | Y47: 0.03122690251 | Z47: 0.01904259562 | AA47: 8.292267507e-05 | AB47: 0.003807978162 | AC47: 0.004830341086 | AD47: 0.01133261086 | AE47: 0.0307630043 | AF47: 0.01915398748 | AG47: 0.1142924572 | AI47: -0.005271442522 | AJ47: 0.004116499758 | AK47: -0.0002716449737 | AL47: -0.001840823909 | AM47: 0.002073260727 | AN47: 0.003175630832 | AO47: -0.005232140465 | AP47: 0.004128522172 | AQ47: -0.01008495133 | AS47: -0.02438526763 | AT47: 0.001609166955 | AU47: 0.01090464868 | AV47: -0.01228155488 | AW47: -0.01881176054 | AX47: 0.03099408551 | AY47: -0.02445648584 | AZ47: 0.05974110327 | BB47: -0.001256607723 | BC47: -0.008515502821 | BD47: 0.009590736782 | BE47: 0.01469021191 | BF47: -0.02420345948 | BG47: 0.01909821034 | BH47: -0.04665217085 | BJ47: 0.0005619321452 | BK47: -0.0006328860911 | BL47: -0.0009693969301 | BM47: 0.001597169562 | BN47: -0.0012602777 | BO47: 0.003078544509 | BQ47: -0.004288803256 | BR47: -0.006569195893 | BS47: 0.01082334738 | BT47: -0.008540372711 | BU47: 0.02086200329 | BW47: 0.007398673925 | BX47: -0.01218998784 | BY47: 0.009618746939 | BZ47: -0.02349620292 | CB47: -0.01867150654 | CC47: 0.0147331153 | CD47: -0.03598933095 | CF47: -0.02427414672 | CG47: 0.05929569422 | CI47: -0.04678842051
A48: 46 | B48: -0.14237238 | C48: 0.03150046 | D48: -0.02635706 | E48: -0.00078202 | F48: 0.02310749 | G48: 0.21159016 | H48: 0.29075214 | I48: -0.07505728 | J48: -0.11782351 | K48: 0.0097735 | M48: -0.1506082583 | N48: 0.02246779367 | O48: -0.03723417158 | P48: -0.02037796117 | Q48: 0.02598773754 | R48: 0.1926070747 | S48: 0.2981848838 | T48: -0.08465482521 | U48: -0.1363338316 | V48: 0.01033961467 | X48: 0.02268284748 | Y48: 0.0005048017522 | Z48: 0.001386383533 | AA48: 0.0004152613013 | AB48: 0.0006753625025 | AC48: 0.03709748523 | AD48: 0.08891422492 | AE48: 0.007166439431 | AF48: 0.01858691365 | AG48: 0.0001069076315 | AI48: -0.003383835273 | AJ48: 0.005607773733 | AK48: 0.00306908924 | AL48: -0.003913967889 | AM48: -0.02900821606 | AN48: -0.04490910601 | AO48: 0.01274971578 | AP48: 0.02053300093 | AQ48: -0.001557231357 | AS48: -0.0008365696845 | AT48: -0.0004578478268 | AU48: 0.0005838871249 | AV48: 0.004327456013 | AW48: 0.006699556444 | AX48: -0.001902007146 | AY48: -0.003063120399 | AZ48: 0.0002323083289 | BB48: 0.0007587565026 | BC48: -0.0009676318787 | BD48: -0.007171564868 | BE48: -0.01110266713 | BF48: 0.003152052287 | BG48: 0.005076277279 | BH48: -0.0003849869866 | BJ48: -0.0005295771064 | BK48: -0.003924939489 | BL48: -0.006076399982 | BM48: 0.001725092741 | BN48: 0.002778205527 | BO48: -0.0002107002662 | BQ48: 0.005005422106 | BR48: 0.007749150499 | BS48: -0.002199987379 | BT48: -0.003543007834 | BU48: 0.0002687031922 | BW48: 0.05743251819 | BX48: -0.01630511824 | BY48: -0.02625886049 | BZ48: 0.001991482935 | CB48: -0.02524278922 | CC48: -0.04065268774 | CD48: 0.003083116798 | CF48: 0.01154131669 | CG48: -0.0008752982723 | CI48: -0.001409639285
A49: 47 | B49: 0.04112505 | C49: 0.07331819 | D49: -0.00824938 | E49: -0.1655706 | F49: -0.05178554 | G49: 0.12469154 | H49: 0.3606195 | I49: -0.1458238 | J49: -0.09815585 | K49: -0.04498889 | M49: 0.03288917167 | N49: 0.06428552367 | O49: -0.01912649158 | P49: -0.1851665412 | Q49: -0.04890529246 | R49: 0.1057084547 | S49: 0.3680522438 | T49: -0.1554213452 | U49: -0.1166661716 | V49: -0.04442277533 | X49: 0.001081697613 | Y49: 0.004132628553 | Z49: 0.0003658226803 | AA49: 0.03428664797 | AB49: 0.00239172763 | AC49: 0.0111742774 | AD49: 0.1354624542 | AE49: 0.02415579455 | AF49: 0.0136109956 | AG49: 0.001973382968 | AI49: 0.002114297624 | AJ49: -0.0006290544651 | AK49: -0.006089974159 | AL49: -0.001608454559 | AM49: 0.003476663514 | AN49: 0.01210493343 | AO49: -0.005111679303 | AP49: -0.003837053746 | AQ49: -0.001461028284 | AS49: -0.001229556527 | AT49: -0.01190352806 | AU49: -0.003143902336 | AV49: 0.006795523367 | AW49: 0.02366043123 | AX49: -0.009991342566 | AY49: -0.007499945937 | AZ49: -0.002855741375 | BB49: 0.003541586291 | BC49: 0.0009353866646 | BD49: -0.002021831869 | BE49: -0.007039548143 | BF49: 0.002972665051 | BG49: 0.00223141455 | BH49: 0.0008496518385 | BJ49: 0.009055623849 | BK49: -0.01957366893 | BL49: -0.06815096095 | BM49: 0.02877883292 | BN49: 0.02160267147 | BO49: 0.008225611657 | BQ49: -0.005169702893 | BR49: -0.01799970262 | BS49: 0.007600926342 | BT49: 0.005705593243 | BU49: 0.002172508819 | BW49: 0.03890623394 | BX49: -0.01642935023 | BY49: -0.01233260072 | BZ49: -0.004695862934 | CB49: -0.05720317484 | CC49: -0.04293924624 | CD49: -0.01634990214 | CF49: 0.01813241333 | CG49: 0.0069042475 | CI49: 0.005182635131
A50: 48 | B50: 0.04359062 | C50: 0.20365959 | D50: 0.02945594 | E50: -0.06658891 | F50: -0.16967214 | G50: -0.19228393 | H50: -0.11636413 | I50: 0.13432376 | J50: -0.33776162 | K50: -0.13206033 | M50: 0.03535474167 | N50: 0.1946269237 | O50: 0.01857882842 | P50: -0.08618485117 | Q50: -0.1667918925 | R50: -0.2112670153 | S50: -0.1089313862 | T50: 0.1247262148 | U50: -0.3562719416 | V50: -0.1314942153 | X50: 0.001249957758 | Y50: 0.03787963942 | Z50: 0.0003451728653 | AA50: 0.007427828571 | AB50: 0.02781953539 | AC50: 0.04463375175 | AD50: 0.0118660469 | AE50: 0.01555662866 | AF50: 0.1269296964 | AG50: 0.01729072867 | AI50: 0.006880984608 | AJ50: 0.0006568496791 | AK50: -0.003047043149 | AL50: -0.00589688427 | AM50: -0.007469290748 | AN50: -0.003851241019 | AO50: 0.004409663103 | AP50: -0.01259590246 | AQ50: -0.004648944014 | AS50: 0.00361594022 | AT50: -0.01677389245 | AU50: -0.03246219292 | AV50: -0.04111824926 | AW50: -0.02120098059 | AX50: 0.02427507949 | AY50: -0.06934011199 | AZ50: -0.02559231461 | BB50: -0.001601213562 | BC50: -0.003098797951 | BD50: -0.003925093627 | BE50: -0.002023817534 | BF50: 0.002317266944 | BG50: -0.006619115273 | BH50: -0.002443008464 | BJ50: 0.01437493443 | BK50: 0.01820801627 | BL50: 0.009388235308 | BM50: -0.01074951026 | BN50: 0.03070524426 | BO50: 0.01133280938 | BQ50: 0.03523762529 | BR50: 0.01816887205 | BS50: -0.0208033214 | BT50: 0.05942327137 | BU50: 0.02193216902 | BW50: 0.02301360884 | BX50: -0.02635053513 | BY50: 0.07526850974 | BZ50: 0.0277803904 | CB50: -0.01358659947 | CC50: 0.03880919647 | CD50: 0.01432384715 | CF50: -0.04443645072 | CG50: -0.01640077575 | CI50: 0.04684769941
A51: 49 | B51: 0.13102176 | C51: -0.03405443 | D51: -0.011298 | E51: 0.0169665 | F51: -0.08927821 | G51: -0.0020217 | H51: 0.08254267 | I51: 0.11390329 | J51: -0.11701148 | K51: 0.05377842 | M51: 0.1227858817 | N51: -0.04308709633 | O51: -0.02217511158 | P51: -0.002629441167 | Q51: -0.08639796246 | R51: -0.02100478529 | S51: 0.08997541379 | T51: 0.1043057448 | U51: -0.1355218016 | V51: 0.05434453467 | X51: 0.01507637274 | Y51: 0.00185649787 | Z51: 0.0004917355737 | AA51: 6.913960849e-06 | AB51: 0.007464607917 | AC51: 0.0004412010051 | AD51: 0.008095575087 | AE51: 0.0108796884 | AF51: 0.01836615872 | AG51: 0.002953328448 | AI51: -0.005290487112 | AJ51: -0.002722790627 | AK51: -0.0003228582519 | AL51: -0.01060844999 | AM51: -0.002579091081 | AN51: 0.01104771051 | AO51: 0.01280727284 | AP51: -0.0166401639 | AQ51: 0.006672741603 | AS51: 0.000955461169 | AT51: 0.0001132949849 | AU51: 0.003722637331 | AV51: 0.0009050352073 | AW51: -0.003876779322 | AX51: -0.004494231674 | AY51: 0.005839240922 | AZ51: -0.0023415482 | BB51: 5.830815127e-05 | BC51: 0.001915884458 | BD51: 0.0004657834576 | BE51: -0.001995214841 | BF51: -0.00231299153 | BG51: 0.003005211073 | BH51: -0.00120509612 | BJ51: 0.0002271783592 | BK51: 5.523084714e-05 | BL51: -0.000236585057 | BM51: -0.0002742658193 | BN51: 0.0003563466042 | BO51: -0.0001428957566 | BQ51: 0.001814770651 | BR51: -0.007773692423 | BS51: -0.009011803823 | BT51: 0.01170880753 | BU51: -0.004695257066 | BW51: -0.001889914248 | BX51: -0.002190919774 | BY51: 0.002846606345 | BZ51: -0.001141495282 | CB51: 0.009384952548 | CC51: -0.01219363018 | CD51: 0.004889671994 | CF51: -0.01413570245 | CG51: 0.005668447164 | CI51: -0.007364869246
A52: 50 | B52: -0.06648979 | C52: 0.10815013 | D52: -0.11363572 | E52: 0.3124358 | F52: 0.19371924 | G52: 0.31229991 | H52: -0.33833255 | I52: -0.05871423 | J52: -0.05415997 | K52: 0.02075159 | M52: -0.07472566833 | N52: 0.09911746367 | O52: -0.1245128316 | P52: 0.2928398588 | Q52: 0.1965994875 | R52: 0.2933168247 | S52: -0.3308998062 | T52: -0.06831177521 | U52: -0.07267029163 | V52: 0.02131770467 | X52: 0.005583925508 | Y52: 0.009824271604 | Z52: 0.01550344523 | AA52: 0.08575518292 | AB52: 0.0386513585 | AC52: 0.08603475966 | AD52: 0.1094946817 | AE52: 0.004666498632 | AF52: 0.005280971285 | AG52: 0.0004544445323 | AI52: -0.007406618716 | AJ52: 0.009304304556 | AK52: -0.02188265417 | AL52: -0.0146910281 | AM52: -0.02191829576 | AN52: 0.02472670917 | AO52: 0.005104643057 | AP52: 0.00543033611 | AQ52: -0.001592979729 | AS52: -0.01234139606 | AT52: 0.02902554407 | AU52: 0.01948644256 | AV52: 0.02907281972 | AW52: -0.03279794952 | AX52: -0.006770889897 | AY52: -0.00720289499 | AZ52: 0.002112956818 | BB52: -0.03646232002 | BC52: -0.02447915888 | BD52: -0.0365217084 | BE52: 0.04120127184 | BF52: 0.008505692562 | BG52: 0.009048383782 | BH52: -0.002654327771 | BJ52: 0.05757216618 | BK52: 0.08589485754 | BL52: -0.09690065254 | BM52: -0.02000441061 | BN52: -0.02128075794 | BO52: 0.006242673625 | BQ52: 0.05766593743 | BR52: -0.06505473233 | BS52: -0.01343006 | BT52: -0.01428694209 | BU52: 0.004191049813 | BW52: -0.09705848045 | BX52: -0.02003699299 | BY52: -0.02131541919 | BZ52: 0.006252841443 | CB52: 0.02260435318 | CC52: 0.02404658542 | CD52: -0.007054024343 | CF52: 0.004964236626 | CG52: -0.001456250249 | CI52: -0.001549163815
A53: 51 | B53: 0.05781796 | C53: 0.10066511 | D53: 0.13237075 | E53: -0.22670812 | F53: 0.02802964 | G53: -0.36680957 | H53: -0.01446451 | I53: 0.14573255 | J53: 0.19754642 | K53: 0.16233962 | M53: 0.04958208167 | N53: 0.09163244367 | O53: 0.1214936384 | P53: -0.2463040612 | Q53: 0.03090988754 | R53: -0.3857926553 | S53: -0.007031766208 | T53: 0.1361350048 | U53: 0.1790360984 | V53: 0.1629057347 | X53: 0.002458382822 | Y53: 0.008396504732 | Z53: 0.01476070418 | AA53: 0.06066569055 | AB53: 0.0009554211478 | AC53: 0.1488359729 | AD53: 4.944573601e-05 | AE53: 0.01853273953 | AF53: 0.03205392452 | AG53: 0.02653827839 | AI53: 0.004543327305 | AJ53: 0.006023907502 | AK53: -0.01221226808 | AL53: 0.001532576568 | AM53: -0.01912840294 | AN53: -0.0003486496064 | AO53: 0.006749856925 | AP53: 0.008876982451 | AQ53: 0.00807720544 | AS53: 0.01113275898 | AT53: -0.02256944301 | AU53: 0.002832348529 | AV53: -0.03535112375 | AW53: -0.000644337921 | AX53: 0.01247438316 | AY53: 0.0164055152 | AZ53: 0.01492745055 | BB53: -0.02992437655 | BC53: 0.0037553547 | BD53: -0.04687135337 | BE53: -0.0008543148611 | BF53: 0.01653953705 | BG53: 0.021751747 | BH53: 0.01979201042 | BJ53: -0.007613230832 | BK53: 0.09502229777 | BL53: 0.001731952574 | BM53: -0.03353060455 | BN53: -0.04409731813 | BO53: -0.04012434404 | BQ53: -0.01192480759 | BR53: -0.0002173511027 | BS53: 0.004207917689 | BT53: 0.005533985667 | BU53: 0.005035397938 | BW53: 0.002712803757 | BX53: -0.05251988498 | BY53: -0.06907081179 | BZ53: -0.06284783594 | CB53: -0.0009572695265 | CC53: -0.001258939987 | CD53: -0.00114551504 | CF53: 0.02437308011 | CG53: 0.02217717297 | CI53: 0.02916600714
A54: 52 | B54: 0.06696692 | C54: -0.01982933 | D54: -0.07159042 | E54: -0.09363932 | F54: 0.03547207 | G54: -0.03394862 | H54: 0.10338625 | I54: 0.13577579 | J54: 0.08356376 | K54: -0.02822362 | M54: 0.05873104167 | N54: -0.02886199633 | O54: -0.08246753158 | P54: -0.1132352612 | Q54: 0.03835231754 | R54: -0.05293170529 | S54: 0.1108189938 | T54: 0.1261782448 | U54: 0.06505343837 | V54: -0.02765750533 | X54: 0.003449335255 | Y54: 0.0008330148323 | Z54: 0.006800893765 | AA54: 0.01282222437 | AB54: 0.001470900261 | AC54: 0.002801765425 | AD54: 0.01228084938 | AE54: 0.01592094946 | AF54: 0.004231949844 | AG54: 0.0007649376013 | AI54: -0.001695095109 | AJ54: -0.004843404034 | AK54: -0.006650424842 | AL54: 0.00225247156 | AM54: -0.003108734189 | AN54: 0.006508514942 | AO54: 0.007410579752 | AP54: 0.0038206562 | AQ54: -0.001624354098 | AS54: 0.002380177594 | AT54: 0.003268195693 | AU54: -0.001106924448 | AV54: 0.001527714684 | AW54: -0.003198457392 | AX54: -0.003641756039 | AY54: -0.0018775721 | AZ54: 0.0007982508175 | BB54: 0.009338232477 | BC54: -0.003162820958 | BD54: 0.004365147078 | BE54: -0.009138968871 | BF54: -0.01040560839 | BG54: -0.005364796484 | BH54: 0.002280846195 | BJ54: -0.004342834693 | BK54: 0.005993735473 | BL54: -0.0125486177 | BM54: -0.0142878265 | BN54: -0.007366343084 | BO54: 0.00313180484 | BQ54: -0.002030053569 | BR54: 0.00425016524 | BS54: 0.004839228111 | BT54: 0.002494950126 | BU54: -0.001060729427 | BW54: -0.00586583832 | BX54: -0.006678829668 | BY54: -0.003443389428 | BZ54: 0.001463958921 | CB54: 0.01398294613 | CC54: 0.007209156583 | CD54: -0.003064976912 | CF54: 0.008208328672 | CG54: -0.003489775478 | CI54: -0.001799215819
A55: 53 | B55: 0.04131944 | C55: -0.00530248 | D55: 0.06817404 | E55: -0.03822838 | F55: -0.02004824 | G55: 0.0888719 | H55: -0.21615449 | I55: 0.22840381 | J55: -0.14165829 | K55: 0.21182129 | M55: 0.03308356167 | N55: -0.01433514633 | O55: 0.05729692842 | P55: -0.05782432117 | Q55: -0.01716799246 | R55: 0.06988881471 | S55: -0.2087217462 | T55: 0.2188062648 | U55: -0.1601686116 | V55: 0.2123874047 | X55: 0.001094522053 | Y55: 0.0002054964204 | Z55: 0.003282938006 | AA55: 0.003343652118 | AB55: 0.000294739965 | AC55: 0.004884446421 | AD55: 0.04356476734 | AE55: 0.04787618151 | AF55: 0.02565398415 | AG55: 0.04510840966 | AI55: -0.0004742576977 | AJ55: 0.001895586465 | AK55: -0.001913034495 | AL55: -0.0005679783372 | AM55: 0.002312170911 | AN55: -0.006905258762 | AO55: 0.007238890554 | AP55: -0.00529894814 | AQ55: 0.0070265318 | AS55: -0.0008213598533 | AT55: 0.0008289201055 | AU55: 0.0002461056841 | AV55: -0.001001866386 | AW55: 0.002992056775 | AX55: -0.003136619824 | AY55: 0.002296040486 | AZ55: -0.003044604525 | BB55: -0.003313155991 | BC55: -0.0009836732349 | BD55: 0.004004414413 | BE55: -0.01195911495 | BF55: 0.01253692689 | BG55: -0.009177169475 | BH55: 0.01216914592 | BJ55: 0.0009927275097 | BK55: -0.004041273268 | BL55: 0.01206919329 | BM55: -0.01265232373 | BN55: 0.009261641239 | BO55: -0.0122811575 | BQ55: -0.001199850644 | BR55: 0.003583333365 | BS55: -0.003756464304 | BT55: 0.002749773516 | BU55: -0.003646265362 | BW55: -0.01458731545 | BX55: 0.0152921105 | BY55: -0.01119399442 | BZ55: 0.01484350397 | CB55: -0.04566962567 | CC55: 0.03343067231 | CD55: -0.04432986997 | CF55: -0.03504589565 | CG55: 0.0464716947 | CI55: -0.03401779573
A56: 54 | B56: -0.01472063 | C56: -0.01706508 | D56: -0.12340737 | E56: 0.2120093 | F56: 0.12289319 | G56: 0.05515153 | H56: -0.22073169 | I56: 0.02650371 | J56: 0.11788749 | K56: -0.16495774 | M56: -0.02295650833 | N56: -0.02609774633 | O56: -0.1342844816 | P56: 0.1924133588 | Q56: 0.1257734375 | R56: 0.03616844471 | S56: -0.2132989462 | T56: 0.01690616479 | U56: 0.09937716837 | V56: -0.1643916253 | X56: 0.0005270012749 | Y56: 0.0006810923637 | Z56: 0.01803232199 | AA56: 0.03702290066 | AB56: 0.01581895759 | AC56: 0.001308156393 | AD56: 0.04549644045 | AE56: 0.000285818408 | AF56: 0.009875821594 | AG56: 0.02702460648 | AI56: 0.0005991131312 | AJ56: 0.003082702821 | AK56: -0.004417138876 | AL56: -0.002887318967 | AM56: -0.0008303012024 | AN56: 0.004896599036 | AO56: -0.0003881065129 | AP56: -0.002281352794 | AQ56: 0.003773857717 | AS56: 0.003504522337 | AT56: -0.00502155503 | AU56: -0.003282403268 | AV56: -0.0009439148953 | AW56: 0.005566621791 | AX56: -0.0004412128002 | AY56: -0.002593520132 | AZ56: 0.004290250937 | BB56: -0.02583812814 | BC56: -0.01688942086 | BD56: -0.004856860847 | BE56: 0.02864273841 | BF56: -0.002270235575 | BG56: -0.01334481154 | BH56: 0.02207524418 | BJ56: 0.02420048957 | BK56: 0.00695929193 | BL56: -0.04104156668 | BM56: 0.003252971953 | BN56: 0.01912149476 | BO56: -0.03163114479 | BQ56: 0.004549029622 | BR56: -0.02682734169 | BS56: 0.002126346461 | BT56: 0.01249900808 | BU56: -0.02067609982 | BW56: -0.007714691142 | BX56: 0.0006114696865 | BY56: 0.00359431762 | BZ56: -0.005945789411 | CB56: -0.003606067134 | CC56: -0.02119704529 | CD56: 0.03506456045 | CF56: 0.001680086785 | CG56: -0.002779231908 | CI56: -0.01633677423
A57: 55 | B57: -0.0056384 | C57: -0.0173628 | D57: -0.0343143 | E57: -0.02032754 | F57: 0.08825646 | G57: -0.12936047 | H57: 0.13842354 | I57: 0.16564466 | J57: -0.04208045 | K57: 0.09096925 | M57: -0.01387427833 | N57: -0.02639546633 | O57: -0.04519141158 | P57: -0.03992348117 | Q57: 0.09113670754 | R57: -0.1483435553 | S57: 0.1458562838 | T57: 0.1560471148 | U57: -0.06059077163 | V57: 0.09153536467 | X57: 0.0001924955993 | Y57: 0.000696720643 | Z57: 0.002042263681 | AA57: 0.001593884348 | AB57: 0.008305899462 | AC57: 0.0220058104 | AD57: 0.02127405552 | AE57: 0.02435070203 | AF57: 0.003671241606 | AG57: 0.008378722985 | AI57: 0.0003662180466 | AJ57: 0.0006269982226 | AK57: 0.0005539094897 | AL57: -0.001264456047 | AM57: 0.002058159775 | AN57: -0.002023650678 | AO57: -0.002165041104 | AP57: 0.00084065323 | AQ57: -0.001269987127 | AS57: 0.001192848383 | AT57: 0.001053798903 | AU57: -0.002405595896 | AV57: 0.003915597319 | AW57: -0.003849944628 | AX57: -0.004118936365 | AY57: 0.001599321673 | AZ57: -0.002416118636 | BB57: 0.001804198469 | BC57: -0.004118596461 | BD57: 0.006703854663 | BE57: -0.006591451353 | BF57: -0.007051989391 | BG57: 0.002738182499 | BH57: -0.004136612339 | BJ57: -0.003638494627 | BK57: 0.005922391136 | BL57: -0.005823090599 | BM57: -0.006229944048 | BN57: 0.00241899453 | BO57: -0.003654410407 | BQ57: -0.01351954321 | BR57: 0.01329286148 | BS57: 0.01422162026 | BT57: -0.005522043433 | BU57: 0.008342231759 | BW57: -0.0216368397 | BX57: -0.0231485838 | BY57: 0.008988250481 | BZ57: -0.01357868143 | CB57: 0.02276045226 | CC57: -0.008837544781 | CD57: 0.01335100813 | CF57: -0.009455015095 | CG57: 0.01428382956 | CI57: -0.005546198376
A58: 56 | B58: 0.01393424 | C58: -0.08314425 | D58: 0.10133101 | E58: 0.02023277 | F58: -0.10143691 | G58: -0.14033994 | H58: -0.11184997 | I58: 0.14908505 | J58: 0.19464766 | K58: -0.30400826 | M58: 0.005698361667 | N58: -0.09217691633 | O58: 0.09045389842 | P58: 0.0006368288333 | Q58: -0.09855666246 | R58: -0.1593230253 | S58: -0.1044172262 | T58: 0.1394875048 | U58: 0.1761373384 | V58: -0.3034421453 | X58: 3.247132568e-05 | Y58: 0.008496583905 | Z58: 0.008181907739 | AA58: 4.05550963e-07 | AB58: 0.009713415715 | AC58: 0.02538382639 | AD58: 0.01090295713 | AE58: 0.01945676399 | AF58: 0.03102436197 | AG58: 0.09207713556 | AI58: -0.0005252574066 | AJ58: 0.0005154390273 | AK58: 3.628881012e-06 | AL58: -0.0005616115073 | AM58: -0.0009078802199 | AN58: -0.0005950071192 | AO58: 0.0007948502503 | AP58: 0.001003694257 | AQ58: -0.001729123089 | AS58: -0.008337761426 | AT58: -5.870091809e-05 | AU58: 0.00908464923 | AV58: 0.01468590517 | AW58: 0.009624857924 | AX58: -0.01285752806 | AY58: -0.0162357967 | AZ58: 0.02797036124 | BB58: 5.76036506e-05 | BC58: -0.008914834334 | BD58: -0.01441138875 | BE58: -0.009444945172 | BF58: 0.01261718859 | BG58: 0.01593230891 | BH58: -0.02744752499 | BJ58: -6.276372437e-05 | BK58: -0.0001014614963 | BL58: -6.649590035e-05 | BM58: 8.882966494e-05 | BN58: 0.0001121693357 | BO58: -0.0001932407074 | BQ58: 0.01570234563 | BR58: 0.01029101332 | BS58: -0.01374742293 | BT58: -0.0173595082 | BU58: 0.02990624509 | BW58: 0.01663606837 | BX58: -0.02222357125 | BY58: -0.02806273362 | BZ58: 0.0483453206 | CB58: -0.01456489834 | CC58: -0.0183917723 | CD58: 0.03168458713 | CF58: 0.02456895783 | CG58: -0.0423263877 | CI58: -0.05344749183
A59: 57 | B59: 0.02572035 | C59: -0.07294779 | D59: -0.01758211 | E59: 0.05989727 | F59: -0.03833117 | G59: -0.15934432 | H59: 0.31164087 | I59: -0.32410853 | J59: 0.16348742 | K59: 0.10805053 | M59: 0.01748447167 | N59: -0.08198045633 | O59: -0.02845922158 | P59: 0.04030132883 | Q59: -0.03545092246 | R59: -0.1783274053 | S59: 0.3190736138 | T59: -0.3337060752 | U59: 0.1449770984 | V59: 0.1086166447 | X59: 0.0003057067495 | Y59: 0.006720795221 | Z59: 0.0008099272931 | AA59: 0.001624197106 | AB59: 0.001256767903 | AC59: 0.03180066348 | AD59: 0.101807971 | AE59: 0.1113597446 | AF59: 0.02101835905 | AG59: 0.0117975755 | AI59: -0.001433384966 | AJ59: -0.0004975944534 | AK59: 0.0007046474421 | AL59: -0.0006198406493 | AM59: -0.003117960465 | AN59: 0.00557883356 | AO59: -0.005834674417 | AP59: 0.002534847969 | AQ59: 0.001899104646 | AS59: 0.002333099972 | AT59: -0.003303921329 | AU59: 0.002906282801 | AV59: 0.01461936206 | AW59: -0.02615780046 | AX59: 0.02735737633 | AY59: -0.01188528868 | AZ59: -0.008904442095 | BB59: -0.001146944447 | BC59: 0.001008905658 | BD59: 0.005075059142 | BE59: -0.009080586676 | BF59: 0.009497015138 | BG59: -0.004125935367 | BH59: -0.003091145158 | BJ59: -0.001428719283 | BK59: -0.007186831401 | BL59: 0.01285909063 | BM59: -0.01344879827 | BN59: 0.005842769715 | BO59: 0.004377395113 | BQ59: 0.006321871017 | BR59: -0.01131145394 | BS59: 0.0118301882 | BT59: -0.005139571873 | BU59: -0.003850560248 | BW59: -0.05689956964 | BX59: 0.05950893852 | BY59: -0.02585338978 | BZ59: -0.01936932441 | CB59: -0.1064768034 | CC59: 0.0462583667 | CD59: 0.03465670533 | CF59: -0.04837973849 | CG59: -0.03624603419 | CI59: 0.01574692598
A60: 58 | B60: 0.07442199 | C60: -0.11873592 | D60: -0.17505343 | E60: 0.04269133 | F60: 0.01538298 | G60: -0.13729801 | H60: -0.02160759 | I60: 0.05182896 | J60: 0.50418073 | K60: 0.11876952 | M60: 0.06618611167 | N60: -0.1277685863 | O60: -0.1859305416 | P60: 0.02309538883 | Q60: 0.01826322754 | R60: -0.1562810953 | S60: -0.01417484621 | T60: 0.04223141479 | U60: 0.4856704084 | V60: 0.1193356347 | X60: 0.004380601378 | Y60: 0.01632481165 | Z60: 0.03457016629 | AA60: 0.0005333969854 | AB60: 0.0003335454802 | AC60: 0.02442378075 | AD60: 0.000200926265 | AE60: 0.001783492395 | AF60: 0.2358757456 | AG60: 0.0142409937 | AI60: -0.008456505923 | AJ60: -0.01230601959 | AK60: 0.001528593984 | AL60: 0.001208772017 | AM60: -0.01034363802 | AN60: -0.000938177954 | AO60: 0.002795133135 | AP60: 0.03214463588 | AQ60: 0.007898361642 | AS60: 0.02375608245 | AT60: -0.002950865182 | AU60: -0.002333466765 | AV60: 0.01996781462 | AW60: 0.001811100062 | AX60: -0.005395848167 | AY60: -0.0620534215 | AZ60: -0.01524734534 | BB60: -0.004294138154 | BC60: -0.003395691788 | BD60: 0.02905742869 | BE60: 0.002635536832 | BF60: -0.007852109824 | BG60: -0.09030096206 | BH60: -0.02218813918 | BJ60: 0.0004217963414 | BK60: -0.003609372663 | BL60: -0.0003273735848 | BM60: 0.0009753509456 | BN60: 0.01121674693 | BO60: 0.002756102884 | BQ60: -0.002854197204 | BR60: -0.0002588784417 | BS60: 0.0007712819377 | BT60: 0.008869909178 | BU60: 0.00217945385 | BW60: 0.002215260491 | BX60: -0.006599971759 | BY60: -0.07590110337 | BZ60: -0.01864990369 | CB60: -0.0005986238098 | CC60: -0.006884303347 | CD60: -0.001691564269 | CF60: 0.02051054847 | CG60: 0.005039712687 | CI60: 0.05795778642
A61: 59 | B61: -0.03034289 | C61: 0.02591371 | D61: -0.02342487 | E61: -0.10199612 | F61: -0.0420576 | G61: -0.0795547 | H61: -0.08593809 | I61: 0.24785822 | J61: 0.35959596 | K61: -0.07675722 | M61: -0.03857876833 | N61: 0.01688104367 | O61: -0.03430198158 | P61: -0.1215920612 | Q61: -0.03917735246 | R61: -0.09853778529 | S61: -0.07850534621 | T61: 0.2382606748 | U61: 0.3410856384 | V61: -0.07619110533 | X61: 0.001488321366 | Y61: 0.0002849696353 | Z61: 0.001176625941 | AA61: 0.01478462934 | AB61: 0.001534864946 | AC61: 0.00970969513 | AD61: 0.006163089383 | AE61: 0.05676814915 | AF61: 0.1163394127 | AG61: 0.005805084532 | AI61: -0.0006512498728 | AJ61: 0.001323328201 | AK61: 0.004690871959 | AL61: 0.001511414004 | AM61: 0.003801466391 | AN61: 0.003028639564 | AO61: -0.009191803376 | AP61: -0.01315866382 | AQ61: 0.002939359002 | AS61: -0.000579053249 | AT61: -0.002052600894 | AU61: -0.0006613545976 | AV61: -0.001663420656 | AW61: -0.001325252177 | AX61: 0.004022088855 | AY61: 0.005757881555 | AZ61: -0.001286185376 | BB61: 0.004170848643 | BC61: 0.001343860823 | BD61: 0.003380041296 | BE61: 0.00269288894 | BF61: -0.008172813279 | BG61: -0.01169991329 | BH61: 0.002613505892 | BJ61: 0.004763655036 | BK61: 0.01198141242 | BL61: 0.009545626858 | BM61: -0.02897060654 | BN61: -0.0414733058 | BO61: 0.00926423354 | BQ61: 0.003860449545 | BR61: 0.003075631618 | BS61: -0.009334422433 | BT61: -0.01336283227 | BU61: 0.002984965788 | BW61: 0.007735742949 | BX61: -0.02347767922 | BY61: -0.0336098234 | BZ61: 0.007507702778 | CB61: -0.01870473676 | CC61: -0.02677704613 | CD61: 0.005981409102 | CF61: 0.08126729436 | CG61: -0.01815334417 | CI61: -0.0259876918
A62: 60 | B62: 0.00666387 | C62: 0.03878553 | D62: 0.20610171 | E62: 0.07625177 | F62: 0.28440516 | G62: 0.07711728 | H62: -0.17969655 | I62: -0.01952094 | J62: -0.38275847 | K62: -0.16079021 | M62: -0.001572008333 | N62: 0.02975286367 | O62: 0.1952245984 | P62: 0.05665582883 | Q62: 0.2872854075 | R62: 0.05813419471 | S62: -0.1722638062 | T62: -0.02911848521 | U62: -0.4012687916 | V62: -0.1602240953 | X62: 2.4712102e-06 | Y62: 0.0008852328964 | Z62: 0.03811264383 | AA62: 0.003209882941 | AB62: 0.08253290539 | AC62: 0.003379584594 | AD62: 0.02967481893 | AE62: 0.0008478861808 | AF62: 0.1610166431 | AG62: 0.02567176073 | AI62: -4.677174962e-05 | AJ62: -0.0003068946956 | AK62: -8.906343506e-05 | AL62: -0.0004516150547 | AM62: -9.138743853e-05 | AN62: 0.0002708001389 | AO62: 4.57745014e-05 | AP62: 0.0006307978843 | AQ62: 0.0002518736131 | AS62: 0.005808490861 | AT62: 0.001685673151 | AU62: 0.008547563564 | AV62: 0.00172965877 | AW62: -0.005125341541 | AX62: -0.0008663583206 | AY62: -0.01193889565 | AZ62: -0.004767125665 | BB62: 0.01106061143 | BC62: 0.05608517832 | BD62: 0.01134922482 | BE62: -0.03363013239 | BF62: -0.005684644581 | BG62: -0.0783375387 | BH62: -0.03127968467 | BJ62: 0.01627639288 | BK62: 0.003293640985 | BL62: -0.009759748719 | BM62: -0.001649731914 | BN62: -0.02273421597 | BO62: -0.00907762892 | BQ62: 0.01670110582 | BR62: -0.04948887777 | BS62: -0.00836531589 | BT62: -0.1152786683 | BU62: -0.04603004453 | BW62: -0.01001441765 | BX62: -0.001692779689 | BY62: -0.02332743806 | BZ62: -0.009314498755 | CB62: 0.005016061093 | CC62: 0.06912408936 | CD62: 0.02760081251 | CF62: 0.01168433937 | CG62: 0.00466548295 | CI62: 0.06429292912
A63: 61 | B63: 0.04248116 | C63: 0.08892503 | D63: 0.14901318 | E63: -0.0438856 | F63: -0.08524586 | G63: -0.03831577 | H63: 0.15467073 | I63: 0.06792033 | J63: -0.18476521 | K63: -0.1318883 | M63: 0.03424528167 | N63: 0.07989236367 | O63: 0.1381360684 | P63: -0.06348154117 | Q63: -0.08236561246 | R63: -0.05729885529 | S63: 0.1621034738 | T63: 0.05832278479 | U63: -0.2032755316 | V63: -0.1313221853 | X63: 0.001172739316 | Y63: 0.006382789772 | Z63: 0.0190815734 | AA63: 0.004029906069 | AB63: 0.006784094116 | AC63: 0.003283158818 | AD63: 0.02627753622 | AE63: 0.003401547226 | AF63: 0.04132094176 | AG63: 0.01724551636 | AI63: 0.002735936497 | AJ63: 0.004730508571 | AK63: -0.002173943258 | AL63: -0.002820633598 | AM63: -0.001962215439 | AN63: 0.005551279119 | AO63: 0.001997280193 | AP63: -0.006961227836 | AQ63: -0.004497165226 | AS63: 0.01103601701 | AT63: -0.005071690373 | AU63: -0.006580383464 | AV63: -0.004577740985 | AW63: 0.01295082968 | AX63: 0.004659545133 | AY63: -0.0162401627 | AZ63: -0.01049163979 | BB63: -0.008769090514 | BC63: -0.01137766188 | BD63: -0.007915038595 | BE63: 0.02239233655 | BF63: 0.00805648019 | BG63: -0.02807968274 | BH63: -0.01814033038 | BJ63: 0.005228696018 | BK63: 0.003637419641 | BL63: -0.01029057834 | BM63: -0.003702420264 | BN63: 0.01290424403 | BO63: 0.008336534714 | BQ63: 0.004719455309 | BR63: -0.0133517519 | BS63: -0.00480379189 | BT63: 0.01674291366 | BU63: 0.01081643222 | BW63: -0.009288343487 | BX63: -0.003341828806 | BY63: 0.01164745527 | BZ63: 0.007524610894 | CB63: 0.009454326016 | CC63: -0.03295166981 | CD63: -0.02128778243 | CF63: -0.01185559508 | CG63: -0.007659075554 | CI63: 0.02669458704
A64: 62 | B64: -0.05916553 | C64: -0.10390339 | D64: 0.17900549 | E64: -0.26251112 | F64: 0.05018109 | G64: 0.01814034 | H64: -0.10343247 | I64: 0.31940172 | J64: 0.00996792 | K64: 0.12762656 | M64: -0.06740140833 | N64: -0.1129360563 | O64: 0.1681283784 | P64: -0.2821070612 | Q64: 0.05306133754 | R64: -0.0008427452917 | S64: -0.09599972621 | T64: 0.3098041748 | U64: -0.008542401625 | V64: 0.1281926747 | X64: 0.004542949845 | Y64: 0.01275455282 | Z64: 0.02826715163 | AA64: 0.07958439396 | AB64: 0.002815505542 | AC64: 7.102196266e-07 | AD64: 0.009215947432 | AE64: 0.09597862672 | AF64: 7.297262552e-05 | AG64: 0.01643336184 | AI64: 0.007612049248 | AJ64: -0.01133208949 | AK64: 0.01901441322 | AL64: -0.003576408878 | AM64: 5.680221952e-05 | AN64: 0.006470516746 | AO64: -0.02088123769 | AP64: 0.0005757699001 | AQ64: -0.008640366811 | AS64: -0.01898775602 | AT64: 0.03186005895 | AU64: -0.005992538206 | AV64: 9.517632973e-05 | AW64: 0.01084183049 | AX64: -0.03498806174 | AY64: 0.0009647451511 | AZ64: -0.01447757513 | BB64: -0.04743020273 | BC64: 0.008921116637 | BD64: -0.0001416893993 | BE64: -0.0161402783 | BF64: 0.05208687353 | BG64: -0.001436220133 | BH64: 0.02155282652 | BJ64: -0.014968978 | BK64: 0.0002377443975 | BL64: 0.02708220063 | BM64: -0.08739794529 | BN64: 0.002409871818 | BO64: -0.03616405871 | BQ64: -4.471719238e-05 | BR64: -0.005093873876 | BS64: 0.01643862389 | BT64: -0.000453271256 | BU64: 0.006802074781 | BW64: 8.090331726e-05 | BX64: -0.0002610860096 | BY64: 7.199068749e-06 | BZ64: -0.000108033773 | CB64: -0.02974111596 | CC64: 0.0008200682172 | CD64: -0.01230646167 | CF64: -0.002646471686 | CG64: 0.03971462579 | CI64: -0.001095073312
A65: 63 | B65: 0.0176232 | C65: 0.08565515 | D65: 0.13396696 | E65: -0.23444546 | F65: -0.0083113 | G65: 0.10102938 | H65: -0.27333973 | I65: 0.31220679 | J65: -0.10913574 | K65: 0.08998051 | M65: 0.009387321667 | N65: 0.07662248367 | O65: 0.1230898484 | P65: -0.2540414012 | Q65: -0.005431052458 | R65: 0.08204629471 | S65: -0.2659069862 | T65: 0.3026092448 | U65: -0.1276460616 | V65: 0.09054662467 | X65: 8.812180807e-05 | Y65: 0.005871005003 | Z65: 0.01515111078 | AA65: 0.06453703351 | AB65: 2.949633081e-05 | AC65: 0.006731594475 | AD65: 0.07070652531 | AE65: 0.09157235503 | AF65: 0.01629351705 | AG65: 0.008198691239 | AI65: 0.0007192799011 | AJ65: 0.001155484001 | AK65: -0.002384768349 | AL65: -5.098303641e-05 | AM65: 0.00077019496 | AN65: -0.002496154413 | AO65: 0.00284069032 | AP65: -0.00119825464 | AQ65: 0.0008499902916 | AS65: 0.0094314499 | AT65: -0.01946528311 | AU65: -0.0004161407283 | AV65: 0.006286590876 | AW65: -0.02037445371 | AX65: 0.02318667192 | AY65: -0.009780558272 | AZ65: 0.00693790727 | BB65: -0.03126991756 | BC65: -0.0006685074238 | BD65: 0.01009906598 | BE65: -0.03273045063 | BF65: 0.03724812607 | BG65: -0.01571193438 | BH65: 0.0111453703 | BJ65: 0.001379712176 | BK65: -0.02084315567 | BL65: 0.06755138336 | BM65: -0.07687527655 | BN65: 0.03242738435 | BO65: -0.0230025914 | BQ65: -0.0004455977306 | BR65: 0.001444154791 | BS65: -0.001643486683 | BT65: 0.0006932524568 | BU65: -0.0004917634685 | BW65: -0.02181668296 | BX65: 0.02482796728 | BY65: -0.01047288639 | BZ65: 0.007429015052 | CB65: -0.08046591228 | CC65: 0.03394197955 | CD65: -0.02407698008 | CF65: -0.03862687831 | CG65: 0.02740024571 | CI65: -0.01155792003
A66: 64 | B66: -0.01128527 | C66: 0.09579401 | D66: -0.04269127 | E66: 0.11614273 | F66: 0.25354896 | G66: -0.34436244 | H66: 0.04474183 | I66: -0.20237404 | J66: 0.0109399 | K66: 0.00652069 | M66: -0.01952114833 | N66: 0.08676134367 | O66: -0.05356838158 | P66: 0.09654678883 | Q66: 0.2564292075 | R66: -0.3633455253 | S66: 0.05217457379 | T66: -0.2119715852 | U66: -0.007570421625 | V66: 0.007086804667 | X66: 0.0003810752323 | Y66: 0.007527530755 | Z66: 0.002869571505 | AA66: 0.009321282434 | AB66: 0.06575593848 | AC66: 0.1320199707 | AD66: 0.00272218615 | AE66: 0.04493195294 | AF66: 5.731128358e-05 | AG66: 5.022280038e-05 | AI66: -0.001693681059 | AJ66: 0.001045716323 | AK66: -0.001884704186 | AL66: -0.005005792597 | AM66: 0.007092921895 | AN66: -0.001018507594 | AO66: 0.004137928757 | AP66: 0.0001477833235 | AQ66: -0.0001383425651 | AS66: -0.004647664764 | AT66: 0.008376529126 | AU66: 0.0222481426 | AV66: -0.03152434599 | AW66: 0.004526736127 | AX66: -0.01839093955 | AY66: -0.0006568199523 | AZ66: 0.0006148606952 | BB66: -0.005171855225 | BC66: -0.01373649764 | BD66: 0.01946383175 | BE66: -0.002794907478 | BF66: 0.01135497476 | BG66: 0.0004055352344 | BH66: -0.0003796286566 | BJ66: 0.02475741655 | BK66: -0.0350798437 | BL66: 0.005037287558 | BM66: -0.02046517588 | BN66: -0.000730899898 | BO66: 0.0006842082337 | BQ66: -0.09317240511 | BR66: 0.01337908461 | BS66: -0.05435570562 | BT66: -0.001941277218 | BU66: 0.001817263705 | BW66: -0.01895739792 | BX66: 0.07701892697 | BY66: 0.002750678822 | BZ66: -0.002574958764 | CB66: -0.01105952711 | CC66: -0.0003949835217 | CD66: 0.000369751013 | CF66: 0.001604714273 | CG66: -0.001502201219 | CI66: -5.36500993e-05
A67: 65 | B67: 0.14432413 | C67: 0.01397431 | D67: -0.04021953 | E67: 0.12441461 | F67: 0.01690147 | G67: 0.11866582 | H67: -0.00894545 | I67: -0.40077465 | J67: 0.38973443 | K67: -0.24396494 | M67: 0.1360882517 | N67: 0.004941643667 | O67: -0.05109664158 | P67: 0.1048186688 | Q67: 0.01978171754 | R67: 0.09968273471 | S67: -0.001512706208 | T67: -0.4103721952 | U67: 0.3712241084 | V67: -0.2433988253 | X67: 0.01852001224 | Y67: 2.441984213e-05 | Z67: 0.002610866781 | AA67: 0.01098695334 | AB67: 0.0003913163489 | AC67: 0.009936647599 | AD67: 2.288280073e-06 | AE67: 0.1684053386 | AF67: 0.1378073386 | AG67: 0.05924298817 | AI67: 0.000672499647 | AJ67: -0.006953652619 | AK67: 0.01426458938 | AL67: 0.002692059355 | AM67: 0.01356564909 | AN67: -0.0002058615432 | AO67: -0.05584683458 | AP67: 0.05051923989 | AQ67: -0.0331237206 | AS67: -0.0002525013953 | AT67: 0.000517976511 | AU67: 9.775419921e-05 | AV67: 0.0004925965546 | AW67: -7.475255054e-06 | AX67: -0.002027913159 | AY67: 0.001834457264 | AZ67: -0.001202790264 | BB67: -0.005355881953 | BC67: -0.001010779331 | BD67: -0.005093452967 | BE67: 7.729420695e-05 | BF67: 0.02096864097 | BG67: -0.01896830521 | BH67: 0.01243686254 | BJ67: 0.0020734933 | BK67: 0.01044861156 | BL67: -0.0001585598511 | BM67: -0.04301466723 | BN67: 0.03891121688 | BO67: -0.02551274087 | BQ67: 0.001971895702 | BR67: -2.992392694e-05 | BS67: -0.008117866853 | BT67: 0.007343450457 | BU67: -0.004814846813 | BW67: -0.0001507906917 | BX67: -0.04090702267 | BY67: 0.03700463431 | BZ67: -0.02426266053 | CB67: 0.0006207725674 | CC67: -0.0005615530134 | CD67: 0.0003681909142 | CF67: -0.1523400523 | CG67: 0.09988411026 | CI67: -0.09035551191
A68: 66 | B68: 0.01565416 | C68: 0.10954839 | D68: -0.09511177 | E68: -0.10798848 | F68: 0.16083032 | G68: -0.00790459 | H68: 0.01137437 | I68: -0.1093618 | J68: 0.07368346 | K68: 0.02154603 | M68: =B68-B$244 -> 0.007418281667 | N68: =C68-C$244 -> 0.1005157237 | O68: =D68-D$244 -> -0.1059888816 | P68: =E68-E$244 -> -0.1275844212 | Q68: =F68-F$244 -> 0.1637105675 | R68: =G68-G$244 -> -0.02688767529 | S68: =H68-H$244 -> 0.01880711379 | T68: =I68-I$244 -> -0.1189593452 | U68: =J68-J$244 -> 0.05517313837 | V68: =K68-K$244 -> 0.02211214467 | X68: =M68^2 -> 5.503090289e-05 | Y68: =N68^2 -> 0.0101034107 | Z68: =O68^2 -> 0.01123364302 | AA68: =P68^2 -> 0.01627778452 | AB68: =Q68^2 -> 0.02680114992 | AC68: =R68^2 -> 0.0007229470826 | AD68: =S68^2 -> 0.0003537075292 | AE68: =T68^2 -> 0.01415132581 | AF68: =U68^2 -> 0.003044075198 | AG68: =V68^2 -> 0.0004889469418 | AI68: =$M68*N68 -> 0.0007456539501 | AJ68: =$M68*O68 -> -0.0007862553771 | AK68: =$M68*P68 -> -0.0009464571725 | AL68: =$M68*Q68 -> 0.001214451102 | AM68: =$M68*R68 -> -0.0001994603487 | AN68: =$M68*S68 -> 0.0001395164674 | AO68: =$M68*T68 -> -0.0008824739296 | AP68: =$M68*U68 -> 0.0004092898809 | AQ68: =$M68*V68 -> 0.0001640341174 | AS68: =$N68*O68 -> -0.01065354913 | AT68: =$N68*P68 -> -0.01282424042 | AU68: =$N68*Q68 -> 0.01645548617 | AV68: =$N68*R68 -> -0.00270263414 | AW68: =$N68*S68 -> 0.001890410653 | AX68: =$N68*T68 -> -0.01195728467 | AY68: =$N68*U68 -> 0.005545767931 | AZ68: =$N68*V68 -> 0.002222618223 | BB68: =$O68*P68 -> 0.01352253011 | BC68: =$O68*Q68 -> -0.01735149996 | BD68: =$O68*R68 -> 0.002849794633 | BE68: =$O68*S68 -> -0.001993344957 | BF68: =$O68*T68 -> 0.01260836795 | BG68: =$O68*U68 -> -0.00584773923 | BH68: =$O68*V68 -> -0.002343641483 | BJ68: =$P68*Q68 -> -0.020886918 | BK68: =$P68*R68 -> 0.003430448489 | BL68: =$P68*S68 -> -0.002399494727 | BM68: =$P68*T68 -> 0.0151773592 | BN68: =$P68*U68 -> -0.007039232924 | BO68: =$P68*V68 -> -0.002821165178 | BQ68: =$Q68*R68 -> -0.004401796582 | BR68: =$Q68*S68 -> 0.003078923273 | BS68: =$Q68*T68 -> -0.01947490192 | BT68: =$Q68*U68 -> 0.009032425796 | BU68: =$Q68*V68 -> 0.003619991753 | BW68: =$R68*S68 -> -0.0005056795688 | BX68: =$R68*T68 -> 0.003198540247 | BY68: =$R68*U68 -> -0.001483477429 | BZ68: =$R68*V68 -> -0.0005945441658 | CB68: =$S68*T68 -> -0.002237281942 | CC68: =$S68*U68 -> 0.001037647492 | CD68: =$S68*V68 -> 0.0004158656209 | CF68: =$T68*U68 -> -0.006563360414 | CG68: =$T68*V68 -> -0.002630446251 | CI68: =U68*V68 -> 0.001219996417
A69: 67 | B69: -0.16560398 | C69: 0.0124651 | D69: -0.00074926 | E69: 0.07148227 | F69: -0.13192026 | G69: 0.12572835 | H69: -0.15451018 | I69: 0.44338268 | J69: 0.13256452 | K69: 0.12947605 | M69: -0.1738398583 | N69: 0.003432433667 | O69: -0.01162637158 | P69: 0.05188632883 | Q69: -0.1290400125 | R69: 0.1067452647 | S69: -0.1470774362 | T69: 0.4337851348 | U69: 0.1140541984 | V69: 0.1300421647 | X69: 0.03022029635 | Y69: 1.178160088e-05 | Z69: 0.0001351725162 | AA69: 0.00269219112 | AB69: 0.01665132482 | AC69: 0.01139455154 | AD69: 0.02163177224 | AE69: 0.1881695432 | AF69: 0.01300836017 | AG69: 0.01691096459 | AI69: -0.0005966937824 | AJ69: 0.002021126789 | AK69: -0.009019912054 | AL69: 0.02243229749 | AM69: -0.01855658169 | AN69: 0.02556792067 | AO69: -0.07540914638 | AP69: -0.01982716569 | AQ69: -0.02260651148 | AS69: -3.990674924e-05 | AT69: 0.0001780963819 | AU69: -0.0004429212831 | AV69: 0.0003663960403 | AW69: -0.0005048335436 | AX69: 0.001488938701 | AY69: 0.0003914834703 | AZ69: 0.0004463611041 | BB69: -0.0006032497391 | BC69: 0.001500267134 | BD69: -0.001241060112 | BE69: 0.001709976925 | BF69: -0.005043347164 | BG69: -0.001326036491 | BH69: -0.001511918528 | BJ69: -0.006695412519 | BK69: 0.005538619906 | BL69: -0.007631308219 | BM69: 0.02250751815 | BN69: 0.005917853642 | BO69: 0.006747410518 | BQ69: -0.01377441029 | BR69: 0.0189788742 | BS69: -0.0559756392 | BT69: -0.01471755518 | BU69: -0.01678064255 | BW69: -0.01569981986 | BX69: 0.04630450904 | BY69: 0.0121747456 | BZ69: 0.01388138529 | CB69: -0.06380000549 | CC69: -0.01677479909 | CD69: -0.01912626818 | CF69: 0.04947501582 | CG69: 0.05641035793 | CI69: 0.01483185485
A70: 68 | B70: -0.07224052 | C70: -0.12836409 | D70: -0.01298369 | E70: -0.01832314 | F70: -0.0664738 | G70: 0.13170038 | H70: 0.38553808 | I70: -0.12450981 | J70: -0.02146947 | K70: 0.21529184 | M70: -0.08047639833 | N70: -0.1373967563 | O70: -0.02386080158 | P70: -0.03791908117 | Q70: -0.06359355246 | R70: 0.1127172947 | S70: 0.3929708238 | T70: -0.1341073552 | U70: -0.03997979163 | V70: 0.2158579547 | X70: 0.006476450689 | Y70: 0.01887786865 | Z70: 0.0005693378522 | AA70: 0.001437856717 | AB70: 0.004044139914 | AC70: 0.01270518853 | AD70: 0.1544260684 | AE70: 0.01798478272 | AF70: 0.001598383738 | AG70: 0.04659465659 | AI70: 0.01105719609 | AJ70: 0.001920231373 | AK70: 0.00305159108 | AL70: 0.005117780059 | AM70: -0.009071081908 | AN70: -0.03162487655 | AO70: 0.01079247694 | AP70: 0.003217429636 | AQ70: -0.01737147074 | AS70: 0.003278396741 | AT70: 0.005209958755 | AU70: 0.008737547831 | AV70: -0.01548699068 | AW70: -0.05399291652 | AX70: 0.01842591561 | AY70: 0.005493093688 | AZ70: -0.0296581828 | BB70: 0.0009047796719 | BC70: 0.001517393137 | BD70: -0.002689525004 | BE70: -0.009376598855 | BF70: 0.003199908993 | BG70: 0.0009539498753 | BH70: -0.005150543826 | BJ70: 0.002411409077 | BK70: -0.004274136247 | BL70: -0.01490109256 | BM70: 0.005085227687 | BN70: 0.001515996964 | BO70: -0.008185135303 | BQ70: -0.007168093194 | BR70: -0.0249904107 | BS70: 0.008528363128 | BT70: 0.002542456976 | BU70: -0.01372717416 | BW70: 0.04429460816 | BX70: -0.01511621828 | BY70: -0.004506413955 | BZ70: 0.02433092469 | CB70: -0.05270027785 | CC70: -0.01571089165 | CD70: 0.08482587827 | CF70: 0.005361584117 | CG70: -0.0289481394 | CI70: -0.008629956048
A71: 69 | B71: 0.0007465 | C71: 0.10257142 | D71: -0.11689098 | E71: -0.12987843 | F71: 0.08599455 | G71: 0.14449479 | H71: -0.01036092 | I71: -0.14635979 | J71: 0.26789026 | K71: -0.00773529 | M71: -0.007489378333 | N71: 0.09353875367 | O71: -0.1277680916 | P71: -0.1494743712 | Q71: 0.08887479754 | R71: 0.1255117047 | S71: -0.002928176208 | T71: -0.1559573352 | U71: 0.2493799384 | V71: -0.007169175333 | X71: 5.609078782e-05 | Y71: 0.008749498438 | Z71: 0.01632468523 | AA71: 0.02234258764 | AB71: 0.007898729638 | AC71: 0.01575318802 | AD71: 8.574215907e-06 | AE71: 0.02432269041 | AF71: 0.06219035366 | AG71: 5.139707496e-05 | AI71: -0.000700547115 | AJ71: 0.0009569035768 | AK71: 0.001119470117 | AL71: -0.0006656169831 | AM71: -0.0009400046418 | AN71: 2.193021945e-05 | AO71: 0.001168023487 | AP71: -0.001867700707 | AQ71: 5.369266641e-05 | AS71: -0.01195126805 | AT71: -0.01398164638 | AU71: 0.008313237794 | AV71: 0.01174020843 | AW71: -0.000273897953 | AX71: -0.01458805476 | AY71: 0.02332668863 | AZ71: -0.0006705957255 | BB71: 0.01909805514 | BC71: -0.01135536327 | BD71: -0.01603639098 | BE71: 0.000374127486 | BF71: 0.01992637109 | BG71: -0.03186279881 | BH71: 0.0009159918506 | BJ71: -0.01328450448 | BK71: -0.01876078314 | BL71: 0.0004376872974 | BM71: 0.02331162461 | BN71: -0.03727590947 | BO71: 0.001071607975 | BQ71: 0.01115482735 | BR71: -0.0002602410677 | BS71: -0.01386067659 | BT71: 0.02216359153 | BU71: -0.0006371590063 | BW71: -0.0003675203876 | BX71: -0.019574471 | BY71: 0.03130010119 | BZ71: -0.0008998154174 | CB71: 0.0004566705585 | CC71: -0.0007302284024 | CD71: 2.099260864e-05 | CF71: -0.03889263064 | CG71: 0.001118085481 | CI71: -0.001787848503
A72: 70 | B72: -0.03870837 | C72: -0.11447853 | D72: 0.05947319 | E72: -0.0438172 | F72: 0.00315112 | G72: 0.12612233 | H72: 0.0622789 | I72: 0.18485169 | J72: 0.29968417 | K72: -0.31574539 | M72: -0.04694424833 | N72: -0.1235111963 | O72: 0.04859607842 | P72: -0.06341314117 | Q72: 0.006031367542 | R72: 0.1071392447 | S72: 0.06971164379 | T72: 0.1752541448 | U72: 0.2811738484 | V72: -0.3151792753 | X72: 0.002203762452 | Y72: 0.01525501562 | Z72: 0.002361578837 | AA72: 0.004021226473 | AB72: 3.637739442e-05 | AC72: 0.01147881776 | AD72: 0.00485971328 | AE72: 0.03071401527 | AF72: 0.07905873301 | AG72: 0.0993379756 | AI72: 0.005798140273 | AJ72: -0.002281306373 | AK72: 0.002976882247 | AL72: -0.0002831380157 | AM72: -0.00502957131 | AN72: -0.003272560718 | AO72: -0.008227174095 | AP72: -0.01319949496 | AQ72: 0.01479585417 | AS72: -0.006002159782 | AT72: 0.007832232929 | AU72: -0.0007449414206 | AV72: -0.01323289629 | AW72: -0.008610168523 | AX72: -0.02164584909 | AY72: -0.03472811839 | AZ72: 0.03892816936 | BB72: -0.003081629981 | BC72: 0.00029310081 | BD72: 0.005206547137 | BE72: 0.003387712508 | BF72: 0.008516664163 | BG72: 0.01366394638 | BH72: -0.01531647678 | BJ72: -0.0003824679613 | BK72: -0.006794036049 | BL72: -0.004420634309 | BM72: -0.01111341582 | BN72: -0.01783011694 | BO72: 0.01998650788 | BQ72: 0.000646196163 | BR72: 0.0004204565456 | BS72: 0.00105702216 | BT72: 0.001695862823 | BU72: -0.001900962051 | BW72: 0.007468852863 | BX72: 0.0187765967 | BY72: 0.03012475375 | BZ72: -0.03376806951 | CB72: 0.01221725451 | CC72: 0.01960109116 | CD72: -0.02197166537 | CF72: 0.04927688233 | CG72: -0.05523647435 | CI72: -0.08862016977
A73: 71 | B73: 0.04565636 | C73: -0.01706613 | D73: 0.0777713 | E73: 0.17860392 | F73: -0.18661789 | G73: -0.10998849 | H73: 0.12597869 | I73: -0.00503473 | J73: 0.0637931 | K73: -0.29501194 | M73: 0.03742048167 | N73: -0.02609879633 | O73: 0.06689418842 | P73: 0.1590079788 | Q73: -0.1837376425 | R73: -0.1289715753 | S73: 0.1334114338 | T73: -0.01463227521 | U73: 0.04528277837 | V73: -0.2944458253 | X73: 0.001400292448 | Y73: 0.00068114717 | Z73: 0.004474832444 | AA73: 0.02528353733 | AB73: 0.03375952126 | AC73: 0.01663366723 | AD73: 0.01779861067 | AE73: 0.0002141034778 | AF73: 0.002050530017 | AG73: 0.08669834406 | AI73: -0.0009766295297 | AJ73: 0.002503212751 | AK73: 0.005950155157 | AL73: -0.006875551081 | AM73: -0.004826178469 | AN73: 0.004992320112 | AO73: -0.0005475467862 | AP73: 0.001694503378 | AQ73: -0.01101830461 | AS73: -0.001745857799 | AT73: -0.004149916855 | AU73: 0.004795331309 | AV73: 0.003366002876 | AW73: -0.003481877839 | AX73: 0.0003818847706 | AY73: -0.00118182601 | AZ73: 0.007684681627 | BB73: 0.0106367097 | BC73: -0.01229098047 | BD73: -0.008627448858 | BE73: 0.008924449589 | BF73: -0.0009788141748 | BG73: 0.003029154709 | BH73: -0.01969671452 | BJ73: -0.02921575116 | BK73: -0.02050750951 | BL73: 0.02121348244 | BM73: -0.002326648507 | BN73: 0.007200323065 | BO73: -0.04681923556 | BQ73: 0.02369693319 | BR73: -0.02451270232 | BS73: 0.002688499751 | BT73: -0.008320150943 | BU73: 0.05410078178 | BW73: -0.01720628278 | BX73: 0.001887147584 | BY73: -0.005840191261 | BZ73: 0.03797514193 | CB73: -0.001952112815 | CC73: 0.006041240389 | CD73: -0.03928243973 | CF73: -0.0006625900754 | CG73: 0.00430841235 | CI73: -0.01333332505
A74: 72 | B74: -0.01980007 | C74: -0.11904689 | D74: 0.0318459 | E74: -0.00264141 | F74: 0.16806679 | G74: -0.02903014 | H74: 0.163825 | I74: -0.02805758 | J74: 0.31644673 | K74: -0.1188277 | M74: -0.02803594833 | N74: -0.1280795563 | O74: 0.02096878842 | P74: -0.02223735117 | Q74: 0.1709470375 | R74: -0.04801322529 | S74: 0.1712577438 | T74: -0.03765512521 | U74: 0.2979364084 | V74: -0.1182615853 | X74: 0.0007860143989 | Y74: 0.01640437275 | Z74: 0.0004396900877 | AA74: 0.0004944997869 | AB74: 0.02922288964 | AC74: 0.002305269803 | AD74: 0.02932921481 | AE74: 0.001417908454 | AF74: 0.08876610344 | AG74: 0.01398580257 | AI74: 0.003590831824 | AJ74: -0.0005878798687 | AK74: 0.0006234452284 | AL74: -0.004792662312 | AM74: 0.001346096304 | AN74: -0.004801373257 | AO74: 0.001055697145 | AP74: -0.008352929752 | AQ74: 0.003315575696 | AS74: -0.002685673117 | AT74: 0.002848150071 | AU74: -0.02189482072 | AV74: 0.006149512593 | AW74: -0.02193461584 | AX74: 0.00482285173 | AY74: -0.038159563 | AZ74: 0.01514689138 | BB74: -0.0004662903116 | BC74: 0.003584552261 | BD74: -0.001006779162 | BE74: 0.003591067394 | BF74: -0.0007895823533 | BG74: 0.006247365509 | BH74: -0.002479802161 | BJ74: -0.003801409305 | BK74: 0.001067686951 | BL74: -0.003808318589 | BM74: 0.0008373502425 | BN74: -0.006625316538 | BO74: 0.002629824403 | BQ74: -0.008207718626 | BR74: 0.02927600396 | BS74: -0.006437032103 | BT74: 0.05093134639 | BU74: -0.02021646767 | BW74: -0.008222636636 | BX74: 0.00180794401 | BY74: -0.0143048879 | BZ74: 0.00567812014 | CB74: -0.006448731785 | CC74: 0.05102391709 | CD74: -0.02025321228 | CF74: -0.01121883276 | CG74: 0.004453154803 | CI74: -0.03523443198
A75: 73 | B75: -0.10437739 | C75: 0.04678276 | D75: 0.12602636 | E75: 0.09576677 | F75: -0.07361213 | G75: 0.01075614 | H75: 0.13537757 | I75: 0.08695804 | J75: 0.06528813 | K75: -0.28717598 | M75: -0.1126132683 | N75: 0.03775009367 | O75: 0.1151492484 | P75: 0.07617082883 | Q75: -0.07073188246 | R75: -0.008226945292 | S75: 0.1428103138 | T75: 0.07736049479 | U75: 0.04677780837 | V75: -0.2866098653 | X75: 0.0126817482 | Y75: 0.001425069572 | Z75: 0.01325934941 | AA75: 0.005801995165 | AB75: 0.005002999196 | AC75: 6.768262883e-05 | AD75: 0.02039478573 | AE75: 0.005984646154 | AF75: 0.002188163356 | AG75: 0.08214521491 | AI75: -0.004251161428 | AJ75: -0.01296733321 | AK75: -0.008577845987 | AL75: 0.007965348459 | AM75: 0.0009264631977 | AN75: -0.01608233619 | AO75: -0.008711818158 | AP75: -0.005267801887 | AQ75: 0.03227607367 | AS75: 0.004346894913 | AT75: 0.002875455923 | AU75: -0.002670135188 | AV75: -0.0003105679554 | AW75: 0.005391102722 | AX75: 0.002920365924 | AY75: 0.001765866648 | AZ75: -0.01081954926 | BB75: 0.008771013691 | BC75: -0.008144723104 | BD75: -0.0009473265671 | BE75: 0.0164445003 | BF75: 0.008908002832 | BG75: 0.005386429477 | BH75: -0.03300291058 | BJ75: -0.005387706112 | BK75: -0.0006266532416 | BL75: 0.01087797997 | BM75: 0.005892613007 | BN75: 0.003563104435 | BO75: -0.02183131099 | BQ75: 0.0005819073274 | BR75: -0.01010124233 | BS75: -0.005471853425 | BT75: -0.003308682444 | BU75: 0.02027245531 | BW75: -0.001174892639 | BX75: -0.0006364405584 | BY75: -0.0003848384704 | BZ75: 0.002357923682 | CB75: 0.01104787654 | CC75: 0.006680353493 | CD75: -0.0409308448 | CF75: 0.003618754401 | CG75: -0.02217228099 | CI75: -0.01340698136
A76: 74 | B76: -0.09027108 | C76: -0.04997833 | D76: 0.00940445 | E76: -0.17613636 | F76: 0.01670604 | G76: 0.0794849 | H76: 0.33576015 | I76: -0.19452812 | J76: 0.51977116 | K76: 0.21421114 | M76: -0.09850695833 | N76: -0.05901099633 | O76: -0.001472661583 | P76: -0.1957323012 | Q76: 0.01958628754 | R76: 0.06050181471 | S76: 0.3431928938 | T76: -0.2041256652 | U76: 0.5012608384 | V76: 0.2147772547 | X76: 0.00970362084 | Y76: 0.003482297688 | Z76: 2.168732139e-06 | AA76: 0.03831113372 | AB76: 0.0003836226597 | AC76: 0.003660469583 | AD76: 0.1177813623 | AE76: 0.0416672872 | AF76: 0.2512624281 | AG76: 0.04612926912 | AI76: 0.005812993757 | AJ76: 0.0001450674132 | AK76: 0.01928099364 | AL76: -0.001929385611 | AM76: -0.005959849741 | AN76: -0.03380688809 | AO76: 0.0201077984 | AP76: -0.04937768052 | AQ76: -0.02115705408 | AS76: 8.690322729e-05 | AT76: 0.01155035811 | AU76: -0.001155806342 | AV76: -0.003570272366 | AW76: -0.0202521546 | AX76: 0.01204565888 | AY76: -0.0295799015 | AZ76: -0.01267421979 | BB76: 0.0002882474405 | BC76: -2.884397322e-05 | BD76: -8.909869824e-05 | BE76: -0.0005054069904 | BF76: 0.0003006080253 | BG76: -0.0007381875799 | BH76: -0.0003162942119 | BJ76: -0.003833669132 | BK76: -0.01184215942 | BL76: -0.06717393485 | BM76: 0.03995398618 | BN76: -0.09811293738 | BO76: -0.04203884629 | BQ76: 0.00118500594 | BR76: 0.0067218747 | BS76: -0.003998063973 | BT76: 0.009817838914 | BU76: 0.004206689067 | BW76: 0.02076379287 | BX76: -0.01234997317 | BY76: 0.03032719036 | BZ76: 0.01299441367 | CB76: -0.07005447774 | CC76: 0.1720291577 | CD76: 0.07371002755 | CF76: -0.1023202021 | CG76: -0.04384154998 | CI76: 0.1076594267
A77: 75 | B77: 0.01580879 | C77: 0.03386621 | D77: 0.02955445 | E77: 0.10525083 | F77: 0.045751 | G77: 0.04913935 | H77: -0.00483789 | I77: -0.26028978 | J77: -0.0518029 | K77: -0.07199486 | M77: 0.007572911667 | N77: 0.02483354367 | O77: 0.01867733842 | P77: 0.08565488883 | Q77: 0.04863124754 | R77: 0.03015626471 | S77: 0.002594853792 | T77: -0.2698873252 | U77: -0.07031322163 | V77: -0.07142874533 | X77: 5.734899111e-05 | Y77: 0.000616704891 | Z77: 0.0003488429703 | AA77: 0.007336759981 | AB77: 0.002364998237 | AC77: 0.0009094003012 | AD77: 6.7332662e-06 | AE77: 0.07283916831 | AF77: 0.004943949135 | AG77: 0.00510206566 | AI77: 0.0001880622326 | AJ77: 0.000141441834 | AK77: 0.000648656907 | AL77: 0.0003682801419 | AM77: 0.0002283707288 | AN77: 1.965059855e-05 | AO77: -0.002043832874 | AP77: -0.0005324758164 | AQ77: -0.0005409235789 | AS77: 0.0004638244991 | AT77: 0.002127114422 | AU77: 0.001207686209 | AV77: 0.0007488869165 | AW77: 6.443941494e-05 | AX77: -0.006702258676 | AY77: -0.00174612646 | AZ77: -0.001773828866 | BB77: 0.001599805346 | BC77: 0.000908302268 | BD77: 0.0005632387613 | BE77: 4.846496241e-05 | BF77: -0.005040776907 | BG77: -0.001313263835 | BH77: -0.001334098849 | BJ77: 0.004165504102 | BK77: 0.002583031501 | BL77: 0.0002222619131 | BM77: -0.02311716884 | BN77: -0.006022671182 | BO77: -0.006118221241 | BQ77: 0.001466536774 | BR77: 0.0001261909771 | BS77: -0.01312495732 | BT77: -0.003419419686 | BU77: -0.003473668996 | BW77: 7.825109782e-05 | BX77: -0.00813879362 | BY77: -0.002120384124 | BZ77: -0.002154024152 | CB77: -0.0007003181491 | CC77: -0.0001824525297 | CD77: -0.0001853471507 | CF77: 0.01897664731 | CG77: 0.01927771302 | CI77: 0.005022385201
A78: 76 | B78: -0.06090205 | C78: 0.01936955 | D78: 0.09431352 | E78: 0.22063541 | F78: -0.04214323 | G78: -0.09062645 | H78: -0.22913295 | I78: 0.08655037 | J78: 0.24162743 | K78: -0.01732195 | M78: -0.06913792833 | N78: 0.01033688367 | O78: 0.08343640842 | P78: 0.2010394688 | Q78: -0.03926298246 | R78: -0.1096095353 | S78: -0.2217002062 | T78: 0.07695282479 | U78: 0.2231171084 | V78: -0.01675583533 | X78: 0.004780053134 | Y78: 0.0001068511639 | Z78: 0.006961634249 | AA78: 0.04041686803 | AB78: 0.001541581792 | AC78: 0.01201425023 | AD78: 0.04915098143 | AE78: 0.005921737243 | AF78: 0.04978124405 | AG78: 0.0002807580177 | AI78: -0.0007146707221 | AJ78: -0.005768620426 | AK78: -0.01389945239 | AL78: 0.002714561267 | AM78: 0.007578176196 | AN78: 0.01532789297 | AO78: -0.005320358885 | AP78: -0.01542585465 | AQ78: 0.001158463742 | AS78: 0.0008624724474 | AT78: 0.002078121602 | AU78: -0.0004058568821 | AV78: -0.001133021015 | AW78: -0.00229168924 | AX78: 0.0007954523977 | AY78: 0.002306335593 | AZ78: -0.0001732031206 | BB78: 0.01677401123 | BC78: -0.00327596224 | BD78: -0.009145425953 | BE78: -0.01849786895 | BF78: 0.006420667318 | BG78: 0.01861609018 | BH78: -0.00139804672 | BJ78: -0.007893409138 | BK78: -0.02203584275 | BL78: -0.0445704917 | BM78: 0.01547055502 | BN78: 0.04485534496 | BO78: -0.003368584235 | BQ78: 0.004303597261 | BR78: 0.008704611307 | BS78: -0.00302139741 | BT78: -0.008760243112 | BU78: 0.0006578840688 | BW78: 0.02430045658 | BX78: -0.008434763365 | BY78: -0.02445576256 | BZ78: 0.001836599324 | CB78: -0.01706045712 | CC78: -0.04946510894 | CD78: 0.003714772149 | CF78: 0.01716949175 | CG78: -0.001289408861 | CI78: -0.003738513528
A79: 77 | B79: 0.06498652 | C79: 0.15700195 | D79: -0.15228101 | E79: -0.08735096 | F79: 0.05537914 | G79: 0.13457464 | H79: -0.03796956 | I79: -0.14213897 | J79: 0.36266188 | K79: -0.28684034 | M79: 0.05675064167 | N79: 0.1479692837 | O79: -0.1631581216 | P79: -0.1069469012 | Q79: 0.05825938754 | R79: 0.1155915547 | S79: -0.03053681621 | T79: -0.1517365152 | U79: 0.3441515584 | V79: -0.2862742253 | X79: 0.00322063533 | Y79: 0.02189490891 | Z79: 0.02662057264 | AA79: 0.01143763967 | AB79: 0.003394156237 | AC79: 0.01336140752 | AD79: 0.0009324971441 | AE79: 0.02302397005 | AF79: 0.1184402951 | AG79: 0.08195293209 | AI79: 0.008397351795 | AJ79: -0.009259328093 | AK79: -0.006069305265 | AL79: 0.003306257626 | AM79: 0.006559894901 | AN79: -0.001732983914 | AO79: -0.008611144602 | AP79: 0.01953082177 | AQ79: -0.01624624598 | AS79: -0.02414239038 | AT79: -0.01582485636 | AU79: 0.008620599841 | AV79: 0.01710399955 | AW79: -0.00451851082 | AX79: -0.02245234346 | AY79: 0.05092385957 | AZ79: -0.04235979205 | BB79: 0.0174492555 | BC79: -0.009505492236 | BD79: -0.01885970094 | BE79: 0.004982329572 | BF79: 0.0247570448 | BG79: -0.0561511218 | BH79: 0.04670796486 | BJ79: -0.006230660961 | BK79: -0.01236215858 | BL79: 0.003265817865 | BM79: 0.0162277501 | BN79: -0.0368059427 | BO79: 0.03061614128 | BQ79: 0.006734293182 | BR79: -0.00177905621 | BS79: -0.008840076444 | BT79: 0.02005005901 | BU79: -0.01667816104 | BW79: -0.003529798061 | BX79: -0.0175394597 | BY79: 0.03978101369 | BZ79: -0.03309088278 | CB79: 0.004633550077 | CC79: -0.01050929289 | CD79: 0.008741903404 | CF79: -0.05222035817 | CG79: 0.04343825335 | CI79: -0.09852172077
A80: 78 | B80: 0.02392985 | C80: -0.08378995 | D80: -0.08027904 | E80: -0.10982614 | F80: 0.20086977 | G80: 0.28041236 | H80: -0.090032 | I80: 0.06704691 | J80: -0.29167397 | K80: 0.03354152 | M80: 0.01569397167 | N80: -0.09282261633 | O80: -0.09115615158 | P80: -0.1294220812 | Q80: 0.2037500175 | R80: 0.2614292747 | S80: -0.08259925621 | T80: 0.05744936479 | U80: -0.3101842916 | V80: 0.03410763467 | X80: 0.0002463007467 | Y80: 0.008616038103 | Z80: 0.008309443971 | AA80: 0.01675007509 | AB80: 0.04151406965 | AC80: 0.06834526567 | AD80: 0.006822637126 | AE80: 0.003300429515 | AF80: 0.09621429477 | AG80: 0.001163330743 | AI80: -0.001456755511 | AJ80: -0.00143060206 | AK80: -0.002031146475 | AL80: 0.003197647002 | AM80: 0.00410286363 | AN80: -0.001296310387 | AO80: 0.0009016087033 | AP80: -0.004868023484 | AQ80: 0.0005352842521 | AS80: 0.008461352485 | AT80: 0.01201329619 | AU80: -0.01891260971 | AV80: -0.02426654926 | AW80: 0.007667079068 | AX80: -0.005332600347 | AY80: 0.02879211749 | AZ80: -0.003165959887 | BB80: 0.01179761885 | BC80: -0.01857306748 | BD80: -0.02383088659 | BE80: 0.00752943032 | BF80: -0.005236863005 | BG80: 0.02827520631 | BH80: -0.003109120716 | BJ80: -0.02636975131 | BK80: -0.03383472081 | BL80: 0.01069016764 | BM80: -0.007435216353 | BN80: 0.04014469657 | BO80: -0.004414281062 | BQ80: 0.05326621931 | BR80: -0.0168295999 | BS80: 0.01170530908 | BT80: -0.06320005486 | BU80: 0.006949431162 | BW80: -0.02159386364 | BX80: 0.01501894577 | BY80: -0.08109125439 | BZ80: 0.008916734193 | CB80: -0.004745274801 | CC80: 0.02562099178 | CD80: -0.002817265254 | CF80: -0.01781989052 | CG80: 0.001959461946 | CI80: -0.0105796525
A81: 79 | B81: 0.03336873 | C81: -0.13310523 | D81: 0.03920897 | E81: 0.0769648 | F81: 0.32086322 | G81: -0.10903805 | H81: 0.17190717 | I81: 0.0633868 | J81: -0.00749233 | K81: -0.41204354 | M81: 0.02513285167 | N81: -0.1421378963 | O81: 0.02833185842 | P81: 0.05736885883 | Q81: 0.3237434675 | R81: -0.1280211353 | S81: 0.1793399138 | T81: 0.05378925479 | U81: -0.02600265163 | V81: -0.4114774253 | X81: 0.0006316602329 | Y81: 0.02020318157 | Z81: 0.0008026942013 | AA81: 0.003291185964 | AB81: 0.1048098328 | AC81: 0.01638941108 | AD81: 0.03216280468 | AE81: 0.002893283931 | AF81: 0.0006761378915 | AG81: 0.1693136716 | AI81: -0.003572330665 | AJ81: 0.000712060395 | AK81: 0.001441843019 | AL81: 0.008136596548 | AM81: -0.003217536203 | AN81: 0.004507323451 | AO81: 0.001351877362 | AP81: -0.0006535207862 | AQ81: -0.0103416011 | AS81: -0.004027030755 | AT81: -0.00815428891 | AU81: -0.04601621543 | AV81: 0.01819665486 | AW81: -0.02549099807 | AX81: -0.007645491521 | AY81: 0.003695962201 | AZ81: 0.05848653563 | BB81: 0.001625366386 | BC81: 0.009172254086 | BD81: -0.003627076679 | BE81: 0.005081033046 | BF81: 0.001523949551 | BG81: -0.0007367034443 | BH81: -0.01165792016 | BJ81: 0.01857279329 | BK81: -0.007344426438 | BL81: 0.0102885262 | BM81: 0.003085828165 | BN81: -0.00149174245 | BO81: -0.02360599033 | BQ81: -0.04144600626 | BR81: 0.05806012556 | BS81: 0.01741391986 | BT81: -0.008418188602 | BU81: -0.1332131285 | BW81: -0.02295929937 | BX81: -0.006886161465 | BY81: 0.003328888982 | BZ81: 0.05267780714 | CB81: 0.009646560317 | CC81: -0.004663313301 | CD81: -0.07379432599 | CF81: -0.001398663254 | CG81: -0.02213306407 | CI81: 0.01069950414
A82: 80 | B82: -0.02741552 | C82: 0.01462494 | D82: -0.12149725 | E82: -0.02827326 | F82: 0.13800534 | G82: -0.10490503 | H82: -0.06787825 | I82: 0.22612019 | J82: 0.09885761 | K82: -0.1719813 | M82: -0.03565139833 | N82: 0.005592273667 | O82: -0.1323743616 | P82: -0.04786920117 | Q82: 0.1408855875 | R82: -0.1238881153 | S82: -0.06044550621 | T82: 0.2165226448 | U82: 0.08034728837 | V82: -0.1714151853 | X82: 0.001271022203 | Y82: 3.127352476e-05 | Z82: 0.0175229716 | AA82: 0.00229146042 | AB82: 0.01984874878 | AC82: 0.01534826511 | AD82: 0.003653659221 | AE82: 0.04688205571 | AF82: 0.006455686749 | AG82: 0.02938316576 | AI82: -0.0001993723761 | AJ82: 0.004719331094 | AK82: 0.001706603959 | AL82: -0.005022768201 | AM82: 0.004416784547 | AN82: 0.002154966819 | AO82: -0.007719335058 | AP82: -0.002864493183 | AQ82: 0.006111191053 | AS82: -0.0007402736564 | AT82: -0.0002676976731 | AU82: 0.0007878707612 | AV82: -0.0006928162448 | AW82: -0.0003380278126 | AX82: 0.001210853885 | AY82: 0.000449324025 | AZ82: -0.000958600627 | BB82: 0.006336654944 | BC82: -0.01864963971 | BD82: 0.01639961017 | BE82: 0.008001435295 | BF82: -0.02866204687 | BG82: -0.010635921 | BH82: 0.02269097572 | BJ82: -0.006744080532 | BK82: 0.005930425113 | BL82: 0.002893478096 | BM82: -0.01036476604 | BN82: -0.00384616051 | BO82: 0.00820550799 | BQ82: -0.01745404991 | BR82: -0.008515900656 | BS82: 0.03050492003 | BT82: 0.01131977493 | BU82: -0.0241499291 | BW82: 0.007488479842 | BX82: -0.02682458238 | BY82: -0.009954074126 | BZ82: 0.02123630424 | CB82: -0.01308782087 | CC82: -0.004856632518 | CD82: 0.01036127765 | CF82: 0.01739700738 | CG82: -0.03711526929 | CI82: -0.01377274533
A83: 81 | B83: -0.02723612 | C83: 0.03135397 | D83: 0.01806765 | E83: -0.003347 | F83: -0.04489061 | G83: -0.03357145 | H83: 0.15678459 | I83: 0.08908753 | J83: 0.06600641 | K83: 0.03590672 | M83: -0.03547199833 | N83: 0.02232130367 | O83: 0.007190538417 | P83: -0.02294294117 | Q83: -0.04201036246 | R83: -0.05255453529 | S83: 0.1642173338 | T83: 0.07948998479 | U83: 0.04749608837 | V83: 0.03647283467 | X83: 0.001258262666 | Y83: 0.0004982405974 | Z83: 5.170384272e-05 | AA83: 0.0005263785494 | AB83: 0.001764870554 | AC83: 0.00276197918 | AD83: 0.02696733272 | AE83: 0.006318657682 | AF83: 0.002255878411 | AG83: 0.001330267669 | AI83: -0.0007917812465 | AJ83: -0.0002550627667 | AK83: 0.0008138319708 | AL83: 0.001490191507 | AM83: 0.001864214388 | AN83: -0.005825116991 | AO83: -0.002819668608 | AP83: -0.001684781168 | AQ83: -0.001293764331 | AS83: 0.0001605021915 | AT83: -0.0005121163568 | AU83: -0.0009377260576 | AV83: -0.001173085741 | AW83: 0.003665544975 | AX83: 0.001774320089 | AY83: 0.001060174612 | AZ83: 0.0008141212182 | BB83: -0.0001649720999 | BC83: -0.0003020771252 | BD83: -0.000377895405 | BE83: 0.001180811047 | BF83: 0.0005715757894 | BG83: 0.0003415224481 | BH83: 0.0002622593188 | BJ83: 0.0009638412743 | BK83: 0.001205755611 | BL83: -0.003767628628 | BM83: -0.001823734044 | BN83: -0.001089699961 | BO83: -0.0008367940999 | BQ83: 0.002207835076 | BR83: -0.006898829715 | BS83: -0.003339403073 | BT83: -0.001995327888 | BU83: -0.001532237004 | BW83: -0.008630365664 | BX83: -0.004177559211 | BY83: -0.002496134853 | BZ83: -0.001916812877 | CB83: 0.01305363337 | CC83: 0.007799680998 | CD83: 0.005989471665 | CF83: 0.003775463343 | CG83: 0.002899225073 | CI83: 0.001732316979
A84: 82 | B84: -0.01350348 | C84: 0.00183229 | D84: -0.03523173 | E84: 0.06583605 | F84: 0.03506408 | G84: -0.10818512 | H84: 0.12786864 | I84: 0.18165338 | J84: -0.08481478 | K84: 0.02485112 | M84: -0.02173935833 | N84: -0.007200376333 | O84: -0.04610884158 | P84: 0.04624010883 | Q84: 0.03794432754 | R84: -0.1271682053 | S84: 0.1353013838 | T84: 0.1720558348 | U84: -0.1033251016 | V84: 0.02541723467 | X84: 0.0004725997007 | Y84: 5.184541934e-05 | Z84: 0.002126025272 | AA84: 0.002138147665 | AB84: 0.001439771993 | AC84: 0.01617175244 | AD84: 0.01830646446 | AE84: 0.02960321029 | AF84: 0.01067607663 | AG84: 0.0006460358181 | AI84: 0.0001565315612 | AJ84: 0.00100237663 | AK84: -0.001005230295 | AL84: -0.0008248853331 | AM84: 0.002764555183 | AN84: -0.002941365265 | AO84: -0.003740383446 | AP84: 0.002246221409 | AQ84: -0.0005525543723 | AS84: 0.0003320010117 | AT84: -0.0003329461853 | AU84: -0.000273213438 | AV84: 0.0009156589357 | AW84: -0.0009742208817 | AX84: -0.001238866761 | AY84: 0.0007439796164 | AZ84: -0.000183013655 | BB84: -0.002132077853 | BC84: -0.001749568988 | BD84: 0.005863578632 | BE84: -0.006238590071 | BF84: -0.00793329523 | BG84: 0.004764200742 | BH84: -0.001171959247 | BJ84: 0.001754549835 | BK84: -0.005880271653 | BL84: 0.006256350712 | BM84: 0.007955880526 | BN84: -0.004777763944 | BO84: 0.001175295697 | BQ84: -0.004825312034 | BR84: 0.005133920023 | BS84: 0.006528542951 | BT84: -0.003920601499 | BU84: 0.0009644398774 | BW84: -0.01720603415 | BX84: -0.02188003172 | BY84: 0.01313966774 | BZ84: -0.003232264116 | CB84: 0.02327939254 | CC84: -0.01398002923 | CD84: 0.003438987023 | CF84: -0.01777768662 | CG84: 0.004373183529 | CI84: -0.002626238355
A85: 83 | B85: -0.08500041 | C85: 0.05966079 | D85: 0.01900061 | E85: -0.03452089 | F85: 0.2385392 | G85: -0.02335647 | H85: 0.00918653 | I85: 0.05020676 | J85: 0.22376559 | K85: -0.05634484 | M85: -0.09323628833 | N85: 0.05062812367 | O85: 0.008123498417 | P85: -0.05411683117 | Q85: 0.2414194475 | R85: -0.04233955529 | S85: 0.01661927379 | T85: 0.04060921479 | U85: 0.2052552684 | V85: -0.05577872533 | X85: 0.008693005462 | Y85: 0.002563206906 | Z85: 6.599122653e-05 | AA85: 0.002928631416 | AB85: 0.05828334965 | AC85: 0.001792637942 | AD85: 0.0002762002614 | AE85: 0.001649108326 | AF85: 0.0421297252 | AG85: 0.0031112662 | AI85: -0.004720378336 | AJ85: -0.0007574048407 | AK85: 0.005045652474 | AL85: -0.02250905322 | AM85: 0.003947582985 | AN85: -0.001549519403 | AO85: -0.003786252459 | AP85: -0.01913723938 | AQ85: 0.005200601318 | AS85: 0.0004112774824 | AT85: -0.002739833621 | AU85: 0.01222261365 | AV85: -0.002143572241 | AW85: 0.0008414026488 | AX85: 0.002055968348 | AY85: 0.01039168911 | AZ85: -0.002823972204 | BB85: -0.0004396179923 | BC85: 0.0019611705 | BD85: -0.0003439453104 | BE85: 0.0001350066443 | BF85: 0.0003298888921 | BG85: 0.001667390848 | BH85: -0.0004531183869 | BJ85: -0.01306485548 | BK85: 0.002291282565 | BL85: -0.0008993824339 | BM85: -0.002197642021 | BN85: -0.0111077647 | BO85: 0.003018567862 | BQ85: -0.01022159205 | BR85: 0.004012215897 | BS85: 0.0098038542 | BT85: 0.0495526135 | BU85: -0.01346606905 | BW85: -0.0007036526616 | BX85: -0.001719376095 | BY85: -0.008690416784 | BZ85: 0.002361646425 | CB85: 0.0006748956591 | CC85: 0.003411193502 | CD85: -0.0009270019081 | CF85: 0.008335255281 | CG85: -0.002265130238 | CI85: -0.01144887724
A86: 84 | B86: -0.09510049 | C86: -0.0828483 | D86: 0.01399435 | E86: 0.03180064 | F86: -0.06263232 | G86: 0.26324458 | H86: 0.07563083 | I86: 0.35284126 | J86: 0.14244606 | K86: -0.21492693 | M86: -0.1033363683 | N86: -0.09188096633 | O86: 0.003117238417 | P86: 0.01220469883 | Q86: -0.05975207246 | R86: 0.2442614947 | S86: 0.08306357379 | T86: 0.3432437148 | U86: 0.1239357384 | V86: -0.2143608153 | X86: 0.01067840502 | Y86: 0.008442111974 | Z86: 9.717175346e-06 | AA86: 0.0001489546736 | AB86: 0.003570310163 | AC86: 0.0596636778 | AD86: 0.006899557291 | AE86: 0.1178162477 | AF86: 0.01536006725 | AG86: 0.04595055915 | AI86: 0.00949464538 | AJ86: -0.0003221240972 | AK86: -0.001261189254 | AL86: 0.006174562168 | AM86: -0.02524109579 | AN86: -0.008583488056 | AO86: -0.03546955894 | AP86: -0.01280706911 | AQ86: 0.02215126817 | AS86: -0.000286414878 | AT86: -0.001121379523 | AU86: 0.005490078158 | AV86: -0.02244298217 | AW86: -0.007631961427 | AX86: -0.0315375642 | AY86: -0.01138733541 | AZ86: 0.01969567886 | BB86: 3.804495607e-05 | BC86: -0.0001862614557 | BD86: 0.000761421315 | BE86: 0.0002589289632 | BF86: 0.001069972494 | BG86: 0.0003863372449 | BH86: -0.0006682137686 | BJ86: -0.000729256049 | BK86: 0.002981137979 | BL86: 0.001013765902 | BM86: 0.004189186165 | BN86: 0.001512598362 | BO86: -0.002616209193 | BQ86: -0.01459513053 | BR86: -0.00496322068 | BS86: -0.02050952332 | BT86: -0.00740541722 | BU86: 0.01280850297 | BW86: 0.02028923269 | BX86: 0.08384122282 | BY86: 0.0302727287 | BZ86: -0.05236009316 | CB86: 0.02851104963 | CC86: 0.01029454535 | CD86: -0.0178055754 | CF86: 0.04254016324 | CG86: -0.07357800256 | CI86: -0.02656696593
A87: 85 | B87: 0.02470893 | C87: 0.00522242 | D87: -0.0174769 | E87: -0.0585615 | F87: 0.09034353 | G87: -0.09791295 | H87: 0.02417759 | I87: -0.02614451 | J87: 0.19359212 | K87: 0.10078708 | M87: 0.01647305167 | N87: -0.003810246333 | O87: -0.02835401158 | P87: -0.07815744117 | Q87: 0.09322377754 | R87: -0.1168960353 | S87: 0.03161033379 | T87: -0.03574205521 | U87: 0.1750817984 | V87: 0.1013531947 | X87: 0.0002713614312 | Y87: 1.451797712e-05 | Z87: 0.0008039499729 | AA87: 0.00610858561 | AB87: 0.008690672699 | AC87: 0.01366468307 | AD87: 0.0009992132024 | AE87: 0.001277494511 | AF87: 0.03065363612 | AG87: 0.01027247007 | AI87: -6.276638471e-05 | AJ87: -0.0004670770978 | AK87: -0.001287491566 | AL87: 0.001535680104 | AM87: -0.001925634429 | AN87: 0.0005207186618 | AO87: -0.0005887807221 | AP87: 0.002884131511 | AQ87: 0.001669596412 | AS87: 0.0001080357687 | AT87: 0.0002977991036 | AU87: -0.0003552055566 | AV87: 0.0004454026899 | AW87: -0.0001204431584 | AX87: 0.0001361860348 | AY87: -0.0006671047803 | AZ87: -0.0003861806384 | BB87: 0.002216076992 | BC87: -0.002643268068 | BD87: 0.003314471539 | BE87: -0.0008962797705 | BF87: 0.001013430647 | BG87: -0.004964271339 | BH87: -0.002873769656 | BJ87: -0.007286131909 | BK87: 0.009136295001 | BL87: -0.002470582804 | BM87: 0.002793507577 | BN87: -0.01368394536 | BO87: -0.007921506349 | BQ87: -0.01089748999 | BR87: 0.002946834725 | BS87: -0.003332009404 | BT87: 0.01632178662 | BU87: 0.009448527673 | BW87: -0.003695122694 | BX87: 0.004178104547 | BY87: -0.02046636808 | BZ87: -0.01184778662 | CB87: -0.001129818296 | CC87: 0.005534394087 | CD87: 0.003203808314 | CF87: -0.006257783303 | CG87: -0.003622571479 | CI87: 0.01774509959
A88: 86 | B88: 0.00632721 | C88: 0.10183868 | D88: -0.05976563 | E88: 0.11760323 | F88: -0.42133209 | G88: 0.22271558 | H88: -0.22069141 | I88: 0.23311796 | J88: -0.03389066 | K88: 0.03416335 | M88: -0.001908668333 | N88: 0.09280601367 | O88: -0.07064274158 | P88: 0.09800728883 | Q88: -0.4184518425 | R88: 0.2037324947 | S88: -0.2132586662 | T88: 0.2235204148 | U88: -0.05240098163 | V88: 0.03472946467 | X88: 3.643014807e-06 | Y88: 0.008612956173 | Z88: 0.004990396938 | AA88: 0.009605428664 | AB88: 0.1751019445 | AC88: 0.0415069294 | AD88: 0.04547925871 | AE88: 0.04996137583 | AF88: 0.002745862875 | AG88: 0.001206135716 | AI88: -0.0001771358994 | AJ88: 0.0001348335638 | AK88: -0.0001870634086 | AL88: 0.0007986857807 | AM88: -0.0003888577611 | AN88: 0.000407040063 | AO88: -0.0004266263376 | AP88: 0.0001000160943 | AQ88: -6.628702944e-05 | AS88: -0.006556071241 | AT88: 0.009095665787 | AU88: -0.03883484741 | AV88: 0.01890760069 | AW88: -0.01979168669 | AX88: 0.02074403867 | AY88: -0.004863126217 | AZ88: 0.003223103172 | BB88: -0.006923503578 | BC88: 0.02956058537 | BD88: -0.01439222198 | BE88: 0.01506517685 | BF88: -0.0157900949 | BG88: 0.003701749004 | BH88: -0.002453384598 | BJ88: -0.04101133059 | BK88: 0.01996726945 | BL88: -0.0209009037 | BM88: 0.02190662985 | BN88: -0.005135678141 | BO88: 0.003403740675 | BQ88: -0.08525223778 | BR88: 0.0892384818 | BS88: -0.0935325294 | BT88: 0.02192728731 | BU88: -0.01453260848 | BW88: -0.04344772008 | BX88: 0.04553837172 | BY88: -0.01067578271 | BZ88: 0.007075520476 | CB88: -0.04766766553 | CC88: 0.01117496345 | CD88: -0.007406359313 | CF88: -0.01171268915 | CG88: 0.007762744348 | CI88: -0.00181985804
A89: 87 | B89: 0.07479699 | C89: -0.04504705 | D89: -0.09702125 | E89: -0.03286889 | F89: 0.22854782 | G89: -0.11118531 | H89: -0.07671771 | I89: -0.1645608 | J89: -0.00958801 | K89: 0.28350705 | M89: 0.06656111167 | N89: -0.05407971633 | O89: -0.1078983616 | P89: -0.05246483117 | Q89: 0.2314280675 | R89: -0.1301683953 | S89: -0.06928496621 | T89: -0.1741583452 | U89: -0.02809833163 | V89: 0.2840731647 | X89: 0.004430381586 | Y89: 0.002924615719 | Z89: 0.01164205643 | AA89: 0.002752558509 | AB89: 0.05355895045 | AC89: 0.01694381113 | AD89: 0.004800406542 | AE89: 0.03033112921 | AF89: 0.0007895162401 | AG89: 0.08069756288 | AI89: -0.003599606038 | AJ89: -0.007181834894 | AK89: -0.003492117486 | AL89: 0.01540410945 | AM89: -0.008664153094 | AN89: -0.004611684373 | AO89: -0.01159217306 | AP89: -0.001870256189 | AQ89: 0.01890822563 | AS89: 0.005835112787 | AT89: 0.002837283187 | AU89: -0.01251556424 | AV89: 0.007039469893 | AW89: 0.003746911319 | AX89: 0.009418433906 | AY89: 0.001519549804 | AZ89: -0.01536259616 | BB89: 0.005660869324 | BC89: -0.02497070931 | BD89: 0.01404495658 | BE89: 0.007475734336 | BF89: 0.0187914001 | BG89: 0.003031763946 | BH89: -0.03065102904 | BJ89: -0.01214183449 | BK89: 0.006829262882 | BL89: 0.003635024055 | BM89: 0.009137188178 | BN89: 0.001474174225 | BO89: -0.01490385062 | BQ89: -0.03012462018 | BR89: -0.01603448584 | BS89: -0.04030512928 | BT89: -0.006502742589 | BU89: 0.06574250354 | BW89: 0.009018712869 | BX89: 0.02266991232 | BY89: 0.003657514738 | BZ89: -0.03697734799 | CB89: 0.01206655506 | CC89: 0.001946791957 | CD89: -0.01968199961 | CF89: 0.004893558939 | CG89: -0.04947371228 | CI89: -0.007981981987
A90: 88 | B90: 0.03275314 | C90: 0.00347334 | D90: -0.09398562 | E90: 0.08304754 | F90: -0.00706008 | G90: 0.15504951 | H90: -0.04953764 | I90: -0.03842285 | J90: -0.03211519 | K90: 0.19876549 | M90: 0.02451726167 | N90: -0.005559326333 | O90: -0.1048627316 | P90: 0.06345159883 | Q90: -0.004179832458 | R90: 0.1360664247 | S90: -0.04210489621 | T90: -0.04802039521 | U90: -0.05062551163 | V90: 0.1993316047 | X90: 0.0006010961196 | Y90: 3.090610928e-05 | Z90: 0.01099619248 | AA90: 0.004026105395 | AB90: 1.747099938e-05 | AC90: 0.01851407193 | AD90: 0.001772822285 | AE90: 0.002305958356 | AF90: 0.002562942427 | AG90: 0.03973308862 | AI90: -0.0001362994584 | AJ90: -0.002570947029 | AK90: 0.001555659452 | AL90: -0.0001024780461 | AM90: 0.003335976139 | AN90: -0.001032296758 | AO90: -0.001177328595 | AP90: -0.001241198916 | AQ90: 0.00488706511 | AS90: 0.0005829661451 | AT90: -0.0003527481443 | AU90: 2.323705265e-05 | AV90: -0.000756437658 | AW90: 0.0002340748583 | AX90: 0.0002669610476 | AY90: 0.0002814437399 | AZ90: -0.001108149439 | BB90: -0.006653707977 | BC90: 0.0004383086491 | BD90: -0.01426829697 | BE90: 0.004415234429 | BF90: 0.005035549813 | BG90: 0.005308729437 | BH90: -0.02090245656 | BJ90: -0.0002652170523 | BK90: 0.008633632195 | BL90: -0.002671622983 | BM90: -0.003046970853 | BN90: -0.003212269654 | BO90: 0.01264790901 | BQ90: -0.0005687348585 | BR90: 0.0001759914118 | BS90: 0.0002007172066 | BT90: 0.0002116061567 | BU90: -0.0008331727112 | BW90: -0.00572906269 | BX90: -0.006533963489 | BY90: -0.006888432366 | BZ90: 0.02712233878 | CB90: 0.002021893756 | CC90: 0.002131581912 | CD90: -0.008392836526 | CF90: 0.002431057076 | CG90: -0.009571982434 | CI90: -0.01009126447
A91: 89 | B91: 0.00368919 | C91: -0.03782461 | D91: 0.15056958 | E91: -0.03200207 | F91: -0.1084038 | G91: 0.25005801 | H91: 0.01107641 | I91: -0.16134272 | J91: -0.02244155 | K91: 0.13064541 | M91: -0.004546688333 | N91: -0.04685727633 | O91: 0.1396924684 | P91: -0.05159801117 | Q91: -0.1055235525 | R91: 0.2310749247 | S91: 0.01850915379 | T91: -0.1709402652 | U91: -0.04095187163 | V91: 0.1312115247 | X91: 2.06723748e-05 | Y91: 0.002195604345 | Z91: 0.01951398573 | AA91: 0.002662354756 | AB91: 0.01113522012 | AC91: 0.05339562083 | AD91: 0.0003425887741 | AE91: 0.02922057427 | AF91: 0.00167705579 | AG91: 0.01721646421 | AI91: 0.0002130454316 | AJ91: -0.0006351381164 | AK91: 0.0002346000754 | AL91: 0.0004797827049 | AM91: -0.001050625664 | AN91: -8.41553536e-05 | AO91: 0.0007772121095 | AP91: 0.0001861953969 | AQ91: -0.0005965779084 | AS91: -0.006545608594 | AT91: 0.002417742267 | AU91: 0.004944546257 | AV91: -0.0108275416 | AW91: -0.0008672885339 | AX91: 0.008009795243 | AY91: 0.001918893165 | AZ91: -0.006148214669 | BB91: -0.007207853545 | BC91: -0.01474084552 | BD91: 0.03227942662 | BE91: 0.002585589381 | BF91: -0.0238790676 | BG91: -0.005720668034 | BH91: 0.01832926177 | BJ91: 0.005444805438 | BK91: -0.01192300655 | BL91: -0.000955035524 | BM91: 0.008820177713 | BN91: 0.002113035129 | BO91: -0.006770253715 | BQ91: -0.02438384694 | BR91: -0.001953151661 | BS91: 0.01803822404 | BT91: 0.004321386974 | BU91: -0.01384590621 | BW91: 0.004277001319 | BX91: -0.03950000891 | BY91: -0.009462950652 | BZ91: 0.03031969318 | CB91: -0.003163959658 | CC91: -0.00075798449 | CD91: 0.002428614289 | CF91: 0.007000323796 | CG91: -0.02242933282 | CI91: -0.005373357514
A92: 90 | B92: -0.03745853 | C92: -0.00152982 | D92: 0.01545614 | E92: 0.06019715 | F92: -0.07357564 | G92: 0.20363697 | H92: 0.09220328 | I92: -0.0583498 | J92: 0.04839508 | K92: -0.02455799 | M92: -0.04569440833 | N92: -0.01056248633 | O92: 0.004579028417 | P92: 0.04060120883 | Q92: -0.07069539246 | R92: 0.1846538847 | S92: 0.09963602379 | T92: -0.06794734521 | U92: 0.02988475837 | V92: -0.02399187533 | X92: 0.002087978953 | Y92: 0.0001115661175 | Z92: 2.096750124e-05 | AA92: 0.001648458159 | AB92: 0.004997838515 | AC92: 0.03409705714 | AD92: 0.009927337237 | AE92: 0.004616841721 | AF92: 0.0008930987831 | AG92: 0.000575610082 | AI92: 0.0004826465635 | AJ92: -0.0002092359942 | AK92: -0.001855248215 | AL92: 0.00323038413 | AM92: -0.008437650008 | AN92: -0.004552809156 | AO92: 0.003104813737 | AP92: -0.001365566352 | AQ92: 0.001096294548 | AS92: -4.836592507e-05 | AT92: -0.0004288497134 | AU92: 0.0007467191167 | AV92: -0.001950404134 | AW92: -0.00105240414 | AX92: 0.0007176929051 | AY92: -0.0003156573519 | AZ92: 0.0002534138553 | BB92: 0.000185914089 | BC92: -0.000323716211 | BD92: 0.0008455353853 | BE92: 0.0004562361843 | BF92: -0.0003111328245 | BG92: 0.0001368431578 | BH92: -0.0001098594789 | BJ92: -0.002870318393 | BK92: 0.007497170935 | BL92: 0.004045343009 | BM92: -0.002758744352 | BN92: 0.001213357316 | BO92: -0.0009740991407 | BQ92: -0.01305417885 | BR92: -0.007043807805 | BS92: 0.004803564236 | BT92: -0.002112714722 | BU92: 0.001696115043 | BW92: 0.01839817885 | BX92: -0.01254674125 | BY92: 0.005518336728 | BZ92: -0.004430192982 | CB92: -0.006770003304 | CC92: 0.002977598496 | CD92: -0.002390455062 | CF92: -0.002030589994 | CG92: 0.001630184235 | CI92: -0.0007169913973
A93: 91 | B93: 0.02904505 | C93: 0.04077833 | D93: 0.07787866 | E93: -0.05792298 | F93: -0.10688918 | G93: 0.22674688 | H93: 0.08250466 | I93: -0.19264632 | J93: -0.07346256 | K93: 0.13696352 | M93: 0.02080917167 | N93: 0.03174566367 | O93: 0.06700154842 | P93: -0.07751892117 | Q93: -0.1040089325 | R93: 0.2077637947 | S93: 0.08993740379 | T93: -0.2022438652 | U93: -0.09197288163 | V93: 0.1375296347 | X93: 0.0004330216255 | Y93: 0.001007787162 | Z93: 0.00448920749 | AA93: 0.006009183139 | AB93: 0.01081785803 | AC93: 0.04316579439 | AD93: 0.008088736601 | AE93: 0.04090258101 | AF93: 0.008459010954 | AG93: 0.01891440041 | AI93: 0.0006606009649 | AJ93: 0.001394246723 | AK93: -0.001613104538 | AL93: -0.00216433973 | AM93: 0.00432339247 | AN93: 0.001871522875 | AO93: -0.00420852731 | AP93: -0.001913879482 | AQ93: 0.002861877777 | AS93: 0.002127008621 | AT93: -0.002460889599 | AU93: -0.003301832588 | AV93: 0.006595599549 | AW93: 0.002855122572 | AX93: -0.006420365724 | AY93: -0.002919740167 | AZ93: 0.004365969526 | BB93: -0.00519388775 | BC93: -0.006968759524 | BD93: 0.01392049595 | BE93: 0.006025945315 | BF93: -0.01355065213 | BG93: -0.006162325481 | BH93: 0.009214698476 | BJ93: 0.008062660236 | BK93: -0.01610562522 | BL93: -0.006971850514 | BM93: 0.01567772624 | BN93: 0.00712963856 | BO93: -0.01066114891 | BQ93: -0.02160929049 | BR93: -0.009354293356 | BS93: 0.02103516852 | BT93: 0.009566001233 | BU93: -0.01430431048 | BW93: 0.0186857363 | BX93: -0.04201895289 | BY93: -0.0191086349 | BZ93: 0.02857367878 | CB93: -0.01818928817 | CC93: -0.008271802193 | CD93: 0.01236905829 | CF93: 0.01860095107 | CG93: -0.0278145249 | CI93: -0.01264899681
A94: 92 | B94: 0.03654426 | C94: 0.03549442 | D94: -0.02169756 | E94: 0.02444179 | F94: -0.05594675 | G94: 0.20703828 | H94: -0.11347575 | I94: 0.071045 | J94: -0.35286268 | K94: 0.11236165 | M94: 0.02830838167 | N94: 0.02646175367 | O94: -0.03257467158 | P94: 0.004845848833 | Q94: -0.05306650246 | R94: 0.1880551947 | S94: -0.1060430062 | T94: 0.06144745479 | U94: -0.3713730016 | V94: 0.1129277647 | X94: 0.0008013644726 | Y94: 0.0007002244071 | Z94: 0.001061109229 | AA94: 2.348225092e-05 | AB94: 0.002816053683 | AC94: 0.03536475626 | AD94: 0.01124511917 | AE94: 0.0037757897 | AF94: 0.1379179063 | AG94: 0.01275268003 | AI94: 0.0007490894224 | AJ94: -0.0009221362358 | AK94: 0.0001371781383 | AL94: -0.001502226805 | AM94: 0.005323538226 | AN94: -0.003001905893 | AO94: 0.001739478003 | AP94: -0.01051296867 | AQ94: 0.003196802263 | AS94: -0.0008619829352 | AT94: 0.0001282296581 | AU94: -0.001404232716 | AV94: 0.004976270238 | AW94: -0.002806083908 | AX94: 0.001626007412 | AY94: -0.009827180887 | AZ94: 0.002988266691 | BB94: -0.0001578519343 | BC94: 0.00172862389 | BD94: -0.006125836207 | BE94: 0.003454316101 | BF94: -0.002001630659 | BG94: 0.01209735356 | BH94: -0.003678584847 | BJ94: -0.000257152249 | BK94: 0.0009112870459 | BL94: -0.0005138683779 | BM94: 0.0002977650771 | BN94: -0.001799617427 | BO94: 0.0005472308767 | BQ94: -0.009979431452 | BR94: 0.00562733145 | BS94: -0.003260801511 | BT94: 0.0197074663 | BU94: -0.005992681501 | BW94: -0.01994193818 | BX94: 0.01155551308 | BY94: -0.06983862213 | BZ94: 0.02123665277 | CB94: -0.00651607283 | CC94: 0.03938150952 | CD94: -0.01197519965 | CF94: -0.02281992573 | CG94: 0.006939123714 | CI94: -0.04193832293
A95: 93 | B95: -0.06457202 | C95: 0.04121223 | D95: -0.04225758 | E95: -0.0177797 | F95: 0.16553983 | G95: 0.10047452 | H95: 0.11633389 | I95: -0.12237265 | J95: 0.17889572 | K95: -0.31151653 | M95: -0.07280789833 | N95: 0.03217956367 | O95: -0.05313469158 | P95: -0.03737564117 | Q95: 0.1684200775 | R95: 0.08149143471 | S95: 0.1237666338 | T95: -0.1319701952 | U95: 0.1603853984 | V95: -0.3109504153 | X95: 0.00530099006 | Y95: 0.001035524318 | Z95: 0.00282329545 | AA95: 0.001396938553 | AB95: 0.02836532252 | AC95: 0.006640853931 | AD95: 0.01531817964 | AE95: 0.01741613242 | AF95: 0.02572347601 | AG95: 0.0966901608 | AI95: -0.0023429264 | AJ95: 0.003868625223 | AK95: 0.002721241882 | AL95: -0.01226231188 | AM95: -0.005933220093 | AN95: -0.00901118849 | AO95: 0.009608472556 | AP95: -0.01167732378 | AQ95: 0.02263964623 | AS95: -0.001709851191 | AT95: -0.001202731825 | AU95: 0.005419684608 | AV95: 0.002622358811 | AW95: 0.003982756272 | AX95: -0.004246743299 | AY95: 0.005161132138 | AZ95: -0.01000624869 | BB95: 0.001985943166 | BC95: -0.008948948877 | BD95: -0.00433002225 | BE95: -0.006576301915 | BF95: 0.007012195621 | BG95: -0.008522028677 | BH95: 0.01652225442 | BJ95: -0.006294808383 | BK95: -0.003045794622 | BL95: -0.004625857293 | BM95: 0.004932470661 | BN95: -0.005994507098 | BO95: 0.01162197114 | BQ95: 0.01372479375 | BR95: 0.02084478606 | BS95: -0.02222643051 | BT95: 0.02701212123 | BU95: -0.05237029306 | BW95: 0.01008592056 | BX95: -0.01075444055 | BY95: 0.01307003622 | BZ95: -0.02533979547 | CB95: -0.01633350682 | CC95: 0.01985036087 | CD95: -0.03848528618 | CF95: -0.02116609233 | CG95: 0.04103618701 | CI95: -0.04987190624
A96: 94 | B96: 0.05343883 | C96: 0.02179801 | D96: 0.07167065 | E96: -0.15132365 | F96: -0.27744016 | G96: -0.05565806 | H96: -0.03048383 | I96: 0.13733997 | J96: 0.25381327 | K96: 0.08481235 | M96: 0.04520295167 | N96: 0.01276534367 | O96: 0.06079353842 | P96: -0.1709195912 | Q96: -0.2745599125 | R96: -0.07464114529 | S96: -0.02305108621 | T96: 0.1277424248 | U96: 0.2353029484 | V96: 0.08537846467 | X96: 0.002043306839 | Y96: 0.0001629539989 | Z96: 0.003695854313 | AA96: 0.02921350664 | AB96: 0.07538314553 | AC96: 0.00557130057 | AD96: 0.0005313525754 | AE96: 0.01631812709 | AF96: 0.05536747751 | AG96: 0.007289482229 | AI96: 0.0005770312128 | AJ96: 0.002748047379 | AK96: -0.007726070018 | AL96: -0.01241091845 | AM96: -0.003374000083 | AN96: -0.001041977136 | AO96: 0.005774334654 | AP96: 0.0106363878 | AQ96: 0.003859358612 | AS96: 0.0007760504106 | AT96: -0.002181847321 | AU96: -0.00350485164 | AV96: -0.0009528198713 | AW96: -0.0002942550373 | AX96: 0.001630675953 | AY96: 0.003003723002 | AZ96: 0.001089885443 | BB96: -0.01039080673 | BC96: -0.01669146859 | BD96: -0.004537699334 | BE96: -0.001401357095 | BF96: 0.007765914009 | BG96: 0.01430489883 | BH96: 0.005190458972 | BJ96: 0.04692766799 | BK96: 0.01275763404 | BL96: 0.003939882231 | BM96: -0.02183368302 | BN96: -0.04021788374 | BO96: -0.01459285228 | BQ96: 0.02049346632 | BR96: 0.006328904211 | BS96: -0.03507294897 | BT96: -0.06460475691 | BU96: -0.02344150378 | BW96: 0.001720559475 | BX96: -0.009534840889 | BY96: -0.01756328156 | BZ96: -0.006372746386 | CB96: -0.002944601646 | CC96: -0.005423988548 | CD96: -0.001968066349 | CF96: 0.03005816919 | CG96: 0.0109064521 | CI96: 0.02008980446
A97: 95 | B97: 0.00566805 | C97: -0.03584751 | D97: -0.03285328 | E97: 0.00045737 | F97: 0.05490592 | G97: 0.21797465 | H97: 0.01488787 | I97: 0.014506 | J97: -0.16690895 | K97: 0.03126545 | M97: -0.002567828333 | N97: -0.04488017633 | O97: -0.04373039158 | P97: -0.01913857117 | Q97: 0.05778616754 | R97: 0.1989915647 | S97: 0.02232061379 | T97: 0.004908454792 | U97: -0.1854192716 | V97: 0.03183156467 | X97: 6.593742349e-06 | Y97: 0.002014230228 | Z97: 0.001912347148 | AA97: 0.0003662849063 | AB97: 0.003339241159 | AC97: 0.03959764283 | AD97: 0.0004982098 | AE97: 2.409292844e-05 | AF97: 0.03438030629 | AG97: 0.001013248509 | AI97: 0.0001152445884 | AJ97: 0.0001122921385 | AK97: 4.91445653e-05 | AL97: -0.0001483849583 | AM97: -0.000510976178 | AN97: -5.731550451e-05 | AO97: -1.260406929e-05 | AP97: 0.0004761248592 | AQ97: -8.173799365e-05 | AS97: 0.001962627685 | AT97: 0.0008589424487 | AU97: -0.002593453389 | AV97: -0.008930776513 | AW97: -0.001001753083 | AX97: -0.0002202923166 | AY97: 0.008321649606 | AZ97: -0.001428606235 | BB97: 0.0008369372115 | BC97: -0.002527011735 | BD97: -0.008701979046 | BE97: -0.0009760891815 | BF97: -0.0002146486501 | BG97: 0.008108457355 | BH97: -0.001392006788 | BJ97: -0.00110594468 | BK97: -0.003808414223 | BL97: -0.0004271846555 | BM97: -9.394081135e-05 | BN97: 0.003548659926 | BO97: -0.0006092106657 | BQ97: 0.0114989599 | BR97: 0.001289822728 | BS97: 0.000283640791 | BT97: -0.0107146691 | BU97: 0.001839424129 | BW97: 0.004441613864 | BX97: 0.0009767410993 | BY97: -0.03689687099 | BZ97: 0.00633421286 | CB97: 0.0001095597237 | CC97: -0.004138671951 | CD97: 0.0007105000613 | CF97: -0.0009101221123 | CG97: 0.0001562437961 | CI97: -0.005902185535
A98: 96 | B98: 0.05831973 | C98: 0.05049045 | D98: -0.02044354 | E98: 0.06661231 | F98: 0.16247991 | G98: -0.29146799 | H98: 0.0877293 | I98: -0.42001166 | J98: 0.27655739 | K98: -0.21775755 | M98: 0.05008385167 | N98: 0.04145778367 | O98: -0.03132065158 | P98: 0.04701636883 | Q98: 0.1653601575 | R98: -0.3104510753 | S98: 0.09516204379 | T98: -0.4296092052 | U98: 0.2580470684 | V98: -0.2171914353 | X98: 0.002508392198 | Y98: 0.001718747827 | Z98: 0.0009809832156 | AA98: 0.002210538938 | AB98: 0.0273439817 | AC98: 0.09637987015 | AD98: 0.009055814579 | AE98: 0.1845640692 | AF98: 0.0665882895 | AG98: 0.04717211958 | AI98: 0.002076365488 | AJ98: -0.001568658868 | AK98: 0.002354760843 | AL98: 0.008281873602 | AM98: -0.0155485856 | AN98: 0.004766081686 | AO98: -0.02151648371 | AP98: 0.0129239911 | AQ98: -0.01087778363 | AS98: -0.001298484798 | AT98: 0.001949194448 | AU98: 0.006855465638 | AV98: -0.01287061352 | AW98: 0.003945207425 | AX98: -0.01781064549 | AY98: 0.01069805954 | AZ98: -0.00900427554 | BB98: -0.001472583307 | BC98: -0.00517918788 | BD98: 0.009723529963 | BE98: -0.002980537218 | BF98: 0.01345564023 | BG98: -0.008082202321 | BH98: 0.006802577273 | BJ98: 0.007774634157 | BK98: -0.01459628226 | BL98: 0.00447417375 | BM98: -0.02019866485 | BN98: 0.01213243614 | BO98: -0.01021155263 | BQ98: -0.05133623872 | BR98: 0.01573601055 | BS98: -0.07104024585 | BT98: 0.04267070388 | BU98: -0.03591480996 | BW98: -0.02954315882 | BX98: 0.1333726397 | BY98: -0.08011098985 | BZ98: 0.06742731464 | CB98: -0.04088249 | CC98: 0.02455628642 | CD98: -0.02066838088 | CF98: -0.110859396 | CG98: 0.09330743991 | CI98: -0.05604561316
A99: 97 | B99: 0.019779 | C99: -0.03509007 | D99: -0.06922794 | E99: 0.07401136 | F99: -0.20689702 | G99: -0.22767525 | H99: 0.04497408 | I99: 0.04158881 | J99: 0.36199955 | K99: 0.29683057 | M99: 0.01154312167 | N99: -0.04412273633 | O99: -0.08010505158 | P99: 0.05441541883 | Q99: -0.2040167725 | R99: -0.2466583353 | S99: 0.05240682379 | T99: 0.03199126479 | U99: 0.3434892284 | V99: 0.2973966847 | X99: 0.0001332436578 | Y99: 0.001946815862 | Z99: 0.006416819289 | AA99: 0.002961037807 | AB99: 0.04162284344 | AC99: 0.06084033437 | AD99: 0.00274647518 | AE99: 0.001023441023 | AF99: 0.11798485 | AG99: 0.08844478805 | AI99: -0.0005093141138 | AJ99: -0.0009246623565 | AK99: 0.0006281238001 | AL99: -0.002354990427 | AM99: -0.002847207174 | AN99: 0.0006049383432 | AO99: 0.0003692790618 | AP99: 0.003964937954 | AQ99: 0.003432886114 | AS99: 0.00353445407 | AT99: -0.002400957178 | AU99: 0.009001778259 | AV99: 0.01088324069 | AW99: -0.002312332468 | AX99: -0.001411542141 | AY99: -0.01515568466 | AZ99: -0.0131219555 | BB99: -0.004358949933 | BC99: 0.01634277408 | BD99: 0.01975857867 | BE99: -0.004198051323 | BF99: -0.002562661916 | BG99: -0.02751522236 | BH99: -0.02382297677 | BJ99: -0.01110165812 | BK99: -0.01342201662 | BL99: 0.002851739266 | BM99: 0.001740818073 | BN99: 0.01869111023 | BO99: 0.01618296516 | BQ99: 0.05032243747 | BR99: -0.01069187104 | BS99: -0.00652675459 | BT99: -0.07007756375 | BU99: -0.06067391175 | BW99: -0.01292657991 | BX99: -0.007890912117 | BY99: -0.08472448126 | BZ99: -0.07335537116 | CB99: 0.001676560577 | CC99: 0.01800117947 | CD99: 0.01558561565 | CF99: 0.01098865486 | CG99: 0.009514096087 | CI99: 0.1021525577
A100: 98 | B100: -0.03136732 | C100: -0.0190411 | D100: 0.12947852 | E100: 0.0232734 | F100: 0.07051536 | G100: 0.02916938 | H100: 0.06725811 | I100: -0.1281222 | J100: -0.12783337 | K100: 0.05325682 | M100: -0.03960319833 | N100: -0.02807376633 | O100: 0.1186014084 | P100: 0.003677458833 | Q100: 0.07339560754 | R100: 0.01018629471 | S100: 0.07469085379 | T100: -0.1377197452 | U100: -0.1463436916 | V100: 0.05382293467 | X100: 0.001568413318 | Y100: 0.0007881363561 | Z100: 0.01406629408 | AA100: 1.352370347e-05 | AB100: 0.005386915206 | AC100: 0.0001037605999 | AD100: 0.00557872364 | AE100: 0.01896672822 | AF100: 0.02141647608 | AG100: 0.002896908296 | AI100: 0.001111810936 | AJ100: -0.0046969951 | AK100: -0.0001456391315 | AL100: -0.002906700802 | AM100: -0.0004034098496 | AN100: -0.002957996696 | AO100: 0.005454142384 | AP100: 0.005795678244 | AQ100: -0.002131560356 | AS100: -0.003329588227 | AT100: -0.00010324012 | AU100: -0.002060491136 | AV100: -0.0002859676574 | AW100: -0.002096853577 | AX100: 0.003866311946 | AY100: 0.004108418603 | AZ100: -0.001511012491 | BB100: 0.000436151797 | BC100: 0.008704822426 | BD100: 0.001208108899 | BE100: 0.008858440456 | BF100: -0.01633375575 | BG100: -0.01735656794 | BH100: 0.006383475857 | BJ100: 0.0002699093253 | BK100: 3.745967945e-05 | BL100: 0.00027467254 | BM100: -0.0005064586935 | BN100: -0.0005381729015 | BO100: 0.0001979316265 | BQ100: 0.0007476292887 | BR100: 0.005481980592 | BS100: -0.01010802437 | BT100: -0.01074098416 | BU100: 0.00395036699 | BW100: 0.0007608230487 | BX100: -0.001402853912 | BY100: -0.001490699972 | BZ100: 0.0005482562746 | CB100: -0.01028640535 | CC100: -0.01093053527 | CD100: 0.004020080944 | CF100: 0.02015441592 | CG100: -0.007412480849 | CI100: -0.007876646953
A101: 99 | B101: -0.0207016 | C101: 0.07047182 | D101: 0.13912794 | E101: -0.12249205 | F101: -0.03735778 | G101: -0.03791881 | H101: 0.07189948 | I101: -0.081257 | J101: 0.48597849 | K101: -0.29207622 | M101: -0.02893747833 | N101: 0.06143915367 | O101: 0.1282508284 | P101: -0.1420879912 | Q101: -0.03447753246 | R101: -0.05690189529 | S101: 0.07933222379 | T101: -0.09085454521 | U101: 0.4674681684 | V101: -0.2915101053 | X101: 0.0008373776523 | Y101: 0.003774769603 | Z101: 0.01644827499 | AA101: 0.02018899723 | AB101: 0.001188700244 | AC101: 0.003237825688 | AD101: 0.006293601732 | AE101: 0.008254548385 | AF101: 0.2185264884 | AG101: 0.08497814151 | AI101: -0.001777894178 | AJ101: -0.003711255569 | AK101: 0.004111668166 | AL101: 0.0009976928485 | AM101: 0.001646597362 | AN101: -0.002295674507 | AO101: 0.002629101433 | AP101: -0.01352734999 | AQ101: 0.008435567357 | AS101: 0.007879622355 | AT101: -0.008729765923 | AU101: -0.002118270415 | AV101: -0.003496004289 | AW101: 0.004874104688 | AX101: -0.005582026364 | AY101: 0.02872084863 | AZ101: -0.01791013416 | BB101: -0.01822290258 | BC101: -0.0044217721 | BD101: -0.00729771521 | BE101: 0.01017442342 | BF101: -0.01165217069 | BG101: 0.05995317985 | BH101: -0.0373864125 | BJ101: 0.004898843327 | BK101: 0.008085075996 | BL101: -0.01127215631 | BM101: 0.01290933982 | BN101: -0.06642161298 | BO101: 0.04142008527 | BQ101: 0.001961836942 | BR101: -0.002735179321 | BS101: 0.003132440531 | BT101: -0.01611714895 | BU101: 0.01005054912 | BW101: -0.004514153891 | BX101: 0.005169795818 | BY101: -0.02659982477 | BZ101: 0.01658747749 | CB101: -0.007207693113 | CC101: 0.03708528935 | CD101: -0.02312614491 | CF101: -0.04247160784 | CG101: 0.02648501804 | CI101: -0.136271695
A102: 100 | B102: 0.00821553 | C102: -0.06775246 | D102: 0.05790522 | E102: 0.07661127 | F102: -0.12268767 | G102: 0.10380507 | H102: -0.25875919 | I102: 0.16371141 | J102: 0.13098729 | K102: 0.15049967 | M102: -2.034833333e-05 | N102: -0.07678512633 | O102: 0.04702810842 | P102: 0.05701532883 | Q102: -0.1198074225 | R102: 0.08482198471 | S102: -0.2513264462 | T102: 0.1541138648 | U102: 0.1124769684 | V102: 0.1510657847 | X102: 4.140546694e-10 | Y102: 0.005895955626 | Z102: 0.002211642981 | AA102: 0.003250747722 | AB102: 0.01435381848 | AC102: 0.00719476909 | AD102: 0.06316498256 | AE102: 0.02375108332 | AF102: 0.01265106841 | AG102: 0.0228208713 | AI102: 1.562449346e-06 | AJ102: -9.569436261e-07 | AK102: -1.160166916e-06 | AL102: 2.437881368e-06 | AM102: -1.725986019e-06 | AN102: 5.114074303e-06 | AO102: -3.135960292e-06 | AP102: -2.288718845e-06 | AQ102: -3.073936942e-06 | AS102: -0.003611059246 | AT102: -0.004377929227 | AU102: 0.009199428069 | AV102: -0.006513066812 | AW102: 0.01929813292 | AX102: -0.01183365258 | AY102: -0.008636558226 | AZ102: -0.01159960536 | BB102: 0.002681323066 | BC102: -0.005634316452 | BD102: 0.003989017493 | BE102: -0.01181940736 | BF102: 0.007247683542 | BG102: 0.005289579063 | BH102: 0.007104338099 | BJ102: -0.006830859588 | BK102: 0.00483615335 | BL102: -0.01432945998 | BM102: 0.008786852679 | BN102: 0.006412911338 | BO102: 0.008613065388 | BQ102: -0.01016230336 | BR102: 0.03011077372 | BS102: -0.01846398491 | BT102: -0.01347557567 | BU102: -0.01809880228 | BW102: -0.02131800798 | BX102: 0.01307224388 | BY102: 0.009540519692 | BZ102: 0.01281369968 | CB102: -0.03873288995 | CC102: -0.02826843674 | CD102: -0.0379668268 | CF102: 0.0173342603 | CG102: 0.02328133191 | CI102: 0.01699142148
A103: 101 | B103: 0.05985361 | C103: -0.02919553 | D103: 0.13300961 | E103: 0.13571348 | F103: -0.12788351 | G103: 0.01839683 | H103: -0.0676872 | I103: -0.14275471 | J103: -0.00650781 | K103: -0.0158497 | M103: 0.05161773167 | N103: -0.03822819633 | O103: 0.1221324984 | P103: 0.1161175388 | Q103: -0.1250032625 | R103: -0.0005862552917 | S103: -0.06025445621 | T103: -0.1523522552 | U103: -0.02501813163 | V103: -0.01528358533 | X103: 0.002664390222 | Y103: 0.001461394995 | Z103: 0.01491634717 | AA103: 0.01348328282 | AB103: 0.01562581563 | AC103: 3.43695267e-07 | AD103: 0.003630599493 | AE103: 0.02321120967 | AF103: 0.00062590691 | AG103: 0.0002335879806 | AI103: -0.00197325278 | AJ103: 0.006304202531 | AK103: 0.005993723961 | AL103: -0.006452384859 | AM103: -3.026116833e-05 | AN103: -0.003110198352 | AO103: -0.007864077828 | AP103: -0.001291379205 | AQ103: -0.0007889040066 | AS103: -0.004668905128 | AT103: -0.004438964072 | AU103: 0.00477864926 | AV103: 2.241148239e-05 | AW103: 0.002303419182 | AX103: 0.005824151924 | AY103: 0.0009563980477 | AZ103: 0.0005842639008 | BB103: 0.01418172513 | BC103: -0.01526696075 | BD103: -7.160082348e-05 | BE103: -0.007359027277 | BF103: -0.01860716157 | BG103: -0.003055526921 | BH103: -0.001866622462 | BJ103: -0.01451507118 | BK103: -6.80745216e-05 | BL103: -0.006996599159 | BM103: -0.01769076891 | BN103: -0.002905043871 | BO103: -0.001774692313 | BQ103: 7.328382409e-05 | BR103: 0.007532003604 | BS103: 0.01904452894 | BT103: 0.003127348074 | BU103: 0.001910498029 | BW103: 3.53244938e-05 | BX103: 8.931731581e-05 | BY103: 1.466701205e-05 | BZ103: 8.960082777e-06 | CB103: 0.00917990229 | CC103: 0.001507453916 | CD103: 0.0009209041232 | CF103: 0.003811568774 | CG103: 0.002328488693 | CI103: 0.0003823667496
A104: 102 | B104: -0.11275773 | C104: 0.08363689 | D104: 0.00230632 | E104: 0.1244464 | F104: -0.17376301 | G104: 0.00395993 | H104: 0.03897453 | I104: 0.09917701 | J104: -0.01594874 | K104: 0.11138914 | M104: -0.1209936083 | N104: 0.07460422367 | O104: -0.008570791583 | P104: 0.1048504588 | Q104: -0.1708827625 | R104: -0.01502315529 | S104: 0.04640727379 | T104: 0.08957946479 | U104: -0.03445906163 | V104: 0.1119552547 | X104: 0.01463945326 | Y104: 0.005565790189 | Z104: 7.345846836e-05 | AA104: 0.01099361872 | AB104: 0.02920091851 | AC104: 0.0002256951949 | AD104: 0.002153635061 | AE104: 0.008024480512 | AF104: 0.001187426928 | AG104: 0.01253397905 | AI104: -0.009026634218 | AJ104: 0.001037011 | AK104: -0.01268623535 | AL104: 0.02067572203 | AM104: 0.001817705767 | AN104: -0.005614983509 | AO104: -0.01083854268 | AP104: 0.004169326206 | AQ104: -0.01354587023 | AS104: -0.0006394172523 | AT104: 0.007822287082 | AU104: -0.01274857583 | AV104: -0.001120790838 | AW104: 0.003462178634 | AX104: 0.006683006427 | AY104: -0.002570791541 | AZ104: 0.00835233486 | BB104: -0.0008986514301 | BC104: 0.001464600542 | BD104: 0.0001287603329 | BE104: -0.0003977470716 | BF104: -0.0007677669229 | BG104: 0.0002953414353 | BH104: -0.0009595451544 | BJ104: -0.01791713605 | BK104: -0.001575184725 | BL104: 0.00486582395 | BM104: 0.009392447985 | BN104: -0.003613048422 | BO104: 0.01173855982 | BQ104: 0.002567198277 | BR104: -0.007930203144 | BS104: -0.0153075864 | BT104: 0.005888459642 | BU104: -0.01913122319 | BW104: -0.0006971836808 | BX104: -0.001345766211 | BY104: 0.000517683834 | BZ104: -0.001681921177 | CB104: 0.004157138749 | CC104: -0.001599151107 | CD104: 0.005195538156 | CF104: -0.003086824298 | CG104: 0.01002889179 | CI104: -0.00385787302
A105: 103 | B105: -0.05442772 | C105: 0.13072232 | D105: -0.04863002 | E105: 0.22770877 | F105: 0.04942063 | G105: 0.01619628 | H105: 0.01135861 | I105: -0.06013615 | J105: 0.03446333 | K105: -0.32411152 | M105: -0.06266359833 | N105: 0.1216896537 | O105: -0.05950713158 | P105: 0.2081128288 | Q105: 0.05230087754 | R105: -0.002786805292 | S105: 0.01879135379 | T105: -0.06973369521 | U105: 0.01595300837 | V105: -0.3235454053 | X105: 0.003926726556 | Y105: 0.01480837181 | Z105: 0.003541098709 | AA105: 0.04331094953 | AB105: 0.002735381792 | AC105: 7.766283734e-06 | AD105: 0.0003531149773 | AE105: 0.004862788247 | AF105: 0.0002544984762 | AG105: 0.1046816293 | AI105: -0.007625511579 | AJ105: 0.003728930992 | AK105: -0.01304109871 | AL105: -0.003277361183 | AM105: 0.0001746312474 | AN105: -0.001177533846 | AO105: 0.004369764267 | AP105: -0.000999672909 | AQ105: 0.02027451932 | AS105: -0.007241402233 | AT105: 0.02532517806 | AU105: 0.006364475675 | AV105: -0.0003391253708 | AW105: 0.002286713335 | AX105: -0.008485869219 | AY105: 0.001941316064 | AZ105: -0.03937212832 | BB105: -0.01238419749 | BC105: -0.003112275202 | BD105: 0.0001658347892 | BE105: -0.001118219563 | BF105: 0.004149652177 | BG105: -0.0009493177685 | BH105: 0.01925325901 | BJ105: 0.01088448358 | BK105: -0.0005799699327 | BL105: 0.003910721795 | BM105: -0.01451247657 | BN105: 0.003320025701 | BO105: -0.06733394956 | BQ105: -0.0001457523623 | BR105: 0.0009828042935 | BS105: -0.003647133454 | BT105: 0.0008343563374 | BU105: -0.01692170862 | BW105: -5.236784418e-05 | BX105: 0.0001943342308 | BY105: -4.445792816e-05 | BZ105: 0.0009016580477 | CB105: -0.001310390538 | CC105: 0.0002997786244 | CD105: -0.006079856179 | CF105: -0.001112462224 | CG105: 0.02256201668 | CI105: -0.005161522561
A106: 104 | B106: 0.09167018 | C106: 0.01381622 | D106: 0.0649391 | E106: -0.11822156 | F106: -0.05793495 | G106: 0.14589914 | H106: 0.03589124 | I106: 0.04303304 | J106: -0.2037943 | K106: -0.02570636 | M106: 0.08343430167 | N106: 0.004783553667 | O106: 0.05406198842 | P106: -0.1378175012 | Q106: -0.05505470246 | R106: 0.1269160547 | S106: 0.04332398379 | T106: 0.03343549479 | U106: -0.2223046216 | V106: -0.02514024533 | X106: 0.006961282695 | Y106: 2.288238568e-05 | Z106: 0.002922698592 | AA106: 0.01899366363 | AB106: 0.003031020263 | AC106: 0.01610768494 | AD106: 0.001876967572 | AE106: 0.001117932312 | AF106: 0.0494193448 | AG106: 0.0006320319354 | AI106: 0.0003991124597 | AJ106: 0.00451062425 | AK106: -0.01149870697 | AL106: -0.004593450653 | AM106: 0.01058915239 | AN106: 0.003614706333 | AO106: 0.002789667159 | AP106: -0.01854783086 | AQ106: -0.002097558813 | AS106: 0.0002586084229 | AT106: -0.000659257413 | AU106: -0.0002633571238 | AV106: 0.0006071097589 | AW106: 0.0002072426015 | AX106: 0.0001599404837 | AY106: -0.001063406088 | AZ106: -0.0001202597127 | BB106: -0.007450688152 | BC106: -0.002976366687 | BD106: 0.00686133428 | BE106: 0.00234218071 | BF106: 0.001807589332 | BG106: -0.01201822988 | BH106: -0.001359131652 | BJ106: 0.00758750152 | BK106: -0.01749125352 | BL106: -0.005970803187 | BM106: -0.004607996342 | BN106: 0.03063746745 | BO106: 0.003464765791 | BQ106: -0.006987325629 | BR106: -0.002385189037 | BS106: -0.001840781217 | BT106: 0.0122389148 | BU106: 0.001384088727 | BW106: 0.005498509097 | BX106: 0.004243501086 | BY106: -0.02821402552 | BZ106: -0.003190700752 | CB106: 0.001448558834 | CC106: -0.009631121824 | CD106: -0.001089175581 | CF106: -0.007432865019 | CG106: -0.0008405765419 | CI106: 0.005588792726
A107: 105 | B107: 0.08997243 | C107: 0.04904542 | D107: -0.02570914 | E107: 0.02780369 | F107: 0.01244484 | G107: 0.15903598 | H107: -0.30377457 | I107: -0.30155065 | J107: -0.10301695 | K107: 0.39265629 | M107: 0.08173655167 | N107: 0.04001275367 | O107: -0.03658625158 | P107: 0.008207748833 | Q107: 0.01532508754 | R107: 0.1400528947 | S107: -0.2963418262 | T107: -0.3111481952 | U107: -0.1215272716 | V107: 0.3932224047 | X107: 0.006680863878 | Y107: 0.001601020456 | Z107: 0.001338553805 | AA107: 6.736714091e-05 | AB107: 0.0002348583082 | AC107: 0.01961481332 | AD107: 0.08781847796 | AE107: 0.09681319938 | AF107: 0.01476887775 | AG107: 0.1546238595 | AI107: 0.003270504507 | AJ107: -0.002990434043 | AK107: 0.0006708730866 | AL107: 0.00125261981 | AM107: 0.01144744066 | AN107: -0.02422195899 | AO107: -0.02543218053 | AP107: -0.009933220116 | AQ107: 0.0321406434 | AS107: -0.001463916672 | AT107: 0.0003284146322 | AU107: 0.0006131989527 | AV107: 0.005603901976 | AW107: -0.01185745249 | AX107: -0.01244989609 | AY107: -0.004862640783 | AZ107: 0.01573391121 | BB107: -0.0003002907637 | BC107: -0.0005606875083 | BD107: -0.005124010441 | BE107: 0.01084203661 | BF107: 0.01138374615 | BG107: 0.004446227334 | BH107: -0.01438653383 | BJ107: 0.0001257844694 | BK107: 0.001149518983 | BL107: -0.002432299278 | BM107: -0.002553826236 | BN107: -0.0009974653219 | BO107: 0.003227470733 | BQ107: 0.002146322872 | BR107: -0.004541464429 | BS107: -0.00476837333 | BT107: -0.001862416076 | BU107: 0.006026167775 | BW107: -0.04150353058 | BX107: -0.04357720542 | BY107: -0.01702024618 | BZ107: 0.05507193604 | CB107: 0.09220622439 | CC107: 0.03601361361 | CD107: -0.1165282455 | CF107: 0.03781299123 | CG107: -0.1223504415 | CI107: -0.04778724598
A108: 106 | B108: 0.01106168 | C108: -0.04383351 | D108: -0.09310431 | E108: 0.08508369 | F108: 0.26079331 | G108: 0.12725529 | H108: 0.13986504 | I108: 0.06158353 | J108: -0.20277403 | K108: -0.21369665 | M108: 0.002825801667 | N108: -0.05286617633 | O108: -0.1039814216 | P108: 0.06548774883 | Q108: 0.2636735575 | R108: 0.1082722047 | S108: 0.1472977838 | T108: 0.05198598479 | U108: -0.2212843516 | V108: -0.2131305353 | X108: 7.985155059e-06 | Y108: 0.0027948326 | Z108: 0.01081213603 | AA108: 0.004288645247 | AB108: 0.06952374495 | AC108: 0.01172287031 | AD108: 0.02169663711 | AE108: 0.002702542615 | AF108: 0.04896676427 | AG108: 0.04542462509 | AI108: -0.0001493893292 | AJ108: -0.0002938308744 | AK108: 0.0001850553898 | AL108: 0.0007450891784 | AM108: 0.0003059557765 | AN108: 0.0004162343229 | AO108: 0.0001469020825 | AP108: -0.0006253056896 | AQ108: -0.000602264622 | AS108: 0.005497100169 | AT108: -0.003462086877 | AU108: -0.01393941279 | AV108: -0.005723937466 | AW108: -0.007787070611 | AX108: -0.002748300239 | AY108: 0.01169845755 | AZ108: 0.01126739646 | BB108: -0.00680950922 | BC108: -0.02741715135 | BD108: -0.01125829776 | BE108: -0.01531623295 | BF108: -0.005405576601 | BG108: 0.02300946146 | BH108: 0.02216161605 | BJ108: 0.01726738771 | BK108: 0.007090502948 | BL108: 0.009646200269 | BM108: 0.003404445115 | BN108: -0.01449141404 | BO108: -0.01395743897 | BQ108: 0.0285485174 | BR108: 0.03883853067 | BS108: 0.01370732955 | BT108: -0.05834683222 | BU108: -0.05619688647 | BW108: 0.0159482558 | BX108: 0.005628637187 | BY108: -0.02395894462 | BZ108: -0.02307611295 | CB108: 0.007657420348 | CC108: -0.03259469458 | CD108: -0.03139365551 | CF108: -0.01150368494 | CG108: -0.01107980077 | CI108: 0.04716245232
A109: 107 | B109: -0.08375258 | C109: 0.10425157 | D109: -0.06610364 | E109: 0.13191793 | F109: 0.12097186 | G109: 0.02584206 | H109: 0.01838028 | I109: 0.0942031 | J109: -0.22346352 | K109: 0.1081507 | M109: -0.09198845833 | N109: 0.09521890367 | O109: -0.07698075158 | P109: 0.1123219888 | Q109: 0.1238521075 | R109: 0.006858974708 | S109: 0.02581302379 | T109: 0.08460555479 | U109: -0.2419738416 | V109: 0.1087168147 | X109: 0.008461876467 | Y109: 0.009066639615 | Z109: 0.005926036114 | AA109: 0.01261622918 | AB109: 0.01533934454 | AC109: 4.704553405e-05 | AD109: 0.0006663121973 | AE109: 0.007158099902 | AF109: 0.05855134003 | AG109: 0.01181934579 | AI109: -0.008759040152 | AJ109: 0.007081340659 | AK109: -0.01033232659 | AL109: -0.01139296443 | AM109: -0.0006309465092 | AN109: -0.002374500264 | AO109: -0.007782734552 | AP109: 0.02225880065 | AQ109: -0.01000069218 | AS109: -0.007330022769 | AT109: 0.01069517663 | AU109: 0.0117930619 | AV109: 0.000653104052 | AW109: 0.002457887826 | AX109: 0.008056048171 | AY109: -0.02304048392 | AZ109: 0.0103518959 | BB109: -0.00864663112 | BC109: -0.009534228324 | BD109: -0.0005280090281 | BE109: -0.001987105972 | BF109: -0.006512999196 | BG109: 0.01862732819 | BH109: -0.008369102103 | BJ109: 0.01391131504 | BK109: 0.0007704136806 | BL109: 0.00289937017 | BM109: 0.009503064181 | BN109: -0.02717898314 | BO109: 0.01221128884 | BQ109: 0.0008494984732 | BR109: 0.003196997399 | BS109: 0.01047857627 | BT109: -0.02996897026 | BU109: 0.01346480662 | BW109: 0.0001770508773 | BX109: 0.0005803073605 | BY109: -0.00165969246 | BZ109: 0.0007456858822 | CB109: 0.002183925199 | CC109: -0.006246076531 | CD109: 0.002806309724 | CF109: -0.02047233112 | CG109: 0.00919804642 | CI109: -0.02630662529
A110: 108 | B110: 0.0425143 | C110: -0.04369411 | D110: -0.01091929 | E110: -0.0228509 | F110: 0.10467829 | G110: -0.04303355 | H110: 0.03658906 | I110: 0.08562786 | J110: 0.25116502 | K110: -0.20243094 | M110: 0.03427842167 | N110: -0.05272677633 | O110: -0.02179640158 | P110: -0.04244684117 | Q110: 0.1075585375 | R110: -0.06201663529 | S110: 0.04402180379 | T110: 0.07603031479 | U110: 0.2326546984 | V110: -0.2018648253 | X110: 0.001175010192 | Y110: 0.002780112943 | Z110: 0.000475083122 | AA110: 0.001801734325 | AB110: 0.011568839 | AC110: 0.003846063053 | AD110: 0.001937919209 | AE110: 0.005780608767 | AF110: 0.05412820868 | AG110: 0.04074940771 | AI110: -0.001807390672 | AJ110: -0.0007471462443 | AK110: -0.00145501072 | AL110: 0.003686936904 | AM110: -0.002125832375 | AN110: 0.001508997953 | AO110: 0.00260619919 | AP110: 0.007975035854 | AQ110: -0.006919607602 | AS110: 0.001149253991 | AT110: 0.0022380851 | AU110: -0.005671214952 | AV110: 0.003269937258 | AW110: -0.002321127802 | AX110: -0.004008833403 | AY110: -0.01226713224 | AZ110: 0.01064368149 | BB110: 0.000925188396 | BC110: -0.002344389078 | BD110: 0.001351739488 | BE110: -0.0009595169139 | BF110: -0.001657187274 | BG110: -0.005071035236 | BH110: 0.004399926799 | BJ110: -0.004565520159 | BK110: 0.002632410268 | BL110: -0.001868586513 | BM110: -0.003227246696 | BN110: -0.009875457029 | BO110: 0.008568524178 | BQ110: -0.006670418595 | BR110: 0.004734920836 | BS110: 0.008177709468 | BT110: 0.02502399911 | BU110: -0.02171228539 | BW110: -0.002730084151 | BX110: -0.004715144304 | BY110: -0.01442846158 | BZ110: 0.01251897725 | CB110: 0.0033469916 | CC110: 0.01024187948 | CD110: -0.008886453733 | CF110: 0.01768880996 | CG110: -0.01534784622 | CI110: -0.04696480005
A111: 109 | B111: 0.00920323 | C111: 0.03601926 | D111: -0.05908175 | E111: 0.07500001 | F111: -0.23579087 | G111: 0.19092524 | H111: 0.05167708 | I111: -0.20150048 | J111: 0.16643874 | K111: 0.13290201 | M111: 0.0009673516667 | N111: 0.02698659367 | O111: -0.06995886158 | P111: 0.05540406883 | Q111: -0.2329106225 | R111: 0.1719421547 | S111: 0.05910982379 | T111: -0.2110980252 | U111: 0.1479284184 | V111: 0.1334681247 | X111: 9.35769247e-07 | Y111: 0.0007282762377 | Z111: 0.004894242314 | AA111: 0.003069610843 | AB111: 0.05424735805 | AC111: 0.02956410457 | AD111: 0.003493971269 | AE111: 0.04456237625 | AF111: 0.02188281696 | AG111: 0.0178137403 | AI111: 2.610552636e-05 | AJ111: -6.767482135e-05 | AK111: 5.359521833e-05 | AL111: -0.0002253064788 | AM111: 0.0001663285299 | AN111: 5.717998656e-05 | AO111: -0.0002042060265 | AP111: 0.0001430988021 | AQ111: 0.0001291106128 | AS111: -0.001887951371 | AT111: 0.001495167093 | AU111: -0.006285464329 | AV111: 0.004640133063 | AW111: 0.001595172796 | AX111: -0.00569681663 | AY111: 0.003992084118 | AZ111: 0.003601850048 | BB111: -0.003876005583 | BC111: 0.016294162 | BD111: -0.0120288774 | BE111: -0.004135255981 | BF111: 0.01476817753 | BG111: -0.01034890375 | BH111: -0.009337278059 | BJ111: -0.01290419616 | BK111: 0.009526294975 | BL111: 0.003274924746 | BM111: -0.01169568952 | BN111: 0.008195836274 | BO111: 0.007394677166 | BQ111: -0.04004715428 | BR111: -0.01376730585 | BS111: 0.04916697245 | BT111: -0.0344541 | BU111: -0.03108614399 | BW111: 0.01016347047 | BX111: -0.03629664931 | BY111: 0.025435131 | BZ111: 0.02294879694 | CB111: -0.01247796707 | CC111: 0.008744022744 | CD111: 0.007889277331 | CF111: -0.03122739699 | CG111: -0.02817485755 | CI111: 0.01974372859
A112: 110 | B112: -0.05317651 | C112: 0.00086986 | D112: 0.05083717 | E112: -0.13078374 | F112: 0.01270585 | G112: 0.13501707 | H112: -0.05720269 | I112: 0.20441007 | J112: 0.28283343 | K112: -0.17757105 | M112: -0.06141238833 | N112: -0.008162806333 | O112: 0.03996005842 | P112: -0.1503796812 | Q112: 0.01558609754 | R112: 0.1160339847 | S112: -0.04976994621 | T112: 0.1948125248 | U112: 0.2643231084 | V112: -0.1770049353 | X112: 0.003771481441 | Y112: 6.663140724e-05 | Z112: 0.001596806269 | AA112: 0.02261404851 | AB112: 0.0002429264366 | AC112: 0.01346388561 | AD112: 0.002477047546 | AE112: 0.03795191982 | AF112: 0.06986670562 | AG112: 0.03133074713 | AI112: 0.0005012974324 | AJ112: -0.002454042625 | AK112: 0.009235175377 | AL112: -0.0009571794748 | AM112: -0.007125924129 | AN112: 0.003056491264 | AO112: -0.01196390242 | AP112: -0.01623271338 | AQ112: 0.01087029583 | AS112: -0.0003261862179 | AT112: 0.001227520214 | AU112: -0.0001272262957 | AV112: -0.0009471629453 | AW112: 0.0004062624321 | AX112: -0.001590216911 | AY112: -0.002157618343 | AZ112: 0.001444857007 | BB112: -0.006009180844 | BC112: 0.0006228213683 | BD112: 0.004636724807 | BE112: -0.001988809958 | BF112: 0.007784719871 | BG112: 0.01056236685 | BH112: -0.007073127556 | BJ112: -0.002343832379 | BK112: -0.01744915362 | BL112: 0.007484388642 | BM112: -0.02929584537 | BN112: -0.03974882476 | BO112: 0.02661794574 | BQ112: 0.001808517004 | BR112: -0.0007757192362 | BS112: 0.003036367014 | BT112: 0.00411976575 | BU112: -0.002758816187 | BW112: -0.005775005177 | BX112: 0.02260487352 | BY112: 0.03067046352 | BZ112: -0.02053858796 | CB112: -0.00969580888 | CC112: -0.01315534689 | CD112: 0.00880952611 | CF112: 0.0514934521 | CG112: -0.03448277835 | CI112: -0.04678649471
A113: 111 | B113: -0.01836452 | C113: 0.02896033 | D113: -0.0862502 | E113: 0.17947916 | F113: -0.02941896 | G113: 0.02823483 | H113: -0.02683135 | I113: 0.0931294 | J113: -0.17755398 | K113: -0.07505989 | M113: -0.02660039833 | N113: 0.01992766367 | O113: -0.09712731158 | P113: 0.1598832188 | Q113: -0.02653871246 | R113: 0.009251744708 | S113: -0.01939860621 | T113: 0.08353185479 | U113: -0.1960643016 | V113: -0.07449377533 | X113: 0.0007075811915 | Y113: 0.0003971117792 | Z113: 0.009433714655 | AA113: 0.02556264366 | AB113: 0.0007043032589 | AC113: 8.559478015e-05 | AD113: 0.0003763059228 | AE113: 0.006977570765 | AF113: 0.03844121037 | AG113: 0.005549322563 | AI113: -0.0005300837914 | AJ113: 0.002583625177 | AK113: -0.004252957308 | AL113: 0.0007059403226 | AM113: -0.0002461000945 | AN113: 0.0005160106523 | AO113: -0.002221980611 | AP113: 0.005215388522 | AQ113: 0.001981564097 | AS113: -0.001935520398 | AT113: 0.003186099011 | AU113: -0.000528854536 | AV113: 0.0001843656569 | AW113: -0.0003865689001 | AX113: 0.001664594708 | AY113: -0.00390710346 | AZ113: -0.0014844869 | BB113: -0.01552902721 | BC113: 0.002577633794 | BD113: -0.000898597091 | BE113: 0.001884134469 | BF113: -0.008113224487 | BG113: 0.01904319851 | BH113: 0.007235380128 | BJ113: -0.004243094772 | BK113: 0.001479198724 | BL113: -0.003101511601 | BM113: 0.01335534182 | BN113: -0.03134739164 | BO113: -0.01191030458 | BQ113: -0.0002455293926 | BR113: 0.0005148140323 | BS113: -0.002216827875 | BT113: 0.005203294124 | BU113: 0.001976968884 | BW113: -0.0001794709523 | BX113: 0.0007728153955 | BY113: -0.001813936865 | BZ113: -0.0006891973917 | CB113: -0.001620401557 | CC113: 0.003803374179 | CD113: 0.001445075413 | CF113: -0.01637761477 | CG113: -0.006222603224 | CI113: 0.01460557004
A114: 112 | B114: 0.06914442 | C114: -0.10420027 | D114: 0.08850112 | E114: 0.09574957 | F114: -0.18015715 | G114: 0.02609363 | H114: 0.21536198 | I114: -0.29072391 | J114: 0.16055865 | K114: -0.01694938 | M114: 0.06090854167 | N114: -0.1132329363 | O114: 0.07762400842 | P114: 0.07615362883 | Q114: -0.1772769025 | R114: 0.007110544708 | S114: 0.2227947238 | T114: -0.3003214552 | U114: 0.1420483284 | V114: -0.01638326533 | X114: 0.003709850448 | Y114: 0.01282169787 | Z114: 0.006025486683 | AA114: 0.005799375184 | AB114: 0.03142710015 | AC114: 5.055984605e-05 | AD114: 0.04963748895 | AE114: 0.09019297646 | AF114: 0.02017772759 | AG114: 0.000268411383 | AI114: -0.006896853021 | AJ114: 0.004727965151 | AK114: 0.004638406475 | AL114: -0.0107976776 | AM114: 0.0004330929086 | AN114: 0.01357010172 | AO114: -0.01829214187 | AP114: 0.008651956528 | AQ114: -0.0009978807992 | AS114: -0.008789594403 | AT114: -0.008623099005 | AU114: 0.02007358421 | AV114: -0.0008051478563 | AW114: -0.02522770077 | AX114: 0.03400628022 | AY114: -0.01608454932 | AZ114: 0.00185512524 | BB114: 0.005911349926 | BC114: -0.01376094377 | BD114: 0.0005519489823 | BE114: 0.01729421951 | BF114: -0.02331215517 | BG114: 0.01102636064 | BH114: -0.001271734726 | BJ114: -0.01350027943 | BK114: 0.0005414937825 | BL114: 0.0169666267 | BM114: -0.02287056863 | BN114: 0.01081749568 | BO114: -0.001247645107 | BQ114: -0.001260535341 | BR114: -0.03949635852 | BS114: 0.05324005732 | BT114: -0.02518188765 | BU114: 0.00290437453 | BW114: 0.001584191844 | BX114: -0.002135449134 | BY114: 0.00101004099 | BZ114: -0.0001164939406 | CB114: -0.06691003566 | CC114: 0.03164761809 | CD114: -0.003650105075 | CF114: -0.04266016069 | CG114: 0.004920246086 | CI114: -0.002327215454
A115: 113 | B115: -0.03869186 | C115: -0.07799867 | D115: -0.10795447 | E115: 0.17288978 | F115: 0.15215968 | G115: 0.26139962 | H115: -0.10007198 | I115: -0.12445193 | J115: 0.02136726 | K115: -0.00152341 | M115: -0.04692773833 | N115: -0.08703133633 | O115: -0.1188315816 | P115: 0.1532938388 | Q115: 0.1550399275 | R115: 0.2424165347 | S115: -0.09263923621 | T115: -0.1340494752 | U115: 0.002856938375 | V115: -0.0009572953333 | X115: 0.002202212625 | Y115: 0.007574453504 | Z115: 0.01412094478 | AA115: 0.02349900102 | AB115: 0.02403737913 | AC115: 0.0587657763 | AD115: 0.008582028085 | AE115: 0.0179692618 | AF115: 8.162096879e-06 | AG115: 9.164143552e-07 | AI115: 0.004084183778 | AJ115: 0.005576497366 | AK115: -0.007193733157 | AL115: -0.007275673151 | AM115: -0.01137605971 | AN115: 0.004347349836 | AO115: 0.006290638696 | AP115: -0.0001340696565 | AQ115: 4.492370491e-05 | AS115: 0.01034207134 | AT115: -0.01334136765 | AU115: -0.01349333208 | AV115: -0.02109783496 | AW115: 0.008062516524 | AX115: 0.01166650496 | AY115: -0.0002486431646 | AZ115: 8.331469213e-05 | BB115: -0.01821614932 | BC115: -0.0184236398 | BD115: -0.02880674022 | BE115: 0.01100846696 | BF115: 0.01592931115 | BG115: -0.0003394945056 | BH115: 0.0001137569185 | BJ115: 0.02376666567 | BK115: 0.0371609612 | BL115: -0.01420102414 | BM115: -0.02054895865 | BN115: 0.0004379510508 | BO115: -0.0001467474765 | BQ115: 0.03758424198 | BR115: -0.01436278047 | BS115: -0.02078302092 | BT115: 0.0004429395187 | BU115: -0.0001484189991 | BW115: -0.02245728262 | BX115: -0.03249580926 | BY115: 0.0006925691007 | BZ115: -0.0002320642174 | CB115: 0.012418241 | CC115: -0.000264664589 | CD115: 8.868310851e-05 | CF115: -0.0003829710899 | CG115: 0.0001283249371 | CI115: -2.734933774e-06
A116: 114 | B116: 0.04184791 | C116: 0.04308192 | D116: 0.00047339 | E116: -0.1026013 | F116: -0.10956157 | G116: 0.11772393 | H116: -0.07992813 | I116: 0.16061279 | J116: -0.37185516 | K116: 0.10904813 | M116: 0.03361203167 | N116: 0.03404925367 | O116: -0.01040372158 | P116: -0.1221972412 | Q116: -0.1066813225 | R116: 0.09874084471 | S116: -0.07249538621 | T116: 0.1510152448 | U116: -0.3903654816 | V116: 0.1096142447 | X116: 0.001129768673 | Y116: 0.001159351675 | Z116: 0.0001082374228 | AA116: 0.01493216575 | AB116: 0.01138090456 | AC116: 0.009749754414 | AD116: 0.005255581021 | AE116: 0.02280560416 | AF116: 0.1523852092 | AG116: 0.01201528263 | AI116: 0.001144464592 | AJ116: -0.0003496902193 | AK116: -0.00410729754 | AL116: -0.003585775989 | AM116: 0.003318880399 | AN116: -0.002436717217 | AO116: 0.00507592919 | AP116: -0.01312097693 | AQ116: 0.003684357463 | AS116: -0.0003542389553 | AT116: -0.004160724862 | AU116: -0.00363241941 | AV116: 0.003362052069 | AW116: -0.002468413795 | AX116: 0.005141956377 | AY116: -0.01329165331 | AZ116: 0.003732283222 | BB116: 0.001271306075 | BC116: 0.001109882777 | BD116: -0.001027272257 | BE116: 0.0007542218142 | BF116: -0.001571120562 | BG116: 0.004061253787 | BH116: -0.001140396083 | BJ116: 0.01303616329 | BK116: -0.01206585881 | BL116: 0.008858736192 | BM116: -0.01845364629 | BN116: 0.0477015849 | BO116: -0.01339455829 | BQ116: -0.01053380389 | BR116: 0.007733903673 | BS116: -0.01611050603 | BT116: 0.04164470582 | BU116: -0.01169379258 | BW116: -0.007158255672 | BX116: 0.01491137283 | BY116: -0.0385450174 | BZ116: 0.01082340311 | CB116: -0.01094790849 | CC116: 0.02829969635 | CD116: -0.007946527001 | CF116: -0.05895113877 | CG116: 0.01655342199 | CI116: -0.04278961741
A117: 115 | B117: 0.0747215 | C117: 0.12274011 | D117: 0.14330806 | E117: -0.03403267 | F117: -0.12286514 | G117: -0.18648399 | H117: -0.04874327 | I117: 0.11881233 | J117: -0.10694058 | K117: -0.26141131 | M117: 0.06648562167 | N117: 0.1137074437 | O117: 0.1324309484 | P117: -0.05362861117 | Q117: -0.1199848925 | R117: -0.2054670753 | S117: -0.04131052621 | T117: 0.1092147848 | U117: -0.1254509016 | V117: -0.2608451953 | X117: 0.004420337888 | Y117: 0.01292938275 | Z117: 0.0175379561 | AA117: 0.002876027936 | AB117: 0.01439637442 | AC117: 0.04221671903 | AD117: 0.001706559576 | AE117: 0.01192786922 | AF117: 0.01573792872 | AG117: 0.06804021593 | AI117: 0.00755991008 | AJ117: 0.008804753933 | AK117: -0.003565531553 | AL117: -0.007977270166 | AM117: -0.01366060623 | AN117: -0.002746556016 | AO117: 0.007261212862 | AP117: -0.008340681183 | AQ117: -0.01734245497 | AS117: 0.01505838461 | AT117: -0.006097972283 | AU117: -0.0136431754 | AV117: -0.02336313589 | AW117: -0.004697314332 | AX117: 0.01241853399 | AY117: -0.01426470133 | AZ117: -0.02966004035 | BB117: -0.007102087839 | BC117: -0.0158897131 | BD117: -0.02721019965 | BE117: -0.005470792165 | BF117: 0.01446341753 | BG117: -0.01661358188 | BH117: -0.03454397661 | BJ117: 0.006434623144 | BK117: 0.01101891389 | BL117: 0.002215426147 | BM117: -0.005857037227 | BN117: 0.006727757624 | BO117: 0.01398876556 | BQ117: 0.02465294493 | BR117: 0.004956639045 | BS117: -0.01310412421 | BT117: 0.01505221294 | BU117: 0.03129748271 | BW117: 0.008487952999 | BX117: -0.02244004241 | BY117: 0.02577602985 | BZ117: 0.05359509939 | CB117: -0.004511720229 | CC117: 0.005182442759 | CD117: 0.01077565228 | CF117: -0.01370109322 | CG117: -0.02848815187 | CI117: 0.03272326494
A118: 116 | B118: 0.04789151 | C118: -0.14012993 | D118: -0.06102399 | E118: -0.06174346 | F118: -0.06801022 | G118: 0.27524117 | H118: 0.03676976 | I118: 0.18824882 | J118: 0.01133957 | K118: 0.05646193 | M118: 0.03965563167 | N118: -0.1491625963 | O118: -0.07190110158 | P118: -0.08133940117 | Q118: -0.06512997246 | R118: 0.2562580847 | S118: 0.04420250379 | T118: 0.1786512748 | U118: -0.007170751625 | V118: 0.05702804467 | X118: 0.001572569123 | Y118: 0.02224948014 | Z118: 0.005169768409 | AA118: 0.006616098182 | AB118: 0.004241913312 | AC118: 0.06566820598 | AD118: 0.001953861341 | AE118: 0.03191627798 | AF118: 5.141967887e-05 | AG118: 0.003252197879 | AI118: -0.005915136979 | AJ118: -0.002851283601 | AK118: -0.003225565333 | AL118: -0.002582770198 | AM118: 0.01016207622 | AN118: 0.001752878209 | AO118: 0.00708452915 | AP118: -0.0002843606852 | AQ118: 0.002261483134 | AS118: 0.01072495499 | AT118: 0.01213279626 | AU118: 0.009714955791 | AV118: -0.03822412125 | AW118: -0.00659336023 | AX118: -0.02664808799 | AY118: 0.00106960793 | AZ118: -0.008506451206 | BB118: 0.005848392546 | BC118: 0.004682916766 | BD118: -0.01842523858 | BE118: -0.003178208715 | BF118: -0.01284522346 | BG118: 0.000515584941 | BH118: -0.004100379233 | BJ118: 0.005297632958 | BK118: -0.02084387915 | BL118: -0.003595405188 | BM118: -0.01453138771 | BN118: 0.0005832646431 | BO118: -0.004638627003 | BQ118: -0.016690082 | BR118: -0.002878907855 | BS118: -0.01163555261 | BT118: 0.0004670308558 | BU118: -0.003714234978 | BW118: 0.01132724896 | BX118: 0.04578083351 | BY118: -0.001837563077 | BZ118: 0.0146138975 | CB118: 0.007896833651 | CC118: -0.0003169651759 | CD118: 0.002520782361 | CF118: -0.001281063919 | CG118: 0.01018813288 | CI118: -0.000408933944
A119: 117 | B119: -0.0130804 | C119: -0.0056102 | D119: -0.01087622 | E119: 0.14834453 | F119: -0.14256579 | G119: 0.01555911 | H119: 0.2492366 | I119: 0.18779026 | J119: -0.34553446 | K119: 0.16881825 | M119: -0.02131627833 | N119: -0.01464286633 | O119: -0.02175333158 | P119: 0.1287485888 | Q119: -0.1396855425 | R119: -0.003423975292 | S119: 0.2566693438 | T119: 0.1781927148 | U119: -0.3640447816 | V119: 0.1693843647 | X119: 0.000454383722 | Y119: 0.0002144135345 | Z119: 0.000473207435 | AA119: 0.01657619913 | AB119: 0.01951205077 | AC119: 1.17236068e-05 | AD119: 0.06587915204 | AE119: 0.0317526436 | AF119: 0.132528603 | AG119: 0.02869106299 | AI119: 0.0003121314144 | AJ119: 0.0004637000707 | AK119: -0.002744440755 | AL119: 0.002977575902 | AM119: 7.298641032e-05 | AN119: -0.005471235172 | AO119: -0.003798405505 | AP119: 0.007760079891 | AQ119: -0.003610644263 | AS119: 0.0003185311267 | AT119: -0.001885248377 | AU119: 0.002045396727 | AV119: 5.013681252e-05 | AW119: -0.003758374893 | AX119: -0.002609252104 | AY119: 0.005330659077 | AZ119: -0.002480272611 | BB119: -0.002800710744 | BC119: 0.003038625922 | BD119: 7.448286985e-05 | BE119: -0.005583413343 | BF119: -0.003876285211 | BG119: 0.007919186846 | BH119: -0.00368467425 | BJ119: -0.01798431647 | BK119: -0.000440831987 | BL119: 0.03304581581 | BM119: 0.02294206057 | BN119: -0.04687025191 | BO119: 0.02180799792 | BQ119: 0.000478279846 | BR119: -0.03585299652 | BS119: -0.02489094603 | BT119: 0.0508517928 | BU119: -0.02366054686 | BW119: -0.0008788294913 | BX119: -0.0006101274526 | BY119: 0.001246480337 | BZ119: -0.0005799678794 | CB119: 0.04573660717 | CC119: -0.09343913521 | CD119: 0.04347577373 | CF119: -0.06487012794 | CG119: 0.03018305978 | CI119: -0.06166349405
A120: 118 | B120: -0.02873256 | C120: -0.02936136 | D120: 0.01229033 | E120: 0.00994887 | F120: -0.23609536 | G120: 0.07385824 | H120: -0.12755005 | I120: 0.00680805 | J120: 0.22760733 | K120: 0.45161846 | M120: -0.03696843833 | N120: -0.03839402633 | O120: 0.001413218417 | P120: -0.009647071167 | Q120: -0.2332151125 | R120: 0.05487515471 | S120: -0.1201173062 | T120: -0.002789495208 | U120: 0.2090970084 | V120: 0.4521845747 | X120: 0.001366665433 | Y120: 0.001474101258 | Z120: 1.997186293e-06 | AA120: 9.306598209e-05 | AB120: 0.05438928868 | AC120: 0.003011282604 | AD120: 0.01442816725 | AE120: 7.781283517e-06 | AF120: 0.04372155891 | AG120: 0.2044708896 | AI120: 0.001419367195 | AJ120: -5.224447789e-05 | AK120: 0.0003566371555 | AL120: 0.008621598503 | AM120: -0.002028648773 | AN120: 0.004440549227 | AO120: 0.0001031232816 | AP120: -0.00772998986 | AQ120: -0.01671655756 | AS120: -5.42591451e-05 | AT120: 0.0003703899044 | AU120: 0.008954067169 | AV120: -0.002106878135 | AW120: 0.004611787018 | AX120: 0.0001070999525 | AY120: -0.008028076046 | AZ120: -0.01736118647 | BB120: -1.363341864e-05 | BC120: -0.000329583892 | BD120: 7.755057925e-05 | BE120: -0.0001697519893 | BF120: -3.942166002e-06 | BG120: 0.0002954997431 | BH120: 0.0006390355687 | BJ120: 0.002249842787 | BK120: -0.0005293845228 | BL120: 0.001158780201 | BM120: 2.691045879e-05 | BN120: -0.002017173721 | BO120: -0.004362256772 | BQ120: -0.01279771538 | BR120: 0.02801317108 | BS120: 0.0006505524387 | BT120: -0.04876458232 | BU120: -0.1054562764 | BW120: -0.006591455761 | BX120: -0.0001530739811 | BY120: 0.01147423068 | BZ120: 0.02481369849 | CB120: 0.0003350666501 | CC120: -0.02511616938 | CD120: -0.05431519302 | CF120: -0.0005832751029 | CG120: -0.001261366704 | CI120: 0.0945504418
A121: 119 | B121: 0.02446441 | C121: -0.02053856 | D121: -0.07384467 | E121: 0.02993778 | F121: -0.1425995 | G121: 0.10989599 | H121: -0.11194753 | I121: 0.04043851 | J121: 0.23137431 | K121: 0.32040746 | M121: 0.01622853167 | N121: -0.02957122633 | O121: -0.08472178158 | P121: 0.01034183883 | Q121: -0.1397192525 | R121: 0.09091290471 | S121: -0.1045147862 | T121: 0.03084096479 | U121: 0.2128639884 | V121: 0.3209735747 | X121: 0.0002633652401 | Y121: 0.0008744574269 | Z121: 0.007177780275 | AA121: 0.0001069536305 | AB121: 0.01952146951 | AC121: 0.008265156243 | AD121: 0.01092334054 | AE121: 0.0009511651093 | AF121: 0.04531107755 | AG121: 0.1030240356 | AI121: -0.000479897583 | AJ121: -0.001374910115 | AK121: 0.000167832859 | AL121: -0.002267438313 | AM121: 0.001475382953 | AN121: -0.001696121518 | AO121: 0.0005005035738 | AP121: 0.003454469976 | AQ121: 0.005208929821 | AS121: 0.002505326979 | AT121: -0.0003058208568 | AU121: 0.004131669638 | AV121: -0.002688406082 | AW121: 0.003090630398 | AX121: -0.0009120051502 | AY121: -0.006294649178 | AZ121: -0.009491582223 | BB121: -0.0008761790108 | BC121: 0.01183726399 | BD121: -0.007702303256 | BE121: 0.008854678889 | BF121: -0.002612901483 | BG121: -0.01803421633 | BH121: -0.02719345309 | BJ121: -0.001444953991 | BK121: 0.0009402066084 | BL121: -0.001080875075 | BM121: 0.0003189522873 | BN121: 0.002201405061 | BO121: 0.003319456979 | BQ121: -0.01270228308 | BR121: 0.0146027278 | BS121: -0.004309076546 | BT121: -0.02974119733 | BU121: -0.04484618791 | BW121: -0.009501742799 | BX121: 0.002803841693 | BY121: 0.01935208349 | BZ121: 0.02918064001 | CB121: -0.003223336842 | CC121: -0.02224743424 | CD121: -0.03354648453 | CF121: 0.006564930771 | CG121: 0.009899134715 | CI121: 0.06832371527
A122: 120 | B122: 0.08018362 | C122: 0.1860543 | D122: -0.15288796 | E122: 0.02730788 | F122: -0.10990876 | G122: -0.06154098 | H122: -0.49873176 | I122: 0.23615132 | J122: 0.10087719 | K122: 0.29322426 | M122: 0.07194774167 | N122: 0.1770216337 | O122: -0.1637650716 | P122: 0.007711938833 | Q122: -0.1070285125 | R122: -0.08052406529 | S122: -0.4912990162 | T122: 0.2265537748 | U122: 0.08236686837 | V122: 0.2937903747 | X122: 0.005176477531 | Y122: 0.03133665879 | Z122: 0.02681899867 | AA122: 5.947400057e-05 | AB122: 0.01145510248 | AC122: 0.006484125091 | AD122: 0.2413747233 | AE122: 0.05132661287 | AF122: 0.006784301006 | AG122: 0.08631278425 | AI122: 0.01273630677 | AJ122: -0.01178252706 | AK122: 0.0005548565829 | AL122: -0.007700459765 | AM122: -0.005793524648 | AN122: -0.0353478547 | AO122: 0.01630003246 | AP122: 0.005926110168 | AQ122: 0.02113755398 | AS122: -0.02898996051 | AT122: 0.001365180011 | AU122: -0.01894636212 | AV122: -0.01425450159 | AW122: -0.08697055447 | AX122: 0.04010491933 | AY122: 0.0145807176 | AZ122: 0.05200725208 | BB122: -0.001262946215 | BC122: 0.017527532 | BD122: 0.01318702932 | BE122: 0.08045761856 | BF122: -0.03710159515 | BG122: -0.0134888161 | BH122: -0.04811260174 | BJ122: -0.0008253973415 | BK122: -0.0006209966661 | BL122: -0.003788867962 | BM122: 0.001747168854 | BN122: 0.0006352082508 | BO122: 0.002265693399 | BQ122: 0.008618370925 | BR122: 0.05258300288 | BS122: -0.02424771351 | BT122: -0.008815603398 | BU122: -0.03144394678 | BW122: 0.03956139406 | BX122: -0.01824303095 | BY122: -0.006632515087 | BZ122: -0.02365719531 | CB122: -0.1113056467 | CC122: -0.0404667614 | CD122: -0.144338922 | CF122: 0.01866052495 | CG122: 0.06655931838 | CI122: 0.02419859312
A123: 121 | B123: 0.0312101 | C123: -0.03467427 | D123: -0.06952148 | E123: 0.20616445 | F123: 0.15623951 | G123: -0.01432936 | H123: 0.22678506 | I123: 0.04415295 | J123: -0.16776776 | K123: -0.1079922 | M123: 0.02297422167 | N123: -0.04370693633 | O123: -0.08039859158 | P123: 0.1865685088 | Q123: 0.1591197575 | R123: -0.03331244529 | S123: 0.2342178038 | T123: 0.03455540479 | U123: -0.1862780816 | V123: -0.1074260853 | X123: 0.0005278148612 | Y123: 0.001910296284 | Z123: 0.006463933529 | AA123: 0.03480780849 | AB123: 0.02531909724 | AC123: 0.001109719011 | AD123: 0.05485797961 | AE123: 0.001194076 | AF123: 0.03469952369 | AG123: 0.01154036381 | AI123: -0.001004132844 | AJ123: -0.001847095065 | AK123: 0.004286266278 | AL123: 0.003655652581 | AM123: -0.0007653275024 | AN123: 0.005380971743 | AO123: 0.0007938835295 | AP123: -0.004279593939 | AQ123: -0.002468030697 | AS123: 0.003513976124 | AT123: -0.008154337937 | AU123: -0.006954637112 | AV123: 0.001455984925 | AW123: -0.01023694264 | AX123: -0.001510310877 | AY123: 0.008141644254 | AZ123: 0.004695265072 | BB123: -0.01499984534 | BC123: -0.0127930044 | BD123: 0.002678273684 | BE123: -0.01883078155 | BF123: -0.002778205877 | BG123: 0.01497649541 | BH123: 0.00863690596 | BJ123: 0.02968673589 | BK123: -0.006215053244 | BL123: 0.0436976664 | BM123: 0.006446950344 | BN123: -0.03475362392 | BO123: -0.02004232455 | BQ123: -0.005300668218 | BR123: 0.03726868015 | BS123: 0.005498447632 | BT123: -0.02964052318 | BU123: -0.01709361265 | BW123: -0.007802367775 | BX123: -0.001151125032 | BY123: 0.006205378403 | BZ123: 0.003578625591 | CB123: 0.008093491019 | CC123: -0.04362964317 | CD123: -0.02516110178 | CF123: -0.006436914514 | CG123: -0.003712151864 | CI123: 0.02001112509
A124: 122 | B124: 0.05430345 | C124: 0.12303854 | D124: -0.0155727 | E124: 0.14415735 | F124: -0.03499597 | G124: 0.10022257 | H124: -0.34415004 | I124: -0.01678773 | J124: -0.13291705 | K124: 0.26982078 | M124: 0.04606757167 | N124: 0.1140058737 | O124: -0.02644981158 | P124: 0.1245614088 | Q124: -0.03211572246 | R124: 0.08123948471 | S124: -0.3367172962 | T124: -0.02638527521 | U124: -0.1514273716 | V124: 0.2703868947 | X124: 0.002122221159 | Y124: 0.01299733923 | Z124: 0.0006995925328 | AA124: 0.01551554457 | AB124: 0.001031419629 | AC124: 0.006599853876 | AD124: 0.1133785376 | AE124: 0.0006961827478 | AF124: 0.02293024888 | AG124: 0.07310907281 | AI124: 0.005251973756 | AJ124: -0.001218478591 | AK124: 0.005738241628 | AL124: -0.001479493346 | AM124: 0.003742505784 | AN124: -0.01551174817 | AO124: -0.001215505557 | AP124: -0.006975891295 | AQ124: 0.01245606765 | AS124: -0.003015433878 | AT124: 0.01420073224 | AU124: -0.003661380997 | AV124: 0.00926177843 | AW124: -0.03838774953 | AX124: -0.003008076352 | AY124: -0.0172636098 | AZ124: 0.03082569415 | BB124: -0.003294625794 | BC124: 0.0008494548079 | BD124: -0.002148769064 | BE124: 0.008906109042 | BF124: 0.0006978855578 | BG124: 0.004005225448 | BH124: -0.007151682419 | BJ124: -0.004000379635 | BK124: 0.01011930467 | BL124: -0.04194198079 | BM124: -0.003286587052 | BN124: -0.01886200675 | BO124: 0.03367977253 | BQ124: -0.002609064744 | BR124: 0.01081391923 | BS124: 0.0008473821756 | BT124: 0.00486319944 | BU124: -0.008683670465 | BW124: -0.02735473964 | BX124: -0.002143526162 | BY124: -0.01230188164 | BZ124: 0.02196609199 | CB124: 0.008884378528 | CC124: 0.05098821515 | CD124: -0.0910439441 | CF124: 0.003995452874 | CG124: -0.007134232629 | CI124: -0.04094397678
A125: 123 | B125: 0.00569252 | C125: 0.04133381 | D125: -0.03145451 | E125: 0.13955939 | F125: -0.01225716 | G125: 0.01706344 | H125: 0.10108288 | I125: 0.13340792 | J125: -0.34623106 | K125: -0.12583155 | M125: -0.002543358333 | N125: 0.03230114367 | O125: -0.04233162158 | P125: 0.1199634488 | Q125: -0.009376912458 | R125: -0.001919645292 | S125: 0.1085156238 | T125: 0.1238103748 | U125: -0.3647413816 | V125: -0.1252654353 | X125: 6.468671612e-06 | Y125: 0.001043363882 | Z125: 0.001791966186 | AA125: 0.01439122906 | AB125: 8.792648725e-05 | AC125: 3.685038046e-06 | AD125: 0.01177564061 | AE125: 0.01532900891 | AF125: 0.1330362755 | AG125: 0.01569142929 | AI125: -8.215338292e-05 | AJ125: 0.0001076644825 | AK125: -0.0003051100373 | AL125: 2.384884844e-05 | AM125: 4.88234585e-06 | AN125: -0.0002759941161 | AO125: -0.0003148941485 | AP125: 0.0009276680325 | AQ125: 0.0003185948888 | AS125: -0.00136735979 | AT125: 0.003874956596 | AU125: -0.0003028849965 | AV125: -6.200673836e-05 | AW125: 0.003505178754 | AX125: 0.003999216704 | AY125: -0.01178156377 | AZ125: -0.004046216823 | BB125: -0.00507824732 | BC125: 0.0003969399098 | BD125: 8.126169806e-05 | BE125: -0.004593642322 | BF125: -0.005241093934 | BG125: 0.01544009414 | BH125: 0.005302689006 | BJ125: -0.001124886758 | BK125: -0.0002302872697 | BL125: 0.01301790848 | BM125: 0.01485271956 | BN125: -0.04375563407 | BO125: -0.01502727364 | BQ125: 1.800034585e-05 | BR125: -0.001017541505 | BS125: -0.001160959046 | BT125: 0.003420148005 | BU125: 0.001174603021 | BW125: -0.0002083115063 | BX125: -0.000237672003 | BY125: 0.0007001740759 | BZ125: 0.0002404652031 | CB125: 0.01343536005 | CC125: -0.03958013855 | CD125: -0.01359325685 | CF125: -0.04515876716 | CG125: -0.0155091605 | CI125: 0.04568948795
A126: 124 | B126: 0.03118403 | C126: 0.05187276 | D126: -0.10220077 | E126: 0.30486363 | F126: 0.07817213 | G126: 0.18901958 | H126: -0.14857167 | I126: -0.16064316 | J126: -0.54193141 | K126: -0.17914819 | M126: 0.02294815167 | N126: 0.04284009367 | O126: -0.1130778816 | P126: 0.2852676888 | Q126: 0.08105237754 | R126: 0.1700364947 | S126: -0.1411389262 | T126: -0.1702407052 | U126: -0.5604417316 | V126: -0.1785820753 | X126: 0.0005266176649 | Y126: 0.001835273625 | Z126: 0.0127866073 | AA126: 0.08137765429 | AB126: 0.006569487905 | AC126: 0.02891240953 | AD126: 0.01992019649 | AE126: 0.02898189771 | AF126: 0.3140949345 | AG126: 0.03189155763 | AI126: 0.0009831009669 | AJ126: -0.002594928377 | AK126: 0.006546366189 | AL126: 0.001860002253 | AM126: 0.003902023269 | AN126: -0.003238877485 | AO126: -0.003906709523 | AP126: -0.01286110186 | AQ126: -0.00409812855 | AS126: -0.004844267039 | AT126: 0.01222089451 | AU126: 0.003472291446 | AV126: 0.00728437936 | AW126: -0.006046404819 | AX126: -0.007293127757 | AY126: -0.02400937628 | AZ126: -0.007650472834 | BB126: -0.03225746594 | BC126: -0.00916523115 | BD126: -0.01922736661 | BE126: 0.01595969078 | BF126: 0.0192504583 | BG126: 0.06337356376 | BH126: 0.02019368277 | BJ126: 0.02312162442 | BK126: 0.04850591786 | BL126: -0.04026237528 | BM126: -0.04856417252 | BN126: -0.1598759175 | BO126: -0.0509436959 | BQ126: 0.01378186216 | BR126: -0.01143964553 | BS126: -0.01379841391 | BT126: -0.04542513482 | BU126: -0.01447450179 | BW126: -0.02399876828 | BX126: -0.02894713277 | BY126: -0.09529554753 | BZ126: -0.03036547011 | CB126: 0.02402759033 | CC126: 0.0791001442 | CD126: 0.02520488235 | CF126: 0.09540999562 | CG126: 0.03040193844 | CI126: 0.1000848475
A127: 125 | B127: -0.01399714 | C127: 0.10291734 | D127: -0.04494732 | E127: 0.07625888 | F127: -0.01267559 | G127: -0.08383225 | H127: 0.0088 | I127: 0.27667319 | J127: -0.11633776 | K127: -0.12023899 | M127: -0.02223301833 | N127: 0.09388467367 | O127: -0.05582443158 | P127: 0.05666293883 | Q127: -0.009795342458 | R127: -0.1028153353 | S127: 0.01623274379 | T127: 0.2670756448 | U127: -0.1348480816 | V127: -0.1196728753 | X127: 0.0004943071042 | Y127: 0.008814331949 | Z127: 0.003116367162 | AA127: 0.003210688637 | AB127: 9.594873388e-05 | AC127: 0.01057099317 | AD127: 0.000263501971 | AE127: 0.07132940004 | AF127: 0.01818400512 | AG127: 0.01432159709 | AI127: -0.002087339671 | AJ127: 0.001241145611 | AK127: -0.001259788158 | AL127: 0.0002177800285 | AM127: 0.002285895234 | AN127: -0.0003609028903 | AO127: -0.005937897707 | AP127: 0.002998079871 | AQ127: 0.002660689231 | AS127: -0.005241058542 | AT127: 0.005319781521 | AU127: -0.0009196325302 | AV127: -0.009652784202 | AW127: 0.001524005854 | AX127: 0.02507430976 | AY127: -0.01266016814 | AZ127: -0.01123544885 | BB127: -0.003163176352 | BC127: 0.0005468194249 | BD127: 0.005739607651 | BE127: -0.0009061836952 | BF127: -0.01490934606 | BG127: 0.007527817507 | BH127: 0.006680670241 | BJ127: -0.0005550328906 | BK127: -0.005825819055 | BL127: 0.0009197949686 | BM127: 0.01513329092 | BN127: -0.007640888601 | BO127: -0.006781016815 | BQ127: 0.001007111419 | BR127: -0.0001590052845 | BS127: -0.002616097403 | BT127: 0.001320883139 | BU127: 0.001172236797 | BW127: -0.001668974996 | BX127: -0.02745947197 | BY127: 0.01386445073 | BZ127: 0.0123042068 | CB127: 0.004335370515 | CC127: -0.00218895436 | CD127: -0.001942619124 | CF127: -0.03601463835 | CG127: -0.03196171034 | CI127: 0.01613765766
A128: 126 | B128: 0.04624232 | C128: -0.01208813 | D128: 0.05421108 | E128: -0.12086026 | F128: -0.32195324 | G128: -0.01524477 | H128: -0.00785946 | I128: 0.01405403 | J128: 0.20440724 | K128: 0.01644248 | M128: 0.03800644167 | N128: -0.02112079633 | O128: 0.04333396842 | P128: -0.1404562012 | Q128: -0.3190729925 | R128: -0.03422785529 | S128: -0.0004267162083 | T128: 0.004456484792 | U128: 0.1858969184 | V128: 0.01700859467 | X128: 0.001444489608 | Y128: 0.0004460880378 | Z128: 0.001877832819 | AA128: 0.01972794445 | AB128: 0.1018075745 | AC128: 0.001171546078 | AD128: 1.820867225e-07 | AE128: 1.98602567e-05 | AF128: 0.03455766426 | AG128: 0.0002892922925 | AI128: -0.0008027263138 | AJ128: 0.001646969943 | AK128: -0.005338240416 | AL128: -0.01212682908 | AM128: -0.001300878986 | AN128: -1.621796468e-05 | AO128: 0.0001693751293 | AP128: 0.007065280384 | AQ128: 0.000646436161 | AS128: -0.0009152479212 | AT128: 0.002966546819 | AU128: 0.006739075689 | AV128: 0.0007229195605 | AW128: 9.012586128e-06 | AX128: -9.412450765e-05 | AY128: -0.003926290952 | AZ128: -0.0003592350639 | BB128: -0.006086524585 | BC128: -0.01382669898 | BD128: -0.0014832288 | BE128: -1.849130669e-05 | BF128: 0.0001931171712 | BG128: 0.00805565119 | BH128: 0.0007370499041 | BJ128: 0.04481578042 | BK128: 0.004807514528 | BL128: 5.99349376e-05 | BM128: -0.0006259409244 | BN128: -0.02611037496 | BO128: -0.002388962594 | BQ128: 0.01092118421 | BR128: 0.0001361536175 | BS128: -0.001421943938 | BT128: -0.05931468603 | BU128: -0.005426983198 | BW128: 1.460558063e-05 | BX128: -0.0001525359166 | BY128: -0.006362852821 | BZ128: -0.000582167717 | CB128: -1.901654293e-06 | CC128: -7.932522815e-05 | CD128: -7.257843025e-06 | CF128: 0.0008284467896 | CG128: 7.579854346e-05 | CI128: 0.003161845334
A129: 127 | B129: 0.1334691 | C129: 0.03913639 | D129: -0.11652239 | E129: 0.01103616 | F129: -0.0510956 | G129: 0.01158127 | H129: -0.08361307 | I129: -0.07081421 | J129: 0.0525264 | K129: 0.07148895 | M129: 0.1252332217 | N129: 0.03010372367 | O129: -0.1273995016 | P129: -0.008559781167 | Q129: -0.04821535246 | R129: -0.007401815292 | S129: -0.07618032621 | T129: -0.08041175521 | U129: 0.03401607837 | V129: 0.07205506467 | X129: 0.01568335981 | Y129: 0.0009062341786 | Z129: 0.016230633 | AA129: 7.326985362e-05 | AB129: 0.002324720213 | AC129: 5.478686961e-05 | AD129: 0.005803442101 | AE129: 0.006466050376 | AF129: 0.001157093588 | AG129: 0.005191932344 | AI129: 0.003769986299 | AJ129: -0.01595465002 | AK129: -0.001071968972 | AL129: -0.006038163922 | AM129: -0.0009269531752 | AN129: -0.009540307679 | AO129: -0.01007022316 | AP129: 0.004259943083 | AQ129: 0.009023687886 | AS129: -0.003835199391 | AT129: -0.0002576812869 | AU129: -0.001451461647 | AV129: -0.0002228222022 | AW129: -0.002293311489 | AX129: -0.002420693258 | AY129: 0.001024010624 | AZ129: 0.002169125756 | BB129: 0.001090511854 | BC129: 0.006142611872 | BD129: 0.000942987579 | BE129: 0.009705335589 | BF129: 0.01024441753 | BG129: -0.004333631431 | BH129: -0.009179779325 | BJ129: 0.0004127128659 | BK129: 6.335791913e-05 | BL129: 0.0006520869215 | BM129: 0.0006883070278 | BN129: -0.000291170187 | BO129: -0.0006167755855 | BQ129: 0.0003568811331 | BR129: 0.003673061279 | BS129: 0.003877081119 | BT129: -0.001640097208 | BU129: -0.003474160339 | BW129: 0.0005638727035 | BX129: 0.0005951929593 | BY129: -0.0002517807291 | BZ129: -0.0005333382795 | CB129: 0.006125793743 | CC129: -0.002591355947 | CD129: -0.005489178331 | CF129: -0.002735292567 | CG129: -0.005794074221 | CI129: 0.002451030727
A130: 128 | B130: -0.00081282 | C130: 0.10070231 | D130: 0.06696274 | E130: -0.2445623 | F130: -0.06690437 | G130: -0.04289801 | H130: -0.11142161 | I130: -0.06863136 | J130: 0.41729193 | K130: -0.04528793 | M130: -0.009048698333 | N130: 0.09166964367 | O130: 0.05608562842 | P130: -0.2641582412 | Q130: -0.06402412246 | R130: -0.06188109529 | S130: -0.1039888662 | T130: -0.07822890521 | U130: 0.3987816084 | V130: -0.04472181533 | X130: 8.187894153e-05 | Y130: 0.00840332357 | Z130: 0.003145597715 | AA130: 0.06977957638 | AB130: 0.004099088257 | AC130: 0.003829269954 | AD130: 0.0108136843 | AE130: 0.00611976161 | AF130: 0.1590267712 | AG130: 0.002000040767 | AI130: -0.0008294909519 | AJ130: -0.0005075019324 | AK130: 0.002390288237 | AL130: 0.0005793349702 | AM130: 0.0005599433638 | AN130: 0.0009409638803 | AO130: 0.0007078697642 | AP130: -0.003608454475 | AQ130: 0.0004046742159 | AS130: 0.005141349572 | AT130: -0.02421529184 | AU130: -0.005869068492 | AV130: -0.005672617955 | AW130: -0.009532622311 | AX130: -0.007171215865 | AY130: 0.03655616794 | AZ130: -0.004099632876 | BB130: -0.01481548096 | BC130: -0.003590833142 | BD130: -0.003470640117 | BE130: -0.00583228091 | BF130: -0.004387517309 | BG130: 0.02236591711 | BH130: -0.002508251117 | BJ130: 0.01691249958 | BK130: 0.01634640129 | BL130: 0.027469516 | BM130: 0.02066481001 | BN130: -0.1053414483 | BO130: 0.01181363608 | BQ130: 0.003961882823 | BR130: 0.006657795904 | BS130: 0.005008537007 | BT130: -0.02553164253 | BU130: 0.002863274981 | BW130: 0.006434944939 | BX130: 0.004840890338 | BY130: -0.02467704271 | BZ130: 0.002767434916 | CB130: 0.008134935157 | CC130: -0.04146884732 | CD130: 0.004650570871 | CF130: -0.03119624864 | CG130: 0.003498538652 | CI130: -0.01783423745
A131: 129 | B131: -0.00391928 | C131: -0.08241571 | D131: 0.04588827 | E131: -0.00309978 | F131: 0.18464222 | G131: -0.10573796 | H131: 0.06639521 | I131: -0.11197466 | J131: -0.22750083 | K131: 0.28626217 | M131: -0.01215515833 | N131: -0.09144837633 | O131: 0.03501115842 | P131: -0.02269572117 | Q131: 0.1875224675 | R131: -0.1247210453 | S131: 0.07382795379 | T131: -0.1215722052 | U131: -0.2460111516 | V131: 0.2868282847 | X131: 0.0001477478741 | Y131: 0.008362805534 | Z131: 0.001225781214 | AA131: 0.0005150957593 | AB131: 0.03516467583 | AC131: 0.01555533914 | AD131: 0.005450566761 | AE131: 0.01477980108 | AF131: 0.06052148672 | AG131: 0.08227046488 | AI131: 0.001111569494 | AJ131: -0.000425566174 | AK131: 0.0002758700843 | AL131: -0.002279365284 | AM131: 0.001516004053 | AN131: -0.0008973904678 | AO131: 0.001477729403 | AP131: 0.0029903045 | AQ131: -0.003486443215 | AS131: -0.003201713591 | AT131: 0.00207548685 | AU131: -0.01714862518 | AV131: 0.01140553709 | AW131: -0.006751446502 | AX131: 0.01111758077 | AY131: 0.02249732038 | AZ131: -0.02622998092 | BB131: -0.0007946034891 | BC131: 0.006565378818 | BD131: -0.004366628275 | BE131: 0.002584802186 | BF131: -0.004256383736 | BG131: -0.008613135402 | BH131: 0.01004219051 | BJ131: -0.004255957636 | BK131: 0.002830634068 | BL131: -0.001675578654 | BM131: 0.002759168871 | BN131: 0.005583400501 | BO131: -0.006509774772 | BQ131: -0.02338799817 | BR131: 0.01384440007 | BS131: -0.02279751991 | BT131: -0.0461326182 | BU131: 0.0537867477 | BW131: -0.009207899569 | BX131: 0.01516261251 | BY131: 0.03068276798 | BZ131: -0.03577352348 | CB131: -0.008975427148 | CC131: -0.01816249993 | CD131: 0.02117594535 | CF131: 0.02990811821 | CG131: -0.03487034708 | CI131: -0.07056295663
A132: 130 | B132: -0.0143432 | C132: 0.07931225 | D132: -0.19757902 | E132: -0.04727521 | F132: 0.01304434 | G132: 0.05216956 | H132: 0.07703849 | I132: 0.13133968 | J132: 0.1625556 | K132: -0.17531086 | M132: =B132-B$244 -> -0.02257907833 | N132: =C132-C$244 -> 0.07027958367 | O132: =D132-D$244 -> -0.2084561316 | P132: =E132-E$244 -> -0.06687115117 | Q132: =F132-F$244 -> 0.01592458754 | R132: =G132-G$244 -> 0.03318647471 | S132: =H132-H$244 -> 0.08447123379 | T132: =I132-I$244 -> 0.1217421348 | U132: =J132-J$244 -> 0.1440452784 | V132: =K132-K$244 -> -0.1747447453 | X132: =M132^2 -> 0.0005098147784 | Y132: =N132^2 -> 0.00493921988 | Z132: =O132^2 -> 0.04345395879 | AA132: =P132^2 -> 0.004471750858 | AB132: =Q132^2 -> 0.0002535924884 | AC132: =R132^2 -> 0.001101342104 | AD132: =S132^2 -> 0.007135389338 | AE132: =T132^2 -> 0.01482114738 | AF132: =U132^2 -> 0.02074904222 | AG132: =V132^2 -> 0.03053572602 | AI132: =$M132*N132 -> -0.001586848225 | AJ132: =$M132*O132 -> 0.004706747324 | AK132: =$M132*P132 -> 0.00150988896 | AL132: =$M132*Q132 -> -0.0003595625095 | AM132: =$M132*R132 -> -0.000749320012 | AN132: =$M132*S132 -> -0.001907282605 | AO132: =$M132*T132 -> -0.002748825198 | AP132: =$M132*U132 -> -0.003252409624 | AQ132: =$M132*V132 -> 0.003945575293 | AS132: =$N132*O132 -> -0.01465021014 | AT132: =$N132*P132 -> -0.004699676663 | AU132: =$N132*Q132 -> 0.001119173382 | AV132: =$N132*R132 -> 0.002332331626 | AW132: =$N132*S132 -> 0.005936603143 | AX132: =$N132*T132 -> 0.008555986548 | AY132: =$N132*U132 -> 0.01012344219 | AZ132: =$N132*V132 -> -0.01228098795 | BB132: =$O132*P132 -> 0.01393970149 | BC132: =$O132*Q132 -> -0.003319577916 | BD132: =$O132*R132 -> -0.006917924139 | BE132: =$O132*S132 -> -0.01760854663 | BF132: =$O132*T132 -> -0.02537789447 | BG132: =$O132*U132 -> -0.0300271215 | BH132: =$O132*V132 -> 0.03642661363 | BJ132: =$P132*Q132 -> -0.001064895501 | BK132: =$P132*R132 -> -0.002219217767 | BL132: =$P132*S132 -> -0.005648688644 | BM132: =$P132*T132 -> -0.008141036699 | BN132: =$P132*U132 -> -0.009632473585 | BO132: =$P132*V132 -> 0.01168538228 | BQ132: =$Q132*R132 -> 0.0005284809217 | BR132: =$Q132*S132 -> 0.001345169557 | BS132: =$Q132*T132 -> 0.001938693283 | BT132: =$Q132*U132 -> 0.002293861645 | BU132: =$Q132*V132 -> -0.002782737995 | BW132: =$R132*S132 -> 0.002803302464 | BX132: =$R132*T132 -> 0.004040192277 | BY132: =$R132*U132 -> 0.004780354988 | BZ132: =$R132*V132 -> -0.005799162071 | CB132: =$S132*T132 -> 0.01028370833 | CC132: =$S132*U132 -> 0.01216768239 | CD132: =$S132*V132 -> -0.01476090424 | CF132: =$T132*U132 -> 0.0175363797 | CG132: =$T132*V132 -> -0.02127379834 | CI132: =U132*V132 -> -0.02517115549
A133: 131 | B133: -0.03168731 | C133: 0.00407206 | D133: 0.03572149 | E133: 0.04338296 | F133: 0.14041692 | G133: 0.02189471 | H133: -0.06089391 | I133: 0.1044144 | J133: -0.05076469 | K133: -0.44941732 | M133: -0.03992318833 | N133: -0.004960606333 | O133: 0.02484437842 | P133: 0.02378701883 | Q133: 0.1432971675 | R133: 0.002911624708 | S133: -0.05346116621 | T133: 0.09481685479 | U133: -0.06927501163 | V133: -0.4488512053 | X133: 0.001593860967 | Y133: 2.460761519e-05 | Z133: 0.0006172431389 | AA133: 0.000565822265 | AB133: 0.02053407823 | AC133: 8.477558442e-06 | AD133: 0.002858096292 | AE133: 0.008990235953 | AF133: 0.004799027236 | AG133: 0.2014674045 | AI133: 0.0001980432209 | AJ133: -0.0009918667986 | AK133: -0.0009496536328 | AL133: -0.005720879807 | AM133: -0.0001162413416 | AN133: 0.002134340207 | AO133: -0.003785391151 | AP133: 0.002765679336 | AQ133: 0.0179195712 | AS133: -0.0001232431809 | AT133: -0.0001179980363 | AU133: -0.0007108408369 | AV133: -1.444342397e-05 | AW133: 0.0002651997997 | AX133: -0.0004703490904 | AY133: 0.0003436460614 | AZ133: 0.002226574132 | BB133: 0.0005909736973 | BC133: 0.003560129056 | BD133: 7.233750606e-05 | BE133: -0.001328209444 | BF133: 0.002355665821 | BG133: -0.001721094604 | BH133: -0.0111514292 | BJ133: 0.003408612423 | BK133: 6.925887177e-05 | BL133: -0.001271681767 | BM133: 0.002255410311 | BN133: -0.001647846006 | BO133: -0.01067683207 | BQ133: 0.0004172275736 | BR133: -0.007660833691 | BS133: 0.01358698673 | BT133: -0.009926912947 | BU133: -0.06431910637 | BW133: -0.0001556588525 | BX133: 0.0002760710972 | BY133: -0.0002017028355 | BZ133: -0.00130688626 | CB133: -0.005069019633 | CC133: 0.003703522911 | CD133: 0.02399610889 | CF133: -0.006568438718 | CG133: -0.04255865956 | CI133: 0.03109417247
A134: 132 | B134: 0.01234146 | C134: -0.09801828 | D134: 0.05069941 | E134: -0.0901442 | F134: 0.31776119 | G134: 0.15352683 | H134: -0.07677903 | I134: -0.02937886 | J134: 0.04466765 | K134: -0.11950392 | M134: 0.004105581667 | N134: -0.1070509463 | O134: 0.03982229842 | P134: -0.1097401412 | Q134: 0.3206414375 | R134: 0.1345437447 | S134: -0.06934628621 | T134: -0.03897640521 | U134: 0.02615732837 | V134: -0.1189378053 | X134: 1.685580082e-05 | Y134: 0.01145990511 | Z134: 0.001585815451 | AA134: 0.01204289858 | AB134: 0.1028109315 | AC134: 0.01810201924 | AD134: 0.004808907411 | AE134: 0.001519160163 | AF134: 0.0006842058277 | AG134: 0.01414620154 | AI134: -0.0004395064027 | AJ134: 0.0001634936983 | AK134: -0.0004505471117 | AL134: 0.001316419608 | AM134: 0.0005523803316 | AN134: -0.0002847068413 | AO134: -0.0001600208147 | AP134: 0.0001073910478 | AQ134: -0.0004883088731 | AS134: -0.004263014731 | AT134: 0.01174778596 | AU134: -0.03432496932 | AV134: -0.01440303519 | AW134: 0.007423585563 | AX134: 0.004172461062 | AY134: -0.002800166756 | AZ134: 0.01273240462 | BB134: -0.00437010465 | BC134: 0.01276867901 | BD134: 0.005357841152 | BE134: -0.002761528503 | BF134: -0.001552130039 | BG134: 0.001041644936 | BH134: -0.004736376777 | BJ134: -0.03518723662 | BK134: -0.01476484954 | BL134: 0.007610071238 | BM134: 0.00427727621 | BN134: -0.002870508908 | BO134: 0.01305225155 | BQ134: 0.04314029972 | BR134: -0.0222352929 | BS134: -0.0124974506 | BT134: 0.008387123372 | BU134: -0.03813638888 | BW134: -0.009330109028 | BX134: -0.005244031512 | BY134: 0.003519304911 | BZ134: -0.01600233772 | CB134: 0.002702868951 | CC134: -0.00181391358 | CD134: 0.00824789509 | CF134: -0.00101951863 | CG134: 0.004635768095 | CI134: -0.00311109523
A135: 133 | B135: -0.10260856 | C135: 0.05317741 | D135: 0.11574932 | E135: -0.01991604 | F135: 0.14296745 | G135: 0.03488618 | H135: 0.0658875 | I135: -0.24670121 | J135: -0.11380909 | K135: 0.12442112 | M135: -0.1108444383 | N135: 0.04414474367 | O135: 0.1048722084 | P135: -0.03951198117 | Q135: 0.1458476975 | R135: 0.01590309471 | S135: 0.07332024379 | T135: -0.2562987552 | U135: -0.1323194116 | V135: 0.1249872347 | X135: 0.01228648951 | Y135: 0.001948758393 | Z135: 0.0109981801 | AA135: 0.001561196656 | AB135: 0.02127155088 | AC135: 0.0002529084213 | AD135: 0.00537585815 | AE135: 0.06568905192 | AF135: 0.01750842669 | AG135: 0.01562180883 | AI135: -0.004893199317 | AJ135: -0.01162450104 | AK135: 0.00437968336 | AL135: -0.01616640612 | AM135: -0.001762769601 | AN135: -0.008127141242 | AO135: 0.02840929157 | AP135: 0.01466687086 | AQ135: -0.01385413983 | AS135: 0.004629556758 | AT135: -0.00174424628 | AU135: 0.006438409222 | AV135: 0.0007020380394 | AW135: 0.003236703368 | AX135: -0.01131424285 | AY135: -0.005841206508 | AZ135: 0.005517529436 | BB135: -0.004143708724 | BC135: 0.01529537013 | BD135: 0.001667792663 | BE135: 0.007689255888 | BF135: -0.02687861647 | BG135: -0.01387662891 | BH135: 0.01310768732 | BJ135: -0.005762731478 | BK135: -0.0006283627786 | BL135: -0.002897028092 | BM135: 0.01012687159 | BN135: 0.0052282021 | BO135: -0.004938493262 | BQ135: 0.002319429747 | BR135: 0.01069358874 | BS135: -0.03738058333 | BT135: -0.01929848153 | BU135: 0.0182291004 | BW135: 0.001166018781 | BX135: -0.004075943378 | BY135: -0.002104288135 | BZ135: 0.00198768383 | CB135: -0.01879188722 | CC135: -0.009701691519 | CD135: 0.009164094517 | CF135: 0.03391330049 | CG135: -0.03203407266 | CI135: -0.01653823735
A136: 134 | B136: 0.03681399 | C136: -0.0120787 | D136: -0.05963144 | E136: -0.01303414 | F136: -0.06826474 | G136: 0.13575298 | H136: -0.08255693 | I136: 0.31234729 | J136: -0.10593561 | K136: 0.1386478 | M136: 0.02857811167 | N136: -0.02111136633 | O136: -0.07050855158 | P136: -0.03263008117 | Q136: -0.06538449246 | R136: 0.1167698947 | S136: -0.07512418621 | T136: 0.3027497448 | U136: -0.1244459316 | V136: 0.1392139147 | X136: 0.0008167084664 | Y136: 0.0004456897885 | Z136: 0.004971455846 | AA136: 0.001064722197 | AB136: 0.004275131854 | AC136: 0.01363520831 | AD136: 0.005643643353 | AE136: 0.09165740797 | AF136: 0.0154867899 | AG136: 0.01938051404 | AI136: -0.0006033229845 | AJ136: -0.002015001261 | AK136: -0.0009325061033 | AL136: -0.001868565327 | AM136: 0.00333706309 | AN136: -0.002146907382 | AO136: 0.008652016014 | AP136: -0.00355642973 | AQ136: 0.003978470799 | AS136: 0.001488531862 | AT136: 0.000688865597 | AU136: 0.001380355973 | AV136: -0.002465172024 | AW136: 0.001585974216 | AX136: -0.00639146077 | AY136: 0.002627223651 | AZ136: -0.002938995951 | BB136: 0.002300699761 | BC136: 0.004610165859 | BD136: -0.008233276144 | BE136: 0.005296897558 | BF136: -0.021346446 | BG136: 0.008774502389 | BH136: -0.009815771483 | BJ136: 0.002133501296 | BK136: -0.003810211142 | BL136: 0.002451308294 | BM136: -0.009878748746 | BN136: 0.00406068085 | BO136: -0.004542561335 | BQ136: -0.0076349403 | BR136: 0.004911956787 | BS136: -0.01979513841 | BT136: 0.008136834078 | BU136: -0.009102431154 | BW136: -0.008772243314 | BX136: 0.03535205582 | BY136: -0.01453153833 | BZ136: 0.01625599416 | CB136: -0.0227438282 | CC136: 0.00934889934 | CD136: -0.01045833205 | CF136: -0.03767597404 | CG136: 0.04214697714 | CI136: -0.01732460531
A137: 135 | B137: 0.02348793 | C137: 0.03605019 | D137: -0.1051631 | E137: 0.08446098 | F137: -0.08247356 | G137: 0.13853922 | H137: -0.05838103 | I137: 0.38796564 | J137: -0.05045034 | K137: -0.11518121 | M137: 0.01525205167 | N137: 0.02701752367 | O137: -0.1160402116 | P137: 0.06486503883 | Q137: -0.07959331246 | R137: 0.1195561347 | S137: -0.05094828621 | T137: 0.3783680948 | U137: -0.06896066163 | V137: -0.1146150953 | X137: 0.00023262508 | Y137: 0.0007299465851 | Z137: 0.0134653307 | AA137: 0.004207473263 | AB137: 0.006335095388 | AC137: 0.01429366935 | AD137: 0.002595727868 | AE137: 0.1431624152 | AF137: 0.004755572852 | AG137: 0.01313662008 | AI137: 0.0004120726669 | AJ137: -0.001769851302 | AK137: 0.0009893249236 | AL137: -0.001213961314 | AM137: 0.001823476344 | AN137: -0.0007770658936 | AO137: 0.005770889731 | AP137: -0.001051791574 | AQ137: -0.001748115356 | AS137: -0.003135119163 | AT137: 0.001752492722 | AU137: -0.002150414203 | AV137: 0.003230110699 | AW137: -0.001376496528 | AX137: 0.01022256896 | AY137: -0.001863146308 | AZ137: -0.003096616051 | BB137: -0.007526952831 | BC137: 0.009236024818 | BD137: -0.01387331917 | BE137: 0.005912049911 | BF137: -0.04390591378 | BG137: 0.008002209766 | BH137: 0.01329995991 | BJ137: -0.005162823303 | BK137: 0.007755013321 | BL137: -0.003304762563 | BM137: 0.02454286116 | BN137: -0.004473135994 | BO137: -0.00743451261 | BQ137: -0.009515868786 | BR137: 0.004055142863 | BS137: -0.03011556999 | BT137: 0.005488807488 | BU137: 0.009122595095 | BW137: -0.006091180169 | BX137: 0.04523622691 | BY137: -0.008244670151 | BZ137: -0.01370293778 | CB137: -0.01927720599 | CC137: 0.003513427526 | CD137: 0.005839442681 | CF137: -0.02609251415 | CG137: -0.04336669526 | CI137: 0.007903932806
A138: 136 | B138: -0.16314185 | C138: 0.0846866 | D138: 0.0551895 | E138: -0.04665733 | F138: -0.00613207 | G138: 0.00744257 | H138: 0.21762351 | I138: 0.04001041 | J138: 0.14220143 | K138: 0.3469314 | M138: -0.1713777283 | N138: 0.07565393367 | O138: 0.04431238842 | P138: -0.06625327117 | Q138: -0.003251822458 | R138: -0.01154051529 | S138: 0.2250562538 | T138: 0.03041286479 | U138: 0.1236911084 | V138: 0.3474975147 | X138: 0.02937032577 | Y138: 0.005723517679 | Z138: 0.001963587767 | AA138: 0.00438949594 | AB138: 1.05743493e-05 | AC138: 0.0001331834932 | AD138: 0.05065031737 | AE138: 0.0009249423448 | AF138: 0.01529949029 | AG138: 0.1207545227 | AI138: -0.01296539929 | AJ138: -0.007594156464 | AK138: 0.01135433511 | AL138: 0.0005572899459 | AM138: 0.001977787294 | AN138: -0.03856962952 | AO138: -0.00521208768 | AP138: -0.02119790117 | AQ138: -0.05955333467 | AS138: 0.003352406494 | AT138: -0.005012320582 | AU138: -0.0002460131606 | AV138: -0.0008730853784 | AW138: 0.0170263909 | AX138: 0.002300852856 | AY138: 0.009357718908 | AZ138: 0.02628955392 | BB138: -0.002935840686 | BC138: -0.0001440960198 | BD138: -0.0005113877961 | BE138: 0.009972780134 | BF138: 0.001347666678 | BG138: 0.005481048438 | BH138: 0.01539844484 | BJ138: 0.0002154438751 | BK138: 0.000764596889 | BL138: -0.01491071301 | BM138: -0.002014951778 | BN138: -0.008194940544 | BO138: -0.02302284707 | BQ138: 3.752770681e-05 | BR138: -0.0007318429805 | BS138: -9.889723675e-05 | BT138: -0.0004022215241 | BU138: -0.001130000222 | BW138: -0.002597265138 | BX138: -0.0003509801312 | BY138: -0.001427459128 | BZ138: -0.004010300382 | CB138: 0.006844605417 | CC138: 0.02783745748 | CD138: 0.07820648885 | CF138: 0.003761800955 | CG138: 0.01056839493 | CI138: 0.04298235275
A139: 137 | B139: -0.01410072 | C139: -0.09699899 | D139: 0.04479351 | E139: 0.00327159 | F139: -0.10283049 | G139: 0.19481846 | H139: 0.12312452 | I139: -0.04622034 | J139: 0.21406451 | K139: -0.07559548 | M139: -0.02233659833 | N139: -0.1060316563 | O139: 0.03391639842 | P139: -0.01632435117 | Q139: -0.09995024246 | R139: 0.1758353747 | S139: 0.1305572638 | T139: -0.05581788521 | U139: 0.1955541884 | V139: -0.07502936533 | X139: 0.0004989236251 | Y139: 0.01124271214 | Z139: 0.001150322082 | AA139: 0.000266484441 | AB139: 0.009990050967 | AC139: 0.030918079 | AD139: 0.01704519913 | AE139: 0.003115636309 | AF139: 0.03824144059 | AG139: 0.005629405662 | AI139: 0.002368386518 | AJ139: -0.0007575769683 | AK139: 0.0003646304751 | AL139: 0.002232548419 | AM139: -0.003927564138 | AN139: -0.002916205161 | AO139: 0.001246781682 | AP139: -0.004368015358 | AQ139: 0.001675900797 | AS139: -0.003596211901 | AT139: 0.001730897993 | AU139: 0.01059788976 | AV139: -0.01864411602 | AW139: -0.01384320293 | AX139: 0.005918462822 | AY139: -0.0207349345 | AZ139: 0.00795548788 | BB139: -0.0005536631981 | BC139: -0.003389952245 | BD139: 0.005963702624 | BE139: 0.004428032175 | BF139: -0.001893141634 | BG139: 0.006632493765 | BH139: -0.002544725848 | BJ139: 0.001631622857 | BK139: -0.002870398404 | BL139: -0.002131262621 | BM139: 0.0009111907595 | BN139: -0.003192295243 | BO139: 0.001224805708 | BQ139: -0.01757478833 | BR139: -0.01304923017 | BS139: 0.00557901116 | BT139: -0.01954568854 | BU139: 0.007499203257 | BW139: 0.0229565854 | BX139: -0.009814758761 | BY139: 0.03438534399 | BZ139: -0.01319281657 | CB139: -0.007287430363 | CC139: 0.02553101976 | CD139: -0.009795628642 | CF139: -0.01091542124 | CG139: 0.004187980501 | CI139: -0.01467230664
A140: 138 | B140: -0.06480897 | C140: 0.04105695 | D140: 0.02553012 | E140: -0.02707526 | F140: -0.13405442 | G140: 0.05255858 | H140: 0.12900732 | I140: 0.23466516 | J140: 0.13148546 | K140: -0.18651496 | M140: -0.07304484833 | N140: 0.03202428367 | O140: 0.01465300842 | P140: -0.04667120117 | Q140: -0.1311741725 | R140: 0.03357549471 | S140: 0.1364400638 | T140: 0.2250676148 | U140: 0.1129751384 | V140: -0.1859488453 | X140: 0.005335549868 | Y140: 0.001025554744 | Z140: 0.0002147106557 | AA140: 0.002178201018 | AB140: 0.01720666352 | AC140: 0.001127313845 | AD140: 0.01861589101 | AE140: 0.05065543123 | AF140: 0.01276338189 | AG140: 0.03457697308 | AI140: -0.002339208943 | AJ140: -0.001070326777 | AK140: 0.003409090811 | AL140: 0.009581597532 | AM140: -0.002452516919 | AN140: -0.009966243766 | AO140: -0.01644002979 | AP140: -0.008252251848 | AQ140: 0.01358260521 | AS140: 0.0004692520981 | AT140: -0.001494611785 | AU140: -0.004200758909 | AV140: 0.001075231167 | AW140: 0.004369395306 | AX140: 0.00720762914 | AY140: 0.003617947879 | AZ140: -0.00595487857 | BB140: -0.0006838735035 | BC140: -0.001922096253 | BD140: 0.0004919820066 | BE140: 0.001999257403 | BF140: 0.003297917654 | BG140: 0.001655425653 | BH140: -0.002724709996 | BJ140: 0.006122056191 | BK140: -0.001567008668 | BL140: -0.006367821664 | BM140: -0.01050417593 | BN140: -0.00527268541 | BO140: 0.008678455967 | BQ140: -0.004404237733 | BR140: -0.01789741246 | BS140: -0.02952305812 | BT140: -0.01481942028 | BU140: 0.02439168591 | BW140: 0.00458104264 | BX140: 0.007556756509 | BY140: 0.003793196161 | BZ140: -0.006243324473 | CB140: 0.03070823972 | CC140: 0.01541433509 | CD140: -0.02537087232 | CF140: 0.02542704492 | CG140: -0.04185106309 | CI140: -0.02100759653
A141: 139 | B141: 0.04496368 | C141: -0.00750058 | D141: -0.02757747 | E141: -0.03453071 | F141: 0.18255327 | G141: -0.1709923 | H141: -0.03980044 | I141: 0.08573635 | J141: -0.01977128 | K141: 0.18731867 | M141: 0.03672780167 | N141: -0.01653324633 | O141: -0.03845458158 | P141: -0.05412665117 | Q141: 0.1854335175 | R141: -0.1899753853 | S141: -0.03236769621 | T141: 0.07613880479 | U141: -0.03828160163 | V141: 0.1878847847 | X141: 0.001348931415 | Y141: 0.0002733482343 | Z141: 0.001478754845 | AA141: 0.002929694367 | AB141: 0.03438558943 | AC141: 0.03609064702 | AD141: 0.001047667758 | AE141: 0.005797117595 | AF141: 0.001465481023 | AG141: 0.03530069231 | AI141: -0.0006072297922 | AJ141: -0.001412352246 | AK141: -0.001987952909 | AL141: 0.006810565455 | AM141: -0.006977378273 | AN141: -0.001188794327 | AO141: 0.002796410922 | AP141: -0.001405999072 | AQ141: 0.006900595107 | AS141: 0.00063577907 | AT141: 0.0008948892569 | AU141: -0.003065818024 | AV141: 0.003140909842 | AW141: 0.0005351430947 | AX141: -0.001258821615 | AY141: 0.0006329191497 | AZ141: -0.003106345427 | BB141: 0.002081417723 | BC141: -0.007130768329 | BD141: 0.007305423953 | BE141: 0.001244686215 | BF141: -0.002927885881 | BG141: 0.001472102973 | BH141: -0.00722503078 | BJ141: -0.01003689532 | BK141: 0.01028273141 | BL141: 0.001751955002 | BM141: -0.004121138527 | BN141: 0.002072054897 | BO141: -0.0101695742 | BQ141: -0.03522780394 | BR141: -0.006002055763 | BS141: 0.01411868639 | BT141: -0.007098692046 | BU141: 0.03484013651 | BW141: 0.006149065558 | BX141: -0.01446449878 | BY141: 0.007272562018 | BZ141: -0.03569348436 | CB141: -0.002464437703 | CC141: 0.001239087252 | CD141: -0.006081397632 | CF141: -0.002914715393 | CG141: 0.01430532294 | CI141: -0.007192530478
A142: 140 | B142: -0.02779532 | C142: -0.01813487 | D142: 0.07329873 | E142: 0.02294417 | F142: -0.03714405 | G142: 0.01840477 | H142: 0.0537719 | I142: -0.20887198 | J142: 0.07341228 | K142: 0.00013139 | M142: -0.03603119833 | N142: -0.02716753633 | O142: 0.06242161842 | P142: 0.003348228833 | Q142: -0.03426380246 | R142: -0.0005783152917 | S142: 0.06120464379 | T142: -0.2184695252 | U142: 0.05490195837 | V142: 0.0006975046667 | X142: 0.001298247253 | Y142: 0.0007380750304 | Z142: 0.003896458446 | AA142: 1.121063632e-05 | AB142: 0.001174008159 | AC142: 3.344485766e-07 | AD142: 0.003746008422 | AE142: 0.04772893344 | AF142: 0.003014225033 | AG142: 4.8651276e-07 | AI142: 0.0009788788899 | AJ142: -0.002249125713 | AK142: -0.0001206406972 | AL142: 0.001234565862 | AM142: 2.083739297e-05 | AN142: -0.002205276659 | AO142: 0.007871718793 | AP142: -0.001978183351 | AQ142: -2.513192898e-05 | AS142: -0.001695841586 | AT142: -9.096312848e-05 | AU142: 0.0009308630982 | AV142: 1.57114017e-05 | AW142: -0.001662779384 | AX142: 0.005935278764 | AY142: -0.001491550949 | AZ142: -1.894948337e-05 | BB142: 0.0002090018626 | BC142: -0.002138802003 | BD142: -3.609937646e-05 | BE142: 0.00382049292 | BF142: -0.01363722134 | BG142: 0.003427069096 | BH142: 4.353937015e-05 | BJ142: -0.0001147230513 | BK142: -1.936331934e-06 | BL142: 0.0002049271531 | BM142: -0.0007314859635 | BN142: 0.00018382432 | BO142: 2.335405236e-06 | BQ142: 1.981528091e-05 | BR142: -0.002097103824 | BS142: 0.007485596655 | BT142: -0.001881149856 | BU142: -2.389916211e-05 | BW142: -3.539558143e-05 | BX142: 0.0001263442672 | BY142: -3.175064207e-05 | BZ142: -4.033776147e-07 | CB142: -0.01337134947 | CC142: 0.003360254806 | CD142: 4.269052467e-05 | CF142: -0.01199440478 | CG142: -0.0001523835134 | CI142: 3.829437218e-05
A143: 141 | B143: 0.00074012 | C143: -0.04773088 | D143: 0.0143902 | E143: -0.12990625 | F143: 0.10334838 | G143: 0.10699859 | H143: -0.00102375 | I143: 0.13323149 | J143: 0.27437262 | K143: -0.15378803 | M143: -0.007495758333 | N143: -0.05676354633 | O143: 0.003513088417 | P143: -0.1495021912 | Q143: 0.1062286275 | R143: 0.08801550471 | S143: 0.006408993792 | T143: 0.1236339448 | U143: 0.2558622984 | V143: -0.1532219153 | X143: 5.618639299e-05 | Y143: 0.003222100192 | Z143: 1.234179022e-05 | AA143: 0.02235090516 | AB143: 0.01128452131 | AC143: 0.007746729069 | AD143: 4.107520142e-05 | AE143: 0.0152853523 | AF143: 0.06546551573 | AG143: 0.02347695534 | AI143: 0.0004254858255 | AJ143: -2.633326177e-05 | AK143: 0.001120632295 | AL143: -0.0007962641201 | AM143: -0.0006597429529 | AN143: -4.804026862e-05 | AO143: -0.000926730172 | AP143: -0.001917881955 | AQ143: 0.001148514449 | AS143: -0.0001994153571 | AT143: 0.008486274555 | AU143: -0.006029913621 | AV143: -0.00499607218 | AW143: -0.000363797216 | AX143: -0.007017901154 | AY143: -0.01452365143 | AZ143: 0.00869741929 | BB143: -0.0005252144161 | BC143: 0.0003731905609 | BD143: 0.0003092062501 | BE143: 2.251536185e-05 | BF143: 0.0004343369794 | BG143: 0.0008988668767 | BH143: -0.0005382821359 | BJ143: -0.01588141258 | BK143: -0.01315851081 | BL143: -0.000958158615 | BM143: -0.01848354565 | BN143: -0.03825197424 | BO143: 0.02290701208 | BQ143: 0.009349766268 | BR143: 0.0006808186144 | BS143: 0.01313346427 | BT143: 0.0271799008 | BU143: -0.01627655378 | BW143: 0.0005640908232 | BX143: 0.01088170405 | BY143: 0.02251984933 | BZ143: -0.01348590421 | CB143: 0.0007923691846 | CC143: 0.001639819882 | CD143: -0.0009819983041 | CF143: 0.03163326527 | CG143: -0.01894342982 | CI143: -0.03920371142
A144: 142 | B144: 0.02665144 | C144: -0.08717795 | D144: -0.04067968 | E144: 0.10851866 | F144: -0.1266225 | G144: 0.20525328 | H144: -0.08704227 | I144: -0.21077851 | J144: 0.17157033 | K144: 0.25853538 | M144: 0.01841556167 | N144: -0.09621061633 | O144: -0.05155679158 | P144: 0.08892271883 | Q144: -0.1237422525 | R144: 0.1862701947 | S144: -0.07960952621 | T144: -0.2203760552 | U144: 0.1530600084 | V144: 0.2591014947 | X144: 0.0003391329115 | Y144: 0.009256482695 | Z144: 0.002658102758 | AA144: 0.007907249925 | AB144: 0.01531214504 | AC144: 0.03469658544 | AD144: 0.006337676663 | AE144: 0.04856560571 | AF144: 0.02342736616 | AG144: 0.06713358454 | AI144: -0.001771772538 | AJ144: -0.0009494472747 | AK144: 0.001637561812 | AL144: -0.002278783081 | AM144: 0.003430270257 | AN144: -0.001466054139 | AO144: -0.004058348835 | AP144: 0.002818686023 | AQ144: 0.004771499553 | AS144: 0.004960310694 | AT144: -0.008555309585 | AU144: 0.01190531838 | AV144: -0.01792117024 | AW144: 0.007659281583 | AX144: 0.0212025161 | AY144: -0.01472599774 | AZ144: -0.02492831449 | BB144: -0.004584570082 | BC144: 0.00637975352 | BD144: -0.009603493607 | BE144: 0.004104411751 | BF144: 0.01136188235 | BG144: -0.007891282952 | BH144: -0.01335844176 | BJ144: -0.01100349752 | BK144: 0.01656365215 | BL144: -0.007079095515 | BM144: -0.01959643799 | BN144: 0.01361051209 | BO144: 0.02304000936 | BQ144: -0.02304949346 | BR144: 0.00985106209 | BS144: 0.02726982946 | BT144: -0.0189399902 | BU144: -0.03206180257 | BW144: -0.01482888195 | BX144: -0.04104949071 | BY144: 0.02851051756 | BZ144: 0.04826288586 | CB144: 0.01754403334 | CC144: -0.01218503475 | CD144: -0.02062694723 | CF144: -0.03373076086 | CG144: -0.05709976529 | CI144: 0.03965807694
A145: 143 | B145: 0.00858978 | C145: -0.0095974 | D145: 0.05820169 | E145: 0.06937719 | F145: 0.1118681 | G145: -0.09491104 | H145: 0.06638045 | I145: 0.1835165 | J145: 0.09066993 | K145: -0.3274483 | M145: 0.0003539016667 | N145: -0.01863006633 | O145: 0.04732457842 | P145: 0.04978124883 | Q145: 0.1147483475 | R145: -0.1138941253 | S145: 0.07381319379 | T145: 0.1739189548 | U145: 0.07215960837 | V145: -0.3268821853 | X145: 1.252463897e-07 | Y145: 0.0003470793716 | Z145: 0.002239615722 | AA145: 0.002478172735 | AB145: 0.01316718326 | AC145: 0.01297187178 | AD145: 0.005448387578 | AE145: 0.03024780284 | AF145: 0.005207009081 | AG145: 0.1068519631 | AI145: -6.593211525e-06 | AJ145: 1.674824718e-05 | AK145: 1.761766693e-05 | AL145: 4.060963144e-05 | AM145: -4.030732076e-05 | AN145: 2.61226123e-05 | AO145: 6.155020797e-05 | AP145: 2.553740567e-05 | AQ145: -0.0001156841502 | AS145: -0.0008816600351 | AT145: -0.0009274279679 | AU145: -0.002137769326 | AV145: 0.002121855109 | AW145: -0.001375144697 | AX145: -0.003240121664 | AY145: -0.001344338291 | AZ145: 0.006089836796 | BB145: 0.002355876614 | BC145: 0.005430417171 | BD145: -0.005389991464 | BE145: 0.003493178278 | BF145: 0.008230641214 | BG145: 0.003414923045 | BH145: -0.01546956161 | BJ145: 0.005712316042 | BK145: -0.005669791792 | BL145: 0.003674512967 | BM145: 0.008657902765 | BN145: 0.00359219542 | BO145: -0.01627260341 | BQ145: -0.01306916267 | BR145: 0.008469942014 | BS145: 0.01995691267 | BT145: 0.00828019582 | BU145: -0.03750919061 | BW145: -0.008406889142 | BX145: -0.01980834723 | BY145: -0.008218555477 | BZ145: 0.03722996057 | CB145: 0.01283751351 | CC145: 0.005326331157 | CD145: -0.02412821809 | CF145: 0.01254992367 | CG145: -0.05685100801 | CI145: -0.02358769048
A146: 144 | B146: 0.03947008 | C146: 0.10398712 | D146: 0.08155901 | E146: 0.01631029 | F146: -0.09231358 | G146: -0.09431098 | H146: 0.33581318 | I146: 0.14614364 | J146: -0.24807746 | K146: -0.62583355 | M146: 0.03123420167 | N146: 0.09495445367 | O146: 0.07068189842 | P146: -0.003285651167 | Q146: -0.08943333246 | R146: -0.1132940653 | S146: 0.3432459238 | T146: 0.1365460948 | U146: -0.2665877816 | V146: -0.6252674353 | X146: 0.0009755753538 | Y146: 0.009016348271 | Z146: 0.004995930764 | AA146: 1.079550359e-05 | AB146: 0.007998320955 | AC146: 0.01283554523 | AD146: 0.1178177642 | AE146: 0.018644836 | AF146: 0.07106904531 | AG146: 0.3909593657 | AI146: 0.002965826555 | AJ146: 0.002207692669 | AK146: -0.0001026246911 | AL146: -0.002793378742 | AM146: -0.003538649683 | AN146: 0.0107210124 | AO146: 0.004264908262 | AP146: -0.008326656533 | AQ146: -0.01952972917 | AS146: 0.006711561048 | AT146: -0.0003119872115 | AU146: -0.008492093223 | AV146: -0.01075777607 | AW146: 0.03259272917 | AX146: 0.01296565983 | AY146: -0.02531369716 | AZ146: -0.05937192772 | BB146: -0.000232236062 | BC146: -0.00632131772 | BD146: -0.008007839614 | BE146: 0.02426127352 | BF146: 0.009651337201 | BG146: -0.0188429305 | BH146: -0.04419508935 | BJ146: 0.0002938467331 | BK146: 0.0003722447778 | BL146: -0.00112778637 | BM146: -0.0004486428357 | BN146: 0.0008759144557 | BO146: 0.002054410678 | BQ146: 0.01013226581 | BR146: -0.03069762682 | BS146: -0.01221177229 | BT146: 0.0238418337 | BU146: 0.05591975042 | BW146: -0.0388877261 | BX146: -0.01546986218 | BY146: 0.03020281354 | BZ146: 0.07083908964 | CB146: 0.04686889045 | CC146: -0.09150516938 | CD146: -0.2146204985 | CF146: -0.0364015205 | CG146: -0.0853778265 | CI146: 0.1666886585
A147: 145 | B147: -0.06811082 | C147: 0.12406766 | D147: -0.06539975 | E147: 0.12454738 | F147: 0.06393911 | G147: 0.00849437 | H147: -0.20467772 | I147: -0.13293471 | J147: 0.13085816 | K147: 0.45253171 | M147: -0.07634669833 | N147: 0.1150349937 | O147: -0.07627686158 | P147: 0.1049514388 | Q147: 0.06681935754 | R147: -0.01048871529 | S147: -0.1972449762 | T147: -0.1425322552 | U147: 0.1123478384 | V147: 0.4530978247 | X147: 0.005828818346 | Y147: 0.01323304977 | Z147: 0.005818159613 | AA147: 0.01101480451 | AB147: 0.004464826542 | AC147: 0.0001100131485 | AD147: 0.03890558064 | AE147: 0.02031544377 | AF147: 0.01262203679 | AG147: 0.2052976387 | AI147: -0.008782541959 | AJ147: 0.005823486541 | AK147: -0.00801269584 | AL147: -0.005101437333 | AM147: 0.0008007787823 | AN147: 0.0150590027 | AO147: 0.01088186709 | AP147: -0.008577386525 | AQ147: -0.03459252294 | AS147: -0.008774508289 | AT147: 0.0120730881 | AU147: 0.007686564372 | AV147: -0.001206569297 | AW147: -0.02269007459 | AX147: -0.01639619708 | AY147: 0.01292393288 | AZ147: 0.05212210539 | BB147: -0.008005366373 | BC147: -0.005096770886 | BD147: 0.0008000462845 | BE147: 0.01504522775 | BF147: 0.0108719131 | BG147: -0.008569540517 | BH147: -0.03456088006 | BJ147: 0.007012787716 | BK147: -0.001100805761 | BL147: -0.02070114406 | BM147: -0.01495896526 | BN147: 0.01179106729 | BO147: 0.04755326863 | BQ147: -0.0007008492172 | BR147: -0.01317978259 | BS147: -0.009523913722 | BT147: 0.007507010381 | BU147: 0.03027570555 | BW147: 0.002068846398 | BX147: 0.001494980245 | BY147: -0.00117838449 | BZ147: -0.004752414082 | CB147: 0.02811377129 | CC147: -0.02216004671 | CD147: -0.08937126965 | CF147: -0.01601319077 | CG147: -0.06458105478 | CI147: 0.05090456117
A148: 146 | B148: -0.06028257 | C148: 0.00816053 | D148: 0.03024544 | E148: -0.06998274 | F148: 0.21853109 | G148: -0.12712284 | H148: -0.05579896 | I148: 0.14433926 | J148: 0.41316524 | K148: -0.08763485 | M148: -0.06851844833 | N148: -0.0008721363333 | O148: 0.01936832842 | P148: -0.08957868117 | Q148: 0.2214113375 | R148: -0.1461059253 | S148: -0.04836621621 | T148: 0.1347417148 | U148: 0.3946549184 | V148: -0.08706873533 | X148: 0.004694777762 | Y148: 7.606217839e-07 | Z148: 0.0003751321457 | AA148: 0.00802434012 | AB148: 0.04902298039 | AC148: 0.02134694141 | AD148: 0.00233929087 | AE148: 0.0181553297 | AF148: 0.1557525046 | AG148: 0.007580964673 | AI148: 5.97574283e-05 | AJ148: -0.00132708781 | AK148: 0.006137792237 | AL148: -0.01517076129 | AM148: 0.01001095129 | AN148: 0.003313978086 | AO148: -0.009232293223 | AP148: -0.02704114263 | AQ148: 0.005965814643 | AS148: -1.689182293e-05 | AT148: 7.812482254e-05 | AU148: -0.0001931008721 | AV148: 0.000127424286 | AW148: 4.218193446e-05 | AX148: -0.0001175131451 | AY148: -0.0003441928934 | AZ148: 7.593580758e-05 | BB148: -0.001734989316 | BC148: 0.004288367501 | BD148: -0.002829827545 | BE148: -0.0009367727598 | BF148: 0.002609721784 | BG148: 0.00764380607 | BH148: -0.001686375861 | BJ148: -0.01983373561 | BK148: 0.0130879761 | BL148: 0.004332581861 | BM148: -0.01206998511 | BN148: -0.0353526671 | BO148: 0.007799502482 | BQ148: -0.03234950834 | BR148: -0.01070882862 | BS148: 0.02983334329 | BT148: 0.08738107334 | BU148: -0.01927800515 | BW148: 0.007066590772 | BX148: -0.01968656292 | BY148: -0.05766142202 | BZ148: 0.01272125814 | CB148: -0.00651694691 | CC148: -0.01908796511 | CD148: 0.004211185278 | CF148: 0.05317648045 | CG148: -0.0117317907 | CI148: -0.03436210464
A149: 147 | B149: 0.04521545 | C149: -0.10461705 | D149: 0.03637426 | E149: 0.01279879 | F149: -0.04405466 | G149: -0.24900811 | H149: 0.08270136 | I149: 0.3733565 | J149: -0.23280824 | K149: 0.1701162 | M149: 0.03697957167 | N149: -0.1136497163 | O149: 0.02549714842 | P149: -0.006797151167 | Q149: -0.04117441246 | R149: -0.2679911953 | S149: 0.09013410379 | T149: 0.3637589548 | U149: -0.2513185616 | V149: 0.1706823147 | X149: 0.001367488721 | Y149: 0.01291625802 | Z149: 0.0006501045774 | AA149: 4.620126398e-05 | AB149: 0.001695332241 | AC149: 0.07181928075 | AD149: 0.008124156666 | AE149: 0.1323205772 | AF149: 0.06316101942 | AG149: 0.02913245254 | AI149: -0.00420271783 | AJ149: 0.0009428736272 | AK149: -0.0002513557387 | AL149: -0.001522612136 | AM149: -0.009910199612 | AN149: 0.003333120551 | AO149: 0.01345165034 | AP149: -0.009293652761 | AQ149: 0.006311758887 | AS149: -0.002897743685 | AT149: 0.000772494302 | AU149: 0.004679460296 | AV149: 0.03045712332 | AW149: -0.01024371533 | AX149: -0.04134110203 | AY149: 0.02856228324 | AZ149: -0.01939799664 | BB149: -0.0001733079721 | BC149: -0.001049830105 | BD149: -0.006833011281 | BE149: 0.002298162622 | BF149: 0.009274816058 | BG149: -0.006407906666 | BH149: 0.004351912309 | BJ149: 0.0002798687057 | BK149: 0.001821576666 | BL149: -0.0006126551287 | BM149: -0.002472524604 | BN149: 0.001708250254 | BO149: -0.001160153494 | BQ149: 0.01103438001 | BR149: -0.003711218766 | BS149: -0.01497756124 | BT149: 0.01034789411 | BU149: -0.007027744023 | BW149: -0.02415514621 | BX149: -0.09748419709 | BY149: 0.06735116173 | BZ149: -0.04574135752 | CB149: 0.03278708739 | CC149: -0.02265237332 | CD149: 0.01538429747 | CF149: -0.0914193773 | CG149: 0.06208722038 | CI149: -0.04289563382
A150: 148 | B150: 0.07785832 | C150: -0.04308632 | D150: 0.05931711 | E150: 0.10396806 | F150: -0.21050393 | G150: 0.12144912 | H150: -0.15251225 | I150: -0.21682247 | J150: -0.21007886 | K150: 0.45913055 | M150: 0.06962244167 | N150: -0.05211898633 | O150: 0.04843999842 | P150: 0.08437211883 | Q150: -0.2076236825 | R150: 0.1024660347 | S150: -0.1450795062 | T150: -0.2264200152 | U150: -0.2285891816 | V150: 0.4596966647 | X150: 0.004847284384 | Y150: 0.002716388736 | Z150: 0.002346433447 | AA150: 0.007118654436 | AB150: 0.04310759352 | AC150: 0.01049928827 | AD150: 0.02104806312 | AE150: 0.05126602329 | AF150: 0.05225301396 | AG150: 0.2113210235 | AI150: -0.003628651086 | AJ150: 0.003372510964 | AK150: 0.005874192922 | AL150: -0.01445526772 | AM150: 0.007133935524 | AN150: -0.01010078946 | AO150: -0.0157639143 | AP150: -0.01591493696 | AQ150: 0.03200520422 | AS150: -0.002524643615 | AT150: -0.004397389308 | AU150: 0.01082113587 | AV150: -0.005340425863 | AW150: 0.007561396801 | AX150: 0.01180078168 | AY150: 0.01191383643 | AZ150: -0.02395892418 | BB150: 0.004086985303 | BC150: -0.01005729085 | BD150: 0.004963454559 | BE150: -0.007027651051 | BF150: -0.01096778518 | BG150: -0.0110728596 | BH150: 0.02226770571 | BJ150: -0.01751765001 | BK150: 0.008645276457 | BL150: -0.01224066534 | BM150: -0.01910353643 | BN150: -0.0192865536 | BO150: 0.03878558162 | BQ150: -0.02127437545 | BR150: 0.03012194133 | BS150: 0.04701015734 | BT150: 0.04746052766 | BU150: -0.09544391433 | BW150: -0.01486572172 | BX150: -0.02320036114 | BY150: -0.02342262702 | BZ150: 0.0471032944 | CB150: 0.032848904 | CC150: 0.03316360559 | CD150: -0.06669256512 | CF150: 0.05175716598 | CG150: -0.1040845258 | CI150: -0.1050816844
A151: 149 | B151: -0.02868451 | C151: 0.04254432 | D151: 0.07138046 | E151: 0.10412363 | F151: -0.10111906 | G151: 0.30694837 | H151: 0.04479413 | I151: -0.22626826 | J151: -0.00285682 | K151: -0.09681283 | M151: -0.03692038833 | N151: 0.03351165367 | O151: 0.06050334842 | P151: 0.08452768883 | Q151: -0.09823881246 | R151: 0.2879652847 | S151: 0.05222687379 | T151: -0.2358658052 | U151: -0.02136714163 | V151: -0.09624671533 | X151: 0.001363115075 | Y151: 0.001123030931 | Z151: 0.00366065517 | AA151: 0.00714493018 | AB151: 0.009650864273 | AC151: 0.0829240052 | AD151: 0.002727646346 | AE151: 0.05563267807 | AF151: 0.0004565547412 | AG151: 0.009263430212 | AI151: -0.001237263267 | AJ151: -0.002233807119 | AK151: -0.003120795097 | AL151: 0.003627015105 | AM151: -0.01063179014 | AN151: -0.001928236462 | AO151: 0.008708257123 | AP151: 0.0007888831664 | AQ151: 0.003553466106 | AS151: 0.002027567258 | AT151: 0.002832662633 | AU151: -0.00329214506 | AV151: 0.009650192889 | AW151: 0.001750208907 | AX151: -0.007904253176 | AY151: -0.00071604825 | AZ151: -0.003225386591 | BB151: 0.005114208208 | BC151: -0.005943777098 | BD151: 0.01742286395 | BE151: 0.003159900742 | BF151: -0.01427067099 | BG151: -0.001292783614 | BH151: -0.005823248552 | BJ151: -0.008303899771 | BK151: 0.02434103998 | BL151: 0.004414616937 | BM151: -0.01993719139 | BN151: -0.001806115099 | BO151: -0.008135512405 | BQ151: -0.0282893676 | BR151: -0.00513070606 | BS151: 0.0231711766 | BT151: 0.002099082619 | BU151: 0.009455163017 | BW151: 0.01503952658 | BX151: -0.06792116375 | BY151: -0.006152995021 | BZ151: -0.02771571278 | CB151: -0.01231853364 | CC151: -0.001115939009 | CD151: -0.005026665055 | CF151: 0.005039778064 | CG151: 0.02270130901 | CI151: 0.002056517197
A152: 150 | B152: -0.00754958 | C152: 0.01140792 | D152: 0.08082654 | E152: -0.06252212 | F152: -0.09683776 | G152: -0.05936278 | H152: 0.09149113 | I152: 0.18411318 | J152: 0.03355647 | K152: -0.23778538 | M152: -0.01578545833 | N152: 0.002375253667 | O152: 0.06994942842 | P152: -0.08211806117 | Q152: -0.09395751246 | R152: -0.07834586529 | S152: 0.09892387379 | T152: 0.1745156348 | U152: 0.01504614837 | V152: -0.2372192653 | X152: 0.0002491806948 | Y152: 5.641829981e-06 | Z152: 0.004892922536 | AA152: 0.00674337597 | AB152: 0.008828014147 | AC152: 0.006138074608 | AD152: 0.009785932806 | AE152: 0.03045570679 | AF152: 0.0002263865809 | AG152: 0.05627297985 | AI152: -3.749446779e-05 | AJ152: -0.001104183788 | AK152: 0.001296271233 | AL152: 0.001483162398 | AM152: 0.001236725392 | AN152: -0.001561558688 | AO152: -0.002754809282 | AP152: -0.0002375103483 | AQ152: 0.003744614829 | AS152: 0.0001661476363 | AT152: -0.0001950512259 | AU152: -0.000223172926 | AV152: -0.0001860913038 | AW152: 0.0002349692939 | AX152: 0.0004145189014 | AY152: 3.57384191e-05 | AZ152: -0.0005634559298 | BB152: -0.005744111441 | BC152: -0.006572274292 | BD152: -0.005480248496 | BE152: 0.006919668428 | BF152: 0.0122072689 | BG152: 0.001052469479 | BH152: -0.01659335202 | BJ152: 0.007715608755 | BK152: 0.006433610558 | BL152: -0.008123436719 | BM152: -0.01433088557 | BN152: -0.001235560533 | BO152: 0.01947998614 | BQ152: 0.007361182614 | BR152: -0.009294641104 | BS152: -0.01639705493 | BT152: -0.001413698673 | BU152: 0.02228853208 | BW152: -0.00775027649 | BX152: -0.01367257841 | BY152: -0.001178803514 | BZ152: 0.01858514861 | CB152: 0.01726376263 | CC152: 0.001488423283 | CD152: -0.02346664866 | CF152: 0.002625788135 | CG152: -0.04139847067 | CI152: -0.003569236264
A153: 151 | B153: 0.06479994 | C153: 0.210566 | D153: -0.06243198 | E153: -0.08261697 | F153: -0.35331785 | G153: -0.14635669 | H153: 0.14349148 | I153: -0.09203467 | J153: 0.2230268 | K153: -0.21137767 | M153: 0.05656406167 | N153: 0.2015333337 | O153: -0.07330909158 | P153: -0.1022129112 | Q153: -0.3504376025 | R153: -0.1653397753 | S153: 0.1509242238 | T153: -0.1016322152 | U153: 0.2045164784 | V153: -0.2108115553 | X153: 0.003199493072 | Y153: 0.04061568458 | Z153: 0.005374222909 | AA153: 0.01044747921 | AB153: 0.1228065132 | AC153: 0.02733724129 | AD153: 0.02277812133 | AE153: 0.01032910717 | AF153: 0.04182698993 | AG153: 0.04444151186 | AI153: 0.01139954391 | AJ153: -0.004146659977 | AK153: -0.00578157741 | AL153: -0.01982217416 | AM153: -0.009352289246 | AN153: 0.008536887102 | AO153: -0.005748730888 | AP153: 0.01156828269 | AQ153: -0.01192435782 | AS153: -0.01477422561 | AT153: -0.02059930873 | AU153: -0.07062485827 | AV153: -0.0333214761 | AW153: 0.03041626195 | AX153: -0.02048227914 | AY153: 0.04121688768 | AZ153: -0.04248555552 | BB153: 0.007493135666 | BC153: 0.02569026229 | BD153: 0.01212090873 | BE153: -0.01106411774 | BF153: 0.007450565373 | BG153: -0.01499291724 | BH153: 0.01545440362 | BJ153: 0.03581924753 | BK153: 0.01689985976 | BL153: -0.01542640428 | BM153: 0.01038812458 | BN153: -0.02090422464 | BO153: 0.02154766278 | BQ153: 0.05794127444 | BR153: -0.05288952314 | BS153: 0.03561574983 | BT153: -0.07167026434 | BU153: 0.07387629602 | BW153: -0.02495377725 | BX153: 0.01680384762 | BY153: -0.03381470858 | BZ153: 0.03485553519 | CB153: -0.01533876319 | CC153: 0.03086649075 | CD153: -0.03181657035 | CF153: -0.02078546274 | CG153: 0.02142524536 | CI153: -0.0431144369
A154: 152 | B154: -0.08871037 | C154: 0.08030873 | D154: -0.11782437 | E154: -0.16415867 | F154: 0.47826016 | G154: -0.04343107 | H154: 0.10103379 | I154: 0.23294003 | J154: -0.16456964 | K154: -0.1898273 | M154: -0.09694624833 | N154: 0.07127606367 | O154: -0.1287014816 | P154: -0.1837546112 | Q154: 0.4811404075 | R154: -0.06241415529 | S154: 0.1084665338 | T154: 0.2233424848 | U154: -0.1830799616 | V154: -0.1892611853 | X154: 0.009398575066 | Y154: 0.005080277252 | Z154: 0.01656407136 | AA154: 0.03376575713 | AB154: 0.2314960918 | AC154: 0.003895526781 | AD154: 0.01176498895 | AE154: 0.04988186551 | AF154: 0.03351827235 | AG154: 0.03581979627 | AI154: -0.006909946968 | AJ154: 0.01247712579 | AK154: 0.01781432017 | AL154: -0.04664475743 | AM154: 0.006050818198 | AN154: -0.01051542352 | AO154: -0.02165221599 | AP154: 0.01774891542 | AQ154: 0.01834816187 | AS154: -0.009173334995 | AT154: -0.01309730536 | AU154: 0.03429379432 | AV154: -0.004448635306 | AW154: 0.007731067568 | AX154: 0.01591897317 | AY154: -0.013049219 | AZ154: -0.0134897923 | BB154: 0.0236494907 | BC154: -0.0619234833 | BD154: 0.008032794258 | BE154: -0.0139598036 | BF154: -0.02874450869 | BG154: 0.02356266231 | BH154: 0.02435819496 | BJ154: -0.0884117685 | BK154: 0.01146888884 | BL154: -0.01993122574 | BM154: -0.04104021145 | BN154: 0.03364178716 | BO154: 0.03477761552 | BQ154: -0.03002997211 | BR154: 0.05218763227 | BS154: 0.1074590942 | BT154: -0.08808716735 | BU154: -0.09106120384 | BW154: -0.006769847084 | BX154: -0.01393973253 | BY154: 0.01142678116 | BZ154: 0.01181257701 | CB154: 0.02422518517 | CC154: -0.01985804884 | CD154: -0.02052850475 | CF154: -0.04088953354 | CG154: -0.04227006341 | CI154: 0.03464993055
A155: 153 | B155: 0.05999529 | C155: -0.01619693 | D155: 0.11365395 | E155: 0.02190778 | F155: -0.08766729 | G155: 0.04425293 | H155: -0.39591986 | I155: 0.384156 | J155: 0.16899654 | K155: -0.07606479 | M155: 0.05175941167 | N155: -0.02522959633 | O155: 0.1027768384 | P155: 0.002311838833 | Q155: -0.08478704246 | R155: 0.02526984471 | S155: -0.3884871162 | T155: 0.3745584548 | U155: 0.1504862184 | V155: -0.07549867533 | X155: 0.002679036696 | Y155: 0.0006365325311 | Z155: 0.01056307851 | AA155: 5.344598791e-06 | AB155: 0.007188842569 | AC155: 0.0006385650516 | AD155: 0.1509222395 | AE155: 0.1402940361 | AF155: 0.02264610192 | AG155: 0.005700049977 | AI155: -0.001305869063 | AJ155: 0.005319668689 | AK155: 0.0001196594179 | AL155: -0.004388527435 | AM155: 0.001307952295 | AN155: -0.02010786458 | AO155: 0.01938692525 | AP155: 0.007789078127 | AQ155: -0.003907767017 | AS155: -0.002593018146 | AT155: -5.832676055e-05 | AU155: 0.002139142856 | AV155: -0.0006375479814 | AW155: 0.009801373123 | AX155: -0.009449958618 | AY155: -0.003796706543 | AZ155: 0.001904801102 | BB155: 0.0002376034862 | BC155: -0.008714144163 | BD155: 0.002597154746 | BE155: -0.03992747757 | BF155: 0.03849593379 | BG155: 0.01546649775 | BH155: -0.007759515155 | BJ155: -0.0001960139773 | BK155: 5.841980831e-05 | BL155: -0.0008981196015 | BM155: 0.0008659187811 | BN155: 0.0003478998835 | BO155: -0.0001745407695 | BQ155: -0.002142555396 | BR155: 0.03293867362 | BS155: -0.03175770361 | BT155: -0.01275928139 | BU155: 0.006401309391 | BW155: -0.009817009098 | BX155: 0.009465033987 | BY155: 0.003802763369 | BZ155: -0.001907839801 | CB155: -0.145511134 | CC155: -0.05846195701 | CD155: 0.02933026266 | CF155: 0.05636588542 | CG155: -0.02827866717 | CI155: -0.01136151014
A156: 154 | B156: -0.02429607 | C156: 0.02695473 | D156: 0.20090456 | E156: -0.08036681 | F156: 0.1158922 | G156: 0.10669448 | H156: 0.05793419 | I156: 0.18881575 | J156: -0.33297703 | K156: -0.03884566 | M156: -0.03253194833 | N156: 0.01792206367 | O156: 0.1900274484 | P156: -0.09996275117 | Q156: 0.1187724475 | R156: 0.08771139471 | S156: 0.06536693379 | T156: 0.1792182048 | U156: -0.3514873516 | V156: -0.03827954533 | X156: 0.001058327662 | Y156: 0.0003212003661 | Z156: 0.03611043115 | AA156: 0.009992551621 | AB156: 0.0141068943 | AC156: 0.007693288762 | AD156: 0.004272836033 | AE156: 0.03211916493 | AF156: 0.1235433584 | AG156: 0.001465323591 | AI156: -0.0005830396492 | AJ156: -0.006181963134 | AK156: 0.003251983056 | AL156: -0.003863899127 | AM156: -0.002853422561 | AN156: -0.002126513713 | AO156: -0.005830317379 | AP156: 0.01143456836 | AQ156: 0.001245308191 | AS156: 0.003405684029 | AT156: -0.001791538791 | AU156: 0.002128647367 | AV156: 0.0015719692 | AW156: 0.001171510349 | AX156: 0.003211960077 | AY156: -0.006299378694 | AZ156: -0.0006860484486 | BB156: -0.01899566654 | BC156: 0.02257002515 | BD156: 0.01666757253 | BE156: 0.01242151164 | BF156: 0.03405637817 | BG156: -0.06679224458 | BH156: -0.007274164326 | BJ156: -0.01187282062 | BK156: -0.008767872324 | BL156: -0.006534258537 | BM156: -0.01791514481 | BN156: 0.03513564267 | BO156: 0.003826528665 | BQ156: 0.01041769703 | BR156: 0.007763790715 | BS156: 0.02128618483 | BT156: -0.04174701303 | BU156: -0.00454655529 | BW156: 0.005733424931 | BX156: 0.0157194787 | BY156: -0.03082944583 | BZ156: -0.00335755231 | CB156: 0.01171494453 | CC156: -0.02297565044 | CD156: -0.002502216505 | CF156: -0.06299293217 | CG156: -0.006860391395 | CI156: 0.01345477601
A157: 155 | B157: 0.0340897 | C157: 0.00549532 | D157: -0.04020529 | E157: -0.05245182 | F157: 0.07907628 | G157: 0.03627131 | H157: -0.01355246 | I157: 0.13120416 | J157: 0.0221514 | K157: -0.03425841 | M157: 0.02585382167 | N157: -0.003537346333 | O157: -0.05108240158 | P157: -0.07204776117 | Q157: 0.08195652754 | R157: 0.01728822471 | S157: -0.006119716208 | T157: 0.1216066148 | U157: 0.003641078375 | V157: -0.03369229533 | X157: 0.0006684200948 | Y157: 1.251281908e-05 | Z157: 0.002609411752 | AA157: 0.005190879889 | AB157: 0.006716872407 | AC157: 0.0002988827136 | AD157: 3.745092647e-05 | AE157: 0.01478816876 | AF157: 1.325745173e-05 | AG157: 0.001135170765 | AI157: -9.145392128e-05 | AJ157: -0.001320675301 | AK157: -0.001862709969 | AL157: 0.002118889447 | AM157: 0.0004469666785 | AN157: -0.0001582180515 | AO157: 0.003143995732 | AP157: 9.413579098e-05 | AQ157: -0.0008710745951 | AS157: 0.0001806961459 | AT157: 0.0002548578838 | AU157: -0.0002899086222 | AV157: -6.115443828e-05 | AW157: 2.164755569e-05 | AX157: -0.0004301647129 | AY157: -1.287975524e-05 | AZ157: 0.0001191813174 | BB157: 0.003680372669 | BC157: -0.004186536252 | BD157: -0.0008831240372 | BE157: 0.0003126098009 | BF157: -0.006211957932 | BG157: -0.0001859950277 | BH157: 0.00172108336 | BJ157: -0.005904784322 | BK157: -0.001245577885 | BL157: 0.0004409118518 | BM157: -0.008761484339 | BN157: -0.0002623315452 | BO157: 0.002427454447 | BQ157: 0.001416882864 | BR157: -0.00050155069 | BS157: 0.009966455874 | BT157: 0.0002984101401 | BU157: -0.00276130353 | BW157: -0.000105799029 | BX157: 0.002102362483 | BY157: 6.294778113e-05 | BZ157: -0.0005824799727 | CB157: -0.0007441979716 | CC157: -2.228236635e-05 | CD157: 0.0002061872858 | CF157: 0.0004427792154 | CG157: -0.00409720598 | CI157: -0.0001226762879
A158: 156 | B158: -0.00767893 | C158: 0.06733657 | D158: 0.01939998 | E158: -0.0452317 | F158: 0.0240707 | G158: 0.09564621 | H158: -0.10596176 | I158: -0.27771514 | J158: 0.02164511 | K158: 0.24873491 | M158: -0.01591480833 | N158: 0.05830390367 | O158: 0.008522868417 | P158: -0.06482764117 | Q158: 0.02695094754 | R158: 0.07666312471 | S158: -0.09852901621 | T158: -0.2873126852 | U158: 0.003134788375 | V158: 0.2493010247 | X158: 0.0002532811243 | Y158: 0.003399345183 | Z158: 7.263928605e-05 | AA158: 0.004202623059 | AB158: 0.0007263535734 | AC158: 0.00587723469 | AD158: 0.009707967035 | AE158: 0.08254857908 | AF158: 9.826898156e-06 | AG158: 0.0621510009 | AI158: -0.0009278954519 | AJ158: -0.0001356398173 | AK158: 0.001031719484 | AL158: -0.0004289191645 | AM158: -0.001220078936 | AN158: 0.001568070408 | AO158: 0.004572526317 | AP158: -4.988955615e-05 | AQ158: -0.003967578025 | AS158: 0.0004969164991 | AT158: -0.003779704546 | AU158: 0.001571345449 | AV158: 0.004469759438 | AW158: -0.005744626269 | AX158: -0.01675145112 | AY158: 0.0001827703994 | AZ158: 0.01453522293 | BB158: -0.0005525174554 | BC158: 0.0002296993796 | BD158: 0.0006533897243 | BE158: -0.0008397498404 | BF158: -0.00244872821 | BG158: 2.671738883e-05 | BH158: 0.002124759829 | BJ158: -0.001747166356 | BK158: -0.004969889539 | BL158: 0.006387403707 | BM158: 0.01862580366 | BN158: -0.0002032209359 | BO158: -0.01616159737 | BQ158: 0.002066143852 | BR158: -0.002655450347 | BS158: -0.007743349107 | BT158: 8.448551705e-05 | BU158: 0.006718898838 | BW158: -0.007553542257 | BX158: -0.02202628822 | BY158: 0.0002403226721 | BZ158: 0.01911219554 | CB158: 0.02830863622 | CC158: -0.0003088676146 | CD158: -0.0245633847 | CF158: -0.0009006644656 | CG158: -0.07162734682 | CI158: 0.000781505954
A159: 157 | B159: 0.06990058 | C159: 0.07196433 | D159: -0.14006611 | E159: 0.04425078 | F159: -0.09527944 | G159: 0.22669497 | H159: -0.23036089 | I159: 0.26628069 | J159: -0.24171198 | K159: -0.35090184 | M159: 0.06166470167 | N159: 0.06293166367 | O159: -0.1509432216 | P159: 0.02465483883 | Q159: -0.09239919246 | R159: 0.2077118847 | S159: -0.2229281462 | T159: 0.2566831448 | U159: -0.2602223016 | V159: -0.3503357253 | X159: 0.003802535432 | Y159: 0.003960394292 | Z159: 0.02278385614 | AA159: 0.0006078610779 | AB159: 0.008537610767 | AC159: 0.04314422705 | AD159: 0.04969695837 | AE159: 0.06588623682 | AF159: 0.06771564626 | AG159: 0.1227351204 | AI159: 0.003880662265 | AJ159: -0.009307868728 | AK159: 0.001520333281 | AL159: -0.005697768637 | AM159: 0.0128084914 | AN159: -0.01374679763 | AO159: 0.01582828955 | AP159: -0.0160465306 | AQ159: -0.02160334799 | AS159: -0.009499108053 | AT159: 0.001551570025 | AU159: -0.005814834903 | AV159: 0.01307165447 | AW159: -0.01402923912 | AX159: 0.01615349734 | AY159: -0.01637622236 | AZ159: -0.02204721004 | BB159: -0.003721480801 | BC159: 0.01394703178 | BD159: -0.03135270104 | BE159: 0.03364949257 | BF159: -0.0387445808 | BG159: 0.03927879254 | BH159: 0.05288080302 | BJ159: -0.002278087198 | BK159: 0.005121103041 | BL159: -0.005496257516 | BM159: 0.006328481566 | BN159: -0.006415738907 | BO159: -0.008637470846 | BQ159: -0.01919241041 | BR159: 0.02059838069 | BS159: -0.0237173153 | BT159: 0.02404433053 | BU159: 0.03237073811 | BW159: -0.0463048254 | BX159: 0.05331613978 | BY159: -0.05405126471 | BZ159: -0.07276889379 | CB159: -0.05722189763 | CC159: 0.0580108753 | CD159: 0.0780996938 | CF159: -0.06679467873 | CG159: -0.08992527571 | CI159: 0.09116516879
A160: 158 | B160: 0.11714699 | C160: -0.00161074 | D160: 0.01748586 | E160: 0.19522738 | F160: -0.13300785 | G160: 0.12734237 | H160: 0.22457607 | I160: -0.20597541 | J160: -0.32105853 | K160: -0.37780056 | M160: 0.1089111117 | N160: -0.01064340633 | O160: 0.006608748417 | P160: 0.1756314388 | Q160: -0.1301276025 | R160: 0.1083592847 | S160: 0.2320088138 | T160: -0.2155729552 | U160: -0.3395688516 | V160: -0.3772344453 | X160: 0.01186163024 | Y160: 0.0001132820984 | Z160: 4.367555563e-05 | AA160: 0.03084640231 | AB160: 0.01693319292 | AC160: 0.01174173458 | AD160: 0.05382808968 | AE160: 0.04647169902 | AF160: 0.115307005 | AG160: 0.1423058267 | AI160: -0.001159185216 | AJ160: 0.0007197661368 | AK160: 0.01912821525 | AL160: -0.01417234184 | AM160: 0.01180153016 | AN160: 0.02526833783 | AO160: -0.0234782902 | AP160: -0.03698282112 | AQ160: -0.0410850228 | AS160: -7.033959475e-05 | AT160: -0.001869316768 | AU160: 0.001385000948 | AV160: -0.001153311897 | AW160: -0.002469364078 | AX160: 0.002294430557 | AY160: 0.003614169266 | AZ160: 0.004015059485 | BB160: 0.001160703993 | BC160: -0.0008599805867 | BD160: 0.0007161192512 | BE160: 0.001533287881 | BF160: -0.001424667426 | BG160: -0.002244125111 | BH160: -0.002493047543 | BJ160: -0.02285449805 | BK160: 0.01903129708 | BL160: 0.04074804179 | BM160: -0.0378613883 | BN160: -0.05963896599 | BO160: -0.06625422841 | BQ160: -0.01410053392 | BR160: -0.03019075069 | BS160: 0.02805199182 | BT160: 0.04418728053 | BU160: 0.04908861394 | BW160: 0.02514030911 | BX160: -0.02335933123 | BY160: -0.03679543787 | BZ160: -0.04087685466 | CB160: -0.05001482562 | CC160: -0.07878296647 | CD160: -0.08752171618 | CF160: 0.07320186084 | CG160: 0.08132154419 | CI160: 0.1280970674
A161: 159 | B161: -0.08307713 | C161: 0.07003219 | D161: -0.05530037 | E161: 0.1466879 | F161: 0.08222991 | G161: -0.09447425 | H161: 0.03201185 | I161: 0.10696932 | J161: -0.12000524 | K161: -0.06770474 | M161: -0.09131300833 | N161: 0.06099952367 | O161: -0.06617748158 | P161: 0.1270919588 | Q161: 0.08511015754 | R161: -0.1134573353 | S161: 0.03944459379 | T161: 0.09737177479 | U161: -0.1385155616 | V161: -0.06713862533 | X161: 0.008338065491 | Y161: 0.003720941888 | Z161: 0.004379459069 | AA161: 0.016152366 | AB161: 0.007243738917 | AC161: 0.01287256693 | AD161: 0.001555875979 | AE161: 0.009481262526 | AF161: 0.01918656081 | AG161: 0.004507595012 | AI161: -0.005570050013 | AJ161: 0.006042864927 | AK161: -0.0116051491 | AL161: -0.007771664525 | AM161: 0.0103601306 | AN161: -0.003601804522 | AO161: -0.008891309683 | AP161: 0.01264827263 | AQ161: 0.006130629855 | AS161: -0.004036794854 | AT161: 0.007752548951 | AU161: 0.005191679069 | AV161: -0.006920843409 | AW161: 0.002406101433 | AX161: 0.005939631881 | AY161: -0.00844938328 | AZ161: -0.004095424165 | BB161: -0.008410625765 | BC161: -0.005632375883 | BD161: 0.007508320717 | BE161: -0.002610343879 | BF161: -0.006443818833 | BG161: 0.009166611028 | BH161: 0.004443065142 | BJ161: 0.01081681664 | BK161: -0.01441951499 | BL161: 0.00501309069 | BM161: 0.01237516959 | BN161: -0.01760421406 | BO161: -0.008532779407 | BQ161: -0.009656371681 | BR161: 0.003357135592 | BS161: 0.008287327093 | BT161: -0.01178908127 | BU161: -0.005714178979 | BW161: -0.004475278503 | BX161: -0.0110475421 | BY161: 0.01571560652 | BZ161: 0.007617369525 | CB161: 0.003840790103 | CC161: -0.005463690062 | CD161: -0.002648255804 | CF161: -0.01348750607 | CG161: -0.006537407106 | CI161: 0.009299744395
A162: 160 | B162: 0.01626036 | C162: -0.01957184 | D162: -0.12965215 | E162: 0.07433333 | F162: -0.08252931 | G162: -0.07942736 | H162: -0.03754975 | I162: 0.25853251 | J162: -0.01343002 | K162: 0.30329598 | M162: 0.008024481667 | N162: -0.02860450633 | O162: -0.1405292616 | P162: 0.05473738883 | Q162: -0.07964906246 | R162: -0.09841044529 | S162: -0.03011700621 | T162: 0.2489349648 | U162: -0.03194034163 | V162: 0.3038620947 | X162: 6.439230602e-05 | Y162: 0.0008182177826 | Z162: 0.01974847336 | AA162: 0.002996181736 | AB162: 0.00634397315 | AC162: 0.009684615743 | AD162: 0.000907034063 | AE162: 0.0619686167 | AF162: 0.001020185423 | AG162: 0.09233217258 | AI162: -0.0002295363367 | AJ162: -0.001127674483 | AK162: 0.0004392391732 | AL162: -0.0006391424415 | AM162: -0.0007896928141 | AN162: -0.0002416733642 | AO162: 0.001997574061 | AP162: -0.0002563046858 | AQ162: 0.002438335808 | AS162: 0.004019770153 | AT162: -0.001565735986 | AU162: 0.002278322112 | AV162: 0.002814982206 | AW162: 0.0008614820948 | AX162: -0.007120661777 | AY162: 0.0009136377043 | AZ162: -0.008691825211 | BB162: -0.007692204834 | BC162: 0.01119302393 | BD162: 0.01382954721 | BE162: 0.004232320644 | BF162: -0.03498264678 | BG162: 0.004488552623 | BH162: -0.04270151579 | BJ162: -0.004359781702 | BK162: -0.005386730809 | BL162: -0.001648526279 | BM162: 0.01362604996 | BN162: -0.001748330899 | BO162: 0.01663261763 | BQ162: 0.007838299704 | BR162: 0.002398791309 | BS162: -0.01982743656 | BT162: 0.002544018265 | BU162: -0.02420233096 | BW162: 0.002963827992 | BX162: -0.02449780073 | BY162: 0.003143263242 | BZ162: -0.02990320404 | CB162: -0.00749717588 | CC162: 0.000961947467 | CD162: -0.009151416592 | CF162: -0.007951067818 | CG162: 0.07564189984 | CI162: -0.009705459111
A163: 161 | B163: 0.07438656 | C163: -0.02353004 | D163: 0.10746327 | E163: 0.01152959 | F163: -0.12044518 | G163: 0.01305144 | H163: -0.10934851 | I163: -0.06964603 | J163: 0.06957486 | K163: -0.2389414 | M163: 0.06615068167 | N163: -0.03256270633 | O163: 0.09658615842 | P163: -0.008066351167 | Q163: -0.1175649325 | R163: -0.005931645292 | S163: -0.1019157662 | T163: -0.07924357521 | U163: 0.05106453837 | V163: -0.2383752853 | X163: 0.004375912685 | Y163: 0.001060329844 | Z163: 0.009328885998 | AA163: 6.506602114e-05 | AB163: 0.01382151334 | AC163: 3.518441587e-05 | AD163: 0.0103868234 | AE163: 0.006279544212 | AF163: 0.002607587079 | AG163: 0.05682277666 | AI163: -0.002154045221 | AJ163: 0.006389240219 | AK163: -0.0005335946282 | AL163: -0.007777000422 | AM163: -0.0003923823794 | AN163: -0.006741797407 | AO163: -0.005242016518 | AP163: 0.003377954022 | AQ163: -0.01576868762 | AS163: -0.003145106712 | AT163: 0.0002626622242 | AU163: 0.003828232371 | AV163: 0.0001931504237 | AW163: 0.003318653166 | AX163: 0.002580385268 | AY163: -0.001662799567 | AZ163: 0.007762144413 | BB163: -0.0007790978716 | BC163: -0.01135514519 | BD163: -0.0005729148318 | BE163: -0.00984365234 | BF163: -0.007653832509 | BG163: 0.004932127593 | BH163: -0.02302375307 | BJ163: 0.0009483200301 | BK163: 4.784673392e-05 | BL163: 0.0008220883597 | BM163: 0.0006392065053 | BN163: -0.0004119044987 | BO163: 0.001922818761 | BQ163: 0.0006973534781 | BR163: 0.01198172017 | BS163: 0.009316265567 | BT163: -0.006003399005 | BU163: 0.02802457432 | BW163: 0.0006045281748 | BX163: 0.0004700447798 | BY163: -0.0003028967286 | BZ163: 0.001413957639 | CB163: 0.008076169684 | CC163: -0.005204281555 | CD163: 0.02429419985 | CF163: -0.004046536587 | CG163: 0.01888970985 | CI163: -0.01217252391
A164: 162 | B164: -0.00844109 | C164: 0.0537718 | D164: -0.01526624 | E164: -0.07070176 | F164: -0.12242962 | G164: 0.0791589 | H164: 0.07699795 | I164: 0.05428528 | J164: 0.29479946 | K164: -0.09009354 | M164: -0.01667696833 | N164: 0.04473913367 | O164: -0.02614335158 | P164: -0.09029770117 | Q164: -0.1195493725 | R164: 0.06017581471 | S164: 0.08443069379 | T164: 0.04468773479 | U164: 0.2762891384 | V164: -0.08952742533 | X164: 0.0002781212728 | Y164: 0.002001590081 | Z164: 0.000683474832 | AA164: 0.008153674836 | AB164: 0.01429205246 | AC164: 0.003621128676 | AD164: 0.007128542054 | AE164: 0.001996993641 | AF164: 0.07633568798 | AG164: 0.008015159887 | AI164: -0.0007461131154 | AJ164: 0.0004359918465 | AK164: 0.001505891903 | AL164: 0.001993721099 | AM164: -0.001003550156 | AN164: -0.001408048007 | AO164: -0.000745255938 | AP164: -0.004607665212 | AQ164: 0.001493046037 | AS164: -0.001169630901 | AT164: -0.004039840922 | AU164: -0.005348535354 | AV164: 0.002692213818 | AW164: 0.003777356095 | AX164: 0.00199929054 | AY164: 0.01236093669 | AZ164: -0.004005379449 | BB164: 0.002360684549 | BC164: 0.003125421276 | BD164: -0.001573197481 | BE164: -0.002207301312 | BF164: -0.001168287162 | BG164: -0.007223124083 | BH164: 0.002340546957 | BJ164: 0.01079503351 | BK164: -0.005433737734 | BL164: -0.007623897557 | BM164: -0.004035199722 | BN164: -0.02494827405 | BO164: 0.008084120699 | BQ164: -0.007193980886 | BR164: -0.01009363646 | BS164: -0.005342390651 | BT164: -0.03303019311 | BU164: 0.01070294752 | BW164: 0.005080685785 | BX164: 0.002689120849 | BY164: 0.016625924 | BZ164: -0.005387385758 | CB164: 0.003773016452 | CC164: 0.02332728364 | CD164: -0.007558862634 | CF164: 0.01234673574 | CG164: -0.00400077784 | CI164: -0.02473545521
A165: 163 | B165: 0.02910995 | C165: -0.10847937 | D165: 0.10437481 | E165: -0.02567991 | F165: 0.09142641 | G165: -0.09733691 | H165: -0.17176023 | I165: -0.0043053 | J165: 0.21180462 | K165: 0.15584592 | M165: 0.02087407167 | N165: -0.1175120363 | O165: 0.09349769842 | P165: -0.04527585117 | Q165: 0.09430665754 | R165: -0.1163199953 | S165: -0.1643274862 | T165: -0.01390284521 | U165: 0.1932942984 | V165: 0.1564120347 | X165: 0.0004357268679 | Y165: 0.01380907868 | Z165: 0.008741819609 | AA165: 0.002049902699 | AB165: 0.008893745657 | AC165: 0.0135303413 | AD165: 0.02700352272 | AE165: 0.0001932891049 | AF165: 0.03736268578 | AG165: 0.02446472459 | AI165: -0.002452954668 | AJ165: 0.001951677657 | AK165: -0.000945091362 | AL165: 0.001968563928 | AM165: -0.002428071918 | AN165: -0.003430183724 | AO165: -0.0002902089872 | AP165: 0.004034839037 | AQ165: 0.003264956021 | AS165: -0.01098710493 | AT165: 0.005320457467 | AU165: -0.01108216737 | AV165: 0.01366899951 | AW165: 0.01931045753 | AX165: 0.001633751651 | AY165: -0.02271440661 | AZ165: -0.0183802967 | BB165: -0.004233187878 | BC165: 0.008817455426 | BD165: -0.01087565184 | BE165: -0.01536424175 | BF165: -0.001299884028 | BG165: 0.01807257202 | BH165: 0.01462416525 | BJ165: -0.004269814191 | BK165: 0.005266486795 | BL165: 0.007440066808 | BM165: 0.0006294631504 | BN165: -0.008751563885 | BO165: -0.007081688002 | BQ165: -0.01096974996 | BR165: -0.01549717597 | BS165: -0.001311130862 | BT165: 0.0182289392 | BU165: 0.01475069619 | BW165: 0.01911457242 | BX165: 0.001617178889 | BY165: -0.02248399188 | BZ165: -0.01819384714 | CB165: 0.002284619604 | CC165: -0.03176356615 | CD165: -0.02570279647 | CF165: -0.00268734071 | CG165: -0.002174572307 | CI165: 0.0302335545
A166: 164 | B166: 0.04855349 | C166: -0.0034608 | D166: 0.09492783 | E166: -0.0848191 | F166: -0.19872157 | G166: -0.11003532 | H166: -0.18407393 | I166: 0.12567941 | J166: -0.15732532 | K166: 0.20045768 | M166: 0.04031761167 | N166: -0.01249346633 | O166: 0.08405071842 | P166: -0.1044150412 | Q166: -0.1958413225 | R166: -0.1290184053 | S166: -0.1766411862 | T166: 0.1160818648 | U166: -0.1758356416 | V166: 0.2010237947 | X166: 0.001625509811 | Y166: 0.000156086701 | Z166: 0.007064523266 | AA166: 0.01090250082 | AB166: 0.03835382358 | AC166: 0.0166457489 | AD166: 0.03120210867 | AE166: 0.01347499933 | AF166: 0.03091817287 | AG166: 0.04041056602 | AI166: -0.000503706724 | AJ166: 0.003388724225 | AK166: -0.004209765082 | AL166: -0.007895854387 | AM166: -0.005201713962 | AN166: -0.00712175075 | AO166: 0.004680143546 | AP166: -0.007089273116 | AQ166: 0.008104799289 | AS166: -0.001050084821 | AT166: 0.001304505802 | AU166: 0.002446736969 | AV166: 0.001611887103 | AW166: 0.002206860713 | AX166: -0.00145026487 | AY166: 0.002196796669 | AZ166: -0.002511484011 | BB166: -0.008776159224 | BC166: -0.01646060385 | BD166: -0.01084408965 | BE166: -0.0148468186 | BF166: 0.009756764131 | BG166: -0.014779112 | BH166: 0.01689619436 | BJ166: 0.02044877975 | BK166: 0.0134714621 | BL166: 0.01844399673 | BM166: -0.01212069269 | BN166: 0.01835988576 | BO166: -0.0209899078 | BQ166: 0.02526713511 | BR166: 0.03459364351 | BS166: -0.02273362591 | BT166: 0.03443588459 | BU166: -0.03936876579 | BW166: 0.02278996415 | BX166: -0.01497669708 | BY166: 0.02268603408 | BZ166: -0.02593576941 | CB166: -0.02050483829 | CC166: 0.03105981631 | CD166: -0.03550908155 | CF166: -0.02041132918 | CG166: 0.02333521695 | CI166: -0.03534714792
A167: 165 | B167: 0.0505745 | C167: -0.02788074 | D167: 0.04357415 | E167: -0.05576298 | F167: 0.18491298 | G167: -0.16657834 | H167: -0.0702017 | I167: -0.1511769 | J167: -0.16926122 | K167: 0.2592757 | M167: 0.04233862167 | N167: -0.03691340633 | O167: 0.03269703842 | P167: -0.07535892117 | Q167: 0.1877932275 | R167: -0.1855614253 | S167: -0.06276895621 | T167: -0.1607744452 | U167: -0.1877715416 | V167: 0.2598418147 | X167: 0.001792558885 | Y167: 0.001362599567 | Z167: 0.001069096321 | AA167: 0.005678966999 | AB167: 0.03526629631 | AC167: 0.03443304256 | AD167: 0.003939941863 | AE167: 0.02584842223 | AF167: 0.03525815184 | AG167: 0.06751776865 | AI167: -0.001562862745 | AJ167: 0.001384347539 | AK167: -0.003190592852 | AL167: 0.007950906412 | AM167: -0.007856414981 | AN167: -0.002657551089 | AO167: -0.006806968409 | AP167: -0.007949988261 | AQ167: 0.01100134428 | AS167: -0.001206959065 | AT167: 0.002781754478 | AU167: -0.006932087715 | AV167: 0.006849704292 | AW167: 0.002317015986 | AX167: 0.005934732424 | AY167: 0.006931287214 | AZ167: -0.009591646487 | BB167: -0.00246401354 | BC167: 0.006140282375 | BD167: -0.006067309051 | BE167: -0.002052358973 | BF167: -0.005256848211 | BG167: -0.00613957331 | BH167: 0.008496057796 | BJ167: -0.01415189503 | BK167: 0.01398370882 | BL167: 0.004730200823 | BM167: 0.01211578874 | BN167: 0.0141502608 | BO167: -0.01958139883 | BQ167: -0.03484717896 | BR167: -0.01178758488 | BS167: -0.03019235197 | BT167: -0.03526222384 | BU167: 0.04879653303 | BW167: 0.01164749698 | BX167: 0.0298335352 | BY167: 0.03484315489 | BZ167: -0.04821661748 | CB167: 0.01009164411 | CC167: 0.01178622367 | CD167: -0.01630999949 | CF167: 0.03018886543 | CG167: -0.04177592359 | CI167: -0.04879089812
A168: 166 | B168: -0.14377766 | C168: 0.03404407 | D168: 0.03951973 | E168: 0.06557809 | F168: 0.08925482 | G168: 0.01322567 | H168: 0.03040344 | I168: -0.1372469 | J168: -0.31630366 | K168: 0.03903779 | M168: -0.1520135383 | N168: 0.02501140367 | O168: 0.02864261842 | P168: 0.04598214883 | Q168: 0.09213506754 | R168: -0.005757415292 | S168: 0.03783618379 | T168: -0.1468444452 | U168: -0.3348139816 | V168: 0.03960390467 | X168: 0.02310811584 | Y168: 0.0006255703134 | Z168: 0.0008203995898 | AA168: 0.002114358011 | AB168: 0.008488870671 | AC168: 3.314783084e-05 | AD168: 0.001431576804 | AE168: 0.02156329109 | AF168: 0.1121004023 | AG168: 0.001568469265 | AI168: -0.00380207197 | AJ168: -0.004354065773 | AK168: -0.006989909144 | AL168: -0.01400577762 | AM168: 0.0008752050701 | AN168: -0.005751612175 | AO168: 0.0223223437 | AP168: 0.05089625803 | AQ168: -0.00602032968 | AS168: 0.0007163920913 | AT168: 0.001150078086 | AU168: 0.002304427366 | AV168: -0.0001440010379 | AW168: 0.000946336066 | AX168: -0.003672785695 | AY168: -0.008374167648 | AZ168: 0.0009905492464 | BB168: 0.001317049143 | BC168: 0.002638989582 | BD168: -0.0001649074493 | BE168: 0.001083727375 | BF168: -0.004206009411 | BG168: -0.009589949116 | BH168: 0.001134359529 | BJ168: 0.004236568388 | BK168: -0.0002647383268 | BL168: 0.001739789034 | BM168: -0.006752223135 | BN168: -0.01539546633 | BO168: 0.001821072639 | BQ168: -0.0005304598468 | BR168: 0.003486039349 | BS168: -0.01352952288 | BT168: -0.03084810881 | BU168: 0.003648908431 | BW168: -0.0002178386231 | BX168: 0.0008454444543 | BY168: 0.001927663138 | BZ168: -0.0002280161263 | CB168: -0.005556033418 | CC168: -0.01266808334 | CD168: 0.001498460616 | CF168: 0.04916557338 | CG168: -0.005815613409 | CI168: -0.01325994101
A169: 167 | B169: 0.00402136 | C169: -0.0570658 | D169: 0.07350567 | E169: 0.13777543 | F169: 0.01298819 | G169: 0.03566299 | H169: -0.08062296 | I169: 0.10873749 | J169: -0.06614514 | K169: -0.11991512 | M169: -0.004214518333 | N169: -0.06609846633 | O169: 0.06262855842 | P169: 0.1181794888 | Q169: 0.01586843754 | R169: 0.01667990471 | S169: -0.07319021621 | T169: 0.09913994479 | U169: -0.08465546163 | V169: -0.1193490053 | X169: 1.776216478e-05 | Y169: 0.004369007252 | Z169: 0.003922336329 | AA169: 0.01396639158 | AB169: 0.00025180731 | AC169: 0.0002782192211 | AD169: 0.005356807749 | AE169: 0.009828728653 | AF169: 0.007166547183 | AG169: 0.01424418507 | AI169: 0.0002785731982 | AJ169: -0.0002639492076 | AK169: -0.0004980696223 | AL169: -6.687782094e-05 | AM169: -7.029776419e-05 | AN169: 0.000308461508 | AO169: -0.0004178271149 | AP169: 0.000356781995 | AQ169: 0.000502998571 | AS169: -0.00413965166 | AT169: -0.007811482964 | AU169: -0.001048879385 | AV169: -0.00110251612 | AW169: 0.004837761042 | AX169: -0.006552998303 | AY169: 0.00559559618 | AZ169: 0.007888786211 | BB169: 0.00740141102 | BC169: 0.0009938173676 | BD169: 0.001044638386 | BE169: -0.004583797731 | BF169: 0.006208991824 | BG169: -0.005301849524 | BH169: -0.007474656152 | BJ169: 0.001875323837 | BK169: 0.001971222612 | BL169: -0.008649582339 | BM169: 0.011716308 | BN169: -0.01000453918 | BO169: -0.01410460444 | BQ169: 0.0002646840261 | BR169: -0.001161414375 | BS169: 0.001573196022 | BT169: -0.001343349905 | BU169: -0.001893882237 | BW169: -0.001220805832 | BX169: 0.001653644832 | BY169: -0.001412045033 | BZ169: -0.001990730036 | CB169: -0.007256073994 | CC169: 0.00619595154 | CD169: 0.008735179505 | CF169: -0.008392737792 | CG169: -0.0118322538 | CI169: 0.01010354514
A170: 168 | B170: -0.03190942 | C170: -0.05027129 | D170: 0.02092302 | E170: -0.03326015 | F170: -0.0066938 | G170: 0.0406207 | H170: 0.15163883 | I170: -0.37888199 | J170: 0.41532382 | K170: 0.43139465 | M170: -0.04014529833 | N170: -0.05930395633 | O170: 0.01004590842 | P170: -0.05285609117 | Q170: -0.003813552458 | R170: 0.02163761471 | S170: 0.1590715738 | T170: -0.3884795352 | U170: 0.3968134984 | V170: 0.4319607647 | X170: 0.001611644978 | Y170: 0.003516959237 | Z170: 0.0001009202759 | AA170: 0.002793766373 | AB170: 1.454318235e-05 | AC170: 0.0004681863703 | AD170: 0.02530376559 | AE170: 0.1509163493 | AF170: 0.1574609525 | AG170: 0.1865901022 | AI170: 0.002380775019 | AJ170: -0.0004032959904 | AK170: 0.002121923549 | AL170: 0.0001530962011 | AM170: -0.0008686484977 | AN170: -0.006385975786 | AO170: 0.01559562684 | AP170: -0.01593019627 | AQ170: -0.01734119377 | AS170: -0.0005957621141 | AT170: 0.003134575322 | AU170: 0.0002261587485 | AV170: -0.001283196158 | AW170: -0.009433573666 | AX170: 0.02303837339 | AY170: -0.02353261038 | AZ170: -0.02561698233 | BB170: -0.0005309874511 | BC170: -3.831059874e-05 | BD170: 0.0002173694957 | BE170: 0.001598018462 | BF170: -0.003902629832 | BG170: 0.003986352063 | BH170: 0.004339438281 | BJ170: 0.0002015694764 | BK170: -0.001143679736 | BL170: -0.008407901606 | BM170: 0.02053350973 | BN170: -0.02097401045 | BO170: -0.02283175756 | BQ170: -8.251617876e-05 | BR170: -0.0006066277913 | BS170: 0.001481487087 | BT170: -0.001513269092 | BU170: -0.001647305036 | BW170: 0.003441929425 | BX170: -0.008405770505 | BY170: 0.008586097589 | BZ170: 0.009346600595 | CB170: -0.06179605105 | CC170: 0.06312174769 | CD170: 0.06871267865 | CF170: -0.1541539234 | CG170: -0.1678079171 | CI170: 0.1714078622
A171: 169 | B171: 0.09991278 | C171: -0.055283 | D171: -0.04608883 | E171: -0.14574997 | F171: 0.0996178 | G171: -0.09018455 | H171: 0.12034269 | I171: -0.16359347 | J171: 0.18224336 | K171: 0.07146712 | M171: 0.09167690167 | N171: -0.06431566633 | O171: -0.05696594158 | P171: -0.1653459112 | Q171: 0.1024980475 | R171: -0.1091676353 | S171: 0.1277754338 | T171: -0.1731910152 | U171: 0.1637330384 | V171: 0.07203323467 | X171: 0.008404654299 | Y171: 0.004136504936 | Z171: 0.0032451185 | AA171: 0.02733927034 | AB171: 0.01050584975 | AC171: 0.0119175726 | AD171: 0.01632656148 | AE171: 0.02999512775 | AF171: 0.02680850786 | AG171: 0.005188786897 | AI171: -0.005896261018 | AJ171: -0.005222461025 | AK171: -0.01515840084 | AL171: 0.009396703426 | AM171: -0.01000815057 | AN171: 0.01171405588 | AO171: -0.01587761567 | AP171: 0.01501053766 | AQ171: 0.006603783771 | AS171: 0.003663802491 | AT171: 0.01063433245 | AU171: -0.006592230226 | AV171: 0.007021189206 | AW171: -0.008217962165 | AX171: 0.01113889555 | AY171: -0.01053059946 | AZ171: -0.004632865486 | BB171: 0.009419085517 | BC171: -0.005838897789 | BD171: 0.006218837135 | BE171: -0.007278847897 | BF171: 0.009865989255 | BG171: -0.009327206699 | BH171: -0.004103441038 | BJ171: -0.01694763306 | BK171: 0.01805042213 | BL171: -0.02112714552 | BM171: 0.02863642622 | BN171: -0.02707258842 | BO171: -0.01191040082 | BQ171: -0.01118946947 | BR171: 0.01309673249 | BS171: -0.01775174091 | BT171: 0.01678231675 | BU171: 0.007383265911 | BW171: -0.01394894196 | BX171: 0.01890685358 | BY171: -0.01787434862 | BZ171: -0.007863697891 | CB171: -0.0221295571 | CC171: 0.02092106 | CD171: 0.009204077807 | CF171: -0.02835709114 | CG171: -0.01247550904 | CI171: 0.01179422038
A172: 170 | B172: 0.02075117 | C172: -0.18143372 | D172: 0.11877864 | E172: 0.18427606 | F172: 0.10845566 | G172: -0.11948612 | H172: 0.18495665 | I172: -0.11266232 | J172: -0.14084047 | K172: 0.18997857 | M172: 0.01251529167 | N172: -0.1904663863 | O172: 0.1079015284 | P172: 0.1646801188 | Q172: 0.1113359075 | R172: -0.1384692053 | S172: 0.1923893938 | T172: -0.1222598652 | U172: -0.1593507916 | V172: 0.1905446847 | X172: 0.0001566325255 | Y172: 0.03627744432 | Z172: 0.01164273983 | AA172: 0.02711954154 | AB172: 0.01239568431 | AC172: 0.01917372081 | AD172: 0.03701367884 | AE172: 0.01494747464 | AF172: 0.02539267479 | AG172: 0.03630727685 | AI172: -0.002383742378 | AJ172: 0.001350419099 | AK172: 0.002061019719 | AL172: 0.001393401356 | AM172: -0.001732982491 | AN172: 0.002407809377 | AO172: -0.001530117872 | AP172: -0.001994321635 | AQ172: 0.002384722304 | AS172: -0.0205516142 | AT172: -0.03136602714 | AU172: -0.02120574798 | AV172: 0.02637372915 | AW172: -0.0366437126 | AX172: 0.02328639472 | AY172: 0.03035096944 | AZ172: -0.03629235752 | BB172: 0.01776923652 | BC172: 0.01201331459 | BD172: -0.01494103889 | BE172: 0.02075910964 | BF172: -0.01319202632 | BG172: -0.01719419397 | BH172: 0.02056006271 | BJ172: 0.01833481048 | BK172: -0.02280312518 | BL172: 0.03168270823 | BM172: -0.02013376913 | BN172: -0.0262419073 | BO172: 0.03137892131 | BQ172: -0.01541659464 | BR172: 0.02141984776 | BS172: -0.01361191305 | BT172: -0.017741465 | BU172: 0.02121446539 | BW172: -0.02664000646 | BX172: 0.01692922637 | BY172: 0.02206517748 | BZ172: -0.02638457106 | CB172: -0.02352150135 | CC172: -0.0306574022 | CD172: 0.03665877637 | CF172: 0.0194822063 | CG172: -0.02329596746 | CI172: -0.03036344634
A173: 171 | B173: -0.07021293 | C173: -0.05564412 | D173: -0.06739898 | E173: 0.1646184 | F173: 0.05420567 | G173: 0.20675164 | H173: -0.15662329 | I173: 0.36876535 | J173: -0.11030754 | K173: -0.0034672 | M173: -0.07844880833 | N173: -0.06467678633 | O173: -0.07827609158 | P173: 0.1450224588 | Q173: 0.05708591754 | R173: 0.1877685547 | S173: -0.1491905462 | T173: 0.3591678048 | U173: -0.1288178616 | V173: -0.002901085333 | X173: 0.006154215529 | Y173: 0.00418308669 | Z173: 0.006127146514 | AA173: 0.02103151357 | AB173: 0.003258801982 | AC173: 0.03525703014 | AD173: 0.02225781908 | AE173: 0.129001512 | AF173: 0.01659404147 | AG173: 8.416296111e-06 | AI173: 0.005073816815 | AJ173: 0.006140666106 | AK173: -0.01137683908 | AL173: -0.004478322204 | AM173: -0.01473021936 | AN173: 0.01170382056 | AO173: -0.02817628628 | AP173: 0.01010560774 | AQ173: 0.0002275866873 | AS173: 0.00506264605 | AT173: -0.009379586583 | AU173: -0.003692133691 | AV173: -0.01214426669 | AW173: 0.00964916508 | AX173: -0.02322981937 | AY173: 0.008331525312 | AZ173: 0.0001876328762 | BB173: -0.01135179127 | BC173: -0.00446846251 | BD173: -0.01469778858 | BE173: 0.01167805286 | BF173: -0.02811425198 | BG173: 0.01008335873 | BH173: 0.0002270856212 | BJ173: 0.008278740127 | BK173: 0.0272306575 | BL173: -0.02163597985 | BM173: 0.05208739818 | BN173: -0.01868148303 | BO173: -0.0004207225283 | BQ173: 0.01071894023 | BR173: -0.008516679219 | BS173: 0.02050342369 | BT173: -0.007353685827 | BU173: -0.0001656111181 | BW173: -0.02801329324 | BX173: 0.0674404196 | BY173: -0.0241879437 | BZ173: -0.0005447326001 | CB173: -0.05358444098 | CC173: 0.01921840714 | CD173: 0.0004328145055 | CF173: -0.04626722858 | CG173: -0.001041976451 | CI173: 0.000373711609
A174: 172 | B174: -0.08628963 | C174: 0.01066747 | D174: -0.04281517 | E174: 0.02976957 | F174: 0.26618598 | G174: -0.11471958 | H174: 0.08032531 | I174: -0.16719469 | J174: 0.21136635 | K174: 0.0364697 | M174: -0.09452550833 | N174: 0.001634803667 | O174: -0.05369228158 | P174: 0.01017362883 | Q174: 0.2690662275 | R174: -0.1337026653 | S174: 0.08775805379 | T174: -0.1767922352 | U174: 0.1928560284 | V174: 0.03703581467 | X174: 0.008935071726 | Y174: 2.672583029e-06 | Z174: 0.002882861102 | AA174: 0.0001035027236 | AB174: 0.0723966348 | AC174: 0.01787640271 | AD174: 0.007701476005 | AE174: 0.03125549443 | AF174: 0.03719344768 | AG174: 0.001371651568 | AI174: -0.0001545306476 | AJ174: 0.00507529021 | AK174: -0.0009616674371 | AL174: -0.02543362193 | AM174: 0.0126383124 | AN174: -0.008295374645 | AO174: 0.0167113759 | AP174: -0.01822981412 | AQ174: -0.003500829208 | AS174: -8.77763388e-05 | AT174: 1.663188572e-05 | AU174: 0.0004398704554 | AV174: -0.0002185776075 | AW174: 0.0001434671881 | AX174: -0.0002890205944 | AY174: 0.0003152817423 | AZ174: 6.054628562e-05 | BB174: -0.000546245344 | BC174: -0.01444677965 | BD174: 0.007178801153 | BE174: -0.004711930135 | BF174: 0.009492378475 | BG174: -0.01035488018 | BH174: -0.00198853739 | BJ174: 0.002737379931 | BK174: -0.001360241291 | BL174: 0.0008928178664 | BM174: -0.001798618582 | BN174: 0.001962045651 | BO174: 0.000376788632 | BQ174: -0.03597487176 | BR174: 0.02361272847 | BS174: -0.04756881979 | BT174: 0.05189104401 | BU174: 0.009965086936 | BW174: -0.01173348569 | BX174: 0.02363759305 | BY174: -0.02578536501 | BZ174: -0.004951787132 | CB174: -0.01551494249 | CC174: 0.01692466971 | CD174: 0.003250191016 | CF174: -0.03409544833 | CG174: -0.006547644458 | CI174: 0.007142580124
A175: 173 | B175: -0.04085295 | C175: 0.02367649 | D175: -0.00979709 | E175: 0.02726174 | F175: 0.14508714 | G175: 0.15396875 | H175: 0.03529667 | I175: -0.04183898 | J175: -0.06393901 | K175: -0.22919707 | M175: -0.04908882833 | N175: 0.01464382367 | O175: -0.02067420158 | P175: 0.007665798833 | Q175: 0.1479673875 | R175: 0.1349856647 | S175: 0.04272941379 | T175: -0.05143652521 | U175: -0.08244933163 | V175: -0.2286309553 | X175: 0.002409713067 | Y175: 0.0002144415716 | Z175: 0.0004274226111 | AA175: 5.876447175e-05 | AB175: 0.02189434778 | AC175: 0.01822112968 | AD175: 0.001825802803 | AE175: 0.002645716126 | AF175: 0.006797892285 | AG175: 0.05227211374 | AI175: -0.0007188481461 | AJ175: 0.001014872332 | AK175: -0.000376305083 | AL175: -0.007263545686 | AM175: -0.006626288122 | AN175: -0.002097536858 | AO175: 0.002524958756 | AP175: 0.004047341086 | AQ175: 0.01122322572 | AS175: -0.0003027493624 | AT175: 0.0001122566064 | AU175: 0.002166808332 | AV175: 0.001976706272 | AW175: 0.0006257220009 | AX175: -0.0007532274052 | AY175: -0.001207373474 | AZ175: -0.003348031395 | BB175: -0.0001584842704 | BC175: -0.003059107598 | BD175: -0.002790720843 | BE175: -0.0008833965143 | BF175: 0.001063409091 | BG175: 0.001704574102 | BH175: 0.004726762459 | BJ175: 0.001134288227 | BK175: 0.001034772951 | BL175: 0.0003275550904 | BM175: -0.0003943020549 | BN175: -0.0006320399902 | BO175: -0.001752638911 | BQ175: 0.01997347616 | BR175: 0.00632255973 | BS175: -0.007610928259 | BT175: -0.01219981221 | BU175: -0.03382992517 | BW175: 0.005767858323 | BX175: -0.006943193546 | BY175: -0.01112947783 | BZ175: -0.03086190148 | CB175: -0.00219785257 | CC175: -0.003523011608 | CD175: -0.009769266696 | CF175: 0.004240907125 | CG175: 0.0117599819 | CI175: 0.01885046946
